Workbook

Sheet Notes (hidden)
A1: Estimation de masse salariale annuelle
A3: Voir formule PFA auto dans Données association
A4: isoler les dates pour les mettre a jour facilement dans les pages textes
A19: Faire un modèle
A20: Protéger le classeur
A21: Nettoyer les feuilles de poste
A22: Nettoyer les données associations

Sheet Intro
A11: TESS
A12: ESTIMATION ANNUELLE DE LA MASSE SALARIALE CP 329.02 et 329.03
A13: Version v5.4 2022-10-10 pour 30 travailleurs
A14: Merci de consacrer un peu de temps à lire ces lignes pour comprendre le fonctionnement de la simulation !
A16: Contexte
B17: Ce tableur est un outil automatisé d'estimation de la masse salariale pour les années 2022 à 2024 (il est forcément moins précis pour 2024, certaines données étant encore inconnues).
B18: Il permet d'approcher le coût global pour l'association en tenant compte des remarques qui suivent.
B19: Il est mis à jour chaque année à mesure de l'évolution des éléments influençant les paramètres [accords non marchands…]
B20: Il ne concerne que les contrats de travail à l'exclusion des contrats d'entreprise, article 17 ou de volontariat.
B21: Il propose des estimations qu'il est possible de corriger.
B22: Les cases figurant en vert clair nécessitent un encodage de votre part.
B23: Les cases figurant en vert sombre contiennent des formules dont vous pouvez modifier le résultat avec prudence.
B24: Les cases oranges reprennent des données facultatives.
B25: Une feuille de test vous permet de vous familiariser avec TESS sans incidence sur la feuille de synthèse
C26: Pour l'utiliser, vous devrez encoder les données relatives au travailleur directement sur la feuille de test et pas dans la feuille "Données travailleurs".
B27: MODE D'EMPLOI
C28: 1. Encoder les informations de votre entreprise à l'année en cours dans la feuille "Données association".
C29: 2. Encoder ensuite les données des travailleurs dans la feuille du même nom.
C30: 3. Corriger les données si nécessaire dans chaque feuille de poste.
C31: 4. La feuille de synthèse donne une idée des coûts globaux; vous pouvez l'adapter si vous le souhaitez.
A33: IMPORTANT
B34: Le tarif SEPP est un tarif minimum sur base 2022.
B35: Il est nécessaire de séparer dans des feuilles distinctes les postes affectés à une unité d'établissement en région Bruxelles Capitale qui sont à mi-temps APE, ACS et à cotisations pleines pour l'autre mi-temps.
B36: Le simulateur tient compte de certaines aides à l'emploi MAIS ne vérifie pas si vous êtes dans les conditions.
B37: La période de référence utilisée pour le calcul du 13ème mois est, par défaut, celle de la CCT des Centres sportifs [proratisation de la présence sur l'année complète].
A39: Le simulateur tient compte automatiquement
B40: • des associations qui n'appliquent pas de barèmes sectoriels et peuvent encoder directement les montants mais perdent une partie des automatismes du tableur;
B41: • du RMMMG [postposé d'un mois sauf pour la CP 329.03] sauf si vous encodez manuellement le barème.
B42: • des cotisations patronales pour les fonds de la CP 329;
B43: • du tax-shift [Réduction structurelle catégorie 2 : Maribel] qui a peu d'impact sauf sur les bas salaires.
B44: • du taux d'occupation pour le calcul de PFA en utilisant les mois d'occupation et le régime de travail arrondis au mois.
B45: • de la réforme APE en Région wallonne
A47: Le simulateur ne tient pas compte
B48: • de l'impact des accords non marchands qui ne sont pas encore traduits en conventions collectives de travail
B49: • d'une réforme ACS dont on ne connaît pas le calendrier ni le mode de calcul de la subvention;
B50: • des périodes assimilées pour le calcul des primes de fin d'année;
B51: • des modifications en cours de mois, quelles qu'elles soient;
B52: • des montants réels [des estimations sont proposées] des primes de fin d'année de 2022 et 2023 puisque les montants des parts fixes sont inconnus;
B53: • des véhicules de fonction;
B54: • des montants et cotisations liées aux régimes de chômage avec complément de l'employeur [RCC, ex-prépension];
B55: • des allocations d'activation qu'il faut compléter manuellement si nécessaire;
B56: • des aides AVIq en Wallonie et PHARE en de Région de Bruxelles-Capitale;
B57: • des réductions de cotisation fédérales pour restructuration, réduction du temps de travail…;
B58: • des réductions de cotisations régionales autres que ACS, PTP et APE à Bruxelles [seulement réductions de cotisations pour les PTP; activation à compléter manuellement];
B59: • des aides à l'emploi régionales APE, ACS, à compléter manuellement
B60: • de l'occupation de l'année qui précède pour le calcul des vacances;
B61: • du coût du reclassement professionnel;
B62: • des congés-éducation payés;
B63: • des vacances "jeunes", des vacances "seniors" et des vacances "européennes".
A65: Cet outil est développé par la CESSoC sous licence Creative Commons.
A70: La CESSoC décline toute responsabilité liée à une utilisation inappropriée du tableur et des montants y figurant,
B71: ou encore en cas d’erreur, de différence éventuelle par rapport à des éléments fournis par des tiers,
B72: comme par exemple votre secrétariat social.
A73: La CESSoC a testé cet outil.
B74: Il n'est toutefois pas à l'abri d'une erreur ou d'un défaut.
B75: La CESSoC rappelle qu'il ne s'agit que d'une simulation.
A76: Merci de rapporter tout problème à info@cessoc.be
A77: Site : www.cessoc.be

Sheet Licence
A12: Information de licence
A13: Cet outil est développé par la CESSoC sous licence Creative Commons.
A19: Il peut être diffusé à condition d'en mentionner la source.
A20: Il ne peut être utilisé à des fins commerciales sans autorisation de la CESSoC.
A21: Il peut être modifié et amélioré par les utilisateurs.
A22: À cette fin, on peut obtenir le mot de passe qui permet de déverrouiller le classeur auprès de pm@cessoc.be.
A23: Le document doit être diffusé sous licence identique.
A25: La CESSoC décline toute responsabilité liée à une utilisation inappropriée du tableur et des montants y figurant,
B26: ou encore en cas d’erreur, de différence éventuelle par rapport à des éléments fournis par des tiers,
B27: comme par exemple votre secrétariat social.
A28: La CESSoC a testé cet outil.
B29: Il n'est toutefois pas à l'abri d'une erreur ou d'un défaut.
B30: La CESSoC rappelle qu'il ne s'agit que d'une simulation.
A31: Merci de rapporter tout problème à info@cessoc.be
A32: www.cessoc.be

Sheet Versions
A12: Historique des versions
A14: v5.4
A15: • Amélioration des automatismes pour les calculs de rémunération hors des grilles barémiques
A16: • Corrections mineures dans l'aide à l'encodage des Données travailleurs
A17: • Correction de la colonne "Subventions emploi" dans la feuille de synthèse qui n'affichait pas les résultats
A19: v5.3
A20: • Mise à jour des indexations et prévisions 2022-2023
A21: • Création d'une page "Données travailleurs" afin d'éviter de devoir encoder les données des travailleurs à chaque mise à jour du tableur
A22: • Prise en compte d'indexations multiples
A23: • Prise en compte de la réforme APE en Région wallonne
A24: • Corrections diverses concernant les centres sportifs
A26: v4.3
A27: • Mise à jour du forfait tax-shift à partir du 1-01-2021
A29: v4.2
A30: • Correction d'une erreur de nom dans le calcul des réductions structurelles avec certaines versions
A32: v4.1
A33: • Mise à jour des montants des parts fixes des primes de fin d'année
A35: v4.0
A36: • Refonte complète pour couvrir les années 2021 et 2022
A38: v3.5
A39: • Mise à jour des primes de fin d'année 2019 pour le secteur de l'insertion socioprofessionnelle en Région de Bruxelles-Capitale [AFT, OISP et Missions locales]
A40: • Le calcul des primes de fin d'année tient désormais compte du taux d'occupation en plus du régime de travail
A42: v3.4
A43: • Mise à jour détaillée des montants des primes de fin d'année 2019
A45: v3.3.5
A46: • Correction d'un bug sur le calcul des subventions APE
A48: v3.3.4
A49: • Correction de bugs sur la feuille de synthèse
A50: • Correction du calcul des primes de fin d'année pour les travailleurs à temps partiel
A52: v3.3.1
A53: • Correction d'un bug sur le calcul des subventions APE en 2020
A55: v3.3
A56: • Ajout des nouveaux montants de PFA prévues dans les CCTs signées en exécution de l'accord non marchand wallon
A58: v3.0
A59: • Prête pour 2020
A60: • MAJ des cotisations patronales
A61: • Correction de la prise en compte des montants dûs à l'ONSS pour les vacances des ouvriers dans la feuille de synthèse
A62: • Suppression de la prise en compte en 2020 de la réforme APE avortée en Wallonie
A63: • Prise en compte de la bascule des BVA dans un dispositif de cotisations à taux plein
A64: • MAJ des bornes bas-salaires
A65: • Prise en compte du RMMMG
A66: • Correction d'une erreur dans le calcul de la part de la facture vacances ouvriers ONSS à payer l'année suivante
A67: • Intégration de la prime unique 2019 pour le secteur de l'ISP à Bruxelles
A69: v2.7
A70: • Cette version n'a AUCUNE INCIDENCE SUR LES CALCULS !
A71: • Correction terminologique relative au paiement à l'ONSS de l'avis de débit annuel pour les vacances des ouvriers.
A73: v2.6
A74: • Suppression des indexations 2019 suivant les prévision du Bureau du plan.
A75: • Mise à jour de la valeur du point APE 2019.
A76: • Adaptation de la valeur de la subvention pour le Fonds Maribel 329.02 en 2019.
A78: v2.5
A79: • Implémentation des parts fixes des primes de fin d'année 2018.
A80: • Adaptation de la valeur de la subvention pour le Fonds Maribel 329.03 en 2019.
A82: v2.4
A83: • Correction d'un bug mineur concernant ceux qui recourrent à la prime de fin d'année fédérale majorée.
A85: v2.3
A86: • Indexation des bornes bas et hauts salaires pour le calcul de la réduction structurelle en 2019.
A87: • Correction d'un bug mineur qui décalait l'indexation des rémunérations d'un mois en cas d'encodage manuel.
A89: v2.2
A90: • Correction d'un bug qui ne prenait pas en compte l'augmentation des barèmes de juillet en CF lorqu'une biennale intervenait.
A91: • Correction d'un bug qui empêchait la prise en compte des subventions APE dans la subvention totale.
A92: • Possibilité d'implémenter la prime de fin d'année fédérale de base et la prime augmentée.
A94: v2.1
A95: • Correction d'un bug sur la prise en compte du plafond de rémunération dans le calcul de la subvention Maribel.
A96: • Correction d'un bug dans la feuille de synthèse sur la prise en compte des subventions.
A97: • Correction d'un bug qui empêchait l'affichage de la subvention APE en 2019.
A99: v2.0
A100: • Correction d'un bug mineur qui décalait l'indexation des rémunérations d'un mois en cas d'encodage manuel.
A101: • Par défaut, le tableur est paramétré pour le calcul du budget 2019; il est toutefois toujours possible de l'utiliser pour l'année 2018.
A103: v1.8
A104: • Prise en compte de l'accord non marchand en Communauté française [barèmes à 97,14% à partir du 1-07-2018
A105: • Prise en compte de l'entrée en vigueur probable de la réforme APE au 1-01-2020 [Cotisations à taux plein]
A106: • Possibilité de modifier les régimes de travail et d'occupation au mois le mois pour les opérateurs non concernés par une grille barémique
A107: • Remplissage et prise en compte de l'index automatisés pour les opérateurs non concernés par une grille barémique
A108: • Calcul automatisé de la prime de fin d'année pour les opérateurs non concernés par une grille barémique
A109: • Correction d'erreurs dans les totaux de la feuille de synthèse
A110: • Prise en compte de l'indexation 2018 sur les années 2019 et 2020
A112: v1.7
A113: • Correction mineure qui ne compte plus les ETPs dans la feuille de synthèse si leur régime de travail est égal à 0.
A114: • Indexation estimée de la part fixe de la PFA 2018.
A116: v1.6
A117: • Correction d'un bug empêchant l'affichage des noms des travailleurs dans la feuille de synthèse.
A118: • Indexation fixée par défaut au 1-11-2018
A120: v1.5
A121: • Correction importante du calcul des cotisations des postes APE sous statut ouvrier.
A123: v1.4
A124: • Correction de la totalisation des ETP dans la feuille de synthèse.
A126: v1.3
A127: • Mise à jour des valeur des bornes hauts salaires et bas salaires suite à la décision du Gouvernement du 12-01-2018.
A129: v1.2
A130: • Mise à jour de la valeur du point APE 2018 communiquée par le FOREm le 22-12-2017;
A131: • Ajout de la possibilité d'établir un travailleur en Flandre;
A132: • Correction de l'intitulé de la case dévolue au nombre de points APE.
A134: v1.1
A135: • Ajout d'un historique des versions;
A136: • Correction du calcul de la part patronale sur les titres-repas;
A137: • Le nombre de titres-repas proposé devient proportionnel au régime de travail et à l'occupation;
A138: • Le nombre de titres-repas proposé indique 0 dans les feuilles de poste quand la part patronale indiquée = 0 dans les "Données association";
A139: • Corrections dans les menus déroulants des "Données association";
A140: • Correction des parts fixes des PFA sur base des montants connus en 2017;
A141: • La mensualisation des subventions Maribel et APE est désormais proportionnelle au régime de travail et à l'occupation;
A142: • Correction de la réduction strucuturelle pour le trimestre au cours duquel les vacances d'un ouvrier sont prises;
A143: • Correction du calcul des annales et biennales dans le cas de l'utilisation d'un pourcentage des barèmes de référence [RW];
A144: • Possibilité d'encoder directement le total annuel de remboursement de frais de transport du domicile au lieu de travail;
A145: • Correction d'un bug qui empêchait les calculs en cas d'encodage d'un 0 dans la cellule du type de PFA;
A146: • Correction d'un bug qui empêchait les calculs dans la feuille de poste en cas d'absence d'encodage d'une PFA déclarée "Autre";
A147: • Correction mineure de la cotisation patronale pour les étudiants
A148: • Correction du calcul du 13ème mois pour les Centres sportifs;
A149: • Corrections d'intitulés dans le tableau de synthèse;
A150: • Déverrouillage de certaines cellules dans le tableau de synthèse;
A151: • Correction de la valeur de la réduction de précompte;
A152: • Le tableau de synthèse est désormais déverrouillable sans mot de passe;
A153: • Correction du calcul de réduction structurelle en cas d'inoccupation partielle;
A154: • Correction du calcul de réduction structurelle si PTP;
A155: • Correction du taux de cotisation sur indemnité de rupture compensatoire de préavis pour les ACS, APE et BVA;
A156: • Correction des montants de subvention APE et Maribel au regard du régime de travail et du taux d'occupation.
A159: v1.01
A160: 2017-11-30
A161: • Correction d'un problème de sécurité sur le verrouilllage du classeur
A163: v1.0
A164: 2017-11-29
A165: • Première version en production

Sheet Données association
A1: =Intro!A13 -> Version v5.4 2022-10-10 pour 30 travailleurs
A2: IMPORTANT | B2: i Utilisez la liste déroulante i
A3: CHOISIR L'ANNÉE DE RÉFÉRENCE | B3: 2023
A4: Nombre d'indexations prévues en 2022 | B4: 5
A5: Nombre d'indexations prévues en 2023 | B5: 3
A6: Nombre d'indexations prévues en 2024 | B6: 0
A7: Nombre d'indexations année référence | B7: =_xlfn.SWITCH($B$3,2022,NIndex2022,2023,NIndex2023,2024,NIndex2024) -> 3
A9: ="DONNÉES ASSOCIATION au 1-01-"&Année_ref -> DONNÉES ASSOCIATION au 1-01-2023
A10: Encodez vos données dans les cases vertes et orangées uniquement !
C11: Exemples
A12: Association | B12: L'assoce asbl | C12: L'assoce asbl
A13: Auteur du dossier | C13: Pierre Detaille
A14: Courriel contact | C14: pdt@cessoc.be
A15: N° entreprise | C15: Lien BCE
B16: i Pas plus de 38h ! i
A17: Régime de travail à temps plein en heures [obligatoire] | B17: 38 | C17: 36,5 = 36h30
B18: i Utilisez la liste déroulante i
A19: Barèmes de référence [obligatoire] | B19: Autres | C19: Communauté française
A20: =IF(Barème_référence_association="Pourcentage","Indiquez le % d'application des barèmes de référence","") ->  | B20: =IF(B19="Pourcentage Wallonie","Tapez le % ici","") ->  | C20: =IF(Barème_référence_association="Pourcentage","97% [v note importante]","") -> 
B21: i Utilisez la liste déroulante i
A22: =IF($B$7>=1,"Mois estimé de la 1ere indexation en "&Année_ref,"") -> Mois estimé de la 1ere indexation en 2023 | B22: 2017-02-01 | C22: Juillet | E22: =IF($B$7=0,"",$B22) -> 2017-02-01
A23: =IF($B$7>1,"Mois estimé de la 2e indexation","") -> Mois estimé de la 2e indexation | B23: 2017-05-01 | E23: =IF($A23="","",$B23) -> 2017-05-01
A24: =IF($B$7>2,"Mois estimé de la 3e indexation","") -> Mois estimé de la 3e indexation | B24: 2017-08-01 | E24: =IF($A24="","",$B24) -> 2017-08-01
A25: =IF($B$7>3,"Mois estimé de la 4e indexation","") ->  | B25: 2017-09-01
A26: =IF($B$7>4,"Mois estimé de la 5e indexation","") ->  | B26: 2017-12-01
B27: i Conservez la valeur proposée OU Utilisez la liste déroulante i
A28: Type de prime de fin d'année | B28: =_xlfn.SWITCH(Barème_référence_association,CF,PFA_Aucune,RW_100,PFA_CISP_CRIs_MIRE,RBC_ISP,PFA_ISP_RBC,CG,PFA_Aucune,Centres_sportifs,_13ème_mois,Pourcentage,PFA_Aucune,Autres,PFA_Aucune) -> Aucune | C28: 13ème mois
A29: i N'encodez pas la valeur complète du titre-repas mais seulement la part employeur | Encodez 0 si pas de TR i
A30: Part employeur des titres repas éventuels | B30: 5.91 € | C30: €6.91
B31: i Utilisez la liste déroulante i
A32: Sous-CP [Si votre choix = "Autre" => pas de calcul de subvention Maribel] | B32: 329.02 | C32: 329.02
B33: i Utilisez la liste déroulante i
A34: Moyenne du nombre de travailleurs déclarés [obligatoire] | B34: Moins de 10 | C34: Lien Répertoire ONSS
A35: ="Nombre de travailleurs déclarés à l'ONSS à la fin du dernier trimestre de "&Année_ref-2&" et des 3 premiers trimestres de "&Année_ref-1&" et divisez par le nombre de trimestres au cours desquels vous avez occupé du personnel" -> Nombre de travailleurs déclarés à l'ONSS à la fin du dernier trimestre de 2021 et des 3 premiers trimestres de 2022 et divisez par le nombre de trimestres au cours desquels vous avez occupé du personnel
A36: Nombre de travailleurs au 30-11 de l'année qui précède | B36: 1
A37: Catégorie SEPP [Service externe de Prévention et de Protection au travail] | B37: 2 | C37: Voir site du SPF Emploi
B38: h Utilisez la liste déroulante h
A40: NOTE IMPORTANTE SUR LES BARÈMES
A41: Trois hypothèses sont possibles :
A42: 1. Vous appliquez strictement les barèmes des conventions collectives de travail [CP 329] => choisissez dans la liste la référence correspondante [voir note plus bas]
A43: 2. Vous appliquez un % différent des barèmes Région wallonne [RW] ci-dessus => choisissez "Pourcentage" dans la liste puis indiquez le % d'application dans la case située dessous.
A44: 3. Vous appliquez des barèmes différents ou vous n'avez pas de barèmes => choisissez "Autres" dans la liste; vous encoderez les montants pour chaque travailleur. ATTENTION à respecter le RMMMG !
A46: Barèmes de référence
A47: Communauté française : CCT du 26-06-2018 applicable aux secteurs relevant du Décret sur l'emploi socioculturel
A48: Wallonie 100% : CCT du 16-09-2002 applicables aux CISP, CFISPA, CRIs, MIRE; ce sont aussi les barèmes de référence de l'accord non marchand utilisés pour les pourcentages
A49: Région Bruxelles ISP : CCT du 01-07-2002 applicables aux MiLoc, AFT, OISP
A50: Communauté germanophone : CCT du 18-02-2013 applicable aux associations ayant leur siège en Communauté germanophone
A51: Centres sportifs : CCT du 20-02-2017 applicables aux centres sportifs

Sheet Données travailleurs
A1: DONNÉES TRAVAILLEURS [données servant aux calculs de rémunération]
A2: ="Employeurs du groupe 2 [Maribel] | Estimations pour l'année "&Année_ref -> Employeurs du groupe 2 [Maribel] | Estimations pour l'année 2023
A3: Les cases orangées sont facultatives; les vertes indipensables.
A4: Poste n° | B4: ID du travailleur | C4: N° de registre national | D4: Année de naissance | E4: Niveau de diplôme | F4: Fonction | G4: Unité d'établissement du poste | H4: Statut | I4: ="Régime de travail au 1-01-"&Année_ref&" ou au début du contrat" -> Régime de travail au 1-01-2023 ou au début du contrat | J4: ="Régime 5 ou 6 jours" -> Régime 5 ou 6 jours | K4: Échelon | L4: Échelon centres sportifs | M4: ="Ancienneté barémique au 1-01-"&Année_ref -> Ancienneté barémique au 1-01-2023 | N4: ="Mois du passage d'ancienneté en "&Année_ref -> Mois du passage d'ancienneté en 2023 | O4: Mois de la prise principale des vacances | P4: APE / ACS ; PTP ; Maribel; Étudiant
A5: Ex | B5: A. Nonyme | C5: 95030311025 | D5: 1995 | E5: Enseignement supérieur non universitaire ou bachelier | F5: Du temps qu'il fait | G5: Région bruxelloise | H5: Employé | I5: 32 | J5: 5 | K5: 6 | L5: 20 | M5: 5 | N5: 2017-09-01 | O5: 2017-08-01 | P5: MARIBEL
A6: 1 | J6: 5 | K6: =IF(Barème_référence_association="Autres","Autre","") -> Autre | N6: Aucune | O6: 2022-07-02
A7: 2 | D7: =IF(C7="","",IF(LEFT(C7,2)*1<30,"20"&LEFT(C7,2),"19"&LEFT(C7,2))) ->  | J7: 5 | K7: Autre | N7: Aucune | O7: 2022-07-02
A8: 3 | J8: 5 | K8: Autre | N8: Aucune | O8: 2022-07-03
A9: 4 | J9: 5 | K9: Autre | N9: Aucune | O9: 2022-07-04
A10: 5 | J10: 5 | K10: Autre | N10: Aucune | O10: 2022-07-05
A11: 6 | J11: 5 | K11: Autre | N11: Aucune | O11: 2022-07-06
A12: 7 | J12: 5 | K12: Autre | N12: Aucune | O12: 2022-07-07
A13: 8 | J13: 5 | K13: Autre | N13: Aucune | O13: 2022-07-08
A14: 9 | J14: 5 | K14: Autre | N14: Aucune | O14: 2022-07-09
A15: 10 | J15: 5 | K15: Autre | N15: Aucune | O15: 2022-07-10
A16: 11 | J16: 5 | K16: Autre | N16: Aucune | O16: 2022-07-11
A17: 12 | J17: 5 | K17: Autre | N17: Aucune | O17: 2022-07-12
A18: 13 | J18: 5 | K18: Autre | N18: Aucune | O18: 2022-07-13
A19: 14 | J19: 5 | K19: Autre | N19: Aucune | O19: 2022-07-14
A20: 15 | J20: 5 | K20: Autre | N20: Aucune | O20: 2022-07-15
A21: 16 | J21: 5 | K21: Autre | N21: Aucune | O21: 2022-07-16
A22: 17 | J22: 5 | K22: Autre | N22: Aucune | O22: 2022-07-17
A23: 18 | J23: 5 | K23: Autre | N23: Aucune | O23: 2022-07-18
A24: 19 | J24: 5 | K24: Autre | N24: Aucune | O24: 2022-07-19
A25: 20 | J25: 5 | K25: Autre | N25: Aucune | O25: 2022-07-20
A26: 21 | J26: 5 | K26: Autre | N26: Aucune | O26: 2022-07-21
A27: 22 | J27: 5 | K27: Autre | N27: Aucune | O27: 2022-07-22
A28: 23 | J28: 5 | K28: Autre | N28: Aucune | O28: 2022-07-23
A29: 24 | J29: 5 | K29: Autre | N29: Aucune | O29: 2022-07-24
A30: 25 | J30: 5 | K30: Autre | N30: Aucune | O30: 2022-07-25
A31: 26 | J31: 5 | K31: Autre | N31: Aucune | O31: 2022-07-26
A32: 27 | J32: 5 | K32: Autre | N32: Aucune | O32: 2022-07-27
A33: 28 | J33: 5 | K33: Autre | N33: Aucune | O33: 2022-07-28
A34: 29 | J34: 5 | K34: Autre | N34: Aucune | O34: 2022-07-29
A35: 30 | J35: 5 | K35: Autre | N35: Aucune | O35: 2022-07-30

Sheet Synthèse
A1: ='Données association'!B12 -> L'assoce asbl
A2: ="Synthèse de la masse salariale pour l'année "&Année_ref -> Synthèse de la masse salariale pour l'année 2023
A3: Cette feuille est verrouillée sans mot de passe pour vous permettre d'ajouter les éléments que vous souhaiteriez.
B5: Total des charges | C5: =-E19 -> 0.00 €
B6: Facture SEPP | C6: =-INDEX(Paramètres!$B$67:$C$71,Cat_SEPP,IF(Nbre_trav_SEPP<6,1,2))*'Données association'!$B$36 -> -55.74 €
B7: Facture Assurance-Loi | C7: -100.00 € | D7: <= Inscrire un montant négatif !
B8: Facture SS | D8: ± 260 € par trav/an | Montant négatif
B9: Réduction de précompte | C9: =0.25%*D19 -> 0.00 €
B10: Total subventions APE
B11: Total subventions emploi | C11: =F19 -> 0.00 €
B12: Coût net total | C12: =SUM(C5:C11) -> -155.74 €
B14: ="Avis de débit ONSS vacances ouvriers pour 04-"&Année_ref+1 -> Avis de débit ONSS vacances ouvriers pour 04-2024 | C14: ='Données poste 1'!$P$67+'Données poste 2'!$P$66+'Données poste 3'!$P$66+'Données poste 4'!$P$66+'Données poste 5'!$P$66+'Données poste 6'!$P$66+'Données poste 7'!$P$66+'Données poste 8'!$P$66+'Données poste 9'!$P$66+'Données poste 10'!$P$66+'Données poste 11'!$P$66+'Données poste 12'!$P$66+'Données poste 13'!$P$66+'Données poste 14'!$P$66+'Données poste 15'!$P$66+'Données poste 16'!$P$66+'Données poste 17'!$P$66+'Données poste 18'!$P$66+'Données poste 19'!$P$66+'Données poste 20'!$P$66+'Données poste 21'!$P$66+'Données poste 22'!$P$66+'Données poste 23'!$P$66+'Données poste 24'!$P$66+'Données poste 25'!$P$66+'Données poste 26'!$P$66+'Données poste 27'!$P$66+'Données poste 28'!$P$66+'Données poste 29'!$P$66+'Données poste 30'!$P$66 -> 0.00 €
A18: Détail par poste
B19: TOTAL | C19: =ROUND(SUM(C21:C50),2)&" ETP" -> 0 ETP | D19: =SUM(D21:D50) -> 0 | E19: =SUM(E21:E50) -> 0 | F19: =SUM(F21:F50) -> 0 | G19: =SUM(G21:G50) -> 0 | H19: =IF(F19=0,"",F19/E19) -> 
A20: Poste | B20: ID | C20: ="ETP "&Année_ref -> ETP 2023 | D20: Brut total | E20: Charges totales | F20: Subventions emploi | G20: Coût net | H20: Taux de subventionnement
A21: 1 | B21: =IF('Données travailleurs'!$B6="","",'Données travailleurs'!$B6) ->  | C21: =IF(B21="","",'Données poste 1'!$P$19/Régime_de_travail_temps_plein) ->  | D21: =IF(ISERROR('Données poste 1'!$P$64),"",'Données poste 1'!$P$64) -> 0 | E21: =IF(ISERROR('Données poste 1'!$P$63),"",'Données poste 1'!$P$63) -> 0 | F21: ='Données poste 1'!$P$74 -> 0 | G21: =IF(ISERROR(E21-F21),"",E21-F21) -> 0 | H21: =IF(E21=0,"",F21/E21) -> 
A22: 2 | B22: =IF('Données travailleurs'!$B7="","",'Données travailleurs'!$B7) ->  | C22: =IF(B22="","",'Données poste 2'!$P$19/Régime_de_travail_temps_plein) ->  | D22: =IF(ISERROR('Données poste 2'!$P$64),"",'Données poste 2'!$P$64) -> 0 | E22: =IF(ISERROR('Données poste 2'!$P$63),"",'Données poste 2'!$P$63) -> 0 | F22: ='Données poste 2'!$P$74 -> 0 | G22: =IF(ISERROR(E22-F22),"",E22-F22) -> 0
A23: 3 | B23: =IF('Données travailleurs'!$B8="","",'Données travailleurs'!$B8) ->  | C23: =IF(B23="","",'Données poste 3'!$P$19/Régime_de_travail_temps_plein) ->  | D23: =IF(ISERROR('Données poste 3'!$P$64),"",'Données poste 3'!$P$64) -> 0 | E23: =IF(ISERROR('Données poste 3'!$P$63),"",'Données poste 3'!$P$63) -> 0 | F23: ='Données poste 3'!$P$74 -> 0 | G23: 0
A24: 4 | B24: =IF('Données travailleurs'!$B9="","",'Données travailleurs'!$B9) ->  | C24: =IF(B24="","",'Données poste 4'!$P$19/Régime_de_travail_temps_plein) ->  | D24: =IF(ISERROR('Données poste 4'!$P$64),"",'Données poste 4'!$P$64) -> 0 | E24: =IF(ISERROR('Données poste 4'!$P$63),"",'Données poste 4'!$P$63) -> 0 | F24: ='Données poste 4'!$P$74 -> 0 | G24: 0
A25: 5 | B25: =IF('Données travailleurs'!$B10="","",'Données travailleurs'!$B10) ->  | C25: =IF(B25="","",'Données poste 5'!$P$19/Régime_de_travail_temps_plein) ->  | D25: =IF(ISERROR('Données poste 5'!$P$64),"",'Données poste 5'!$P$64) -> 0 | E25: =IF(ISERROR('Données poste 5'!$P$63),"",'Données poste 5'!$P$63) -> 0 | F25: ='Données poste 5'!$P$74 -> 0 | G25: 0
A26: 6 | B26: =IF('Données travailleurs'!$B11="","",'Données travailleurs'!$B11) ->  | C26: =IF(B26="","",'Données poste 6'!$P$19/Régime_de_travail_temps_plein) ->  | D26: =IF(ISERROR('Données poste 6'!$P$64),"",'Données poste 6'!$P$64) -> 0 | E26: =IF(ISERROR('Données poste 6'!$P$63),"",'Données poste 6'!$P$63) -> 0 | F26: ='Données poste 6'!$P$74 -> 0 | G26: 0
A27: 7 | B27: =IF('Données travailleurs'!$B12="","",'Données travailleurs'!$B12) ->  | C27: =IF(B27="","",'Données poste 7'!$P$19/Régime_de_travail_temps_plein) ->  | D27: =IF(ISERROR('Données poste 7'!$P$64),"",'Données poste 7'!$P$64) -> 0 | E27: =IF(ISERROR('Données poste 7'!$P$63),"",'Données poste 7'!$P$63) -> 0 | F27: ='Données poste 7'!$P$74 -> 0 | G27: 0
A28: 8 | B28: =IF('Données travailleurs'!$B13="","",'Données travailleurs'!$B13) ->  | C28: =IF(B28="","",'Données poste 8'!$P$19/Régime_de_travail_temps_plein) ->  | D28: =IF(ISERROR('Données poste 8'!$P$64),"",'Données poste 8'!$P$64) -> 0 | E28: =IF(ISERROR('Données poste 8'!$P$63),"",'Données poste 8'!$P$63) -> 0 | F28: ='Données poste 8'!$P$74 -> 0 | G28: 0
A29: 9 | B29: =IF('Données travailleurs'!$B14="","",'Données travailleurs'!$B14) ->  | C29: =IF(B29="","",'Données poste 9'!$P$19/Régime_de_travail_temps_plein) ->  | D29: =IF(ISERROR('Données poste 9'!$P$64),"",'Données poste 9'!$P$64) -> 0 | E29: =IF(ISERROR('Données poste 9'!$P$63),"",'Données poste 9'!$P$63) -> 0 | F29: ='Données poste 9'!$P$74 -> 0 | G29: 0
A30: 10 | B30: =IF('Données travailleurs'!$B15="","",'Données travailleurs'!$B15) ->  | C30: =IF(B30="","",'Données poste 10'!$P$19/Régime_de_travail_temps_plein) ->  | D30: =IF(ISERROR('Données poste 10'!$P$64),"",'Données poste 10'!$P$64) -> 0 | E30: =IF(ISERROR('Données poste 10'!$P$63),"",'Données poste 10'!$P$63) -> 0 | F30: ='Données poste 10'!$P$74 -> 0 | G30: =IF(ISERROR(E30-F30),"",E30-F30) -> 0
A31: 11 | B31: =IF('Données travailleurs'!$B16="","",'Données travailleurs'!$B16) ->  | C31: =IF(B31="","",'Données poste 11'!$P$19/Régime_de_travail_temps_plein) ->  | D31: =IF(ISERROR('Données poste 11'!$P$64),"",'Données poste 11'!$P$64) -> 0 | E31: =IF(ISERROR('Données poste 11'!$P$63),"",'Données poste 11'!$P$63) -> 0 | F31: ='Données poste 11'!$P$74 -> 0 | G31: =IF(ISERROR(E31-F31),"",E31-F31) -> 0
A32: 12 | B32: =IF('Données travailleurs'!$B17="","",'Données travailleurs'!$B17) ->  | C32: =IF(B32="","",'Données poste 12'!$P$19/Régime_de_travail_temps_plein) ->  | D32: =IF(ISERROR('Données poste 12'!$P$64),"",'Données poste 12'!$P$64) -> 0 | E32: =IF(ISERROR('Données poste 12'!$P$63),"",'Données poste 12'!$P$63) -> 0 | F32: ='Données poste 12'!$P$74 -> 0 | G32: 0
A33: 13 | B33: =IF('Données travailleurs'!$B18="","",'Données travailleurs'!$B18) ->  | C33: =IF(B33="","",'Données poste 13'!$P$19/Régime_de_travail_temps_plein) ->  | D33: =IF(ISERROR('Données poste 13'!$P$64),"",'Données poste 13'!$P$64) -> 0 | E33: =IF(ISERROR('Données poste 13'!$P$63),"",'Données poste 13'!$P$63) -> 0 | F33: ='Données poste 13'!$P$74 -> 0 | G33: 0 | H33: =IF(E33=0,"",F33/E33) -> 
A34: 14 | B34: =IF('Données travailleurs'!$B19="","",'Données travailleurs'!$B19) ->  | C34: =IF(B34="","",'Données poste 14'!$P$19/Régime_de_travail_temps_plein) ->  | D34: =IF(ISERROR('Données poste 14'!$P$64),"",'Données poste 14'!$P$64) -> 0 | E34: =IF(ISERROR('Données poste 14'!$P$63),"",'Données poste 14'!$P$63) -> 0 | F34: ='Données poste 14'!$P$74 -> 0 | G34: 0
A35: 15 | B35: =IF('Données travailleurs'!$B20="","",'Données travailleurs'!$B20) ->  | C35: =IF(B35="","",'Données poste 15'!$P$19/Régime_de_travail_temps_plein) ->  | D35: =IF(ISERROR('Données poste 15'!$P$64),"",'Données poste 15'!$P$64) -> 0 | E35: =IF(ISERROR('Données poste 15'!$P$63),"",'Données poste 15'!$P$63) -> 0 | F35: ='Données poste 15'!$P$74 -> 0 | G35: 0
A36: 16 | B36: =IF('Données travailleurs'!$B21="","",'Données travailleurs'!$B21) ->  | C36: =IF(B36="","",'Données poste 16'!$P$19/Régime_de_travail_temps_plein) ->  | D36: =IF(ISERROR('Données poste 16'!$P$64),"",'Données poste 16'!$P$64) -> 0 | E36: =IF(ISERROR('Données poste 16'!$P$63),"",'Données poste 16'!$P$63) -> 0 | F36: ='Données poste 16'!$P$74 -> 0 | G36: 0
A37: 17 | B37: =IF('Données travailleurs'!$B22="","",'Données travailleurs'!$B22) ->  | C37: =IF(B37="","",'Données poste 17'!$P$19/Régime_de_travail_temps_plein) ->  | D37: =IF(ISERROR('Données poste 17'!$P$64),"",'Données poste 17'!$P$64) -> 0 | E37: =IF(ISERROR('Données poste 17'!$P$63),"",'Données poste 17'!$P$63) -> 0 | F37: ='Données poste 17'!$P$74 -> 0 | G37: 0
A38: 18 | B38: =IF('Données travailleurs'!$B23="","",'Données travailleurs'!$B23) ->  | C38: =IF(B38="","",'Données poste 18'!$P$19/Régime_de_travail_temps_plein) ->  | D38: =IF(ISERROR('Données poste 18'!$P$64),"",'Données poste 18'!$P$64) -> 0 | E38: =IF(ISERROR('Données poste 18'!$P$63),"",'Données poste 18'!$P$63) -> 0 | F38: ='Données poste 18'!$P$74 -> 0 | G38: 0
A39: 19 | B39: =IF('Données travailleurs'!$B24="","",'Données travailleurs'!$B24) ->  | C39: =IF(B39="","",'Données poste 19'!$P$19/Régime_de_travail_temps_plein) ->  | D39: =IF(ISERROR('Données poste 19'!$P$64),"",'Données poste 19'!$P$64) -> 0 | E39: =IF(ISERROR('Données poste 19'!$P$63),"",'Données poste 19'!$P$63) -> 0 | F39: ='Données poste 19'!$P$74 -> 0 | G39: 0
A40: 20 | B40: =IF('Données travailleurs'!$B25="","",'Données travailleurs'!$B25) ->  | C40: =IF(B40="","",'Données poste 20'!$P$19/Régime_de_travail_temps_plein) ->  | D40: =IF(ISERROR('Données poste 20'!$P$64),"",'Données poste 20'!$P$64) -> 0 | E40: =IF(ISERROR('Données poste 20'!$P$63),"",'Données poste 20'!$P$63) -> 0 | F40: ='Données poste 20'!$P$74 -> 0 | G40: 0
A41: 21 | B41: =IF('Données travailleurs'!$B26="","",'Données travailleurs'!$B26) ->  | C41: =IF(B41="","",'Données poste 21'!$P$19/Régime_de_travail_temps_plein) ->  | D41: =IF(ISERROR('Données poste 21'!$P$64),"",'Données poste 21'!$P$64) -> 0 | E41: =IF(ISERROR('Données poste 21'!$P$63),"",'Données poste 21'!$P$63) -> 0 | F41: ='Données poste 21'!$P$74 -> 0 | G41: 0
A42: 22 | B42: =IF('Données travailleurs'!$B27="","",'Données travailleurs'!$B27) ->  | C42: =IF(B42="","",'Données poste 22'!$P$19/Régime_de_travail_temps_plein) ->  | D42: =IF(ISERROR('Données poste 22'!$P$64),"",'Données poste 22'!$P$64) -> 0 | E42: =IF(ISERROR('Données poste 22'!$P$63),"",'Données poste 22'!$P$63) -> 0 | F42: ='Données poste 22'!$P$74 -> 0 | G42: 0
A43: 23 | B43: =IF('Données travailleurs'!$B28="","",'Données travailleurs'!$B28) ->  | C43: =IF(B43="","",'Données poste 23'!$P$19/Régime_de_travail_temps_plein) ->  | D43: =IF(ISERROR('Données poste 23'!$P$64),"",'Données poste 23'!$P$64) -> 0 | E43: =IF(ISERROR('Données poste 23'!$P$63),"",'Données poste 23'!$P$63) -> 0 | F43: ='Données poste 23'!$P$74 -> 0 | G43: 0
A44: 24 | B44: =IF('Données travailleurs'!$B29="","",'Données travailleurs'!$B29) ->  | C44: =IF(B44="","",'Données poste 24'!$P$19/Régime_de_travail_temps_plein) ->  | D44: =IF(ISERROR('Données poste 24'!$P$64),"",'Données poste 24'!$P$64) -> 0 | E44: =IF(ISERROR('Données poste 24'!$P$63),"",'Données poste 24'!$P$63) -> 0 | F44: ='Données poste 24'!$P$74 -> 0 | G44: 0
A45: 25 | B45: =IF('Données travailleurs'!$B30="","",'Données travailleurs'!$B30) ->  | C45: =IF(B45="","",'Données poste 25'!$P$19/Régime_de_travail_temps_plein) ->  | D45: =IF(ISERROR('Données poste 25'!$P$64),"",'Données poste 25'!$P$64) -> 0 | E45: =IF(ISERROR('Données poste 25'!$P$63),"",'Données poste 25'!$P$63) -> 0 | F45: ='Données poste 25'!$P$74 -> 0 | G45: 0
A46: 26 | B46: =IF('Données travailleurs'!$B31="","",'Données travailleurs'!$B31) ->  | C46: =IF(B46="","",'Données poste 26'!$P$19/Régime_de_travail_temps_plein) ->  | D46: =IF(ISERROR('Données poste 26'!$P$64),"",'Données poste 26'!$P$64) -> 0 | E46: =IF(ISERROR('Données poste 26'!$P$63),"",'Données poste 26'!$P$63) -> 0 | F46: ='Données poste 26'!$P$74 -> 0 | G46: 0
A47: 27 | B47: =IF('Données travailleurs'!$B32="","",'Données travailleurs'!$B32) ->  | C47: =IF(B47="","",'Données poste 27'!$P$19/Régime_de_travail_temps_plein) ->  | D47: =IF(ISERROR('Données poste 27'!$P$64),"",'Données poste 27'!$P$64) -> 0 | E47: =IF(ISERROR('Données poste 27'!$P$63),"",'Données poste 27'!$P$63) -> 0 | F47: ='Données poste 27'!$P$74 -> 0 | G47: 0
A48: 28 | B48: =IF('Données travailleurs'!$B33="","",'Données travailleurs'!$B33) ->  | C48: =IF(B48="","",'Données poste 28'!$P$19/Régime_de_travail_temps_plein) ->  | D48: =IF(ISERROR('Données poste 28'!$P$64),"",'Données poste 28'!$P$64) -> 0 | E48: =IF(ISERROR('Données poste 28'!$P$63),"",'Données poste 28'!$P$63) -> 0 | F48: ='Données poste 28'!$P$74 -> 0 | G48: 0
A49: 29 | B49: =IF('Données travailleurs'!$B34="","",'Données travailleurs'!$B34) ->  | C49: =IF(B49="","",'Données poste 29'!$P$19/Régime_de_travail_temps_plein) ->  | D49: =IF(ISERROR('Données poste 29'!$P$64),"",'Données poste 29'!$P$64) -> 0 | E49: =IF(ISERROR('Données poste 29'!$P$63),"",'Données poste 29'!$P$63) -> 0 | F49: ='Données poste 29'!$P$74 -> 0 | G49: 0
A50: 30 | B50: =IF('Données travailleurs'!$B35="","",'Données travailleurs'!$B35) ->  | C50: =IF(B50="","",'Données poste 30'!$P$19/Régime_de_travail_temps_plein) ->  | D50: =IF(ISERROR('Données poste 30'!$P$64),"",'Données poste 30'!$P$64) -> 0 | E50: =IF(ISERROR('Données poste 30'!$P$63),"",'Données poste 30'!$P$63) -> 0 | F50: ='Données poste 30'!$P$74 -> 0 | G50: 0

Sheet Paramètres (hidden)
A1: PARAMÈTRES | C1: Toutes les valeurs 2020 sont post-index | AC1: 2020
AD2: TRAVAILLEURS ORDINAIRES | AF2: TRAVAILLEURS ACS | AH2: ÉTUDIANT | AK2: TAUX EN COURS | AL2: =Année_ref -> 2023
A3: Années de référence | B3: 2020 | D3: Genre | F3: Oui | G3: SEPP | H3: 1 à 5 travailleurs | M3: CP | N3: 329.02 | P3: Diplôme | Q3: Certificat d'étude de base [CEB] | AC3: Catégorie de cotisation | AD3: Ouvrier (base 108%) | AE3: Employé (base 100%) | AF3: Ouvrier (base 108%) | AG3: Employé (base 100%) | AK3: Tx coti CoSub O | AL3: =_xlfn.SWITCH(Année_ref,2020,AF15,2021,AF33,2022,AF51,2023,AF69,2024,AF87)% -> 5.95%
B4: 2021 | F4: Non | H4: Plus de 5 travailleurs | N4: 329.03 | Q4: Certificat d'enseignement secondaire du 2ème degré [CESDD; ancien CESI] | AC4: Cotisation patronale de base | AD4: 24.920 | AE4: 24.920 | AF4: 0.000 | AG4: 0.000 | AH4: 5.420 | AK4: Tx coti CoSub E | AL4: =_xlfn.SWITCH(Année_ref,2020,AG15,2021,AG33,2022,AG51,2023,AG69,2024,AG87)% -> 0.38%
B5: 2022 | N5: Autre | Q5: Certificat d'enseignement secondaire supérieur [CESS] | AC5: Vacances annuelles | AD5: 5.570 | AE5: 0.000 | AF5: 5.570 | AG5: 0.000 | AK5: Tx coti O | AL5: =_xlfn.SWITCH(Année_ref,2020,AD15,2021,AD33,2022,AD51,2023,AD69,2024,AD87)% -> 38.47%
B6: 2023 | D6: Nb Indexations | F6: Oui | H6: 1 | Q6: Enseignement supérieur non universitaire ou bachelier | AC6: Modération salariale | AD6: 7.600 | AE6: 7.600 | AF6: 0.000 | AG6: 0.000 | AK6: Tx coti O > 10 | AL6: =_xlfn.SWITCH(Année_ref,2020,AD17,2021,AD35,2022,AD53,2023,AD71,2024,AD89)% -> 40.16%
B7: 2024 | F7: Non | H7: 2 | Q7: Enseignement supérieur universitaire ou master | AC7: Fonds amiante | AD7: 0.005 | AE7: 0.005 | AF7: 0.005 | AG7: 0.005 | AH7: 0.005 | AK7: Tx coti E | AL7: =_xlfn.SWITCH(Année_ref,2020,AE15,2021,AE33,2022,AE51,2023,AE69,2024,AE87)% -> 32.90%
B8: 2025 | H8: 3 | Q8: Autre | AC8: Cotisations spéciale accident de travail | AD8: 0.020 | AE8: 0.020 | AF8: 0.020 | AG8: 0.020 | AK8: Tx coti E > 10 | AL8: =_xlfn.SWITCH(Année_ref,2020,AE17,2021,AE35,2022,AE53,2023,AE71,2024,AE89)% -> 34.59%
B9: 2026 | H9: 4 | AC9: Fonds de fermeture d'entreprise | AD9: 0.020 | AE9: 0.020 | AF9: 0.020 | AG9: 0.020 | AK9: Tx coti étudiant | AL9: =_xlfn.SWITCH(Année_ref,2020,AH17,2021,AH35,2022,AH53,2023,AH71,2024,AH89)% -> 5.43%
H10: 5 | X10: Régime de travail/s | AC10: Cotisation spéciale FFE | AD10: 0.110 | AE10: 0.110 | AF10: 0.110 | AG10: 0.110
Y11: 5 | AC11: Fonds de sécurité d'existence | AD11: 0.000 | AE11: 0.000 | AF11: 0.000 | AG11: 0.000
A12: Indexation 2016 | Y12: 6 | AC12: Cotisation spéciale chômage temp./âge | AD12: 0.100 | AE12: 0.100 | AF12: 0.100 | AG12: 0.100
A13: Indexation 2017 | AC13: Cotisation groupe à risque + Efforts | AD13: 0.100 | AE13: 0.100 | AF13: 0.100 | AG13: 0.100
A14: Indexation 2018 | D14: Statut | E14: Ouvrier | G14: Statut Cot. | H14: Non | X14: PFA | Y14: Aucune | AC14: Cotisation reclassement professionnel | AD14: 0.020 | AE14: 0.020 | AF14: 0.020 | AG14: 0.020
A15: Indexation 2019 | E15: Employé | H15: ACS | Y15: ISP RBC | AC15: Total cotisations patronales <10 | AD15: =SUM(AD4:AD14) -> 38.465 | AE15: =SUM(AE4:AE14) -> 32.895 | AF15: =SUM(AF4:AF14) -> 5.945 | AG15: =SUM(AG4:AG14) -> 0.375 | AH15: =SUM(AH4:AH14) -> 5.425
A16: Indexation 2020 | H16: APE en RBC | R16: Âge PTP | S16: Période PTP | Y16: CFISPA AViQ | AC16: Cotisation spéciale chômage pour entreprise | AD16: 1.690 | AE16: 1.690 | AF16: 0.000 | AG16: 0.000
A17: Indexation 2021 | C17: Nombre de travailleurs | H17: APE en RW | R17: <25 ans | S17: ≥9 mois | Y17: CISP W, CRIs, MIRE | AC17: Total cotisations patronales >10 | AD17: =AD15+AD16 -> 40.155 | AE17: =AE15+AE16 -> 34.585 | AF17: =AF15+AF16 -> 5.945 | AG17: =AG15+AG16 -> 0.375 | AH17: =AH15+AH16 -> 5.425
A18: Indexation 2022 | C18: Moins de 10 | H18: BVA | R18: <45 ans | S18: ≥12 mois | Y18: ILI, SETIS, Interfédé, InterMire, PMTIC, Arc-enCiel
C19: 10 et plus | H19: MARIBEL | R19: ≥45 ans | S19: ≥24 mois | Y19: Fonction publique RW | AC19: 2021
H20: PTP en RBC | Y20: Fonction publique CF | AD20: TRAVAILLEURS ORDINAIRES | AF20: =AF2 -> TRAVAILLEURS ACS | AH20: ÉTUDIANT
A21: Échelons | B21: 1 | C21: 1 | H21: PTP CG | Y21: Fonction publique fédérale | AC21: Catégorie de cotisation | AD21: Ouvrier (base 108%) | AE21: Employé (base 100%) | AF21: Ouvrier (base 108%) | AG21: Employé (base 100%)
B22: 2 | C22: 2 | H22: ÉTUDIANT·E | Y22: Fonction publique fédérale + | AC22: Cotisation patronale de base | AD22: =AD4 -> 24.920 | AE22: 24.920 | AF22: 0.000 | AG22: 0.000 | AH22: 5.420
B23: 3 | C23: 3 | Y23: Fonction publique CoCoF | AC23: Vacances annuelles | AD23: 5.570 | AE23: 0.000 | AF23: 5.570 | AG23: 0.000 | AH23: 0.000
B24: 4.1 | C24: 4 | O24: Unités d'établissements | Y24: Fonction publique RBC | AC24: Modération salariale | AD24: 7.600 | AE24: 7.600 | AF24: 0.000 | AG24: 0.000 | AH24: 0.000
B25: 4.2 | C25: 5 | P25: Wallonie | Y25: 13ème mois | AC25: Fonds amiante | AD25: 0.005 | AE25: 0.005 | AF25: 0.005 | AG25: 0.005 | AH25: 0.005
B26: 5 | C26: 6 | P26: Région bruxelloise | Y26: Autre | AC26: Cotisations spéciale accident de travail | AD26: 0.020 | AE26: 0.020 | AF26: 0.020 | AG26: 0.020 | AH26: 0.000
B27: 6 | C27: 7 | P27: C. Germanophone | X27: PFA ISP RBC | AC27: Fonds de fermeture d'entreprise | AD27: 0.020 | AE27: 0.020 | AF27: 0.020 | AG27: 0.020 | AH27: 0.000
B28: Autre | C28: 8 | G28: Mois | I28: Subventions Maribel 329.02 | P28: Flandre | Y28: part fixe non indexée | Z28: 161.40 | AC28: Cotisation spéciale FFE | AD28: 0.110 | AE28: 0.110 | AF28: 0.110 | AG28: 0.110 | AH28: 0.000
B29: ="" ->  | C29: 9 | G29: 2017-01-01 | I29: 2020 | J29: 39,864.00 € | Y29: Part fixe 2020 | Z29: 736.04 | AC29: Fonds de sécurité d'existence | AD29: 0.000 | AE29: 0.000 | AF29: 0.000 | AG29: 0.000 | AH29: 0.000
C30: 10 | G30: 2017-02-01 | I30: 2021 | J30: 40,661.00 € | Y30: Part fixe 2021 | Z30: =(400.49+350.27) -> 750.76 | AC30: Cotisation spéciale chômage temp./âge | AD30: 0.100 | AE30: 0.100 | AF30: 0.100 | AG30: 0.100 | AH30: 0.000
C31: 11 | G31: 2017-03-01 | I31: 2022 | J31: 42,978.00 € | P31: RMMMG 329.03 | Q31: RMMMG 329.02 | R31: RMMMG autre | Y31: Part fixe 2022 | Z31: =Part_fixe_2021_PFA_ISPRBC*POWER(1.02,$G$55) -> 828.90 | AC31: =AC13 -> Cotisation groupe à risque + Efforts | AD31: 0.100 | AE31: 0.100 | AF31: 0.100 | AG31: 0.100 | AH31: 0.000
C32: 12 | G32: 2017-04-01 | I32: 2023 | J32: 42,978.00 € | O32: 2020-03-01 | P32: 1726.56 | R32: =O32 -> 2020-03-01 | S32: 1688.03 | Y32: Part fixe 2023 | Z32: =Part_fixe_2022_PFA_ISPRBC*POWER(1.02,$G$56) -> 828.90 | AC32: Cotisation reclassement professionnel | AD32: 0.020 | AE32: 0.020 | AF32: 0.020 | AG32: 0.020 | AH32: 0.000
C33: 13 | G33: 2017-05-01 | I33: 2024 | J33: 42,978.00 € | O33: 2021-01-01 | P33: =P32 -> 1726.56 | R33: =O33 -> 2021-01-01 | S33: =S32 -> 1688.03 | Y33: Part fixe 2024 | Z33: =Part_fixe_2023_PFA_ISPRBC*POWER(1.02,$G$57) -> 828.90 | AC33: Total cotisations patronales <10 | AD33: =SUM(AD22:AD32) -> 38.465 | AE33: =SUM(AE22:AE32) -> 32.895 | AF33: =SUM(AF22:AF32) -> 5.945 | AG33: =SUM(AG22:AG32) -> 0.375 | AH33: =SUM(AH22:AH32) -> 5.425
C34: 14 | G34: 2017-06-01 | O34: 2022-04-01 | P34: 1832.24 | Q34: 1806.16 | R34: =O34 -> 2022-04-01 | S34: 1806.16 | Y34: Brut | Z34: octobre | AC34: Cotisation spéciale chômage pour entreprise | AD34: =AD16 -> 1.690 | AE34: =AE16 -> 1.690 | AF34: =AF16 -> 0.000 | AG34: =AG16 -> 0.000 | AH34: =AH16 -> 0.000
C35: 15 | G35: 2017-07-01 | I35: Valeur point APE | K35: =AVERAGE(109.73,110.28)/AVERAGE(108.58,108.98) -> 1.011261261 | O35: 2023-01-01 | P35: =RMMMG32903_2022*POWER(1.02,G55+G56) -> 2022.94 | R35: 2023-01-01 | S35: =RMMMG_2022*POWER(1.02,G55+G56) -> 1994.15 | Y35: Période référence | Z35: 1 à 9 | AC35: Total cotisations patronales >10 | AD35: =AD33+AD34 -> 40.155 | AE35: =AE33+AE34 -> 34.585 | AF35: =AF33+AF34 -> 5.945 | AG35: =AG33+AG34 -> 0.375 | AH35: =AH33+AH34 -> 5.425
C36: 16 | G36: 2017-08-01 | I36: =I29 -> 2020 | J36: 3,140.54 € | K36: =AVERAGE(111.32,111.84)/AVERAGE(109.73,110.28) -> 1.014317531 | O36: 2024-01-01 | P36: =RMMMG32903_2022*POWER(1.02,G55+G56+G57) -> 2022.94 | R36: 2024-01-01 | S36: =RMMMG_2022*POWER(1.02,G55+G56+G57) -> 1994.15 | X36: PFA CFISPA | AD36: =0.0567%*AD33 -> 0.021809655
C37: 17 | G37: 2017-09-01 | I37: =I30 -> 2021 | J37: =Point_APE_2020*K35 -> 3,175.91 € | O37: 2025-01-01 | R37: 2025-01-01 | Y37: Part fixe indexée 1 2020 | Z37: 395.31 | AC37: 2022
A38: Barèmes | B38: Communauté française | C38: 18 | G38: 2017-10-01 | I38: =I31 -> 2022 | J38: 0.00 € | Y38: Part fixe indexée 2&3 2020 | Z38: 484.60 | AD38: TRAVAILLEURS ORDINAIRES | AF38: =AF2 -> TRAVAILLEURS ACS | AH38: ÉTUDIANT
B39: Wallonie 100% | C39: 19 | G39: 2017-11-01 | Y39: Part fixe indexée 1 2021 | Z39: 403.22 | AC39: Catégorie de cotisation | AD39: Ouvrier (base 108%) | AE39: Employé (base 100%) | AF39: Ouvrier (base 108%) | AG39: Employé (base 100%)
B40: Région Bruxelles ISP | C40: 20 | G40: 2017-12-01 | Y40: Part fixe indexée 2&3 2021 | Z40: 494.29 | AC40: Cotisation patronale de base | AD40: =AD22 -> 24.920 | AE40: 24.920 | AF40: 0.000 | AG40: 0.000 | AH40: 5.420
B41: Communauté germanophone | C41: 21 | G41: Aucune | I41: Subventions Maribel 329.03 | O41: Cotisation spéciale sur 2e pilier de pension | Y41: Part fixe indexée 1 2022 | Z41: =Part_fixe_2021_PFA_1_CFISPA*POWER(1.02,$G$55) -> 445.19 | AC41: Vacances annuelles | AD41: 5.570 | AE41: 0.000 | AF41: 5.570 | AG41: 0.000 | AH41: 0.000
B42: Centres sportifs | C42: Autre | I42: =I36 -> 2020 | J42: 41,820.00 € | O42: 8.86% | Y42: Part fixe indexée 2&3 2022 | Z42: =Part_fixe_2021_PFA_2_3_CFISPA*POWER(1.02,$G$55) -> 545.74 | AC42: Modération salariale | AD42: 7.600 | AE42: 7.600 | AF42: 0.000 | AG42: 0.000 | AH42: 0.000
B43: Pourcentage Wallonie | I43: 2021 | J43: 43,510.00 € | Y43: Part fixe indexée 1 2023 | Z43: =Part_fixe_2022_PFA_1_CFISPA*POWER(1.02,$G$56) -> 445.19 | AC43: Fonds amiante | AD43: 0.005 | AE43: 0.005 | AF43: 0.005 | AG43: 0.005 | AH43: 0.005
B44: Autres | I44: 2022 | J44: 44,815.00 € | Y44: Part fixe indexée 2&3 2023 | Z44: =Part_fixe_2022_PFA_2_3_CFISPA*POWER(1.02,$G$56) -> 545.74 | AC44: Cotisations spéciale accident de travail | AD44: 0.020 | AE44: 0.020 | AF44: 0.020 | AG44: 0.020 | AH44: 0.000
I45: 2023 | J45: 44,815.00 € | Y45: Part fixe indexée 1 2024 | Z45: =Part_fixe_2023_PFA_1_CFISPA*POWER(1.02,$G$57) -> 445.19 | AC45: Fonds de fermeture d'entreprise | AD45: 0.020 | AE45: 0.020 | AF45: 0.020 | AG45: 0.020 | AH45: 0.000
I46: 2024 | J46: 44,815.00 € | Y46: Part fixe indexée 2&3 2024 | Z46: =Part_fixe_2023_PFA_2_3_CFISPA*POWER(1.02,$G$57) -> 545.74 | AC46: Cotisation spéciale FFE | AD46: 0.110 | AE46: 0.110 | AF46: 0.110 | AG46: 0.110 | AH46: 0.000
A47: Mois indexation | E47: Nombre d'indexations | G47: 0 | X47: PFA CISPW CRI MIRE | Y47: Brut | Z47: octobre | AC47: Fonds de sécurité d'existence | AD47: 0.000 | AE47: 0.000 | AF47: 0.000 | AG47: 0.000 | AH47: 0.000
B48: Janvier | C48: 1 | G48: 1 | Y48: =Y35 -> Période référence | Z48: 1 à 9 | AC48: Cotisation spéciale chômage temp./âge | AD48: 0.100 | AE48: 0.100 | AF48: 0.100 | AG48: 0.100 | AH48: 0.000
B49: Février | C49: 2 | G49: 2 | AC49: =AC31 -> Cotisation groupe à risque + Efforts | AD49: 0.100 | AE49: 0.100 | AF49: 0.100 | AG49: 0.100 | AH49: 0.000
B50: Mars | C50: 3 | G50: 3 | AC50: Cotisation reclassement professionnel | AD50: 0.020 | AE50: 0.020 | AF50: 0.020 | AG50: 0.020 | AH50: 0.000
B51: Avril | C51: 4 | G51: 4 | Y51: Part fixe indexée 2020 | Z51: 484.59 | AC51: Total cotisations patronales <10 | AD51: =SUM(AD40:AD50) -> 38.465 | AE51: =SUM(AE40:AE50) -> 32.895 | AF51: =SUM(AF40:AF50) -> 5.945 | AG51: =SUM(AG40:AG50) -> 0.375 | AH51: =SUM(AH40:AH50) -> 5.425
B52: Mai | C52: 5 | G52: 5 | Y52: Part fixe indexée 2021 | Z52: =110.59+383.69 -> 494.28 | AC52: Cotisation spéciale chômage pour entreprise | AD52: =AD34 -> 1.690 | AE52: =AE34 -> 1.690 | AF52: =AF34 -> 0.000 | AG52: =AG34 -> 0.000 | AH52: =AH34 -> 0.000
B53: Juin | C53: 6 | E53: Nombre total d'indexation entre 2022 et l'année de référence | J53: =_xlfn.SWITCH(Année_ref,Paramètres!B5,NbIndex_22,Paramètres!B6,SUM(Paramètres!G55:G56),Paramètres!B7,SUM(Paramètres!G55:G57)) -> 5 | Y53: Part fixe indexée 2022 | Z53: =Part_fixe_2021_CISP_CRI_MIRE*POWER(1.02,$G$55) -> 545.73 | AC53: Total cotisations patronales >=10 | AD53: =AD51+AD52 -> 40.155 | AE53: =AE51+AE52 -> 34.585 | AF53: =AF51+AF52 -> 5.945 | AG53: =AG51+AG52 -> 0.375 | AH53: =AH51+AH52 -> 5.425
B54: Juillet | C54: 7 | Y54: Part fixe indexée 2023 | Z54: =Part_fixe_2022_CISP_CRI_MIRE*POWER(1.02,$G$56) -> 545.73
B55: Août | C55: 8 | F55: =Année_ref -> 2023 | G55: =IF('Données association'!B4="Aucune",0,'Données association'!B4) -> 5 | Y55: Part fixe indexée 2024 | Z55: =Part_fixe_023_CISP_CRI_MIRE*POWER(1.02,$G$57) -> 545.73 | AC55: 2023
B56: Septembre | C56: 9 | F56: =F55+1 -> 2024 | G56: =IF('Données association'!B6="Aucune",0,'Données association'!B6) -> 0 | X56: PFA FP RW | Y56: Brut | AD56: TRAVAILLEURS ORDINAIRES | AF56: =AF20 -> TRAVAILLEURS ACS | AH56: ÉTUDIANT
B57: Octobre | C57: 10 | F57: =F56+1 -> 2025 | G57: =IF('Données association'!B8="Aucune",0,'Données association'!B8) -> 0 | Y57: =Y48 -> Période référence | Z57: 1 à 12 | AC57: Catégorie de cotisation | AD57: Ouvrier (base 108%) | AE57: Employé (base 100%) | AF57: Ouvrier (base 108%) | AG57: Employé (base 100%)
B58: Novembre | C58: 11 | AC58: Cotisation patronale de base | AD58: =AD40 -> 24.920 | AE58: 24.920 | AF58: 0.000 | AG58: 0.000 | AH58: 5.420
B59: Décembre | C59: 12 | Y59: =Y51 -> Part fixe indexée 2020 | Z59: 761.2513 | AC59: Vacances annuelles | AD59: =AD41 -> 5.570 | AE59: 0.000 | AF59: 5.570 | AG59: 0.000 | AH59: 0.000
B60: Aucune | C60: 0 | E60: Nombre total d'indexation (en cumul) sur l'année de référence | AC60: Modération salariale | AD60: =AD42 -> 7.600 | AE60: 7.600 | AF60: 0.000 | AG60: 0.000 | AH60: 0.000
E61: 2017-01-01 | F61: 2017-02-01 | G61: 2017-03-01 | H61: 2017-04-01 | I61: 2017-05-01 | J61: 2017-06-01 | K61: 2017-07-01 | L61: 2017-08-01 | M61: 2017-09-01 | N61: 2017-10-01 | O61: 2017-11-01 | P61: 2017-12-01 | Q61: Aucune | AC61: Fonds amiante | AD61: =AD43 -> 0.005 | AE61: 0.005 | AF61: 0.005 | AG61: 0.005 | AH61: 0.005
Y62: =Y52 -> Part fixe indexée 2021 | Z62: 780.1303 | AC62: Cotisations spéciale accident de travail | AD62: =AD44 -> 0.020 | AE62: 0.020 | AF62: 0.020 | AG62: 0.020 | AH62: 0.000
Y63: Part fixe indexée 2022 | Z63: =Part_fixe_2021_PFA_FPRW*POWER(1.02,$G$55) -> 861.3269 | AC63: Fonds de fermeture d'entreprise | AD63: =AD45 -> 0.020 | AE63: 0.020 | AF63: 0.020 | AG63: 0.020 | AH63: 0.000
Y64: Part fixe indexée 2023 | Z64: =Part_fixe_2022_PFA_FPRW*POWER(1.02,$G$56) -> 861.3269 | AC64: Cotisation spéciale FFE | AD64: =AD46 -> 0.110 | AE64: 0.110 | AF64: 0.110 | AG64: 0.110 | AH64: 0.000
A65: Matrice SEPP indexée 04-2020 | E65: Matrice SEPP indexée 02-2022 | Y65: Part fixe indexée 2024 | Z65: =Part_fixe_2023_PFA_FPRW*POWER(1.02,$G$57) -> 861.3269 | AC65: Fonds de sécurité d'existence | AD65: =AD47 -> 0.000 | AE65: 0.000 | AF65: 0.000 | AG65: 0.000 | AH65: 0.000
B66: 5 | C66: 6 | F66: 5 | G66: 6 | X66: PFA FP CF | Y66: Brut | Z66: octobre | AC66: Cotisation spéciale chômage temp./âge | AD66: =AD48 -> 0.100 | AE66: 0.100 | AF66: 0.100 | AG66: 0.100 | AH66: 0.000
A67: 1 | B67: 38.42 € | C67: 44.92 € | E67: 1 | F67: 39.19 € | G67: 45.82 € | Y67: Période référence | Z67: 1 à 9 | AC67: =AC49 -> Cotisation groupe à risque + Efforts | AD67: =AD49 -> 0.100 | AE67: 0.100 | AF67: 0.100 | AG67: 0.100 | AH67: 0.000
A68: 2 | B68: 55.74 € | C68: 65.48 € | E68: 2 | F68: 56.86 € | G68: 66.79 € | AC68: Cotisation reclassement professionnel | AD68: =AD50 -> 0.020 | AE68: 0.020 | AF68: 0.020 | AG68: 0.020 | AH68: 0.000
A69: 3 | B69: 69.28 € | C69: 81.72 € | E69: 3 | F69: 70.66 € | G69: 83.36 € | Y69: =Y59 -> Part fixe indexée 2020 | Z69: 960.86 | AC69: Total cotisations patronales <10 | AD69: =SUM(AD58:AD68) -> 38.465 | AE69: =SUM(AE58:AE68) -> 32.895 | AF69: =SUM(AF58:AF68) -> 5.945 | AG69: =SUM(AG58:AG68) -> 0.375 | AH69: =SUM(AH58:AH68) -> 5.425
A70: 4 | B70: 87.68 € | C70: 103.37 € | E70: 4 | F70: 89.43 € | G70: 105.43 € | Y70: =Y62 -> Part fixe indexée 2021 | Z70: 980.05 | AC70: Cotisation spéciale chômage pour entreprise | AD70: =AD52 -> 1.690 | AE70: =AE52 -> 1.690 | AF70: =AF52 -> 0.000 | AG70: =AG52 -> 0.000 | AH70: =AH52 -> 0.000
A71: 5 | B71: 102.83 € | C71: 121.23 € | E71: 5 | F71: 104.88 € | G71: 123.65 € | Y71: =Y63 -> Part fixe indexée 2022 | Z71: =Part_fixe_2021_PFA_FPCF*POWER(1.02,$G$55) -> 1082.05 | AC71: Total cotisations patronales >=10 | AD71: =AD69+AD70 -> 40.155 | AE71: =AE69+AE70 -> 34.585 | AF71: =AF69+AF70 -> 5.945 | AG71: =AG69+AG70 -> 0.375 | AH71: =AH69+AH70 -> 5.425
Y72: =Y64 -> Part fixe indexée 2023 | Z72: =Part_fixe_2022_PFA_FPCF*POWER(1.02,$G$56) -> 1082.05
Y73: Part fixe indexée 2024 | Z73: =Part_fixe_2023_PFA_FPCF*POWER(1.02,$G$57) -> 1082.05 | AC73: 2024
A74: Cotisations au F4S | B74: T1 2020 | C74: T2 2020 | D74: T3 2020 | E74: T4 2020 | F74: T1 2021 | G74: T2 2021 | H74: T3 2021 | I74: T4 2021 | J74: T1 2022 | K74: T2 2022 | L74: T3 2022 | M74: T4 2022 | N74: T1 2023 | O74: T2 2023 | P74: T3 2023 | Q74: T4 2023 | R74: T1 2024 | S74: T2 2024 | T74: T3 2024 | U74: T4 2024 | X74: PFA FP FED | Y74: =Y66 -> Brut | Z74: =Z66 -> octobre | AD74: TRAVAILLEURS ORDINAIRES | AF74: =AF38 -> TRAVAILLEURS ACS | AH74: ÉTUDIANT
A75: GAR | B75: 0.1 | C75: 0.1 | D75: 0.1 | E75: 0.1 | F75: 0.1 | G75: 0.1 | H75: 0.1 | I75: 0.1 | J75: 0.1 | K75: 0.1 | L75: 0.1 | M75: 0.1 | N75: 0.1 | O75: 0.1 | P75: 0.1 | Q75: 0.1 | Y75: =Y67 -> Période référence | Z75: =Z67 -> 1 à 9 | AC75: Catégorie de cotisation | AD75: Ouvrier (base 108%) | AE75: Employé (base 100%) | AF75: Ouvrier (base 108%) | AG75: Employé (base 100%)
A76: Efforts | B76: 0.1 | C76: 0.1 | D76: 0.1 | E76: 0.1 | F76: 0.1 | G76: 0.1 | H76: 0.1 | I76: 0.1 | J76: 0.1 | K76: 0.1 | L76: 0.1 | M76: 0.1 | N76: 0.1 | O76: 0.1 | P76: 0.1 | Q76: 0.1 | AC76: Cotisation patronale de base | AD76: =AD58 -> 24.920 | AE76: 24.920 | AF76: 0.000 | AG76: 0.000 | AH76: 5.420
A77: 329.03 | B77: =SUM(B75:B76) -> 0.2 | C77: =SUM(C75:C76) -> 0.2 | D77: 0.2 | E77: 0.2 | F77: 0.2 | G77: 0.2 | H77: 0.2 | I77: 0.2 | J77: 0.2 | K77: 0.2 | L77: 0.2 | M77: 0.2 | N77: 0.2 | O77: 0.2 | P77: 0.2 | Q77: 0.2 | Y77: =Y69 -> Part fixe indexée 2020 | Z77: 389.7330 | AC77: Vacances annuelles | AD77: =AD59 -> 5.570 | AE77: 0.000 | AF77: 5.570 | AG77: 0.000 | AH77: 0.000
Y78: Part fixe indexée 2021 | Z78: 399.3808 | AC78: Modération salariale | AD78: =AD60 -> 7.600 | AE78: 7.600 | AF78: 0.000 | AG78: 0.000 | AH78: 0.000
Y79: Part fixe indexée 2022 | Z79: =Part_fixe_2021_PFA_FPFEDBASE*POWER(1.02,$G$55) -> 440.9487 | AC79: Fonds amiante | AD79: =AD61 -> 0.005 | AE79: 0.005 | AF79: 0.005 | AG79: 0.005 | AH79: 0.005
A80: Reclassement | B80: 0.02 | C80: =B80 -> 0.02 | D80: =C80 -> 0.02 | E80: =D80 -> 0.02 | F80: 0.02 | G80: =F80 -> 0.02 | H80: =G80 -> 0.02 | I80: =H80 -> 0.02 | J80: 0.03 | K80: =J80 -> 0.03 | L80: 0.03 | M80: 0.03 | N80: 0.03 | O80: =N80 -> 0.03 | P80: 0.03 | Q80: 0.03 | Y80: Part fixe indexée 2023 | Z80: =Part_fixe_2022_PFA_FPFEDBASE*POWER(1.02,$G$56) -> 440.9487 | AC80: Cotisations spéciale accident de travail | AD80: =AD62 -> 0.020 | AE80: 0.020 | AF80: 0.020 | AG80: 0.020 | AH80: 0.000
Y81: Part fixe indexée 2024 | Z81: =Part_fixe_2023_PFA_FPFEDBASE*POWER(1.02,$G$57) -> 440.9487 | AC81: Fonds de fermeture d'entreprise | AD81: =AD63 -> 0.020 | AE81: 0.020 | AF81: 0.020 | AG81: 0.020 | AH81: 0.000
A82: 329.02 | B82: =B78+B80 -> 0.02 | C82: 0.02 | D82: 0.02 | E82: 0.02 | F82: 0.02 | G82: 0.02 | H82: 0.02 | I82: 0.02 | J82: 0.03 | K82: 0.03 | L82: 0.03 | M82: 0.03 | N82: 0.03 | O82: 0.03 | P82: 0.03 | Q82: 0.03 | X82: PFA FP RBC | Y82: Brut | Z82: =Z74 -> octobre | AC82: Cotisation spéciale FFE | AD82: =AD64 -> 0.110 | AE82: 0.110 | AF82: 0.110 | AG82: 0.110 | AH82: 0.000
Y83: Période référence | Z83: =Z75 -> 1 à 9 | AC83: Fonds de sécurité d'existence | AD83: =AD65 -> 0.000 | AE83: 0.000 | AF83: 0.000 | AG83: 0.000 | AH83: 0.000
AC84: Cotisation spéciale chômage temp./âge | AD84: =AD66 -> 0.100 | AE84: 0.100 | AF84: 0.100 | AG84: 0.100 | AH84: 0.000
Y85: =Y77 -> Part fixe indexée 2020 | Z85: 583.34 | AC85: =AC67 -> Cotisation groupe à risque + Efforts | AD85: =AD67 -> 0.100 | AE85: 0.100 | AF85: 0.100 | AG85: 0.100 | AH85: 0.000
A86: Nombre de jours travaillés | Y86: =Y78 -> Part fixe indexée 2021 | Z86: 595.00 | AC86: Cotisation reclassement professionnel | AD86: =AD68 -> 0.020 | AE86: 0.020 | AF86: 0.020 | AG86: 0.020 | AH86: 0.000
Y87: =Y79 -> Part fixe indexée 2022 | Z87: =Part_fixe_2021_PFA_FPRBC*POWER(1.02,$G$55) -> 656.93 | AC87: Total cotisations patronales <10 | AD87: =SUM(AD76:AD86) -> 38.465 | AE87: =SUM(AE76:AE86) -> 32.895 | AF87: =SUM(AF76:AF86) -> 5.945 | AG87: =SUM(AG76:AG86) -> 0.375 | AH87: =SUM(AH76:AH86) -> 5.425
A88: régime 5J | B88: janvier | C88: février | D88: mars | E88: avril | F88: mai | G88: juin | H88: juillet | I88: août | J88: septembre | K88: octobre | L88: novembre | M88: décembre | Y88: =Y80 -> Part fixe indexée 2023 | Z88: =Part_fixe_2022_PFA_FPRBC*POWER(1.02,$G$56) -> 656.93 | AC88: Cotisation spéciale chômage pour entreprise | AD88: =AD70 -> 1.690 | AE88: =AE70 -> 1.690 | AF88: =AF70 -> 0.000 | AG88: =AG70 -> 0.000 | AH88: =AH70 -> 0.000
A89: 2022 | B89: =NETWORKDAYS("01/01/"&A89,"31/01/"&A89,"01/01/"&A89) -> 21 | C89: =NETWORKDAYS("01/02/"&$A89,"28/02/"&$A89) -> 20 | D89: =NETWORKDAYS("01/03/"&$A89,"31/03/"&$A89) -> 23 | E89: =NETWORKDAYS("01/04/"&$A89,"30/04/"&$A89)-1 -> 20 | F89: =NETWORKDAYS("01/05/"&$A89,"31/05/"&$A89)-1 -> 21 | G89: =NETWORKDAYS("01/06/"&$A89,"30/06/"&$A89) -> 22 | H89: =NETWORKDAYS("01/07/"&$A89,"31/07/"&$A89,"21/07/"&A89) -> 20 | I89: =NETWORKDAYS("01/08/"&$A89,"31/08/"&$A89,"15/08/"&A89) -> 22 | J89: =NETWORKDAYS("01/09/"&$A89,"30/09/"&$A89)-1 -> 21 | K89: =NETWORKDAYS("01/10/"&$A89,"31/10/"&$A89) -> 21 | L89: =NETWORKDAYS("01/11/"&$A89,"30/11/"&$A89)-2 -> 20 | M89: =NETWORKDAYS("01/12/"&$A89,"31/12/"&$A89)-1 -> 21 | Y89: =Y81 -> Part fixe indexée 2024 | Z89: =Part_fixe_2023_PFA_FPRBC*POWER(1.02,$G$57) -> 656.93 | AC89: Total cotisations patronales >=10 | AD89: =AD87+AD88 -> 40.155 | AE89: =AE87+AE88 -> 34.585 | AF89: =AF87+AF88 -> 5.945 | AG89: =AG87+AG88 -> 0.375 | AH89: =AH87+AH88 -> 5.425
A90: 2023 | B90: =NETWORKDAYS("01/01/"&A90,"31/01/"&A90,"01/01/"&A90) -> 22 | C90: =NETWORKDAYS("01/02/"&$A90,"28/02/"&$A90) -> 20 | D90: =NETWORKDAYS("01/03/"&$A90,"31/03/"&$A90) -> 23 | E90: =NETWORKDAYS("01/04/"&$A90,"30/04/"&$A90)-1 -> 19 | F90: =NETWORKDAYS("01/05/"&$A90,"31/05/"&$A90)-1 -> 22 | G90: =NETWORKDAYS("01/06/"&$A90,"30/06/"&$A90) -> 22 | H90: =NETWORKDAYS("01/07/"&$A90,"31/07/"&$A90,"21/07/"&A90) -> 20 | I90: =NETWORKDAYS("01/08/"&$A90,"31/08/"&$A90,"15/08/"&A90) -> 22 | J90: =NETWORKDAYS("01/09/"&$A90,"30/09/"&$A90)-1 -> 20 | K90: =NETWORKDAYS("01/10/"&$A90,"31/10/"&$A90) -> 22 | L90: =NETWORKDAYS("01/11/"&$A90,"30/11/"&$A90)-2 -> 20 | M90: =NETWORKDAYS("01/12/"&$A90,"31/12/"&$A90)-1 -> 20 | X90: PFA FP CoCoF | Y90: =Y82 -> Brut | Z90: =Z82 -> octobre
A91: 2024 | B91: 22 | C91: 20 | D91: 21 | E91: =NETWORKDAYS("01/04/"&$A91,"30/04/"&$A91)-1 -> 21 | F91: =NETWORKDAYS("01/05/"&$A91,"31/05/"&$A91)-1 -> 22 | G91: 20 | H91: =NETWORKDAYS("01/07/"&$A91,"31/07/"&$A91,"21/07/"&A91) -> 23 | I91: 21 | J91: =NETWORKDAYS("01/09/"&$A91,"30/09/"&$A91)-1 -> 20 | K91: 23 | L91: =NETWORKDAYS("01/11/"&$A91,"30/11/"&$A91)-2 -> 19 | M91: =NETWORKDAYS("01/12/"&$A91,"31/12/"&$A91)-1 -> 21 | Y91: =Y83 -> Période référence | Z91: =Z83 -> 1 à 9
A92: 2025
Y93: =Y85 -> Part fixe indexée 2020 | Z93: 389.7334
A94: régime 6J
A95: 2022 | B95: 25 | C95: =25 -> 25 | D95: 24 | E95: 25 | F95: 24 | G95: 26 | H95: 25 | I95: 26 | J95: 25 | K95: 26 | L95: 24 | M95: 25 | Y95: =Y86 -> Part fixe indexée 2021 | Z95: 399.3810
A96: 2023 | B96: 25 | C96: 25 | D96: 27 | E96: 24 | F96: 26 | G96: 26 | H96: 25 | I96: 26 | J96: 25 | K96: 26 | L96: 25 | M96: 25 | Y96: =Y87 -> Part fixe indexée 2022 | Z96: =Part_fixe_2021_PFA_FPCOCOF*POWER(1.02,$G$55) -> 440.9489
A97: 2024 | B97: 26 | C97: 25 | D97: 26 | E97: 25 | F97: 26 | G97: 25 | H97: 27 | I97: 26 | J97: 24 | K97: 27 | L97: 24 | M97: 25 | Y97: =Y88 -> Part fixe indexée 2023 | Z97: =Part_fixe_2022_PFA_FPCOCOF*POWER(1.02,$G$56) -> 440.9489
A98: 2025 | Y98: =Y89 -> Part fixe indexée 2024 | Z98: =Part_fixe_2023_PFA_FPCOCOF*POWER(1.02,$G$57) -> 440.9489
X99: PFA FP FED + | Y99: =Y90 -> Brut | Z99: =Z90 -> octobre
Y100: =Y91 -> Période référence | Z100: =Z91 -> 1 à 9
Y102: =Y93 -> Part fixe indexée 2020 | Z102: 761.22
Y103: =Y95 -> Part fixe indexée 2021 | Z103: 780.06
Y104: =Y96 -> Part fixe indexée 2022 | Z104: =Part_fixe_2021_PFA_FPFEDPLUS*POWER(1.02,$G$55) -> 861.25
Y105: =Y97 -> Part fixe indexée 2023 | Z105: =Part_fixe_2022_PFA_FPFEDPLUS*POWER(1.02,$G$56) -> 861.25
Y106: Part fixe indexée 2024 | Z106: =Part_fixe_2023_PFA_FPFEDPLUS*POWER(1.02,$G$57) -> 861.25
Y107: =Y99 -> Brut | Z107: =Z99 -> octobre
X108: PFA ILI, SETIS, Interfédé, InterMire, PMTIC, Arc-enCiel | Y108: =Y100 -> Période référence | Z108: =Z100 -> 1 à 9
Y111: Part fixe indexée 2020 | Z111: 376.17
Y112: Part fixe indexée 2021 | Z112: =IF(Mois_index="Aucune",Part_fixe_2020_PFA_ILI_AUTRES,Part_fixe_2020_PFA_ILI_AUTRES*1.02) -> 383.69
Y113: Part fixe indexée 2022 | Z113: =Part_fixe_2021_PFA_ILI_AUTRES*POWER(1.02,$G$55) -> 423.63
Y114: =Y105 -> Part fixe indexée 2023 | Z114: =Part_fixe_2022_PFA_ILI_AUTRES*POWER(1.02,$G$56) -> 423.63
Y115: =Y106 -> Part fixe indexée 2024 | Z115: =Part_fixe_2023_PFA_ILI_AUTRES*POWER(1.02,$G$57) -> 423.63
Y116: Brut
Y117: Période référence | Z117: 1 à 12

Sheet Bornes (hidden)
A1: Bornes bas salaires | F1: Bornes hauts salaires | K1: Bornes très bas salaires
A2: trim | F2: trim
A3: 2015 | C3: 6,150.00 € | F3: 2015 | H3: 12,484.80 €
A4: 2016/1 | B4: 960 | C4: =$C$3 -> 6,150.00 € | F4: 2016/1 | G4: 0 | H4: =H3+G4 -> 12,484.80 €
A5: 2016/2 | B5: 0 | C5: 7,110.00 € | F5: 2016/2 | G5: 0 | H5: =H4+G5 -> 12,484.80 €
A6: 2016/3&4 | C6: =C5*1.02 -> 7,252.20 € | F6: 2016/3&4 | H6: =H5*1.02 -> 12,734.50 €
A7: 2017/1 | B7: 0 | C7: =C6 -> 7,252.20 € | F7: =A7 -> 2017/1 | G7: 0 | H7: =H6 -> 12,734.50 €
A8: 2017/2 | C8: =Borne_BS_2017_1*1.02 -> 7,397.24 € | F8: =A8 -> 2017/2 | H8: =Borne_HS_2017_1*1.02 -> 12,989.19 €
A9: 2018 | B9: 108 | C9: 7,400.00 € | D9: =Borne_BS_2017_2+B9 -> 7505.244 | F9: 2018 | G9: 0 | H9: 12,990.00 €
A10: 2019 | B10: 372 | C10: 7,590.00 € | D10: =D9+B10 -> 7877.244 | F10: 2019 | G10: 0 | H10: 13,249.80 €
A11: 2020 | C11: 7,741.80 € | F11: 2020 | H11: 13,514.80 €
A12: 2021 | C12: 7,741.80 € | F12: =A12 -> 2021 | H12: 13,514.80 €
A13: 2022 | C13: 8,215.66 € | D13: maj 04 22 | F13: =A13 -> 2022 | H13: 14,342.02 € | I13: maj 04 22 | K13: 2022 | M13: 6,048.89 € | N13: maj 04 22
A14: 2023 | C14: =Borne_BS_2022*POWER(1.02,NbIndex_23) -> 8,215.66 € | F14: =A14 -> 2023 | H14: =Borne_HS_2022*POWER(1.02,NbIndex_23) -> 14,342.02 € | K14: 2023 | M14: =Borne_TBS_2022*POWER(1.02,NbIndex_23) -> 6,048.89 €
A15: 2024 | C15: =Borne_BS_2023*POWER(1.02,NbIndex_24) -> 8,215.66 € | F15: =A15 -> 2024 | H15: =Borne_HS_2023*POWER(1.02,NbIndex_24) -> 14,342.02 € | K15: 2024 | M15: =Borne_TBS_2023*POWER(1.02,NbIndex_24) -> 6,048.89 €
A17: Maribel
A18: trim | B18: augm. | C18: réd.
A19: =A3 -> 2015
A20: =A4 -> 2016/1 | B20: 13.92
A21: =A5 -> 2016/2 | B21: 48.41 | C21: 443.86 €
A22: =A7 -> 2017/1 | B22: =B21 -> 48.41 | C22: =C21 -> 443.86 €
A23: =A9 -> 2018 | B23: 69.84 | C23: 465.29 €
A24: 2019 | B24: 87.22 | C24: 482.67 €
A25: 2020 | B25: 108.65 | C25: 504.10 €
A26: 2021 | C26: 504.10 €
A27: 2022 | C27: 504.10 €
A28: 2023 | C28: 504.10 €
A29: 2024 | C29: 504.10 €
A30: Forfait
A31: trim
A32: =A3 -> 2015 | B32: 0
A33: =A4 -> 2016/1 | B33: 0
A34: =A5 -> 2016/2 | B34: 24.00 €
A35: 2016 3&4 | B35: =B34 -> 24.00 €
A36: =A7 -> 2017/1 | B36: =B35 -> 24.00 €
A37: =A9 -> 2018 | B37: =49 -> 49.00 €
A38: 2019 | B38: =B37 -> 49.00 €
A39: 2020 | B39: =Forfait_2019 -> 49.00 €
A40: 2021 | B40: 79.00 €
A41: 2022 | B41: 79.00 €
A42: 2023 | B42: 79.00 €
A43: 2024 | B43: 79.00 €
A44: Formule
A45: Borne Bas salaires en cat. 2 2014 | D45: 8215.66
A46: Coefficient d'écart | D46: 0.2557
A47: R = 0,2557 * (68215,66 – S)
A48: S = salaire trim à temps-plein
A50: Borne hauts salaires en cat 2 2014 | D50: 14342.02
A51: =A46 -> Coefficient d'écart | D51: 0.06
A52: R = 0,06 * (S – 12 484,8)
A54: Borne très bas salaires en cat 2
A55: Coefficient d'écart | D55: 0.4
A56: R = 0,4 * (6048,89-S)

Sheet Tester TESS
A1: DONNÉES TRAVAILLEUR TEST
A2: ="Employeurs du groupe 2 [Maribel] | Estimations pour l'année "&Année_ref -> Employeurs du groupe 2 [Maribel] | Estimations pour l'année 2023 | E2: Commencez votre encodage ici ⬇
A3: TEST POUR VOUS ENTRAÎNER : NE PAS UTILISER POUR VOS DONNÉES : CE TABLEAU N'EST PAS PRIS EN COMPTE DANS LA SYNTHÈSE
A4: Données personnelles à encoder ici [facultatif] | E4: Données indispensables à encoder ici | J4: EXEMPLES | L4: Aides à l'emploi hors subv. fonctionnelles | P4: EXEMPLES
B5: ANNÉE : | C5: =Année_ref -> 2023 | E5: Unité d'établissement du poste : | I5: Région bruxelloise | J5: Région bruxelloise [liste] | N5: APE / ACS ; PTP ; Maribel; Étudiant : | O5: MARIBEL | P5: APE
B6: ID du travailleur : | C6: Test | E6: Statut : | I6: Employé | J6: Ouvrier [liste]
B7: N° de registre national : | C7: ='Données travailleurs'!C6 -> 0 | E7: ="Régime de travail au 1-01-"&Année_ref&" ou au début du contrat :" -> Régime de travail au 1-01-2023 ou au début du contrat : | I7: 38 | J7: 17,6 = 17h36
B8: Année de naissance : | C8: ='Données travailleurs'!D6 -> 0 | E8: Régime 5 ou 6 jours | I8: 5 | L8: Renseignements indispensables pour le PTP à la date d'engagement :
B9: Niveau de diplôme : | C9: ='Données travailleurs'!E6 -> 0 | H9: Échelon [Voir note sur les barèmes] : | I9: 3 | J9: 4.2 [liste] | L9: Âge à l'engagement : | P9: <45 ans
B10: Fonction : | C10: ='Données travailleurs'!F6 -> 0 | H10: Échelon pour les centres sportifs : | I10: 10 | L10: Période allocataire social à l'engagement : | P10: ≥12 mois
B11: Domicile du travailleur | C11: Région bruxelloise | E11: ="Ancienneté barémique au 1-01-"&Année_ref&" :" -> Ancienneté barémique au 1-01-2023 : | I11: 9 | J11: 5 | L11: Date de l'engagement : | P11: 2016-10-15
E12: ="Mois du passage d'ancienneté en "&Année_ref&" :" -> Mois du passage d'ancienneté en 2023 : | I12: 2017-05-01 | J12: mars
E13: Mois de la prise principale des vacances : | I13: 2017-08-01 | J13: juillet
H14: Calcul d'échelon pour la matrice : | I14: =IF($I$9="Autre","",IF($I$9<=3,$I$9,IF($I$9="4.1",4,IF($I$9="4.2",5,IF($I$9=5,6,7))))) -> 3
C16: Indexations | D16: =IF(NIndex_réf=0,"",_xlfn.SWITCH(D$18,Mois_index,"indexation",MoisIndex2,"indexation",MoisIndex3,"indexation",MoisIndex4,"indexation",MoisIndex5,"indexation","")) ->  | E16: =IF(NIndex_réf=0,"",_xlfn.SWITCH(E$18,Mois_index,"indexation",MoisIndex2,"indexation",MoisIndex3,"indexation",MoisIndex4,"indexation",MoisIndex5,"indexation","")) -> indexation | F16: =IF(NIndex_réf=0,"",_xlfn.SWITCH(F$18,Mois_index,"indexation",MoisIndex2,"indexation",MoisIndex3,"indexation",MoisIndex4,"indexation",MoisIndex5,"indexation","")) ->  | G16: =IF(NIndex_réf=0,"",_xlfn.SWITCH(G$18,Mois_index,"indexation",MoisIndex2,"indexation",MoisIndex3,"indexation",MoisIndex4,"indexation",MoisIndex5,"indexation","")) ->  | H16: =IF(NIndex_réf=0,"",_xlfn.SWITCH(H$18,Mois_index,"indexation",MoisIndex2,"indexation",MoisIndex3,"indexation",MoisIndex4,"indexation",MoisIndex5,"indexation","")) -> indexation | I16: =IF(NIndex_réf=0,"",_xlfn.SWITCH(I$18,Mois_index,"indexation",MoisIndex2,"indexation",MoisIndex3,"indexation",MoisIndex4,"indexation",MoisIndex5,"indexation","")) ->  | J16: =IF(NIndex_réf=0,"",_xlfn.SWITCH(J$18,Mois_index,"indexation",MoisIndex2,"indexation",MoisIndex3,"indexation",MoisIndex4,"indexation",MoisIndex5,"indexation","")) ->  | K16: =IF(NIndex_réf=0,"",_xlfn.SWITCH(K$18,Mois_index,"indexation",MoisIndex2,"indexation",MoisIndex3,"indexation",MoisIndex4,"indexation",MoisIndex5,"indexation","")) -> indexation | L16: =IF(NIndex_réf=0,"",_xlfn.SWITCH(L$18,Mois_index,"indexation",MoisIndex2,"indexation",MoisIndex3,"indexation",MoisIndex4,"indexation",MoisIndex5,"indexation","")) ->  | M16: =IF(NIndex_réf=0,"",_xlfn.SWITCH(M$18,Mois_index,"indexation",MoisIndex2,"indexation",MoisIndex3,"indexation",MoisIndex4,"indexation",MoisIndex5,"indexation","")) ->  | N16: =IF(NIndex_réf=0,"",_xlfn.SWITCH(N$18,Mois_index,"indexation",MoisIndex2,"indexation",MoisIndex3,"indexation",MoisIndex4,"indexation",MoisIndex5,"indexation","")) ->  | O16: =IF(NIndex_réf=0,"",_xlfn.SWITCH(O$18,Mois_index,"indexation",MoisIndex2,"indexation",MoisIndex3,"indexation",MoisIndex4,"indexation",MoisIndex5,"indexation","")) -> 
C17: Annale ou biennale | E17: =IF($I$12="Aucune","",IF(MONTH($I$12)=E$21,"Annale ou biennale","")) ->  | H17: Annale ou biennale
C18: Charges | D18: 2017-01-01 | E18: 2017-02-01 | F18: 2017-03-01 | G18: 2017-04-01 | H18: 2017-05-01 | I18: 2017-06-01 | J18: 2017-07-01 | K18: 2017-08-01 | L18: 2017-09-01 | M18: 2017-10-01 | N18: 2017-11-01 | O18: 2017-12-01 | P18: TOTAL
C19: Modification du régime de travail pour le mois | D19: =$I$7 -> 38 | E19: 38 | F19: 38 | G19: 38 | H19: 38 | I19: 38 | J19: 38 | K19: 38 | L19: 38 | M19: 38 | N19: 38 | O19: 38 | P19: =AVERAGE(D$19:O$19) -> 38
C20: Durée d'occupation pour le mois | D20: 100% | E20: 100% | F20: 100% | G20: 100% | H20: 100% | I20: 100% | J20: 100% | K20: 100% | L20: 100% | M20: 100% | N20: 100% | O20: 100% | P20: =AVERAGE(D$20:O$20) -> 100%
D21: 1 | E21: 2 | F21: 3 | G21: 4 | H21: 5 | I21: 6 | J21: 7 | K21: 8 | L21: 9 | M21: 10 | N21: 11 | O21: 12
C22: Rémunération brute avec corrections d'occupation et application RMMMG | D22: =IF($I$7=0,0,IF(D$23="Complétez","",IF(AND(MONTH($I$13)=D$21,$I$6="Ouvrier"),0,D$23*D$20*(D$19/$I$7)))) ->  | E22: =IF($I$7=0,0,IF(E$23="Complétez","",IF(AND(MONTH($I$13)=E$21,$I$6="Ouvrier"),0,E$23*E$20*(E$19/$I$7)))) ->  | P22: =SUM(D22:O22) -> 0.00
B23: Encodez ici => | C23: Rémunération brute mensuelle de référence | D23: =IF(Barème_référence_association="Centres sportifs",IF($I$10="Autre","Complétez",IF(Barème_référence_association=Autres,"Complétez",D$24*$I$7/Régime_de_travail_temps_plein)),IF($I$9="Autre","Complétez",IF(Barème_référence_association=Autres,"Complétez",D$24*$I$7/Régime_de_travail_temps_plein))) -> Complétez | E23: Complétez | F23: Complétez | G23: Complétez | H23: Complétez | I23: Complétez | J23: Complétez | K23: Complétez | L23: Complétez | M23: Complétez | N23: Complétez | O23: Complétez
C24: Rémunération brute mensuelle temps plein avec vérification index | D24: =D$25*_xlfn.SWITCH(Année_ref,2022,POWER(1.02,COUNTIF($D$16:D16,"indexation")),2023,POWER(1.02,NIndex2022+COUNTIF($D$16:D16,"indexation")),2024,POWER(1.02,NIndex2022+NIndex2023+COUNTIF($D$16:D16,"indexation"))) ->  | E24: =E$25*_xlfn.SWITCH(Année_ref,2022,POWER(1.02,COUNTIF($D$16:E16,"indexation")),2023,POWER(1.02,NIndex2022+COUNTIF($D$16:E16,"indexation")),2024,POWER(1.02,NIndex2022+NIndex2023+COUNTIF($D$16:E16,"indexation"))) ->  | F24: =F$25*_xlfn.SWITCH(Année_ref,2022,POWER(1.02,COUNTIF($D$16:F16,"indexation")),2023,POWER(1.02,NIndex2022+COUNTIF($D$16:F16,"indexation")),2024,POWER(1.02,NIndex2022+NIndex2023+COUNTIF($D$16:F16,"indexation"))) ->  | G24: =G$25*_xlfn.SWITCH(Année_ref,2022,POWER(1.02,COUNTIF($D$16:G16,"indexation")),2023,POWER(1.02,NIndex2022+COUNTIF($D$16:G16,"indexation")),2024,POWER(1.02,NIndex2022+NIndex2023+COUNTIF($D$16:G16,"indexation"))) ->  | H24: =H$25*_xlfn.SWITCH(Année_ref,2022,POWER(1.02,COUNTIF($D$16:H16,"indexation")),2023,POWER(1.02,NIndex2022+COUNTIF($D$16:H16,"indexation")),2024,POWER(1.02,NIndex2022+NIndex2023+COUNTIF($D$16:H16,"indexation"))) ->  | I24: =I$25*_xlfn.SWITCH(Année_ref,2022,POWER(1.02,COUNTIF($D$16:I16,"indexation")),2023,POWER(1.02,NIndex2022+COUNTIF($D$16:I16,"indexation")),2024,POWER(1.02,NIndex2022+NIndex2023+COUNTIF($D$16:I16,"indexation"))) ->  | J24: =J$25*_xlfn.SWITCH(Année_ref,2022,POWER(1.02,COUNTIF($D$16:J16,"indexation")),2023,POWER(1.02,NIndex2022+COUNTIF($D$16:J16,"indexation")),2024,POWER(1.02,NIndex2022+NIndex2023+COUNTIF($D$16:J16,"indexation"))) ->  | K24: =K$25*_xlfn.SWITCH(Année_ref,2022,POWER(1.02,COUNTIF($D$16:K16,"indexation")),2023,POWER(1.02,NIndex2022+COUNTIF($D$16:K16,"indexation")),2024,POWER(1.02,NIndex2022+NIndex2023+COUNTIF($D$16:K16,"indexation"))) ->  | L24: =L$25*_xlfn.SWITCH(Année_ref,2022,POWER(1.02,COUNTIF($D$16:L16,"indexation")),2023,POWER(1.02,NIndex2022+COUNTIF($D$16:L16,"indexation")),2024,POWER(1.02,NIndex2022+NIndex2023+COUNTIF($D$16:L16,"indexation"))) ->  | M24: =M$25*_xlfn.SWITCH(Année_ref,2022,POWER(1.02,COUNTIF($D$16:M16,"indexation")),2023,POWER(1.02,NIndex2022+COUNTIF($D$16:M16,"indexation")),2024,POWER(1.02,NIndex2022+NIndex2023+COUNTIF($D$16:M16,"indexation"))) ->  | N24: =N$25*_xlfn.SWITCH(Année_ref,2022,POWER(1.02,COUNTIF($D$16:N16,"indexation")),2023,POWER(1.02,NIndex2022+COUNTIF($D$16:N16,"indexation")),2024,POWER(1.02,NIndex2022+NIndex2023+COUNTIF($D$16:N16,"indexation"))) ->  | O24: =O$25*_xlfn.SWITCH(Année_ref,2022,POWER(1.02,COUNTIF($D$16:O16,"indexation")),2023,POWER(1.02,NIndex2022+COUNTIF($D$16:O16,"indexation")),2024,POWER(1.02,NIndex2022+NIndex2023+COUNTIF($D$16:O16,"indexation"))) -> 
C25: Brut avec annale ou biennale temps plein | D25: =IF(OR(Barème_référence_association="Autres",$I$9="Autre",$I$10="Autre"),D$23,_xlfn.SWITCH(Barème_référence_association, CF,ROUND(VLOOKUP($I$11+IF(D18<$I$12,0,1),'Barèmes CF 01-2022'!$A:$H,MIN($I$14+1,8)),2), RW_100,ROUND(VLOOKUP($I$11+IF(D18<$I$12,0,1),'Barèmes RW 01-2022'!$A:$H,MIN($I$14+1,8)),2), RBC_ISP,ROUND(VLOOKUP($I$11+IF(D18<$I$12,0,1),'Barèmes RBC 01-2022'!$A:$H,MIN($I$14+1,8)),2), CG,ROUND(VLOOKUP($I$11+IF(D18<$I$12,0,1),'Barèmes CG 01-2022'!$A:$H,MIN($I$14+1,8)),2), Centres_sportifs,ROUND(VLOOKUP($I$11+IF(D18<$I$12,0,1),'Barèmes CeSp 01-2022'!$A:$V,MIN($I$10+1,22)),2), Pourcentage,ROUND(VLOOKUP($I$11+IF(D18<$I$12,0,1),'Barèmes RW % 01-2022'!$A:$H,MIN($I$14+1,8)),2))) -> Complétez | E25: =IF(OR(Barème_référence_association="Autres",$I$9="Autre",$I$10="Autre"),E$23,_xlfn.SWITCH(Barème_référence_association, CF,ROUND(VLOOKUP($I$11+IF(E18<$I$12,0,1),'Barèmes CF 01-2022'!$A:$H,MIN($I$14+1,8)),2), RW_100,ROUND(VLOOKUP($I$11+IF(E18<$I$12,0,1),'Barèmes RW 01-2022'!$A:$H,MIN($I$14+1,8)),2), RBC_ISP,ROUND(VLOOKUP($I$11+IF(E18<$I$12,0,1),'Barèmes RBC 01-2022'!$A:$H,MIN($I$14+1,8)),2), CG,ROUND(VLOOKUP($I$11+IF(E18<$I$12,0,1),'Barèmes CG 01-2022'!$A:$H,MIN($I$14+1,8)),2), Centres_sportifs,ROUND(VLOOKUP($I$11+IF(E18<$I$12,0,1),'Barèmes CeSp 01-2022'!$A:$V,MIN($I$10+1,22)),2), Pourcentage,ROUND(VLOOKUP($I$11+IF(E18<$I$12,0,1),'Barèmes RW % 01-2022'!$A:$H,MIN($I$14+1,8)),2))) -> Complétez | F25: =IF(OR(Barème_référence_association="Autres",$I$9="Autre",$I$10="Autre"),F$23,_xlfn.SWITCH(Barème_référence_association, CF,ROUND(VLOOKUP($I$11+IF(F18<$I$12,0,1),'Barèmes CF 01-2022'!$A:$H,MIN($I$14+1,8)),2), RW_100,ROUND(VLOOKUP($I$11+IF(F18<$I$12,0,1),'Barèmes RW 01-2022'!$A:$H,MIN($I$14+1,8)),2), RBC_ISP,ROUND(VLOOKUP($I$11+IF(F18<$I$12,0,1),'Barèmes RBC 01-2022'!$A:$H,MIN($I$14+1,8)),2), CG,ROUND(VLOOKUP($I$11+IF(F18<$I$12,0,1),'Barèmes CG 01-2022'!$A:$H,MIN($I$14+1,8)),2), Centres_sportifs,ROUND(VLOOKUP($I$11+IF(F18<$I$12,0,1),'Barèmes CeSp 01-2022'!$A:$V,MIN($I$10+1,22)),2), Pourcentage,ROUND(VLOOKUP($I$11+IF(F18<$I$12,0,1),'Barèmes RW % 01-2022'!$A:$H,MIN($I$14+1,8)),2))) -> Complétez | G25: =IF(OR(Barème_référence_association="Autres",$I$9="Autre",$I$10="Autre"),G$23,_xlfn.SWITCH(Barème_référence_association, CF,ROUND(VLOOKUP($I$11+IF(G18<$I$12,0,1),'Barèmes CF 01-2022'!$A:$H,MIN($I$14+1,8)),2), RW_100,ROUND(VLOOKUP($I$11+IF(G18<$I$12,0,1),'Barèmes RW 01-2022'!$A:$H,MIN($I$14+1,8)),2), RBC_ISP,ROUND(VLOOKUP($I$11+IF(G18<$I$12,0,1),'Barèmes RBC 01-2022'!$A:$H,MIN($I$14+1,8)),2), CG,ROUND(VLOOKUP($I$11+IF(G18<$I$12,0,1),'Barèmes CG 01-2022'!$A:$H,MIN($I$14+1,8)),2), Centres_sportifs,ROUND(VLOOKUP($I$11+IF(G18<$I$12,0,1),'Barèmes CeSp 01-2022'!$A:$V,MIN($I$10+1,22)),2), Pourcentage,ROUND(VLOOKUP($I$11+IF(G18<$I$12,0,1),'Barèmes RW % 01-2022'!$A:$H,MIN($I$14+1,8)),2))) -> Complétez | H25: =IF(OR(Barème_référence_association="Autres",$I$9="Autre",$I$10="Autre"),H$23,_xlfn.SWITCH(Barème_référence_association, CF,ROUND(VLOOKUP($I$11+IF(H18<$I$12,0,1),'Barèmes CF 01-2022'!$A:$H,MIN($I$14+1,8)),2), RW_100,ROUND(VLOOKUP($I$11+IF(H18<$I$12,0,1),'Barèmes RW 01-2022'!$A:$H,MIN($I$14+1,8)),2), RBC_ISP,ROUND(VLOOKUP($I$11+IF(H18<$I$12,0,1),'Barèmes RBC 01-2022'!$A:$H,MIN($I$14+1,8)),2), CG,ROUND(VLOOKUP($I$11+IF(H18<$I$12,0,1),'Barèmes CG 01-2022'!$A:$H,MIN($I$14+1,8)),2), Centres_sportifs,ROUND(VLOOKUP($I$11+IF(H18<$I$12,0,1),'Barèmes CeSp 01-2022'!$A:$V,MIN($I$10+1,22)),2), Pourcentage,ROUND(VLOOKUP($I$11+IF(H18<$I$12,0,1),'Barèmes RW % 01-2022'!$A:$H,MIN($I$14+1,8)),2))) -> Complétez | I25: =IF(OR(Barème_référence_association="Autres",$I$9="Autre",$I$10="Autre"),I$23,_xlfn.SWITCH(Barème_référence_association, CF,ROUND(VLOOKUP($I$11+IF(I18<$I$12,0,1),'Barèmes CF 01-2022'!$A:$H,MIN($I$14+1,8)),2), RW_100,ROUND(VLOOKUP($I$11+IF(I18<$I$12,0,1),'Barèmes RW 01-2022'!$A:$H,MIN($I$14+1,8)),2), RBC_ISP,ROUND(VLOOKUP($I$11+IF(I18<$I$12,0,1),'Barèmes RBC 01-2022'!$A:$H,MIN($I$14+1,8)),2), CG,ROUND(VLOOKUP($I$11+IF(I18<$I$12,0,1),'Barèmes CG 01-2022'!$A:$H,MIN($I$14+1,8)),2), Centres_sportifs,ROUND(VLOOKUP($I$11+IF(I18<$I$12,0,1),'Barèmes CeSp 01-2022'!$A:$V,MIN($I$10+1,22)),2), Pourcentage,ROUND(VLOOKUP($I$11+IF(I18<$I$12,0,1),'Barèmes RW % 01-2022'!$A:$H,MIN($I$14+1,8)),2))) -> Complétez | J25: =IF(OR(Barème_référence_association="Autres",$I$9="Autre",$I$10="Autre"),J$23,_xlfn.SWITCH(Barème_référence_association, CF,ROUND(VLOOKUP($I$11+IF(J18<$I$12,0,1),'Barèmes CF 01-2022'!$A:$H,MIN($I$14+1,8)),2), RW_100,ROUND(VLOOKUP($I$11+IF(J18<$I$12,0,1),'Barèmes RW 01-2022'!$A:$H,MIN($I$14+1,8)),2), RBC_ISP,ROUND(VLOOKUP($I$11+IF(J18<$I$12,0,1),'Barèmes RBC 01-2022'!$A:$H,MIN($I$14+1,8)),2), CG,ROUND(VLOOKUP($I$11+IF(J18<$I$12,0,1),'Barèmes CG 01-2022'!$A:$H,MIN($I$14+1,8)),2), Centres_sportifs,ROUND(VLOOKUP($I$11+IF(J18<$I$12,0,1),'Barèmes CeSp 01-2022'!$A:$V,MIN($I$10+1,22)),2), Pourcentage,ROUND(VLOOKUP($I$11+IF(J18<$I$12,0,1),'Barèmes RW % 01-2022'!$A:$H,MIN($I$14+1,8)),2))) -> Complétez | K25: =IF(OR(Barème_référence_association="Autres",$I$9="Autre",$I$10="Autre"),K$23,_xlfn.SWITCH(Barème_référence_association, CF,ROUND(VLOOKUP($I$11+IF(K18<$I$12,0,1),'Barèmes CF 01-2022'!$A:$H,MIN($I$14+1,8)),2), RW_100,ROUND(VLOOKUP($I$11+IF(K18<$I$12,0,1),'Barèmes RW 01-2022'!$A:$H,MIN($I$14+1,8)),2), RBC_ISP,ROUND(VLOOKUP($I$11+IF(K18<$I$12,0,1),'Barèmes RBC 01-2022'!$A:$H,MIN($I$14+1,8)),2), CG,ROUND(VLOOKUP($I$11+IF(K18<$I$12,0,1),'Barèmes CG 01-2022'!$A:$H,MIN($I$14+1,8)),2), Centres_sportifs,ROUND(VLOOKUP($I$11+IF(K18<$I$12,0,1),'Barèmes CeSp 01-2022'!$A:$V,MIN($I$10+1,22)),2), Pourcentage,ROUND(VLOOKUP($I$11+IF(K18<$I$12,0,1),'Barèmes RW % 01-2022'!$A:$H,MIN($I$14+1,8)),2))) -> Complétez | L25: =IF(OR(Barème_référence_association="Autres",$I$9="Autre",$I$10="Autre"),L$23,_xlfn.SWITCH(Barème_référence_association, CF,ROUND(VLOOKUP($I$11+IF(L18<$I$12,0,1),'Barèmes CF 01-2022'!$A:$H,MIN($I$14+1,8)),2), RW_100,ROUND(VLOOKUP($I$11+IF(L18<$I$12,0,1),'Barèmes RW 01-2022'!$A:$H,MIN($I$14+1,8)),2), RBC_ISP,ROUND(VLOOKUP($I$11+IF(L18<$I$12,0,1),'Barèmes RBC 01-2022'!$A:$H,MIN($I$14+1,8)),2), CG,ROUND(VLOOKUP($I$11+IF(L18<$I$12,0,1),'Barèmes CG 01-2022'!$A:$H,MIN($I$14+1,8)),2), Centres_sportifs,ROUND(VLOOKUP($I$11+IF(L18<$I$12,0,1),'Barèmes CeSp 01-2022'!$A:$V,MIN($I$10+1,22)),2), Pourcentage,ROUND(VLOOKUP($I$11+IF(L18<$I$12,0,1),'Barèmes RW % 01-2022'!$A:$H,MIN($I$14+1,8)),2))) -> Complétez | M25: =IF(OR(Barème_référence_association="Autres",$I$9="Autre",$I$10="Autre"),M$23,_xlfn.SWITCH(Barème_référence_association, CF,ROUND(VLOOKUP($I$11+IF(M18<$I$12,0,1),'Barèmes CF 01-2022'!$A:$H,MIN($I$14+1,8)),2), RW_100,ROUND(VLOOKUP($I$11+IF(M18<$I$12,0,1),'Barèmes RW 01-2022'!$A:$H,MIN($I$14+1,8)),2), RBC_ISP,ROUND(VLOOKUP($I$11+IF(M18<$I$12,0,1),'Barèmes RBC 01-2022'!$A:$H,MIN($I$14+1,8)),2), CG,ROUND(VLOOKUP($I$11+IF(M18<$I$12,0,1),'Barèmes CG 01-2022'!$A:$H,MIN($I$14+1,8)),2), Centres_sportifs,ROUND(VLOOKUP($I$11+IF(M18<$I$12,0,1),'Barèmes CeSp 01-2022'!$A:$V,MIN($I$10+1,22)),2), Pourcentage,ROUND(VLOOKUP($I$11+IF(M18<$I$12,0,1),'Barèmes RW % 01-2022'!$A:$H,MIN($I$14+1,8)),2))) -> Complétez | N25: =IF(OR(Barème_référence_association="Autres",$I$9="Autre",$I$10="Autre"),N$23,_xlfn.SWITCH(Barème_référence_association, CF,ROUND(VLOOKUP($I$11+IF(N18<$I$12,0,1),'Barèmes CF 01-2022'!$A:$H,MIN($I$14+1,8)),2), RW_100,ROUND(VLOOKUP($I$11+IF(N18<$I$12,0,1),'Barèmes RW 01-2022'!$A:$H,MIN($I$14+1,8)),2), RBC_ISP,ROUND(VLOOKUP($I$11+IF(N18<$I$12,0,1),'Barèmes RBC 01-2022'!$A:$H,MIN($I$14+1,8)),2), CG,ROUND(VLOOKUP($I$11+IF(N18<$I$12,0,1),'Barèmes CG 01-2022'!$A:$H,MIN($I$14+1,8)),2), Centres_sportifs,ROUND(VLOOKUP($I$11+IF(N18<$I$12,0,1),'Barèmes CeSp 01-2022'!$A:$V,MIN($I$10+1,22)),2), Pourcentage,ROUND(VLOOKUP($I$11+IF(N18<$I$12,0,1),'Barèmes RW % 01-2022'!$A:$H,MIN($I$14+1,8)),2))) -> Complétez | O25: =IF(OR(Barème_référence_association="Autres",$I$9="Autre",$I$10="Autre"),O$23,_xlfn.SWITCH(Barème_référence_association, CF,ROUND(VLOOKUP($I$11+IF(O18<$I$12,0,1),'Barèmes CF 01-2022'!$A:$H,MIN($I$14+1,8)),2), RW_100,ROUND(VLOOKUP($I$11+IF(O18<$I$12,0,1),'Barèmes RW 01-2022'!$A:$H,MIN($I$14+1,8)),2), RBC_ISP,ROUND(VLOOKUP($I$11+IF(O18<$I$12,0,1),'Barèmes RBC 01-2022'!$A:$H,MIN($I$14+1,8)),2), CG,ROUND(VLOOKUP($I$11+IF(O18<$I$12,0,1),'Barèmes CG 01-2022'!$A:$H,MIN($I$14+1,8)),2), Centres_sportifs,ROUND(VLOOKUP($I$11+IF(O18<$I$12,0,1),'Barèmes CeSp 01-2022'!$A:$V,MIN($I$10+1,22)),2), Pourcentage,ROUND(VLOOKUP($I$11+IF(O18<$I$12,0,1),'Barèmes RW % 01-2022'!$A:$H,MIN($I$14+1,8)),2))) -> Complétez
C26: Brut avec annale ou biennale temps-plein avec correction RMMMG indexés | D26: =_xlfn.SWITCH(Année_ref,2022,IF(CP="329.03",IF(D$25<RMMMG32903_2022,RMMMG32903_2022,D$25),IF(D$25<RMMMG_2022,RMMMG_2022,D$25)),2023,IF(CP="329.03",IF(D$25<RMMMG32903_2023,RMMMG32903_2023,D$25),IF(D$25<RMMMG_2023,RMMMG_2023,D$25)),2024,IF(CP="329.03",IF(D$25<RMMMG32903_2024,RMMMG32903_2024,D$25),IF(D$25<RMMMG_2024,RMMMG_2024,D$25))) -> Complétez | E26: =_xlfn.SWITCH(Année_ref,2022,IF(CP="329.03",IF(E$25<RMMMG32903_2022,RMMMG32903_2022,E$25),IF(E$25<RMMMG_2022,RMMMG_2022,E$25)),2023,IF(CP="329.03",IF(E$25<RMMMG32903_2023,RMMMG32903_2023,E$25),IF(E$25<RMMMG_2023,RMMMG_2023,E$25)),2024,IF(CP="329.03",IF(E$25<RMMMG32903_2024,RMMMG32903_2024,E$25),IF(E$25<RMMMG_2024,RMMMG_2024,E$25))) -> Complétez | F26: =_xlfn.SWITCH(Année_ref,2022,IF(CP="329.03",IF(F$25<RMMMG32903_2022,RMMMG32903_2022,F$25),IF(F$25<RMMMG_2022,RMMMG_2022,F$25)),2023,IF(CP="329.03",IF(F$25<RMMMG32903_2023,RMMMG32903_2023,F$25),IF(F$25<RMMMG_2023,RMMMG_2023,F$25)),2024,IF(CP="329.03",IF(F$25<RMMMG32903_2024,RMMMG32903_2024,F$25),IF(F$25<RMMMG_2024,RMMMG_2024,F$25))) -> Complétez | G26: =_xlfn.SWITCH(Année_ref,2022,IF(CP="329.03",IF(G$25<RMMMG32903_2022,RMMMG32903_2022,G$25),IF(G$25<RMMMG_2022,RMMMG_2022,G$25)),2023,IF(CP="329.03",IF(G$25<RMMMG32903_2023,RMMMG32903_2023,G$25),IF(G$25<RMMMG_2023,RMMMG_2023,G$25)),2024,IF(CP="329.03",IF(G$25<RMMMG32903_2024,RMMMG32903_2024,G$25),IF(G$25<RMMMG_2024,RMMMG_2024,G$25))) -> Complétez | H26: =_xlfn.SWITCH(Année_ref,2022,IF(CP="329.03",IF(H$25<RMMMG32903_2022,RMMMG32903_2022,H$25),IF(H$25<RMMMG_2022,RMMMG_2022,H$25)),2023,IF(CP="329.03",IF(H$25<RMMMG32903_2023,RMMMG32903_2023,H$25),IF(H$25<RMMMG_2023,RMMMG_2023,H$25)),2024,IF(CP="329.03",IF(H$25<RMMMG32903_2024,RMMMG32903_2024,H$25),IF(H$25<RMMMG_2024,RMMMG_2024,H$25))) -> Complétez | I26: =_xlfn.SWITCH(Année_ref,2022,IF(CP="329.03",IF(I$25<RMMMG32903_2022,RMMMG32903_2022,I$25),IF(I$25<RMMMG_2022,RMMMG_2022,I$25)),2023,IF(CP="329.03",IF(I$25<RMMMG32903_2023,RMMMG32903_2023,I$25),IF(I$25<RMMMG_2023,RMMMG_2023,I$25)),2024,IF(CP="329.03",IF(I$25<RMMMG32903_2024,RMMMG32903_2024,I$25),IF(I$25<RMMMG_2024,RMMMG_2024,I$25))) -> Complétez | J26: =_xlfn.SWITCH(Année_ref,2022,IF(CP="329.03",IF(J$25<RMMMG32903_2022,RMMMG32903_2022,J$25),IF(J$25<RMMMG_2022,RMMMG_2022,J$25)),2023,IF(CP="329.03",IF(J$25<RMMMG32903_2023,RMMMG32903_2023,J$25),IF(J$25<RMMMG_2023,RMMMG_2023,J$25)),2024,IF(CP="329.03",IF(J$25<RMMMG32903_2024,RMMMG32903_2024,J$25),IF(J$25<RMMMG_2024,RMMMG_2024,J$25))) -> Complétez | K26: =_xlfn.SWITCH(Année_ref,2022,IF(CP="329.03",IF(K$25<RMMMG32903_2022,RMMMG32903_2022,K$25),IF(K$25<RMMMG_2022,RMMMG_2022,K$25)),2023,IF(CP="329.03",IF(K$25<RMMMG32903_2023,RMMMG32903_2023,K$25),IF(K$25<RMMMG_2023,RMMMG_2023,K$25)),2024,IF(CP="329.03",IF(K$25<RMMMG32903_2024,RMMMG32903_2024,K$25),IF(K$25<RMMMG_2024,RMMMG_2024,K$25))) -> Complétez | L26: =_xlfn.SWITCH(Année_ref,2022,IF(CP="329.03",IF(L$25<RMMMG32903_2022,RMMMG32903_2022,L$25),IF(L$25<RMMMG_2022,RMMMG_2022,L$25)),2023,IF(CP="329.03",IF(L$25<RMMMG32903_2023,RMMMG32903_2023,L$25),IF(L$25<RMMMG_2023,RMMMG_2023,L$25)),2024,IF(CP="329.03",IF(L$25<RMMMG32903_2024,RMMMG32903_2024,L$25),IF(L$25<RMMMG_2024,RMMMG_2024,L$25))) -> Complétez | M26: =_xlfn.SWITCH(Année_ref,2022,IF(CP="329.03",IF(M$25<RMMMG32903_2022,RMMMG32903_2022,M$25),IF(M$25<RMMMG_2022,RMMMG_2022,M$25)),2023,IF(CP="329.03",IF(M$25<RMMMG32903_2023,RMMMG32903_2023,M$25),IF(M$25<RMMMG_2023,RMMMG_2023,M$25)),2024,IF(CP="329.03",IF(M$25<RMMMG32903_2024,RMMMG32903_2024,M$25),IF(M$25<RMMMG_2024,RMMMG_2024,M$25))) -> Complétez | N26: =_xlfn.SWITCH(Année_ref,2022,IF(CP="329.03",IF(N$25<RMMMG32903_2022,RMMMG32903_2022,N$25),IF(N$25<RMMMG_2022,RMMMG_2022,N$25)),2023,IF(CP="329.03",IF(N$25<RMMMG32903_2023,RMMMG32903_2023,N$25),IF(N$25<RMMMG_2023,RMMMG_2023,N$25)),2024,IF(CP="329.03",IF(N$25<RMMMG32903_2024,RMMMG32903_2024,N$25),IF(N$25<RMMMG_2024,RMMMG_2024,N$25))) -> Complétez | O26: =_xlfn.SWITCH(Année_ref,2022,IF(CP="329.03",IF(O$25<RMMMG32903_2022,RMMMG32903_2022,O$25),IF(O$25<RMMMG_2022,RMMMG_2022,O$25)),2023,IF(CP="329.03",IF(O$25<RMMMG32903_2023,RMMMG32903_2023,O$25),IF(O$25<RMMMG_2023,RMMMG_2023,O$25)),2024,IF(CP="329.03",IF(O$25<RMMMG32903_2024,RMMMG32903_2024,O$25),IF(O$25<RMMMG_2024,RMMMG_2024,O$25))) -> Complétez
C27: Brut avec indexation(s) temps plein | D27: =D26 -> Complétez | E27: =IF(D23="Complétez",E23,IF(Mois_index="Aucune",E$26,IF(E16="",E26,D27*1.02))) -> Complétez | F27: Complétez | G27: Complétez | H27: Complétez | I27: Complétez | J27: Complétez | K27: Complétez | L27: Complétez | M27: Complétez | N27: Complétez | O27: Complétez
C28: Sursalaires | P28: =SUM(D28:O28) -> 0.00
C29: Double pécule de vacances | D29: =IF(AND(D$21=MONTH($I$13),D$23="Complétez"),"Complétez",IF(D$21=MONTH($I$13),IF($I$6=Ouvrier,"",0.92*D$23),"")) ->  | K29: Complétez | P29: =SUM(D29:O29) -> 0.00
C30: Prime de fin d'année | O30: =IF($I$7<>0, _xlfn.SWITCH(PFA_Association,PFA_Aucune,0, PFA_ISP_RBC,(AVERAGE(D19:L19)/Régime_de_travail_temps_plein)*AVERAGE(D20:L20)*(part_fixe_non_indexée_PFA_ISPRBC+Part_fixe_2021_PFA_ISPRBC*POWER(1.02,TotalIndex))+AVERAGE(D20:L20)*2.5%*12*$M$22, PFA_CFISPA_AViQ,(AVERAGE(D19:L19)/Régime_de_travail_temps_plein)*AVERAGE(D20:L20)*(Part_fixe_2021_PFA_1_CFISPA+Part_fixe_2021_PFA_2_3_CFISPA)*POWER(1.02,TotalIndex)+AVERAGE(D20:L20)*2.5%*12*$M$22, PFA_CISP_W__CRIs__MIRE,IF((AVERAGE(D19:O19)/Régime_de_travail_temps_plein)<0.3,0,(AVERAGE(D19:O19)/Régime_de_travail_temps_plein)*AVERAGE(D20:O20)*Part_fixe_2021_CISP_CRI_MIRE*POWER(1.02,TotalIndex)), PFA_ILI__SETIS__Interfédé__InterMire__PMTIC__AES,(IF((AVERAGE(D19:O19)/Régime_de_travail_temps_plein)<0.3,0,(SUM(D19:O19)/12/Régime_de_travail_temps_plein)*SUM(D20:O20)/12*Part_fixe_2021_PFA_ILI_AUTRES*POWER(1.02,TotalIndex))), PFA_Fonction_publique_RW,(AVERAGE(D19:L19)/Régime_de_travail_temps_plein)*Part_fixe_2021_PFA_FPRW*POWER(1.02,TotalIndex)+AVERAGE(D20:L20)*2.5%*12*$M$22, PFA_Fonction_publique_CF,(AVERAGE(D19:L19)/Régime_de_travail_temps_plein)*Part_fixe_2021_PFA_FPCF*POWER(1.02,TotalIndex)+AVERAGE(D20:L20)*2.5%*12*$M$22, PFA_Fonction_publique_fédérale,(AVERAGE(D19:L19)/Régime_de_travail_temps_plein)*SUM(D20:L20)/9*Part_fixe_2021_PFA_FPFEDBASE*POWER(1.02,TotalIndex)+AVERAGE(D20:L20)*2.5%*12*$M$22, PFA_Fonction_publique_fédérale_PLUS,(AVERAGE(D19:L19)/Régime_de_travail_temps_plein)*Part_fixe_2021_PFA_FPFEDPLUS*POWER(1.02,TotalIndex)+AVERAGE(D20:L20)*2.5%*12*$M$22, PFA_Fonction_publique_CoCoF,(AVERAGE(D19:L19)/Régime_de_travail_temps_plein)*AVERAGE(D20:L20)*Part_fixe_2021_PFA_FPCOCOF*POWER(1.02,TotalIndex)+AVERAGE(D20:L20)*2.5%*12*$M$22, PFA_Fonction_publique_RBC,(AVERAGE(D19:L19)/Régime_de_travail_temps_plein)*AVERAGE(D20:L20)*Part_fixe_2021_PFA_FPRBC*POWER(1.02,TotalIndex)+AVERAGE(D20:L20)*2.5%*12*$M$22, _13ème_mois,(IF(AND($P$19/Régime_de_travail_temps_plein=1,$P$20=1),$O$23,IF($P$20<=3/12,0,(AVERAGE($E$22:$O$22))))), PFA_Autre,"Complétez","","" ),"") -> 0.00 | P30: =SUM(D30:O30) -> 0.00
C31: Indemnité de rupture compensatoire de préavis éventuelle | P31: =SUM(D31:O31) -> 0.00
C32: Autre prime donnant lieu à cotisations patronales | I32: 0 | P32: =SUM(D32:O32) -> 0.00
C33: Cotisations patronales si ACS, APE en RBC | F33: =IF(Année_ref<2022,IF(AND($O$5<>"ACS",$O$5<>"APE en RBC"),0, IF(OR($O$5="ACS",$O$5="APE en RBC"), IF($I$6=Ouvrier, (((SUM(D$23:F$23)+SUM(D$32:F$32)+SUM(D$28:F$28))*108%*Tx_coti_CoSub_O)+ IF(Plus_de_10_trav="Moins de 10",(SUM(D$31:F$31)*108%*Tx_coti_O), (SUM(D$31:F$31)*108%*Tx_coti_O_plus10))), (((SUM(D$23:F$23)+SUM(D$32:F$32)+SUM(D$28:F$28))*Tx_coti_CoSub_E)+IF(Plus_de_10_trav="Moins de 10",(SUM(D$31:F$31)*Tx_coti_E),(SUM(D$31:F$31)*Tx_coti_E_plus10)))))),IF(AND($O$5<>"ACS",$O$5<>"APE en RBC"),0, IF(OR($O$5="ACS",$O$5="APE en RBC"), IF($I$6=Ouvrier, (((SUM(D$23:F$23)+SUM(D$32:F$32)+SUM(D$28:F$28))*108%*Tx_coti_CoSub_O)+ IF(Plus_de_10_trav="Moins de 10",(SUM(D$31:F$31)*108%*Tx_coti_O), (SUM(D$31:F$31)*108%*Tx_coti_O_plus10))), (((SUM(D$23:F$23)+SUM(D$32:F$32)+SUM(D$28:F$28))*Tx_coti_CoSub_E)+IF(Plus_de_10_trav="Moins de 10",(SUM(D$31:F$31)*Tx_coti_E),(SUM(D$31:F$31)*Tx_coti_E_plus10)))),0))) -> 0.00 | I33: =IF(Année_ref<2022,IF(AND($O$5<>"ACS",$O$5<>"APE en RBC"),0, IF(OR($O$5="ACS",$O$5="APE en RBC"), IF($I$6=Ouvrier, (((SUM(G$23:I$23)+SUM(G$32:I$32)+SUM(G$28:I$28))*108%*Tx_coti_CoSub_O)+ IF(Plus_de_10_trav="Moins de 10",(SUM(G$31:I$31)*108%*Tx_coti_O), (SUM(G$31:I$31)*108%*Tx_coti_O_plus10))), (((SUM(G$23:I$23)+SUM(G$32:I$32)+SUM(G$28:I$28))*Tx_coti_CoSub_E)+IF(Plus_de_10_trav="Moins de 10",(SUM(G$31:I$31)*Tx_coti_E),(SUM(G$31:I$31)*Tx_coti_E_plus10)))))),IF(AND($O$5<>"ACS",$O$5<>"APE en RBC"),0, IF(OR($O$5="ACS",$O$5="APE en RBC"), IF($I$6=Ouvrier, (((SUM(G$23:I$23)+SUM(G$32:I$32)+SUM(G$28:I$28))*108%*Tx_coti_CoSub_O)+ IF(Plus_de_10_trav="Moins de 10",(SUM(G$31:I$31)*108%*Tx_coti_O), (SUM(G$31:I$31)*108%*Tx_coti_O_plus10))), (((SUM(G$23:I$23)+SUM(G$32:I$32)+SUM(G$28:I$28))*Tx_coti_CoSub_E)+IF(Plus_de_10_trav="Moins de 10",(SUM(G$31:I$31)*Tx_coti_E),(SUM(G$31:I$31)*Tx_coti_E_plus10)))),0))) -> 0.00 | L33: =IF(Année_ref<2022,IF(AND($O$5<>"ACS",$O$5<>"APE en RBC"),0, IF(OR($O$5="ACS",$O$5="APE en RBC"), IF($I$6=Ouvrier, (((SUM(J$23:L$23)+SUM(J$32:L$32)+SUM(J$28:L$28))*108%*Tx_coti_CoSub_O)+ IF(Plus_de_10_trav="Moins de 10",(SUM(J$31:L$31)*108%*Tx_coti_O), (SUM(J$31:L$31)*108%*Tx_coti_O_plus10))), (((SUM(J$23:L$23)+SUM(J$32:L$32)+SUM(J$28:L$28))*Tx_coti_CoSub_E)+IF(Plus_de_10_trav="Moins de 10",(SUM(J$31:L$31)*Tx_coti_E),(SUM(J$31:L$31)*Tx_coti_E_plus10)))))),IF(AND($O$5<>"ACS",$O$5<>"APE en RBC"),0, IF(OR($O$5="ACS",$O$5="APE en RBC"), IF($I$6=Ouvrier, (((SUM(J$23:L$23)+SUM(J$32:L$32)+SUM(J$28:L$28))*108%*Tx_coti_CoSub_O)+ IF(Plus_de_10_trav="Moins de 10",(SUM(J$31:L$31)*108%*Tx_coti_O), (SUM(J$31:L$31)*108%*Tx_coti_O_plus10))), (((SUM(J$23:L$23)+SUM(J$32:L$32)+SUM(J$28:L$28))*Tx_coti_CoSub_E)+IF(Plus_de_10_trav="Moins de 10",(SUM(J$31:L$31)*Tx_coti_E),(SUM(J$31:L$31)*Tx_coti_E_plus10)))),0))) -> 0.00 | O33: =IF(Année_ref<2022,IF(AND($O$5<>"ACS",$O$5<>"APE en RBC"),0, IF(OR($O$5="ACS",$O$5="APE en RBC"), IF($I$6=Ouvrier, (((SUM(M$23:O$23)+SUM(M$32:O$32)+SUM(M$28:O$28)+$O$30)*108%*Tx_coti_CoSub_O)+ IF(Plus_de_10_trav="Moins de 10",(SUM(M$31:O$31)*108%*Tx_coti_O), (SUM(M$31:O$31)*108%*Tx_coti_O_plus10))), (((SUM(M$23:O$23)+SUM(M$32:O$32)+SUM(M$28:O$28)+$O$30)*Tx_coti_CoSub_E)+IF(Plus_de_10_trav="Moins de 10",(SUM(M$31:O$31)*Tx_coti_E),(SUM(M$31:O$31)*Tx_coti_E_plus10)))))),IF(AND($O$5<>"ACS",$O$5<>"APE en RBC"),0, IF(OR($O$5="ACS",$O$5="APE en RBC"), IF($I$6=Ouvrier, (((SUM(M$23:O$23)+SUM(M$32:O$32)+SUM(M$28:O$28)+$O$30)*108%*Tx_coti_CoSub_O)+ IF(Plus_de_10_trav="Moins de 10",(SUM(M$31:O$31)*108%*Tx_coti_O), (SUM(M$31:O$31)*108%*Tx_coti_O_plus10))), (((SUM(M$23:O$23)+SUM(M$32:O$32)+SUM(M$28:O$28)+O$30)*Tx_coti_CoSub_E)+IF(Plus_de_10_trav="Moins de 10",(SUM(M$31:O$31)*Tx_coti_E),(SUM(M$31:O$31)*Tx_coti_E_plus10)))),0))) -> 0.00
C34: Cotisations patronales si Étudiant | F34: =IF($O$5=ÉTUDIANT·E,(SUM(D$23:F$23)+SUM(D$32:F$32)+SUM(D$28:F$28)+SUM(D$31:F$31))*Cot_patr_étudiant,0) -> 0.00 | I34: =IF($O$5=ÉTUDIANT·E,(SUM(G$23:I$23)+SUM(G$32:I$32)+SUM(G$28:I$28)+SUM(G$31:I$31))*Cot_patr_étudiant,0) -> 0.00 | L34: =IF($O$5=ÉTUDIANT·E,(SUM(J$23:L$23)+SUM(J$32:L$32)+SUM(J$28:L$28)+SUM(J$31:L$31))*Cot_patr_étudiant,0) -> 0.00 | O34: =IF($O$5=ÉTUDIANT·E,(SUM(M$23:O$23)+SUM(M$32:O$32)+SUM(M$28:O$28)+SUM(M$31:O$31)++IF($O$30="Complétez",0,$O$30))*Cot_patr_étudiant,0) -> 0.00
C35: Cotisations patronales taux plein | F35: =IF(OR($O$5="Non",$O$5="PTP BXL", $O$5="PTP W", $O$5="PTP CG",$O$5="MARIBEL",$O$5="BVA",$O$5="APE en RW"),IF(Plus_de_10_trav="10 et plus",IF($I$6=Ouvrier,(SUM(D$23:F$23)+SUM(D$32:F$32)+SUM(D$28:F$28)+SUM(D$28:F$28)+SUM(D$31:F$31))*108%*(Tx_coti_O_plus10),(SUM(D$23:F$23)+SUM(D$32:F$32)+SUM(D$28:F$28)+SUM(D$31:F$31))*(Tx_coti_E_plus10)),IF($I$6=Ouvrier,(SUM(D$23:F$23)+SUM(D$32:F$32)+SUM(D$28:F$28)+SUM(D$31:F$31))*108%*(Tx_coti_O),(SUM(D$23:F$23)+SUM(D$32:F$32)+SUM(D$28:F$28)+SUM(D$31:F$31))*(Tx_coti_E))),0) -> 0.00 | I35: =IF(OR($O$5="Non",$O$5="PTP BXL", $O$5="PTP W", $O$5="PTP CG",$O$5="MARIBEL",$O$5="BVA",$O$5="APE en RW"), IF(Plus_de_10_trav="10 et plus", IF($I$6=Ouvrier,(SUM(G$23:I$23)+SUM(G$32:I$32)+SUM(G$28:I$28)+SUM(G$28:I$28)+SUM(G$31:I$31))*108%*(Tx_coti_O_plus10), (SUM(G$23:I$23)+SUM(G$32:I$32)+SUM(G$28:I$28)+SUM(G$31:I$31))*(Tx_coti_E_plus10)), IF($I$6=Ouvrier,(SUM(G$23:I$23)+SUM(G$32:I$32)+SUM(G$28:I$28)+SUM(G$31:I$31))*108%*(Tx_coti_O), (SUM(G$23:I$23)+SUM(G$32:I$32)+SUM(G$28:I$28)+SUM(G$31:I$31))*(Tx_coti_E))),0) -> 0.00 | L35: =IF(OR($O$5="Non",$O$5="PTP BXL", $O$5="PTP W", $O$5="PTP CG",$O$5="MARIBEL",$O$5="BVA",$O$5="APE en RW"), IF(Plus_de_10_trav="10 et plus", IF($I$6=Ouvrier,(SUM(J$23:L$23)+SUM(J$32:L$32)+SUM(J$28:L$28)+SUM(J$28:L$28)+SUM(J$31:L$31))*108%*(Tx_coti_O_plus10), (SUM(J$23:L$23)+SUM(J$32:L$32)+SUM(J$28:L$28)+SUM(J$31:L$31))*(Tx_coti_E_plus10)), IF($I$6=Ouvrier,(SUM(J$23:L$23)+SUM(J$32:L$32)+SUM(J$28:L$28)+SUM(J$31:L$31))*108%*(Tx_coti_O), (SUM(J$23:L$23)+SUM(J$32:L$32)+SUM(J$28:L$28)+SUM(J$31:L$31))*(Tx_coti_E))),0) -> 0.00 | O35: =IF(OR($O$5="Non",$O$5="PTP BXL", $O$5="PTP W", $O$5="PTP CG",$O$5="MARIBEL",$O$5="BVA",$O$5="APE en RW"), IF(Plus_de_10_trav="10 et plus", IF($I$6=Ouvrier,(SUM(M$23:O$23)+SUM(M$32:O$32)+SUM(M$28:O$28)+SUM(M$31:O$31)++IF($O$30="Complétez",0,$O$30))*108%*(Tx_coti_O_plus10), (SUM(M$23:O$23)+SUM(M$32:O$32)+SUM(M$28:O$28)+SUM(M$31:O$31)++IF($O$30="Complétez",0,$O$30))*(Tx_coti_E_plus10)), IF($I$6=Ouvrier,(SUM(M$23:O$23)+SUM(M$32:O$32)+SUM(M$28:O$28)+SUM(M$31:O$31)++IF($O$30="Complétez",0,$O$30))*108%*(Tx_coti_O), (SUM(M$23:O$23)+SUM(M$32:O$32)+SUM(M$28:O$28)+SUM(M$31:O$31)++IF($O$30="Complétez",0,$O$30))*(Tx_coti_E))),0) -> 0.00
C36: Cotisations patronales avant réductions y compris cotisations au Fonds 4S | F36: =SUM(F33:F35) -> 0.00 | I36: =SUM(I33:I35) -> 0.00 | L36: =SUM(L33:L35) -> 0.00 | O36: =SUM(O33:O35) -> 0.00 | P36: =SUM(D36:O36) -> 0.00
C37: Réduction cotisations patronales si PTP <25 ans | D37: Trim PTP | E37: =IF(LEFT($O$5,3)<>"PTP",0,ROUNDUP((_xlfn.DAYS(DATE(Année_ref,3,31),$O$11))/(13*7),0)) -> 0 | F37: =IF(AND(Année_ref>2020,$I$5="Wallonie"),0,IF(IF(OR($O$5=PTP_BXL,$O$5=PTP_CG),IF($O$9="<25 ans",IF($E$37<6,-1000,IF(AND($E$37>5,$E$37<10),-400,0))),0)=FALSE,0,IF(OR($O$5=PTP_BXL,$O$5=PTP_CG),IF($O$9="<25 ans",IF($E$37<6,-1000,IF(AND($E$37>5,$E$37<10),-400,0))),0))) -> 0.00 | G37: Trim PTP | H37: =IF(LEFT($O$5,3)<>"PTP",0,ROUNDUP((_xlfn.DAYS(DATE(Année_ref,6,30),$O$11))/(13*7),0)) -> 0 | I37: =IF(AND(Année_ref>2020,$I$5="Wallonie"),0,IF(IF(OR($O$5=PTP_BXL,$O$5=PTP_CG),IF($O$9="<25 ans",IF($E$37<6,-1000,IF(AND($E$37>5,$E$37<10),-400,0))),0)=FALSE,0,IF(OR($O$5=PTP_BXL,$O$5=PTP_CG),IF($O$9="<25 ans",IF($E$37<6,-1000,IF(AND($E$37>5,$E$37<10),-400,0))),0))) -> 0.00 | J37: Trim PTP | K37: =IF(LEFT($O$5,3)<>"PTP",0,ROUNDUP((_xlfn.DAYS(DATE(Année_ref,9,30),$O$11))/(13*7),0)) -> 0 | L37: =IF(AND(Année_ref>2020,$I$5="Wallonie"),0,IF(IF(OR($O$5=PTP_BXL,$O$5=PTP_CG),IF($O$9="<25 ans",IF($E$37<6,-1000,IF(AND($E$37>5,$E$37<10),-400,0))),0)=FALSE,0,IF(OR($O$5=PTP_BXL,$O$5=PTP_CG),IF($O$9="<25 ans",IF($E$37<6,-1000,IF(AND($E$37>5,$E$37<10),-400,0))),0))) -> 0.00 | M37: Trim PTP | N37: =IF(LEFT($O$5,3)<>"PTP",0,ROUNDUP((_xlfn.DAYS(DATE(Année_ref,12,31),$O$11))/(13*7),0)) -> 0 | O37: =IF(AND(Année_ref>2020,$I$5="Wallonie"),0,IF(IF(OR($O$5=PTP_BXL,$O$5=PTP_CG),IF($O$9="<25 ans",IF($E$37<6,-1000,IF(AND($E$37>5,$E$37<10),-400,0))),0)=FALSE,0,IF(OR($O$5=PTP_BXL,$O$5=PTP_CG),IF($O$9="<25 ans",IF($E$37<6,-1000,IF(AND($E$37>5,$E$37<10),-400,0))),0))) -> 0.00
C38: Réduction cotisations patronales si PTP <45 ans | F38: =IF(AND(Année_ref>2020,$I$5="Wallonie"),0,IF(IF(OR($O$5=PTP_BXL,$O$5=PTP_CG),IF(AND($O$9="<45 ans",$O$10="≥12 mois"), IF($E$37<6,-1000, IF(AND($E$37>5,$E$37<10),-400,0)), IF(AND($O$9="<45 ans",$O$10="≥24 mois"), IF($E$37<10,-1000, ))),0)=FALSE,0,IF(OR($O$5=PTP_BXL,$O$5=PTP_CG),IF(AND($O$9="<45 ans",$O$10="≥12 mois"), IF($E$37<6,-1000, IF(AND($E$37>5,$E$37<10),-400,0)), IF(AND($O$9="<45 ans",$O$10="≥24 mois"), IF($E$37<10,-1000, ))),0))) -> 0.00 | I38: =IF(AND(Année_ref>2020,$I$5="Wallonie"),0,IF(IF(OR($O$5=PTP_BXL,$O$5=PTP_CG),IF(AND($O$9="<45 ans",$O$10="≥12 mois"), IF($E$37<6,-1000, IF(AND($E$37>5,$E$37<10),-400,0)), IF(AND($O$9="<45 ans",$O$10="≥24 mois"), IF($E$37<10,-1000, ))),0)=FALSE,0,IF(OR($O$5=PTP_BXL,$O$5=PTP_CG),IF(AND($O$9="<45 ans",$O$10="≥12 mois"), IF($E$37<6,-1000, IF(AND($E$37>5,$E$37<10),-400,0)), IF(AND($O$9="<45 ans",$O$10="≥24 mois"), IF($E$37<10,-1000, ))),0))) -> 0.00 | L38: =IF(AND(Année_ref>2020,$I$5="Wallonie"),0,IF(IF(OR($O$5=PTP_BXL,$O$5=PTP_CG),IF(AND($O$9="<45 ans",$O$10="≥12 mois"), IF($E$37<6,-1000, IF(AND($E$37>5,$E$37<10),-400,0)), IF(AND($O$9="<45 ans",$O$10="≥24 mois"), IF($E$37<10,-1000, ))),0)=FALSE,0,IF(OR($O$5=PTP_BXL,$O$5=PTP_CG),IF(AND($O$9="<45 ans",$O$10="≥12 mois"), IF($E$37<6,-1000, IF(AND($E$37>5,$E$37<10),-400,0)), IF(AND($O$9="<45 ans",$O$10="≥24 mois"), IF($E$37<10,-1000, ))),0))) -> 0.00 | O38: =IF(AND(Année_ref>2020,$I$5="Wallonie"),0,IF(IF(OR($O$5=PTP_BXL,$O$5=PTP_CG),IF(AND($O$9="<45 ans",$O$10="≥12 mois"), IF($E$37<6,-1000, IF(AND($E$37>5,$E$37<10),-400,0)), IF(AND($O$9="<45 ans",$O$10="≥24 mois"), IF($E$37<10,-1000, ))),0)=FALSE,0,IF(OR($O$5=PTP_BXL,$O$5=PTP_CG),IF(AND($O$9="<45 ans",$O$10="≥12 mois"), IF($E$37<6,-1000, IF(AND($E$37>5,$E$37<10),-400,0)), IF(AND($O$9="<45 ans",$O$10="≥24 mois"), IF($E$37<10,-1000, ))),0))) -> 0.00
C39: Réduction cotisations patronales si PTP ≥45 ans | F39: =IF(AND(Année_ref>2020,$I$5="Wallonie"),0,IF(IF(OR($O$5=PTP_BXL,$O$5=PTP_CG),IF(AND($O$9="≥45 ans",$O$10="≥12 mois"), IF($E$37<6,-1000, IF(AND($E$37>5,$E$37<14),-400,0)), IF(AND($O$9="≥45 ans",$O$10="≥24 mois"), IF($E$37<14,-1000, ))),0)=FALSE,0,IF(OR($O$5=PTP_BXL,$O$5=PTP_CG),IF(AND($O$9="≥45 ans",$O$10="≥12 mois"), IF($E$37<6,-1000, IF(AND($E$37>5,$E$37<14),-400,0)), IF(AND($O$9="≥45 ans",$O$10="≥24 mois"), IF($E$37<14,-1000, ))),0))) -> 0.00 | I39: =IF(AND(Année_ref>2020,$I$5="Wallonie"),0,IF(IF(OR($O$5=PTP_BXL,$O$5=PTP_CG),IF(AND($O$9="≥45 ans",$O$10="≥12 mois"), IF($E$37<6,-1000, IF(AND($E$37>5,$E$37<14),-400,0)), IF(AND($O$9="≥45 ans",$O$10="≥24 mois"), IF($E$37<14,-1000, ))),0)=FALSE,0,IF(OR($O$5=PTP_BXL,$O$5=PTP_CG),IF(AND($O$9="≥45 ans",$O$10="≥12 mois"), IF($E$37<6,-1000, IF(AND($E$37>5,$E$37<14),-400,0)), IF(AND($O$9="≥45 ans",$O$10="≥24 mois"), IF($E$37<14,-1000, ))),0))) -> 0.00 | L39: =IF(AND(Année_ref>2020,$I$5="Wallonie"),0,IF(IF(OR($O$5=PTP_BXL,$O$5=PTP_CG),IF(AND($O$9="≥45 ans",$O$10="≥12 mois"), IF($E$37<6,-1000, IF(AND($E$37>5,$E$37<14),-400,0)), IF(AND($O$9="≥45 ans",$O$10="≥24 mois"), IF($E$37<14,-1000, ))),0)=FALSE,0,IF(OR($O$5=PTP_BXL,$O$5=PTP_CG),IF(AND($O$9="≥45 ans",$O$10="≥12 mois"), IF($E$37<6,-1000, IF(AND($E$37>5,$E$37<14),-400,0)), IF(AND($O$9="≥45 ans",$O$10="≥24 mois"), IF($E$37<14,-1000, ))),0))) -> 0.00 | O39: =IF(AND(Année_ref>2020,$I$5="Wallonie"),0,IF(IF(OR($O$5=PTP_BXL,$O$5=PTP_CG),IF(AND($O$9="≥45 ans",$O$10="≥12 mois"), IF($E$37<6,-1000, IF(AND($E$37>5,$E$37<14),-400,0)), IF(AND($O$9="≥45 ans",$O$10="≥24 mois"), IF($E$37<14,-1000, ))),0)=FALSE,0,IF(OR($O$5=PTP_BXL,$O$5=PTP_CG),IF(AND($O$9="≥45 ans",$O$10="≥12 mois"), IF($E$37<6,-1000, IF(AND($E$37>5,$E$37<14),-400,0)), IF(AND($O$9="≥45 ans",$O$10="≥24 mois"), IF($E$37<14,-1000, ))),0))) -> 0.00
C40: Jours donnant lieu à rémunération à corriger en fonction du RT/sem [5 ou 6] y compris JF | D40: =IF($I$8=5,VLOOKUP(Année_ref,Paramètres!$A$89:$M$92,D$21+1,FALSE),VLOOKUP(Année_ref,Paramètres!$A$95:$M$98,D$21+1,FALSE)) -> 22.00 | E40: =IF($I$8=5,VLOOKUP(Année_ref,Paramètres!$A$89:$M$92,E21+1,FALSE),VLOOKUP(Année_ref,Paramètres!$A$95:$M$98,E21+1,FALSE)) -> 20.00 | F40: =IF($I$8=5,VLOOKUP(Année_ref,Paramètres!$A$89:$M$92,F21+1,FALSE),VLOOKUP(Année_ref,Paramètres!$A$95:$M$98,F21+1,FALSE)) -> 23.00 | G40: =IF($I$8=5,VLOOKUP(Année_ref,Paramètres!$A$89:$M$92,G21+1,FALSE),VLOOKUP(Année_ref,Paramètres!$A$95:$M$98,G21+1,FALSE)) -> 19.00 | H40: =IF($I$8=5,VLOOKUP(Année_ref,Paramètres!$A$89:$M$92,H21+1,FALSE),VLOOKUP(Année_ref,Paramètres!$A$95:$M$98,H21+1,FALSE)) -> 22.00 | I40: =IF($I$8=5,VLOOKUP(Année_ref,Paramètres!$A$89:$M$92,I21+1,FALSE),VLOOKUP(Année_ref,Paramètres!$A$95:$M$98,I21+1,FALSE)) -> 22.00 | J40: =IF($I$8=5,VLOOKUP(Année_ref,Paramètres!$A$89:$M$92,J21+1,FALSE),VLOOKUP(Année_ref,Paramètres!$A$95:$M$98,J21+1,FALSE)) -> 20.00 | K40: =IF($I$8=5,VLOOKUP(Année_ref,Paramètres!$A$89:$M$92,K21+1,FALSE),VLOOKUP(Année_ref,Paramètres!$A$95:$M$98,K21+1,FALSE)) -> 22.00 | L40: =IF($I$8=5,VLOOKUP(Année_ref,Paramètres!$A$89:$M$92,L21+1,FALSE),VLOOKUP(Année_ref,Paramètres!$A$95:$M$98,L21+1,FALSE)) -> 20.00 | M40: =IF($I$8=5,VLOOKUP(Année_ref,Paramètres!$A$89:$M$92,M21+1,FALSE),VLOOKUP(Année_ref,Paramètres!$A$95:$M$98,M21+1,FALSE)) -> 22.00 | N40: =IF($I$8=5,VLOOKUP(Année_ref,Paramètres!$A$89:$M$92,N21+1,FALSE),VLOOKUP(Année_ref,Paramètres!$A$95:$M$98,N21+1,FALSE)) -> 20.00 | O40: =IF($I$8=5,VLOOKUP(Année_ref,Paramètres!$A$89:$M$92,O21+1,FALSE),VLOOKUP(Année_ref,Paramètres!$A$95:$M$98,O21+1,FALSE)) -> 20.00
C41: Jours prestés | D41: =IF($I$6="",0,IF(AND($I$6="Ouvrier",MONTH($I$13)=D$21),0,ROUND(D$40*D$20*D$19/Régime_de_travail_temps_plein,0))) -> 22.00 | E41: 20.00 | F41: 23.00 | G41: 19.00 | H41: =IF($I$6="",0,IF(AND($I$6="Ouvrier",MONTH($I$13)=H$21),0,ROUND(H$40*H$20*H$19/Régime_de_travail_temps_plein,0))) -> 22.00 | I41: 22.00 | J41: 20.00 | K41: 22.00 | L41: 20.00 | M41: 22.00 | N41: 20.00 | O41: 20.00
C42: µ = fraction de prestation | F42: =IF(SUM(D$41:F$41)/(13*$I$8)>1,1,SUM(D$41:F$41)/(13*$I$8)) -> 1.00 | I42: =IF(SUM(G$41:I$41)/(13*$I$8)>1,1,SUM(G$41:I$41)/(13*$I$8)) -> 0.97 | L42: =IF(SUM(J$41:L$41)/(13*$I$8)>1,1,SUM(J$41:L$41)/(13*$I$8)) -> 0.95 | O42: =IF(SUM(M$41:O$41)/(13*$I$8)>1,1,SUM(M$41:O$41)/(13*$I$8)) -> 0.95
C43: ßg = facteur fixe de multiplication GC | F43: =IF(F$42<0.275,0,IF(F$42<0.55,1, IF(AND(F$42>=0.55,F$42<0.8),1+((F$42-0.55)),1/F$42))) -> 1.00 | I43: =IF(I$42<0.275,0,IF(I$42<0.55,1, IF(AND(I$42>=0.55,I$42<0.8),1+((I$42-0.55)),1/I$42))) -> 1.03 | L43: =IF(L$42<0.275,0,IF(L$42<0.55,1, IF(AND(L$42>=0.55,L$42<0.8),1+((L$42-0.55)),1/L$42))) -> 1.05 | O43: =IF(O$42<0.275,0,IF(O$42<0.55,1, IF(AND(O$42>=0.55,O$42<0.8),1+((O$42-0.55)),1/O$42))) -> 1.05
C44: ßs = Facteur fixe de multiplication RS | F44: =IF(F$42<0.275,0,IF(F$42<0.55,1.18, IF(AND(F$42>=0.55,F$42<0.8),1.18+((F$42-0.55)*0.28),1/F$42))) -> 1.00 | I44: =IF(I$42<0.275,0,IF(I$42<0.55,1.18, IF(AND(I$42>=0.55,I$42<0.8),1.18+((I$42-0.55)*0.28),1/I$42))) -> 1.03 | L44: =IF(L$42<0.275,0,IF(L$42<0.55,1.18, IF(AND(L$42>=0.55,L$42<0.8),1.18+((L$42-0.55)*0.28),1/L$42))) -> 1.05 | O44: =IF(O$42<0.275,0,IF(O$42<0.55,1.18, IF(AND(O$42>=0.55,O$42<0.8),1.18+((O$42-0.55)*0.28),1/O$42))) -> 1.05
C45: S= Salaire trimestriel de référence | F45: =IF(SUM(D$41:F$41)=0,0,F$46*(13*$I$8/SUM(D$41:F$41))) -> 0.00 | I45: =IF(SUM(G$41:I$41)=0,0,I$46*(13*$I$8/SUM(G$41:I$41))) -> 0.00 | L45: =IF(SUM(J$41:L$41)=0,0,L$46*(13*$I$8/SUM(J$41:L$41))) -> 0.00 | O45: =IF(SUM(M$41:O$41)=0,0,O$46*(13*$I$8/SUM(M$41:O$41))) -> 0.00
C46: W= Masse salariale trimestrielle | F46: =SUM(D$23:F$23)+SUM(D$28:F$28) -> 0.00 | I46: =SUM(G$23:I$23)+SUM(G$28:I$28) -> 0.00 | L46: =SUM(J$23:L$23)+SUM(J$28:L$28) -> 0.00 | O46: =SUM(M$23:O$23)+SUM(M$28:O$28)+IF($O$30="Complétez",0,$O$30) -> 0.00
C47: Cotisation patronale disponible – Maribel | F47: =IF(F$42>0.49, _xlfn.SWITCH(Année_ref,2022,MAX((F$35-Réd_MS_2022),0),2023,MAX((F$35-Réd_MS_2023),0),2024,MAX((F$35-Réd_MS_2024),0) ),0) -> 0.00 | I47: =IF(I$42>0.49, _xlfn.SWITCH(Année_ref,2022,MAX((I$35-Réd_MS_2022),0),2023,MAX((I$35-Réd_MS_2023),0),2024,MAX((I$35-Réd_MS_2024),0) ),0) -> 0.00 | L47: =IF(L$42>0.49, _xlfn.SWITCH(Année_ref,2022,MAX((L$35-Réd_MS_2022),0),2023,MAX((L$35-Réd_MS_2023),0),2024,MAX((L$35-Réd_MS_2024),0) ),0) -> 0.00 | O47: =IF(O$42>0.49, _xlfn.SWITCH(Année_ref,2022,MAX((O$35-Réd_MS_2022),0),2023,MAX((O$35-Réd_MS_2023),0),2024,MAX((O$35-Réd_MS_2024),0) ),0) -> 0.00
C48: Réduction structurelle | F48: =IF(OR($O$5="ACS",$O$5="APE en RBC",LEFT($O$5,3)="PTP"),0, _xlfn.SWITCH(Année_ref,2022,Forfait_2022+IF(F$45<Borne_BS_2022, Coeff_BS*(Borne_BS_2022-F$45),0)+IF(F$45<Borne_TBS_2022, Coeff_TBS*(Borne_TBS_2022-F$45),0)+IF(F$46-Borne_HS_2022>0, Coeff_HS*(F$46-Borne_HS_2022),0), 2023,Forfait_2023+IF(F$45<Borne_BS_2023,Coeff_BS*(Borne_BS_2023-F$45),0)+IF(F$45<Borne_TBS_2023,Coeff_TBS*(Borne_TBS_2023-F$45),0)+IF(F$46-Borne_HS_2023>0,Coeff_HS*(F$46-Borne_HS_2023),0), 2024,Forfait_2024+IF(F$45<Borne_BS_2024,Coeff_BS*(Borne_BS_2024-F$45),0)+IF(F$45<Borne_TBS_2024,Coeff_TBS*(Borne_TBS_2024-F$45),0)+IF(F$46-Borne_HS_2024>0,Coeff_HS*(F$46-Borne_HS_2024),0),0)) -> 4,599.30 | I48: =IF(OR($O$5="ACS",$O$5="APE en RBC",LEFT($O$5,3)="PTP"),0, _xlfn.SWITCH(Année_ref,2022,Forfait_2022+IF(I$45<Borne_BS_2022, Coeff_BS*(Borne_BS_2022-I$45),0)+IF(I$45<Borne_TBS_2022, Coeff_TBS*(Borne_TBS_2022-I$45),0)+IF(I$46-Borne_HS_2022>0, Coeff_HS*(I$46-Borne_HS_2022),0), 2023,Forfait_2023+IF(I$45<Borne_BS_2023,Coeff_BS*(Borne_BS_2023-I$45),0)+IF(I$45<Borne_TBS_2023,Coeff_TBS*(Borne_TBS_2023-I$45),0)+IF(I$46-Borne_HS_2023>0,Coeff_HS*(I$46-Borne_HS_2023),0), 2024,Forfait_2024+IF(I$45<Borne_BS_2024,Coeff_BS*(Borne_BS_2024-I$45),0)+IF(I$45<Borne_TBS_2024,Coeff_TBS*(Borne_TBS_2024-I$45),0)+IF(I$46-Borne_HS_2024>0,Coeff_HS*(I$46-Borne_HS_2024),0),0)) -> 4,599.30 | L48: =IF(OR($O$5="ACS",$O$5="APE en RBC",LEFT($O$5,3)="PTP"),0, _xlfn.SWITCH(Année_ref,2022,Forfait_2022+IF(L$45<Borne_BS_2022, Coeff_BS*(Borne_BS_2022-L$45),0)+IF(L$45<Borne_TBS_2022, Coeff_TBS*(Borne_TBS_2022-L$45),0)+IF(L$46-Borne_HS_2022>0, Coeff_HS*(L$46-Borne_HS_2022),0), 2023,Forfait_2023+IF(L$45<Borne_BS_2023,Coeff_BS*(Borne_BS_2023-L$45),0)+IF(L$45<Borne_TBS_2023,Coeff_TBS*(Borne_TBS_2023-L$45),0)+IF(L$46-Borne_HS_2023>0,Coeff_HS*(L$46-Borne_HS_2023),0), 2024,Forfait_2024+IF(L$45<Borne_BS_2024,Coeff_BS*(Borne_BS_2024-L$45),0)+IF(L$45<Borne_TBS_2024,Coeff_TBS*(Borne_TBS_2024-L$45),0)+IF(L$46-Borne_HS_2024>0,Coeff_HS*(L$46-Borne_HS_2024),0),0)) -> 4,599.30 | O48: =IF(OR($O$5="ACS",$O$5="APE en RBC",LEFT($O$5,3)="PTP"),0, _xlfn.SWITCH(Année_ref,2022,Forfait_2022+IF(O$45<Borne_BS_2022, Coeff_BS*(Borne_BS_2022-O$45),0)+IF(O$45<Borne_TBS_2022, Coeff_TBS*(Borne_TBS_2022-O$45),0)+IF(O$46-Borne_HS_2022>0, Coeff_HS*(O$46-Borne_HS_2022),0), 2023,Forfait_2023+IF(O$45<Borne_BS_2023,Coeff_BS*(Borne_BS_2023-O$45),0)+IF(O$45<Borne_TBS_2023,Coeff_TBS*(Borne_TBS_2023-O$45),0)+IF(O$46-Borne_HS_2023>0,Coeff_HS*(O$46-Borne_HS_2023),0), 2024,Forfait_2024+IF(O$45<Borne_BS_2024,Coeff_BS*(Borne_BS_2024-O$45),0)+IF(O$45<Borne_TBS_2024,Coeff_TBS*(Borne_TBS_2024-O$45),0)+IF(O$46-Borne_HS_2024>0,Coeff_HS*(O$46-Borne_HS_2024),0),0)) -> 4,599.30
C49: Estimation réduction structurelle avec fraction de prestation | F49: =-IF($I$8=0,0,IF(F$48*F$44*F$42<F$47,F$48*F$44*F$42,F$47)) -> 0.00 | I49: =IF($I$8=0,0,-IF(I$48*I$44*I$42<I$47,I$48*I$44*I$42,I$47)) -> 0.00 | L49: =IF($I$8=0,0,-IF(L$48*L$44*L$42<L$47,L$48*L$44*L$42,L$47)) -> 0.00 | O49: =IF($I$8=0,0,-IF(O$48*O$44*O$42<O$47,O$48*O$44*O$42,O$47)) -> 0.00 | P49: =SUM(D49:O49) -> 0.00
C50: Réduction cotisation patronales PTP pleine | F50: =SUM(F37:F39)*F$42*F$43 -> 0.00 | I50: =SUM(I37:I39)*I$42*I$43 -> 0.00 | L50: =SUM(L37:L39)*L$42*L$43 -> 0.00 | O50: =SUM(O37:O39)*O$42*O$43 -> 0.00
C51: Réduction cotisation patronales PTP adaptée au montant disponible | F51: =IF(LEFT($O$5,3)="PTP",IF(F$36+F$49<-F$50,-(F$36+F$49),F$50),0) -> 0.00 | I51: =IF(LEFT($O$5,3)="PTP",IF(I$36+I$49<-I$50,-(I$36+I$49),I$50),0) -> 0.00 | L51: =IF(LEFT($O$5,3)="PTP",IF(L$36+L$49<-L$50,-(L$36+L$49),L$50),0) -> 0.00 | O51: =IF(LEFT($O$5,3)="PTP",IF(O$36+O$49<-O$50,-(O$36+O$49),O$50),0) -> 0.00 | P51: =SUM(D51:O51) -> 0.00
C52: Réductions ou Activations Aides à l'emploi à partir du 1-10-2017 [montant négatif] | P52: 0.00
C53: Réductions ou Activations découlant des systèmes précédents [montant négatif] | P53: 0.00
C54: Déplacements domicile lieu de travail | D54: 27.00 | E54: =IF(MONTH($I$13)=E$21,0,$D$54) -> 27.00 | F54: 27.00 | G54: 27.00 | H54: 27.00 | I54: 27.00 | J54: 27.00 | K54: 0.00 | L54: 27.00 | M54: 27.00 | N54: 27.00 | O54: 27.00 | P54: 297.00 | Q54: <= Si forfait annuel, encodez ici
C55: Remboursement forfaitaire de frais figurant sur la fiche de paie | D55: 0.00 | E55: =IF(MONTH($I$13)=E$21,0,$D$55) -> 0.00 | F55: 0.00 | G55: 0.00 | H55: 0.00 | I55: 0.00 | J55: 0.00 | K55: 0.00 | L55: 0.00 | M55: 0.00 | N55: 0.00 | O55: 0.00 | P55: 0.00
C56: Remboursement forfaitaire de frais dédiés (gsm, internet… figurant sur la fiche de paie) | D56: 0.00 | E56: =IF(MONTH($I$13)=E$21,0,$D$56) -> 0.00 | F56: 0.00 | G56: 0.00 | H56: 0.00 | I56: 0.00 | J56: 0.00 | K56: 0.00 | L56: 0.00 | M56: 0.00 | N56: 0.00 | O56: 0.00 | P56: 0.00
C57: Nombre titres-repas [régime 5 jours; à corriger pour rég. 6 jours et vérifier pour <38h] | D57: =IF(Part_patronale_TR=0,0,IF($I$7=0,0,IF(MONTH($I$13)=D$21,0,ROUNDUP(D40*$D19/Régime_de_travail_temps_plein*D$20,0)))) -> 22 | E57: 20 | F57: 23 | G57: 19 | H57: 22 | I57: 22 | J57: 20 | K57: 0 | L57: 20 | M57: 22 | N57: 20 | O57: 20
C58: Part patronale sur titres-repas | D58: =IF(Part_patronale_TR=0,0,Part_patronale_TR*D$57) -> 130.02 | E58: 118.20 | F58: 135.93 | G58: 112.29 | H58: 130.02 | I58: 130.02 | J58: 118.20 | K58: 0.00 | L58: 118.20 | M58: 130.02 | N58: 118.20 | O58: 118.20 | P58: =SUM(D58:O58) -> 1,359.30
C59: Part patronale sur autre avantage extra-légal (ass. extra-légale, écochèques…) | P59: =SUM(D59:O59) -> 0.00
C60: Montant des cotisations sur avantage extra-légal | P60: =SUM(D60:O60) -> 0.00
C61: Pécule de sortie éventuel | P61: =SUM(D61:O61) -> 0.00
C62: Autre | P62: =SUM(D62:O62) -> 0.00
O63: Coût total | P63: =SUM(P22:P62) -> 1,656.30
O64: Brut total | P64: =P22+P28+P29+P30+P31+P32+P61 -> 0.00
C66: ="Part de la facture vacances ouvriers ONSS à payer en 04-"&Année_ref+1& " [ouvriers uniquement]" -> Part de la facture vacances ouvriers ONSS à payer en 04-2024 [ouvriers uniquement] | P66: =IF($I$6=Ouvrier,(P22+P23+P30+P31+P32)*48/52*108%*10.27%,0) -> 0.00
C68: Produits | D68: =Paramètres!C115 -> 00:00:00 | E68: 2017-02-01 | F68: 2017-03-01 | G68: 2017-04-01 | H68: 2017-05-01 | I68: 2017-06-01 | J68: 2017-07-01 | K68: 2017-08-01 | L68: 2017-09-01 | M68: 2017-10-01 | N68: 2017-11-01 | O68: 2017-12-01 | P68: TOTAL
C69: Subventions à l'emploi ACS ou APE… à compléter | P69: =SUM(D69:O69) -> 0.00
C70: Subvention Maribel 329.02 | D70: =IF(AND($O$5="Maribel",CP="329.02"),VLOOKUP('Données association'!$B$3,Paramètres!$I$29:$J$33,2,FALSE)/12*D19/Régime_de_travail_temps_plein*D20,0) -> 3,581.50 | E70: =IF(AND($O$5="Maribel",CP="329.02"),VLOOKUP('Données association'!$B$3,Paramètres!$I$29:$J$33,2,FALSE)/12*E19/Régime_de_travail_temps_plein*E20,0) -> 3,581.50 | F70: =IF(AND($O$5="Maribel",CP="329.02"),VLOOKUP('Données association'!$B$3,Paramètres!$I$29:$J$33,2,FALSE)/12*F19/Régime_de_travail_temps_plein*F20,0) -> 3,581.50 | G70: =IF(AND($O$5="Maribel",CP="329.02"),VLOOKUP('Données association'!$B$3,Paramètres!$I$29:$J$33,2,FALSE)/12*G19/Régime_de_travail_temps_plein*G20,0) -> 3,581.50 | H70: =IF(AND($O$5="Maribel",CP="329.02"),VLOOKUP('Données association'!$B$3,Paramètres!$I$29:$J$33,2,FALSE)/12*H19/Régime_de_travail_temps_plein*H20,0) -> 3,581.50 | I70: =IF(AND($O$5="Maribel",CP="329.02"),VLOOKUP('Données association'!$B$3,Paramètres!$I$29:$J$33,2,FALSE)/12*I19/Régime_de_travail_temps_plein*I20,0) -> 3,581.50 | J70: =IF(AND($O$5="Maribel",CP="329.02"),VLOOKUP('Données association'!$B$3,Paramètres!$I$29:$J$33,2,FALSE)/12*J19/Régime_de_travail_temps_plein*J20,0) -> 3,581.50 | K70: =IF(AND($O$5="Maribel",CP="329.02"),VLOOKUP('Données association'!$B$3,Paramètres!$I$29:$J$33,2,FALSE)/12*K19/Régime_de_travail_temps_plein*K20,0) -> 3,581.50 | L70: =IF(AND($O$5="Maribel",CP="329.02"),VLOOKUP('Données association'!$B$3,Paramètres!$I$29:$J$33,2,FALSE)/12*L19/Régime_de_travail_temps_plein*L20,0) -> 3,581.50 | M70: =IF(AND($O$5="Maribel",CP="329.02"),VLOOKUP('Données association'!$B$3,Paramètres!$I$29:$J$33,2,FALSE)/12*M19/Régime_de_travail_temps_plein*M20,0) -> 3,581.50 | N70: =IF(AND($O$5="Maribel",CP="329.02"),VLOOKUP('Données association'!$B$3,Paramètres!$I$29:$J$33,2,FALSE)/12*N19/Régime_de_travail_temps_plein*N20,0) -> 3,581.50 | O70: =IF(AND($O$5="Maribel",CP="329.02"),VLOOKUP('Données association'!$B$3,Paramètres!$I$29:$J$33,2,FALSE)/12*O19/Régime_de_travail_temps_plein*O20,0) -> 3,581.50
C71: Subvention Maribel 329.03 | D71: =IF(AND($O$5="Maribel",CP="329.03"),VLOOKUP(Paramètres!$I$42:$J$46,Année_ref,2,FALSE)/12*D20/Régime_de_travail_temps_plein*D21,0) -> 0.00 | E71: =IF(AND($O$5="Maribel",CP="329.03"),VLOOKUP(Paramètres!$I$42:$J$46,Année_ref,2,FALSE)/12*E20/Régime_de_travail_temps_plein*E21,0) -> 0.00 | F71: =IF(AND($O$5="Maribel",CP="329.03"),VLOOKUP(Paramètres!$I$42:$J$46,Année_ref,2,FALSE)/12*F20/Régime_de_travail_temps_plein*F21,0) -> 0.00 | G71: =IF(AND($O$5="Maribel",CP="329.03"),VLOOKUP(Paramètres!$I$42:$J$46,Année_ref,2,FALSE)/12*G20/Régime_de_travail_temps_plein*G21,0) -> 0.00 | H71: =IF(AND($O$5="Maribel",CP="329.03"),VLOOKUP(Paramètres!$I$42:$J$46,Année_ref,2,FALSE)/12*H20/Régime_de_travail_temps_plein*H21,0) -> 0.00 | I71: =IF(AND($O$5="Maribel",CP="329.03"),VLOOKUP(Paramètres!$I$42:$J$46,Année_ref,2,FALSE)/12*I20/Régime_de_travail_temps_plein*I21,0) -> 0.00 | J71: =IF(AND($O$5="Maribel",CP="329.03"),VLOOKUP(Paramètres!$I$42:$J$46,Année_ref,2,FALSE)/12*J20/Régime_de_travail_temps_plein*J21,0) -> 0.00 | K71: =IF(AND($O$5="Maribel",CP="329.03"),VLOOKUP(Paramètres!$I$42:$J$46,Année_ref,2,FALSE)/12*K20/Régime_de_travail_temps_plein*K21,0) -> 0.00 | L71: =IF(AND($O$5="Maribel",CP="329.03"),VLOOKUP(Paramètres!$I$42:$J$46,Année_ref,2,FALSE)/12*L20/Régime_de_travail_temps_plein*L21,0) -> 0.00 | M71: =IF(AND($O$5="Maribel",CP="329.03"),VLOOKUP(Paramètres!$I$42:$J$46,Année_ref,2,FALSE)/12*M20/Régime_de_travail_temps_plein*M21,0) -> 0.00 | N71: =IF(AND($O$5="Maribel",CP="329.03"),VLOOKUP(Paramètres!$I$42:$J$46,Année_ref,2,FALSE)/12*N20/Régime_de_travail_temps_plein*N21,0) -> 0.00 | O71: =IF(AND($O$5="Maribel",CP="329.03"),VLOOKUP(Paramètres!$I$42:$J$46,Année_ref,2,FALSE)/12*O20/Régime_de_travail_temps_plein*O21,0) -> 0.00
C72: Subvention Maribel [Valeur comptable ≠ avances du Fonds] | D72: =SUM(D$70:D$71) -> 3,581.50 | E72: =SUM(E$70:E$71) -> 3,581.50 | F72: 3,581.50 | G72: 3,581.50 | H72: 3,581.50 | I72: 3,581.50 | J72: 3,581.50 | K72: 3,581.50 | L72: 3,581.50 | M72: 3,581.50 | N72: 3,581.50 | O72: 3,581.50 | P72: =IF(SUM(D72:O72)>(P22+P29+P30+P36+P49+P54),(P22+P29+P30+P36+P49+P54), SUM(D72:O72)) -> 297.00 | Q72: <=Ajusté aux dépenses admissibles
P73: =SUM(P69:P72) -> 297.00
A75: INSTRUCTIONS
A76: Seules les cases vertes et orangées sont modifiables.
A77: Le remplissage des cases vertes clair est indispensable aux calculs.
A78: Il n'est nécessaire de modifier les cases vert sombres que si vos montants ne correspondent pas aux données.
A80: NOTE IMPORTANTE SUR LES BARÈMES
A81: Si vous n'appliquez aucun barème ou des barèmes spécifiques à votre association,
A82: => vous devez choisir "Autres" dans les Données association";
A83: => vous devez choisir "Autre" pour l'échelon du travailleur;
A84: => vous devez compléter toutes les cases vert sombre correspondant au brut mensuel pour chaque mois de l'année.
A85: Les augmentations liées à l'ancienneté ne sont pas automatiquement prises en compte.

Sheet Aides (hidden)
A1: Aides
A2: Fédérales
B3: Premiers engagements
C4: Début contrat
C5: N° ordre
C6: S'applique sur le solde après réductions structurelles et déduction Maribel
C7: Proratisation temps partiels
C8: Cumulables ?
B10: RTT
C11: Régime de travail diminué
C12: Semaine de 4 jours
D13: Uniquement pour travailleurs à temps plein [4J]
C14: =C8 -> Cumulables ?
A16: RW | B16: 2017-07-01
B17: Impulsion –25 ans | D17: accessible aux wallons (résidence)
C18: Début du contrat
C19: Fin du contrat
C20: Catégorie de travailleurs
C21: Cumulable à tout
C22: Vérifier temps partiels
B24: Artistes
C25: Vérifier proratisation
C26: Cumulable Maribel et Rstru
A29: RB | B29: 2017-10-01
B30: Activa Bxl –30 | C30: accessible aux bruxellois (résidence)
C31: Début et fin
B33: Activa chercheur emploi
C34: =C31 -> Début et fin
B35: Activa >57 ans
C36: =C31 -> Début et fin
B39: GC Trav. Âgés >57
C40: âge du travailleur
C41: =C43 -> Cumulable ?
B42: GC Tuteurs
C43: Cumulable ?
A45: PTP
B46: RW
C47: Début & fin
C48: Prendre marge basse
C49: Cumulable ?
B50: RB
C51: V FeBISP

Sheet Barèmes RW % 01-2022 (hidden)
A1: Ancienneté | B1: Échelon 1 | C1: Échelon 2 | D1: Échelon 3 | E1: Échelon 4.1 | F1: Échelon 4.2 | G1: Échelon 5 | H1: Échelon 6 | J1: Région wallonne avec % au 1/01/2022
A2: 0 | B2: ='Barèmes RW 01-2022'!B2*$K$3 -> 1,814.69 € | C2: ='Barèmes RW 01-2022'!C2*$K$3 -> 1,988.18 € | D2: ='Barèmes RW 01-2022'!D2*$K$3 -> 2,248.03 € | E2: ='Barèmes RW 01-2022'!E2*$K$3 -> 2,436.31 € | F2: ='Barèmes RW 01-2022'!F2*$K$3 -> 2,874.68 € | G2: ='Barèmes RW 01-2022'!G2*$K$3 -> 3,141.37 € | H2: ='Barèmes RW 01-2022'!H2*$K$3 -> 3,281.00 € | J2: Base | K2: 2022-04-01
A3: 1 | B3: ='Barèmes RW 01-2022'!B3*$K$3 -> 1,966.66 € | C3: ='Barèmes RW 01-2022'!C3*$K$3 -> 2,145.33 € | D3: ='Barèmes RW 01-2022'!D3*$K$3 -> 2,418.83 € | E3: ='Barèmes RW 01-2022'!E3*$K$3 -> 2,613.66 € | F3: ='Barèmes RW 01-2022'!F3*$K$3 -> 3,022.08 € | G3: ='Barèmes RW 01-2022'!G3*$K$3 -> 3,265.74 € | H3: ='Barèmes RW 01-2022'!H3*$K$3 -> 3,441.79 € | J3: Pourcentage retenu | K3: =IF(ISNUMBER('Données association'!B20),'Données association'!B20,1) -> 100.00%
A4: 2 | B4: ='Barèmes RW 01-2022'!B4*$K$3 -> 1,977.03 € | C4: ='Barèmes RW 01-2022'!C4*$K$3 -> 2,165.99 € | D4: ='Barèmes RW 01-2022'!D4*$K$3 -> 2,418.83 € | E4: ='Barèmes RW 01-2022'!E4*$K$3 -> 2,613.66 € | F4: ='Barèmes RW 01-2022'!F4*$K$3 -> 3,022.08 € | G4: ='Barèmes RW 01-2022'!G4*$K$3 -> 3,265.74 € | H4: ='Barèmes RW 01-2022'!H4*$K$3 -> 3,441.79 €
A5: 3 | B5: ='Barèmes RW 01-2022'!B5*$K$3 -> 1,987.33 € | C5: ='Barèmes RW 01-2022'!C5*$K$3 -> 2,186.61 € | D5: ='Barèmes RW 01-2022'!D5*$K$3 -> 2,527.65 € | E5: ='Barèmes RW 01-2022'!E5*$K$3 -> 2,748.52 € | F5: ='Barèmes RW 01-2022'!F5*$K$3 -> 3,129.28 € | G5: ='Barèmes RW 01-2022'!G5*$K$3 -> 3,356.62 € | H5: ='Barèmes RW 01-2022'!H5*$K$3 -> 3,585.79 €
A6: 4 | B6: ='Barèmes RW 01-2022'!B6*$K$3 -> 1,997.66 € | C6: ='Barèmes RW 01-2022'!C6*$K$3 -> 2,207.30 € | D6: ='Barèmes RW 01-2022'!D6*$K$3 -> 2,527.65 € | E6: ='Barèmes RW 01-2022'!E6*$K$3 -> 2,748.52 € | F6: ='Barèmes RW 01-2022'!F6*$K$3 -> 3,129.28 € | G6: ='Barèmes RW 01-2022'!G6*$K$3 -> 3,356.62 € | H6: ='Barèmes RW 01-2022'!H6*$K$3 -> 3,585.79 €
A7: 5 | B7: ='Barèmes RW 01-2022'!B7*$K$3 -> 2,007.96 € | C7: ='Barèmes RW 01-2022'!C7*$K$3 -> 2,227.95 € | D7: ='Barèmes RW 01-2022'!D7*$K$3 -> 2,641.41 € | E7: ='Barèmes RW 01-2022'!E7*$K$3 -> 2,890.33 € | F7: ='Barèmes RW 01-2022'!F7*$K$3 -> 3,236.40 € | G7: ='Barèmes RW 01-2022'!G7*$K$3 -> 3,447.50 € | H7: ='Barèmes RW 01-2022'!H7*$K$3 -> 3,729.76 €
A8: 6 | B8: ='Barèmes RW 01-2022'!B8*$K$3 -> 2,018.28 € | C8: ='Barèmes RW 01-2022'!C8*$K$3 -> 2,248.58 € | D8: ='Barèmes RW 01-2022'!D8*$K$3 -> 2,641.41 € | E8: ='Barèmes RW 01-2022'!E8*$K$3 -> 2,890.33 € | F8: ='Barèmes RW 01-2022'!F8*$K$3 -> 3,236.40 € | G8: ='Barèmes RW 01-2022'!G8*$K$3 -> 3,447.50 € | H8: ='Barèmes RW 01-2022'!H8*$K$3 -> 3,729.76 €
A9: 7 | B9: ='Barèmes RW 01-2022'!B9*$K$3 -> 2,028.66 € | C9: ='Barèmes RW 01-2022'!C9*$K$3 -> 2,269.27 € | D9: ='Barèmes RW 01-2022'!D9*$K$3 -> 2,760.25 € | E9: ='Barèmes RW 01-2022'!E9*$K$3 -> 3,039.47 € | F9: ='Barèmes RW 01-2022'!F9*$K$3 -> 3,343.61 € | G9: ='Barèmes RW 01-2022'!G9*$K$3 -> 3,538.46 € | H9: ='Barèmes RW 01-2022'!H9*$K$3 -> 3,873.79 €
A10: 8 | B10: ='Barèmes RW 01-2022'!B10*$K$3 -> 2,039.00 € | C10: ='Barèmes RW 01-2022'!C10*$K$3 -> 2,289.91 € | D10: ='Barèmes RW 01-2022'!D10*$K$3 -> 2,760.25 € | E10: ='Barèmes RW 01-2022'!E10*$K$3 -> 3,039.47 € | F10: ='Barèmes RW 01-2022'!F10*$K$3 -> 3,343.61 € | G10: ='Barèmes RW 01-2022'!G10*$K$3 -> 3,538.46 € | H10: ='Barèmes RW 01-2022'!H10*$K$3 -> 3,873.79 €
A11: 9 | B11: ='Barèmes RW 01-2022'!B11*$K$3 -> 2,049.28 € | C11: ='Barèmes RW 01-2022'!C11*$K$3 -> 2,310.54 € | D11: ='Barèmes RW 01-2022'!D11*$K$3 -> 2,884.47 € | E11: ='Barèmes RW 01-2022'!E11*$K$3 -> 3,196.34 € | F11: ='Barèmes RW 01-2022'!F11*$K$3 -> 3,450.72 € | G11: ='Barèmes RW 01-2022'!G11*$K$3 -> 3,629.31 € | H11: ='Barèmes RW 01-2022'!H11*$K$3 -> 4,017.78 €
A12: 10 | B12: ='Barèmes RW 01-2022'!B12*$K$3 -> 2,112.94 € | C12: ='Barèmes RW 01-2022'!C12*$K$3 -> 2,391.58 € | D12: ='Barèmes RW 01-2022'!D12*$K$3 -> 2,884.47 € | E12: ='Barèmes RW 01-2022'!E12*$K$3 -> 3,196.34 € | F12: ='Barèmes RW 01-2022'!F12*$K$3 -> 3,504.34 € | G12: ='Barèmes RW 01-2022'!G12*$K$3 -> 3,682.89 € | H12: ='Barèmes RW 01-2022'!H12*$K$3 -> 4,071.35 €
A13: 11 | B13: ='Barèmes RW 01-2022'!B13*$K$3 -> 2,123.23 € | C13: ='Barèmes RW 01-2022'!C13*$K$3 -> 2,416.38 € | D13: ='Barèmes RW 01-2022'!D13*$K$3 -> 3,014.25 € | E13: ='Barèmes RW 01-2022'!E13*$K$3 -> 3,361.28 € | F13: ='Barèmes RW 01-2022'!F13*$K$3 -> 3,611.46 € | G13: ='Barèmes RW 01-2022'!G13*$K$3 -> 3,773.83 € | H13: ='Barèmes RW 01-2022'!H13*$K$3 -> 4,215.28 €
A14: 12 | B14: ='Barèmes RW 01-2022'!B14*$K$3 -> 2,133.56 € | C14: ='Barèmes RW 01-2022'!C14*$K$3 -> 2,441.18 € | D14: ='Barèmes RW 01-2022'!D14*$K$3 -> 3,014.25 € | E14: ='Barèmes RW 01-2022'!E14*$K$3 -> 3,361.28 € | F14: ='Barèmes RW 01-2022'!F14*$K$3 -> 3,611.46 € | G14: ='Barèmes RW 01-2022'!G14*$K$3 -> 3,773.83 € | H14: ='Barèmes RW 01-2022'!H14*$K$3 -> 4,215.28 €
A15: 13 | B15: ='Barèmes RW 01-2022'!B15*$K$3 -> 2,143.89 € | C15: ='Barèmes RW 01-2022'!C15*$K$3 -> 2,465.95 € | D15: ='Barèmes RW 01-2022'!D15*$K$3 -> 3,149.88 € | E15: ='Barèmes RW 01-2022'!E15*$K$3 -> 3,534.72 € | F15: ='Barèmes RW 01-2022'!F15*$K$3 -> 3,718.65 € | G15: ='Barèmes RW 01-2022'!G15*$K$3 -> 3,864.72 € | H15: ='Barèmes RW 01-2022'!H15*$K$3 -> 4,359.34 €
A16: 14 | B16: ='Barèmes RW 01-2022'!B16*$K$3 -> 2,154.21 € | C16: ='Barèmes RW 01-2022'!C16*$K$3 -> 2,490.69 € | D16: ='Barèmes RW 01-2022'!D16*$K$3 -> 3,149.88 € | E16: ='Barèmes RW 01-2022'!E16*$K$3 -> 3,534.72 € | F16: ='Barèmes RW 01-2022'!F16*$K$3 -> 3,718.65 € | G16: ='Barèmes RW 01-2022'!G16*$K$3 -> 3,864.72 € | H16: ='Barèmes RW 01-2022'!H16*$K$3 -> 4,359.34 €
A17: 15 | B17: ='Barèmes RW 01-2022'!B17*$K$3 -> 2,164.60 € | C17: ='Barèmes RW 01-2022'!C17*$K$3 -> 2,515.48 € | D17: ='Barèmes RW 01-2022'!D17*$K$3 -> 3,253.87 € | E17: ='Barèmes RW 01-2022'!E17*$K$3 -> 3,676.06 € | F17: ='Barèmes RW 01-2022'!F17*$K$3 -> 3,825.77 € | G17: ='Barèmes RW 01-2022'!G17*$K$3 -> 3,955.61 € | H17: ='Barèmes RW 01-2022'!H17*$K$3 -> 4,503.33 €
A18: 16 | B18: ='Barèmes RW 01-2022'!B18*$K$3 -> 2,174.95 € | C18: ='Barèmes RW 01-2022'!C18*$K$3 -> 2,540.27 € | D18: ='Barèmes RW 01-2022'!D18*$K$3 -> 3,253.87 € | E18: ='Barèmes RW 01-2022'!E18*$K$3 -> 3,676.06 € | F18: ='Barèmes RW 01-2022'!F18*$K$3 -> 3,825.77 € | G18: ='Barèmes RW 01-2022'!G18*$K$3 -> 3,955.61 € | H18: ='Barèmes RW 01-2022'!H18*$K$3 -> 4,503.33 €
A19: 17 | B19: ='Barèmes RW 01-2022'!B19*$K$3 -> 2,185.20 € | C19: ='Barèmes RW 01-2022'!C19*$K$3 -> 2,565.06 € | D19: ='Barèmes RW 01-2022'!D19*$K$3 -> 3,305.54 € | E19: ='Barèmes RW 01-2022'!E19*$K$3 -> 3,823.13 € | F19: ='Barèmes RW 01-2022'!F19*$K$3 -> 3,932.93 € | G19: ='Barèmes RW 01-2022'!G19*$K$3 -> 4,046.51 € | H19: ='Barèmes RW 01-2022'!H19*$K$3 -> 4,647.31 €
A20: 18 | B20: ='Barèmes RW 01-2022'!B20*$K$3 -> 2,195.55 € | C20: ='Barèmes RW 01-2022'!C20*$K$3 -> 2,589.82 € | D20: ='Barèmes RW 01-2022'!D20*$K$3 -> 3,305.54 € | E20: ='Barèmes RW 01-2022'!E20*$K$3 -> 3,823.13 € | F20: ='Barèmes RW 01-2022'!F20*$K$3 -> 3,932.93 € | G20: ='Barèmes RW 01-2022'!G20*$K$3 -> 4,046.51 € | H20: ='Barèmes RW 01-2022'!H20*$K$3 -> 4,647.31 €
A21: 19 | B21: ='Barèmes RW 01-2022'!B21*$K$3 -> 2,205.89 € | C21: ='Barèmes RW 01-2022'!C21*$K$3 -> 2,614.62 € | D21: ='Barèmes RW 01-2022'!D21*$K$3 -> 3,385.92 € | E21: ='Barèmes RW 01-2022'!E21*$K$3 -> 3,976.00 € | F21: ='Barèmes RW 01-2022'!F21*$K$3 -> 4,040.09 € | G21: ='Barèmes RW 01-2022'!G21*$K$3 -> 4,137.40 € | H21: ='Barèmes RW 01-2022'!H21*$K$3 -> 4,791.32 €
A22: 20 | B22: ='Barèmes RW 01-2022'!B22*$K$3 -> 2,216.24 € | C22: ='Barèmes RW 01-2022'!C22*$K$3 -> 2,639.39 € | D22: ='Barèmes RW 01-2022'!D22*$K$3 -> 3,385.92 € | E22: ='Barèmes RW 01-2022'!E22*$K$3 -> 3,976.00 € | F22: ='Barèmes RW 01-2022'!F22*$K$3 -> 4,040.09 € | G22: ='Barèmes RW 01-2022'!G22*$K$3 -> 4,137.40 € | H22: ='Barèmes RW 01-2022'!H22*$K$3 -> 4,791.32 €
A23: 21 | B23: ='Barèmes RW 01-2022'!B23*$K$3 -> 2,226.54 € | C23: ='Barèmes RW 01-2022'!C23*$K$3 -> 2,664.12 € | D23: ='Barèmes RW 01-2022'!D23*$K$3 -> 3,466.28 € | E23: ='Barèmes RW 01-2022'!E23*$K$3 -> 4,051.17 € | F23: ='Barèmes RW 01-2022'!F23*$K$3 -> 4,147.28 € | G23: ='Barèmes RW 01-2022'!G23*$K$3 -> 4,228.30 € | H23: ='Barèmes RW 01-2022'!H23*$K$3 -> 4,935.29 €
A24: 22 | B24: ='Barèmes RW 01-2022'!B24*$K$3 -> 2,236.89 € | C24: ='Barèmes RW 01-2022'!C24*$K$3 -> 2,688.91 € | D24: ='Barèmes RW 01-2022'!D24*$K$3 -> 3,466.28 € | E24: ='Barèmes RW 01-2022'!E24*$K$3 -> 4,051.17 € | F24: ='Barèmes RW 01-2022'!F24*$K$3 -> 4,147.28 € | G24: ='Barèmes RW 01-2022'!G24*$K$3 -> 4,228.30 € | H24: ='Barèmes RW 01-2022'!H24*$K$3 -> 4,935.29 €
A25: 23 | B25: ='Barèmes RW 01-2022'!B25*$K$3 -> 2,247.20 € | C25: ='Barèmes RW 01-2022'!C25*$K$3 -> 2,713.72 € | D25: ='Barèmes RW 01-2022'!D25*$K$3 -> 3,546.65 € | E25: ='Barèmes RW 01-2022'!E25*$K$3 -> 4,131.58 € | F25: ='Barèmes RW 01-2022'!F25*$K$3 -> 4,254.39 € | G25: ='Barèmes RW 01-2022'!G25*$K$3 -> 4,319.22 € | H25: ='Barèmes RW 01-2022'!H25*$K$3 -> 5,079.29 €
A26: 24 | B26: ='Barèmes RW 01-2022'!B26*$K$3 -> 2,257.55 € | C26: ='Barèmes RW 01-2022'!C26*$K$3 -> 2,738.52 € | D26: ='Barèmes RW 01-2022'!D26*$K$3 -> 3,546.65 € | E26: ='Barèmes RW 01-2022'!E26*$K$3 -> 4,131.58 € | F26: ='Barèmes RW 01-2022'!F26*$K$3 -> 4,254.39 € | G26: ='Barèmes RW 01-2022'!G26*$K$3 -> 4,319.22 € | H26: ='Barèmes RW 01-2022'!H26*$K$3 -> 5,079.29 €
A27: 25 | B27: ='Barèmes RW 01-2022'!B27*$K$3 -> 2,267.89 € | C27: ='Barèmes RW 01-2022'!C27*$K$3 -> 2,763.28 € | D27: ='Barèmes RW 01-2022'!D27*$K$3 -> 3,627.04 € | E27: ='Barèmes RW 01-2022'!E27*$K$3 -> 4,211.91 € | F27: ='Barèmes RW 01-2022'!F27*$K$3 -> 4,361.57 € | G27: ='Barèmes RW 01-2022'!G27*$K$3 -> 4,410.14 € | H27: ='Barèmes RW 01-2022'!H27*$K$3 -> 5,079.29 €
A28: 26 | B28: ='Barèmes RW 01-2022'!B28*$K$3 -> 2,278.22 € | C28: ='Barèmes RW 01-2022'!C28*$K$3 -> 2,788.04 € | D28: ='Barèmes RW 01-2022'!D28*$K$3 -> 3,627.04 € | E28: ='Barèmes RW 01-2022'!E28*$K$3 -> 4,211.91 € | F28: ='Barèmes RW 01-2022'!F28*$K$3 -> 4,361.57 € | G28: ='Barèmes RW 01-2022'!G28*$K$3 -> 4,410.14 € | H28: ='Barèmes RW 01-2022'!H28*$K$3 -> 5,079.29 €
A29: 27 | B29: ='Barèmes RW 01-2022'!B29*$K$3 -> 2,288.55 € | C29: ='Barèmes RW 01-2022'!C29*$K$3 -> 2,812.86 € | D29: ='Barèmes RW 01-2022'!D29*$K$3 -> 3,707.36 € | E29: ='Barèmes RW 01-2022'!E29*$K$3 -> 4,292.24 € | F29: ='Barèmes RW 01-2022'!F29*$K$3 -> 4,468.70 € | G29: ='Barèmes RW 01-2022'!G29*$K$3 -> 4,500.99 € | H29: ='Barèmes RW 01-2022'!H29*$K$3 -> 5,079.29 €
A30: 28 | B30: ='Barèmes RW 01-2022'!B30*$K$3 -> 2,288.55 € | C30: ='Barèmes RW 01-2022'!C30*$K$3 -> 2,837.61 € | D30: ='Barèmes RW 01-2022'!D30*$K$3 -> 3,707.36 € | E30: ='Barèmes RW 01-2022'!E30*$K$3 -> 4,292.24 € | F30: ='Barèmes RW 01-2022'!F30*$K$3 -> 4,468.70 € | G30: ='Barèmes RW 01-2022'!G30*$K$3 -> 4,500.99 € | H30: ='Barèmes RW 01-2022'!H30*$K$3 -> 5,079.29 €
A31: 29 | B31: ='Barèmes RW 01-2022'!B31*$K$3 -> 2,288.55 € | C31: ='Barèmes RW 01-2022'!C31*$K$3 -> 2,862.71 € | D31: ='Barèmes RW 01-2022'!D31*$K$3 -> 3,707.36 € | E31: ='Barèmes RW 01-2022'!E31*$K$3 -> 4,292.24 € | F31: ='Barèmes RW 01-2022'!F31*$K$3 -> 4,468.70 € | G31: ='Barèmes RW 01-2022'!G31*$K$3 -> 4,500.99 € | H31: ='Barèmes RW 01-2022'!H31*$K$3 -> 5,079.29 €
A32: 30 | B32: ='Barèmes RW 01-2022'!B32*$K$3 -> 2,288.55 € | C32: ='Barèmes RW 01-2022'!C32*$K$3 -> 2,862.71 € | D32: ='Barèmes RW 01-2022'!D32*$K$3 -> 3,707.36 € | E32: ='Barèmes RW 01-2022'!E32*$K$3 -> 4,292.24 € | F32: ='Barèmes RW 01-2022'!F32*$K$3 -> 4,468.70 € | G32: ='Barèmes RW 01-2022'!G32*$K$3 -> 4,500.99 € | H32: ='Barèmes RW 01-2022'!H32*$K$3 -> 5,079.29 €
A33: 31 | B33: ='Barèmes RW 01-2022'!B33*$K$3 -> 2,288.55 € | C33: ='Barèmes RW 01-2022'!C33*$K$3 -> 2,862.71 € | D33: ='Barèmes RW 01-2022'!D33*$K$3 -> 3,707.36 € | E33: ='Barèmes RW 01-2022'!E33*$K$3 -> 4,292.24 € | F33: ='Barèmes RW 01-2022'!F33*$K$3 -> 4,468.70 € | G33: ='Barèmes RW 01-2022'!G33*$K$3 -> 4,500.99 € | H33: ='Barèmes RW 01-2022'!H33*$K$3 -> 5,079.29 €
A34: 32 | B34: ='Barèmes RW 01-2022'!B34*$K$3 -> 2,288.55 € | C34: ='Barèmes RW 01-2022'!C34*$K$3 -> 2,812.86 € | D34: ='Barèmes RW 01-2022'!D34*$K$3 -> 3,707.36 € | E34: ='Barèmes RW 01-2022'!E34*$K$3 -> 4,292.24 € | F34: ='Barèmes RW 01-2022'!F34*$K$3 -> 4,468.70 € | G34: ='Barèmes RW 01-2022'!G34*$K$3 -> 4,500.99 € | H34: ='Barèmes RW 01-2022'!H34*$K$3 -> 5,079.29 €
A35: 33 | B35: ='Barèmes RW 01-2022'!B35*$K$3 -> 2,288.55 € | C35: ='Barèmes RW 01-2022'!C35*$K$3 -> 2,837.61 € | D35: ='Barèmes RW 01-2022'!D35*$K$3 -> 3,707.36 € | E35: ='Barèmes RW 01-2022'!E35*$K$3 -> 4,292.24 € | F35: ='Barèmes RW 01-2022'!F35*$K$3 -> 4,468.70 € | G35: ='Barèmes RW 01-2022'!G35*$K$3 -> 4,500.99 € | H35: ='Barèmes RW 01-2022'!H35*$K$3 -> 5,079.29 €
A36: 34 | B36: ='Barèmes RW 01-2022'!B36*$K$3 -> 2,288.55 € | C36: ='Barèmes RW 01-2022'!C36*$K$3 -> 2,862.71 € | D36: ='Barèmes RW 01-2022'!D36*$K$3 -> 3,707.36 € | E36: ='Barèmes RW 01-2022'!E36*$K$3 -> 4,292.24 € | F36: ='Barèmes RW 01-2022'!F36*$K$3 -> 4,468.70 € | G36: ='Barèmes RW 01-2022'!G36*$K$3 -> 4,500.99 € | H36: ='Barèmes RW 01-2022'!H36*$K$3 -> 5,079.29 €
A37: 35 | B37: ='Barèmes RW 01-2022'!B37*$K$3 -> 2,288.55 € | C37: ='Barèmes RW 01-2022'!C37*$K$3 -> 2,862.71 € | D37: ='Barèmes RW 01-2022'!D37*$K$3 -> 3,707.36 € | E37: ='Barèmes RW 01-2022'!E37*$K$3 -> 4,292.24 € | F37: ='Barèmes RW 01-2022'!F37*$K$3 -> 4,468.70 € | G37: ='Barèmes RW 01-2022'!G37*$K$3 -> 4,500.99 € | H37: ='Barèmes RW 01-2022'!H37*$K$3 -> 5,079.29 €
A38: 36 | B38: ='Barèmes RW 01-2022'!B38*$K$3 -> 2,288.55 € | C38: ='Barèmes RW 01-2022'!C38*$K$3 -> 2,862.71 € | D38: ='Barèmes RW 01-2022'!D38*$K$3 -> 3,707.36 € | E38: ='Barèmes RW 01-2022'!E38*$K$3 -> 4,292.24 € | F38: ='Barèmes RW 01-2022'!F38*$K$3 -> 4,468.70 € | G38: ='Barèmes RW 01-2022'!G38*$K$3 -> 4,500.99 € | H38: ='Barèmes RW 01-2022'!H38*$K$3 -> 5,079.29 €
A39: 37 | B39: ='Barèmes RW 01-2022'!B39*$K$3 -> 2,288.55 € | C39: ='Barèmes RW 01-2022'!C39*$K$3 -> 2,812.86 € | D39: ='Barèmes RW 01-2022'!D39*$K$3 -> 3,707.36 € | E39: ='Barèmes RW 01-2022'!E39*$K$3 -> 4,292.24 € | F39: ='Barèmes RW 01-2022'!F39*$K$3 -> 4,468.70 € | G39: ='Barèmes RW 01-2022'!G39*$K$3 -> 4,500.99 € | H39: ='Barèmes RW 01-2022'!H39*$K$3 -> 5,079.29 €
A40: 38 | B40: ='Barèmes RW 01-2022'!B40*$K$3 -> 2,288.55 € | C40: ='Barèmes RW 01-2022'!C40*$K$3 -> 2,837.61 € | D40: ='Barèmes RW 01-2022'!D40*$K$3 -> 3,707.36 € | E40: ='Barèmes RW 01-2022'!E40*$K$3 -> 4,292.24 € | F40: ='Barèmes RW 01-2022'!F40*$K$3 -> 4,468.70 € | G40: ='Barèmes RW 01-2022'!G40*$K$3 -> 4,500.99 € | H40: ='Barèmes RW 01-2022'!H40*$K$3 -> 5,079.29 €
A41: 39 | B41: ='Barèmes RW 01-2022'!B41*$K$3 -> 2,288.55 € | C41: ='Barèmes RW 01-2022'!C41*$K$3 -> 2,862.71 € | D41: ='Barèmes RW 01-2022'!D41*$K$3 -> 3,707.36 € | E41: ='Barèmes RW 01-2022'!E41*$K$3 -> 4,292.24 € | F41: ='Barèmes RW 01-2022'!F41*$K$3 -> 4,468.70 € | G41: ='Barèmes RW 01-2022'!G41*$K$3 -> 4,500.99 € | H41: ='Barèmes RW 01-2022'!H41*$K$3 -> 5,079.29 €
A42: 40 | B42: ='Barèmes RW 01-2022'!B42*$K$3 -> 2,288.55 € | C42: ='Barèmes RW 01-2022'!C42*$K$3 -> 2,862.71 € | D42: ='Barèmes RW 01-2022'!D42*$K$3 -> 3,707.36 € | E42: ='Barèmes RW 01-2022'!E42*$K$3 -> 4,292.24 € | F42: ='Barèmes RW 01-2022'!F42*$K$3 -> 4,468.70 € | G42: ='Barèmes RW 01-2022'!G42*$K$3 -> 4,500.99 € | H42: ='Barèmes RW 01-2022'!H42*$K$3 -> 5,079.29 €
A43: 41 | B43: ='Barèmes RW 01-2022'!B43*$K$3 -> 2,288.55 € | C43: ='Barèmes RW 01-2022'!C43*$K$3 -> 2,862.71 € | D43: ='Barèmes RW 01-2022'!D43*$K$3 -> 3,707.36 € | E43: ='Barèmes RW 01-2022'!E43*$K$3 -> 4,292.24 € | F43: ='Barèmes RW 01-2022'!F43*$K$3 -> 4,468.70 € | G43: ='Barèmes RW 01-2022'!G43*$K$3 -> 4,500.99 € | H43: ='Barèmes RW 01-2022'!H43*$K$3 -> 5,079.29 €
A44: 42 | B44: ='Barèmes RW 01-2022'!B44*$K$3 -> 2,288.55 € | C44: ='Barèmes RW 01-2022'!C44*$K$3 -> 2,812.86 € | D44: ='Barèmes RW 01-2022'!D44*$K$3 -> 3,707.36 € | E44: ='Barèmes RW 01-2022'!E44*$K$3 -> 4,292.24 € | F44: ='Barèmes RW 01-2022'!F44*$K$3 -> 4,468.70 € | G44: ='Barèmes RW 01-2022'!G44*$K$3 -> 4,500.99 € | H44: ='Barèmes RW 01-2022'!H44*$K$3 -> 5,079.29 €
A45: 43 | B45: ='Barèmes RW 01-2022'!B45*$K$3 -> 2,288.55 € | C45: ='Barèmes RW 01-2022'!C45*$K$3 -> 2,837.61 € | D45: ='Barèmes RW 01-2022'!D45*$K$3 -> 3,707.36 € | E45: ='Barèmes RW 01-2022'!E45*$K$3 -> 4,292.24 € | F45: ='Barèmes RW 01-2022'!F45*$K$3 -> 4,468.70 € | G45: ='Barèmes RW 01-2022'!G45*$K$3 -> 4,500.99 € | H45: ='Barèmes RW 01-2022'!H45*$K$3 -> 5,079.29 €
A46: 44 | B46: ='Barèmes RW 01-2022'!B46*$K$3 -> 2,288.55 € | C46: ='Barèmes RW 01-2022'!C46*$K$3 -> 2,862.71 € | D46: ='Barèmes RW 01-2022'!D46*$K$3 -> 3,707.36 € | E46: ='Barèmes RW 01-2022'!E46*$K$3 -> 4,292.24 € | F46: ='Barèmes RW 01-2022'!F46*$K$3 -> 4,468.70 € | G46: ='Barèmes RW 01-2022'!G46*$K$3 -> 4,500.99 € | H46: ='Barèmes RW 01-2022'!H46*$K$3 -> 5,079.29 €
A47: 45 | B47: ='Barèmes RW 01-2022'!B47*$K$3 -> 2,288.55 € | C47: ='Barèmes RW 01-2022'!C47*$K$3 -> 2,862.71 € | D47: ='Barèmes RW 01-2022'!D47*$K$3 -> 3,707.36 € | E47: ='Barèmes RW 01-2022'!E47*$K$3 -> 4,292.24 € | F47: ='Barèmes RW 01-2022'!F47*$K$3 -> 4,468.70 € | G47: ='Barèmes RW 01-2022'!G47*$K$3 -> 4,500.99 € | H47: ='Barèmes RW 01-2022'!H47*$K$3 -> 5,079.29 €

Sheet Barèmes RW 01-2022 (hidden)
A1: Ancienneté | B1: Échelon 1 | C1: Échelon 2 | D1: Échelon 3 | E1: Échelon 4.1 | F1: Échelon 4.2 | G1: Échelon 5 | H1: Échelon 6 | J1: Région wallonne
A2: 0 | B2: 1,814.69 € | C2: 1,988.18 € | D2: 2,248.03 € | E2: 2,436.31 € | F2: 2,874.68 € | G2: 3,141.37 € | H2: 3,281.00 € | J2: Base | K2: 2022-04-01 | N2: =B2/1.02/1.02 -> 1744.223376 | O2: =C2/1.02/1.02 -> 1910.976547 | P2: 2160.736255 | Q2: 2341.705113 | R2: 2763.052672 | S2: =G2/1.02/1.02 -> 3019.386774 | T2: =H2/1.02/1.02 -> 3153.594771
A3: 1 | B3: 1,966.66 € | C3: 2,145.33 € | D3: 2,418.83 € | E3: 2,613.66 € | F3: 3,022.08 € | G3: 3,265.74 € | H3: 3,441.79 € | J3: CORRIGE SANS INDEX AU 01 01 | N3: =B3/1.02/1.02 -> 1890.292195 | O3: 2062.024221 | P3: 2324.903883 | Q3: 2512.168397 | R3: 2904.72895 | S3: 3138.927336 | T3: 3308.1411
A4: 2 | B4: 1,977.03 € | C4: 2,165.99 € | D4: 2,418.83 € | E4: 2,613.66 € | F4: 3,022.08 € | G4: 3,265.74 € | H4: 3,441.79 € | N4: 1900.259516 | O4: 2081.881968 | P4: 2324.903883 | Q4: 2512.168397 | R4: 2904.72895 | S4: 3138.927336 | T4: 3308.1411
A5: 3 | B5: 1,987.33 € | C5: 2,186.61 € | D5: 2,527.65 € | E5: 2,748.52 € | F5: 3,129.28 € | G5: 3,356.62 € | H5: 3,585.79 € | N5: 1910.159554 | O5: 2101.701269 | P5: 2429.49827 | Q5: 2641.791619 | R5: 3007.766244 | S5: 3226.278354 | T5: 3446.549404
A6: 4 | B6: 1,997.66 € | C6: 2,207.30 € | D6: 2,527.65 € | E6: 2,748.52 € | F6: 3,129.28 € | G6: 3,356.62 € | H6: 3,585.79 € | N6: 1920.088428 | O6: 2121.587851 | P6: 2429.49827 | Q6: 2641.791619 | R6: 3007.766244 | S6: 3226.278354 | T6: 3446.549404
A7: 5 | B7: 2,007.96 € | C7: 2,227.95 € | D7: 2,641.41 € | E7: 2,890.33 € | F7: 3,236.40 € | G7: 3,447.50 € | H7: 3,729.76 € | N7: 1929.988466 | O7: 2141.435986 | P7: 2538.84083 | Q7: 2778.094963 | R7: 3110.726644 | S7: 3313.629373 | T7: 3584.928874
A8: 6 | B8: 2,018.28 € | C8: 2,248.58 € | D8: 2,641.41 € | E8: 2,890.33 € | F8: 3,236.40 € | G8: 3,447.50 € | H8: 3,729.76 € | N8: 1939.907728 | O8: 2161.264898 | P8: 2538.84083 | Q8: 2778.094963 | R8: 3110.726644 | S8: 3313.629373 | T8: 3584.928874
A9: 7 | B9: 2,028.66 € | C9: 2,269.27 € | D9: 2,760.25 € | E9: 3,039.47 € | F9: 3,343.61 € | G9: 3,538.46 € | H9: 3,873.79 € | N9: 1949.88466 | O9: 2181.15148 | P9: 2653.066128 | Q9: 2921.443676 | R9: 3213.773549 | S9: 3401.057286 | T9: 3723.366013
A10: 8 | B10: 2,039.00 € | C10: 2,289.91 € | D10: 2,760.25 € | E10: 3,039.47 € | F10: 3,343.61 € | G10: 3,538.46 € | H10: 3,873.79 € | N10: 1959.823145 | O10: 2200.990004 | P10: 2653.066128 | Q10: 2921.443676 | R10: 3213.773549 | S10: 3401.057286 | T10: 3723.366013
A11: 9 | B11: 2,049.28 € | C11: 2,310.54 € | D11: 2,884.47 € | E11: 3,196.34 € | F11: 3,450.72 € | G11: 3,629.31 € | H11: 4,017.78 € | N11: 1969.70396 | O11: 2220.818916 | P11: 2772.462514 | Q11: 3072.222222 | R11: 3316.724337 | S11: 3488.379469 | T11: 3861.764706
A12: 10 | B12: 2,112.94 € | C12: 2,391.58 € | D12: 2,884.47 € | E12: 3,196.34 € | F12: 3,504.34 € | G12: 3,682.89 € | H12: 4,071.35 € | N12: 2030.891965 | O12: 2298.712034 | P12: 2772.462514 | Q12: 3072.222222 | R12: 3368.262207 | S12: 3539.878893 | T12: 3913.254517
A13: 11 | B13: 2,123.23 € | C13: 2,416.38 € | D13: 3,014.25 € | E13: 3,361.28 € | F13: 3,611.46 € | G13: 3,773.83 € | H13: 4,215.28 € | N13: 2040.782391 | O13: 2322.54902 | P13: 2897.202999 | Q13: 3230.757401 | R13: 3471.222607 | S13: 3627.287582 | T13: 4051.59554
A14: 12 | B14: 2,133.56 € | C14: 2,441.18 € | D14: 3,014.25 € | E14: 3,361.28 € | F14: 3,611.46 € | G14: 3,773.83 € | H14: 4,215.28 € | N14: 2050.711265 | O14: 2346.386005 | P14: 2897.202999 | Q14: 3230.757401 | R14: 3471.222607 | S14: 3627.287582 | T14: 4051.59554
A15: 13 | B15: 2,143.89 € | C15: 2,465.95 € | D15: 3,149.88 € | E15: 3,534.72 € | F15: 3,718.65 € | G15: 3,864.72 € | H15: 4,359.34 € | N15: 2060.640138 | O15: 2370.194156 | P15: 3027.566321 | Q15: 3397.462514 | R15: 3574.250288 | S15: 3714.648212 | T15: 4190.061515
A16: 14 | B16: 2,154.21 € | C16: 2,490.69 € | D16: 3,149.88 € | E16: 3,534.72 € | F16: 3,718.65 € | G16: 3,864.72 € | H16: 4,359.34 € | N16: 2070.5594 | O16: 2393.973472 | P16: 3027.566321 | Q16: 3397.462514 | R16: 3574.250288 | S16: 3714.648212 | T16: 4190.061515
A17: 15 | B17: 2,164.60 € | C17: 2,515.48 € | D17: 3,253.87 € | E17: 3,676.06 € | F17: 3,825.77 € | G17: 3,955.61 € | H17: 4,503.33 € | N17: 2080.545944 | O17: 2417.800846 | P17: 3127.518262 | Q17: 3533.31411 | R17: 3677.210688 | S17: 3802.008843 | T17: 4328.460208
A18: 16 | B18: 2,174.95 € | C18: 2,540.27 € | D18: 3,253.87 € | E18: 3,676.06 € | F18: 3,825.77 € | G18: 3,955.61 € | H18: 4,503.33 € | N18: 2090.494041 | O18: 2441.62822 | P18: 3127.518262 | Q18: 3533.31411 | R18: 3677.210688 | S18: 3802.008843 | T18: 4328.460208
A19: 17 | B19: 2,185.20 € | C19: 2,565.06 € | D19: 3,305.54 € | E19: 3,823.13 € | F19: 3,932.93 € | G19: 4,046.51 € | H19: 4,647.31 € | N19: 2100.346021 | O19: 2465.455594 | P19: 3177.181853 | Q19: 3674.673203 | R19: 3780.209535 | S19: 3889.379085 | T19: 4466.849289
A20: 18 | B20: 2,195.55 € | C20: 2,589.82 € | D20: 3,305.54 € | E20: 3,823.13 € | F20: 3,932.93 € | G20: 4,046.51 € | H20: 4,647.31 € | N20: 2110.294118 | O20: 2489.254133 | P20: 3177.181853 | Q20: 3674.673203 | R20: 3780.209535 | S20: 3889.379085 | T20: 4466.849289
A21: 19 | B21: 2,205.89 € | C21: 2,614.62 € | D21: 3,385.92 € | E21: 3,976.00 € | F21: 4,040.09 € | G21: 4,137.40 € | H21: 4,791.32 € | N21: 2120.232603 | O21: 2513.091119 | P21: 3254.4406 | Q21: 3821.607074 | R21: 3883.208381 | S21: 3976.739715 | T21: 4605.267205
A22: 20 | B22: 2,216.24 € | C22: 2,639.39 € | D22: 3,385.92 € | E22: 3,976.00 € | F22: 4,040.09 € | G22: 4,137.40 € | H22: 4,791.32 € | N22: 2130.1807 | O22: 2536.89927 | P22: 3254.4406 | Q22: 3821.607074 | R22: 3883.208381 | S22: 3976.739715 | T22: =H22/1.02/1.02 -> 4,605.27 €
A23: 21 | B23: 2,226.54 € | C23: 2,664.12 € | D23: 3,466.28 € | E23: 4,051.17 € | F23: 4,147.28 € | G23: 4,228.30 € | H23: 4,935.29 € | N23: 2140.080738 | O23: 2560.668973 | P23: 3331.680123 | Q23: 3893.858131 | R23: 3986.236063 | S23: 4064.109958 | T23: 4743.646674
A24: 22 | B24: 2,236.89 € | C24: 2,688.91 € | D24: 3,466.28 € | E24: 4,051.17 € | F24: 4,147.28 € | G24: 4,228.30 € | H24: 4,935.29 € | N24: 2150.028835 | O24: 2584.496348 | P24: 3331.680123 | Q24: 3893.858131 | R24: 3986.236063 | S24: 4064.109958 | T24: 4743.646674
A25: 23 | B25: 2,247.20 € | C25: 2,713.72 € | D25: 3,546.65 € | E25: 4,131.58 € | F25: 4,254.39 € | G25: 4,319.22 € | H25: 5,079.29 € | N25: 2159.938485 | O25: 2608.342945 | P25: 3408.929258 | Q25: 3971.145713 | R25: 4089.186851 | S25: 4151.499423 | T25: 4882.054979
A26: 24 | B26: 2,257.55 € | C26: 2,738.52 € | D26: 3,546.65 € | E26: 4,131.58 € | F26: 4,254.39 € | G26: 4,319.22 € | H26: 5,079.29 € | N26: 2169.886582 | O26: 2632.179931 | P26: 3408.929258 | Q26: 3971.145713 | R26: 4089.186851 | S26: 4151.499423 | T26: 4882.054979
A27: 25 | B27: 2,267.89 € | C27: 2,763.28 € | D27: 3,627.04 € | E27: 4,211.91 € | F27: 4,361.57 € | G27: 4,410.14 € | H27: 5,079.29 € | N27: 2179.825067 | O27: 2655.97847 | P27: 3486.197616 | Q27: 4048.356401 | R27: 4192.204921 | S27: 4238.888889 | T27: 4882.054979
A28: 26 | B28: 2,278.22 € | C28: 2,788.04 € | D28: 3,627.04 € | E28: 4,211.91 € | F28: 4,361.57 € | G28: 4,410.14 € | H28: 5,079.29 € | N28: 2189.753941 | O28: 2679.777009 | P28: 3486.197616 | Q28: 4048.356401 | R28: 4192.204921 | S28: 4238.888889 | T28: 4882.054979
A29: 27 | B29: 2,288.55 € | C29: 2,812.86 € | D29: 3,707.36 € | E29: 4,292.24 € | F29: 4,468.70 € | G29: 4,500.99 € | H29: 5,079.29 € | N29: 2199.682814 | O29: 2703.633218 | P29: 3563.398693 | Q29: 4125.56709 | R29: 4295.174933 | S29: 4326.211073 | T29: 4882.054979
A30: 28 | B30: 2,288.55 € | C30: 2,837.61 € | D30: 3,707.36 € | E30: 4,292.24 € | F30: 4,468.70 € | G30: 4,500.99 € | H30: 5,079.29 € | N30: 2199.682814 | O30: 2727.422145 | P30: 3563.398693 | Q30: 4125.56709 | R30: 4295.174933 | S30: 4326.211073 | T30: 4882.054979
A31: 29 | B31: 2,288.55 € | C31: 2,862.71 € | D31: 3,707.36 € | E31: 4,292.24 € | F31: 4,468.70 € | G31: 4,500.99 € | H31: 5,079.29 € | N31: 2199.682814 | O31: 2751.547482 | P31: 3563.398693 | Q31: 4125.56709 | R31: 4295.174933 | S31: 4326.211073 | T31: 4882.054979
A32: 30 | B32: 2,288.55 € | C32: 2,862.71 € | D32: 3,707.36 € | E32: 4,292.24 € | F32: 4,468.70 € | G32: 4,500.99 € | H32: 5,079.29 € | N32: 2199.682814 | O32: 2751.547482 | P32: 3563.398693 | Q32: 4125.56709 | R32: 4295.174933 | S32: 4326.211073 | T32: 4882.054979
A33: 31 | B33: 2,288.55 € | C33: 2,862.71 € | D33: 3,707.36 € | E33: 4,292.24 € | F33: 4,468.70 € | G33: 4,500.99 € | H33: 5,079.29 € | N33: 2199.682814 | O33: 2751.547482 | P33: 3563.398693 | Q33: 4125.56709 | R33: 4295.174933 | S33: 4326.211073 | T33: 4882.054979
A34: 32 | B34: 2,288.55 € | C34: 2,812.86 € | D34: 3,707.36 € | E34: 4,292.24 € | F34: 4,468.70 € | G34: 4,500.99 € | H34: 5,079.29 € | N34: 2199.682814 | O34: 2703.633218 | P34: 3563.398693 | Q34: 4125.56709 | R34: 4295.174933 | S34: 4326.211073 | T34: 4882.054979
A35: 33 | B35: 2,288.55 € | C35: 2,837.61 € | D35: 3,707.36 € | E35: 4,292.24 € | F35: 4,468.70 € | G35: 4,500.99 € | H35: 5,079.29 € | N35: 2199.682814 | O35: 2727.422145 | P35: 3563.398693 | Q35: 4125.56709 | R35: 4295.174933 | S35: 4326.211073 | T35: 4882.054979
A36: 34 | B36: 2,288.55 € | C36: 2,862.71 € | D36: 3,707.36 € | E36: 4,292.24 € | F36: 4,468.70 € | G36: 4,500.99 € | H36: 5,079.29 € | N36: 2199.682814 | O36: 2751.547482 | P36: 3563.398693 | Q36: 4125.56709 | R36: 4295.174933 | S36: 4326.211073 | T36: 4882.054979
A37: 35 | B37: 2,288.55 € | C37: 2,862.71 € | D37: 3,707.36 € | E37: 4,292.24 € | F37: 4,468.70 € | G37: 4,500.99 € | H37: 5,079.29 € | N37: 2199.682814 | O37: 2751.547482 | P37: 3563.398693 | Q37: 4125.56709 | R37: 4295.174933 | S37: 4326.211073 | T37: 4882.054979
A38: 36 | B38: 2,288.55 € | C38: 2,862.71 € | D38: 3,707.36 € | E38: 4,292.24 € | F38: 4,468.70 € | G38: 4,500.99 € | H38: 5,079.29 € | N38: 2199.682814 | O38: 2751.547482 | P38: 3563.398693 | Q38: 4125.56709 | R38: 4295.174933 | S38: 4326.211073 | T38: 4882.054979
A39: 37 | B39: 2,288.55 € | C39: 2,812.86 € | D39: 3,707.36 € | E39: 4,292.24 € | F39: 4,468.70 € | G39: 4,500.99 € | H39: 5,079.29 € | N39: 2199.682814 | O39: 2703.633218 | P39: 3563.398693 | Q39: 4125.56709 | R39: 4295.174933 | S39: 4326.211073 | T39: 4882.054979
A40: 38 | B40: 2,288.55 € | C40: 2,837.61 € | D40: 3,707.36 € | E40: 4,292.24 € | F40: 4,468.70 € | G40: 4,500.99 € | H40: 5,079.29 € | N40: 2199.682814 | O40: 2727.422145 | P40: 3563.398693 | Q40: 4125.56709 | R40: 4295.174933 | S40: 4326.211073 | T40: 4882.054979
A41: 39 | B41: 2,288.55 € | C41: 2,862.71 € | D41: 3,707.36 € | E41: 4,292.24 € | F41: 4,468.70 € | G41: 4,500.99 € | H41: 5,079.29 € | N41: 2199.682814 | O41: 2751.547482 | P41: 3563.398693 | Q41: 4125.56709 | R41: 4295.174933 | S41: 4326.211073 | T41: 4882.054979
A42: 40 | B42: 2,288.55 € | C42: 2,862.71 € | D42: 3,707.36 € | E42: 4,292.24 € | F42: 4,468.70 € | G42: 4,500.99 € | H42: 5,079.29 € | N42: 2199.682814 | O42: 2751.547482 | P42: 3563.398693 | Q42: 4125.56709 | R42: 4295.174933 | S42: 4326.211073 | T42: 4882.054979
A43: 41 | B43: 2,288.55 € | C43: 2,862.71 € | D43: 3,707.36 € | E43: 4,292.24 € | F43: 4,468.70 € | G43: 4,500.99 € | H43: 5,079.29 € | N43: 2199.682814 | O43: 2751.547482 | P43: 3563.398693 | Q43: 4125.56709 | R43: 4295.174933 | S43: 4326.211073 | T43: 4882.054979
A44: 42 | B44: 2,288.55 € | C44: 2,812.86 € | D44: 3,707.36 € | E44: 4,292.24 € | F44: 4,468.70 € | G44: 4,500.99 € | H44: 5,079.29 € | N44: 2199.682814 | O44: 2703.633218 | P44: 3563.398693 | Q44: 4125.56709 | R44: 4295.174933 | S44: 4326.211073 | T44: 4882.054979
A45: 43 | B45: 2,288.55 € | C45: 2,837.61 € | D45: 3,707.36 € | E45: 4,292.24 € | F45: 4,468.70 € | G45: 4,500.99 € | H45: 5,079.29 € | N45: 2199.682814 | O45: 2727.422145 | P45: 3563.398693 | Q45: 4125.56709 | R45: 4295.174933 | S45: 4326.211073 | T45: 4882.054979
A46: 44 | B46: 2,288.55 € | C46: 2,862.71 € | D46: 3,707.36 € | E46: 4,292.24 € | F46: 4,468.70 € | G46: 4,500.99 € | H46: 5,079.29 € | N46: 2199.682814 | O46: 2751.547482 | P46: 3563.398693 | Q46: 4125.56709 | R46: 4295.174933 | S46: 4326.211073 | T46: 4882.054979
A47: 45 | B47: 2,288.55 € | C47: 2,862.71 € | D47: 3,707.36 € | E47: 4,292.24 € | F47: 4,468.70 € | G47: 4,500.99 € | H47: 5,079.29 € | N47: 2199.682814 | O47: 2751.547482 | P47: 3563.398693 | Q47: 4125.56709 | R47: 4295.174933 | S47: 4326.211073 | T47: 4882.054979

Sheet Barèmes RBC 01-2022 (hidden)
A1: Ancienneté | B1: Échelon 1 | C1: Échelon 2 | D1: Échelon 3 | E1: Échelon 4.1 | F1: Échelon 4.2 | G1: Échelon 5 | H1: Échelon 6 | J1: Région de Bruxelles-Capitale
A2: 0 | B2: 1814.65 | C2: 1988.13 | D2: 2248.07 | E2: 2436.31 | F2: 2874.71 | G2: 3141.35 | H2: 3281.24 | J2: Base | K2: 2022-04-01 | N2: =B2/1.02/1.02 -> 1744.184929 | O2: =C2/1.02/1.02 -> 1910.928489 | P2: 2160.774702 | Q2: 2341.705113 | R2: 2763.081507 | S2: =G2/1.02/1.02 -> 3019.367551 | T2: =H2/1.02/1.02 -> 3153.825452
A3: 1 | B3: 1966.67 | C3: 2145.32 | D3: 2418.83 | E3: 2613.65 | F3: 3022.08 | G3: 3265.73 | H3: 3441.40 | N3: =B3/1.02/1.02 -> 1890.301807 | O3: 2062.01461 | P3: 2324.903883 | Q3: 2512.158785 | R3: 2904.72895 | S3: 3138.917724 | T3: 3307.766244
A4: 2 | B4: 1976.99 | C4: 2165.98 | D4: 2418.83 | E4: 2613.65 | F4: 3022.08 | G4: 3265.73 | H4: 3441.40 | J4: hors index au 01 01 | N4: 1900.221069 | O4: 2081.872357 | P4: 2324.903883 | Q4: 2512.158785 | R4: 2904.72895 | S4: 3138.917724 | T4: 3307.766244
A5: 3 | B5: 1987.34 | C5: 2186.61 | D5: 2527.66 | E5: 2737.79 | F5: 3129.29 | G5: 3356.64 | H5: 3585.39 | N5: 1910.169166 | O5: 2101.701269 | P5: 2429.507882 | Q5: 2631.478278 | R5: 3007.775855 | S5: 3226.297578 | T5: 3446.164937
A6: 4 | B6: 1997.66 | C6: 2207.27 | D6: 2527.66 | E6: 2737.79 | F6: 3129.29 | G6: 3356.64 | H6: 3585.39 | N6: 1920.088428 | O6: 2121.559016 | P6: 2429.507882 | Q6: 2631.478278 | R6: 3007.775855 | S6: 3226.297578 | T6: 3446.164937
A7: 5 | B7: 2007.96 | C7: 2227.95 | D7: 2641.42 | E7: 2867.83 | F7: 3236.39 | G7: 3447.51 | H7: 3729.41 | N7: 1929.988466 | O7: 2141.435986 | P7: 2538.850442 | Q7: 2756.468666 | R7: 3110.717032 | S7: 3313.638985 | T7: 3584.592464
A8: 6 | B8: 2018.30 | C8: 2248.59 | D8: 2641.42 | E8: 2867.83 | F8: 3236.39 | G8: 3447.51 | H8: 3729.41 | N8: 1939.926951 | O8: 2161.27451 | P8: 2538.850442 | Q8: 2756.468666 | R8: 3110.717032 | S8: 3313.638985 | T8: 3584.592464
A9: 7 | B9: 2028.65 | C9: 2269.25 | D9: 2760.26 | E9: 3004.08 | F9: 3343.57 | G9: 3538.45 | H9: 3873.42 | N9: 1949.875048 | O9: 2181.132257 | P9: 2653.07574 | Q9: 2887.427912 | R9: 3213.735102 | S9: 3401.047674 | T9: 3723.010381
A10: 8 | B10: 2039.01 | C10: 2289.93 | D10: 2760.26 | E10: 3004.08 | F10: 3343.57 | G10: 3538.45 | H10: 3873.42 | N10: 1959.832757 | O10: 2201.009227 | P10: 2653.07574 | Q10: 2887.427912 | R10: 3213.735102 | S10: 3401.047674 | T10: 3723.010381
A11: 9 | B11: 2049.31 | C11: 2310.54 | D11: 2884.47 | E11: 3146.75 | F11: 3450.73 | G11: 3629.32 | H11: 4017.41 | N11: 1969.732795 | O11: 2220.818916 | P11: 2772.462514 | Q11: 3024.557862 | R11: 3316.733948 | S11: 3488.389081 | T11: 3861.409073
A12: 10 | B12: 2112.94 | C12: 2391.58 | D12: 2884.47 | E12: 3146.75 | F12: 3504.33 | G12: 3682.87 | H12: 4071.25 | N12: 2030.891965 | O12: 2298.712034 | P12: 2772.462514 | Q12: 3024.557862 | R12: 3368.252595 | S12: 3539.859669 | T12: 3913.158401
A13: 11 | B13: 2123.25 | C13: 2416.37 | D13: 3014.25 | E13: 3296.22 | F13: 3611.44 | G13: 3773.83 | H13: 4215.26 | N13: 2040.801615 | O13: 2322.539408 | P13: 2897.202999 | Q13: 3168.22376 | R13: 3471.203383 | S13: 3627.287582 | T13: 4051.576317
A14: 12 | B14: 2133.54 | C14: 2441.18 | D14: 3014.25 | E14: 3296.22 | F14: 3611.44 | G14: 3773.83 | H14: 4215.26 | N14: 2050.692042 | O14: 2346.386005 | P14: 2897.202999 | Q14: 3168.22376 | R14: 3471.203383 | S14: 3627.287582 | T14: 4051.576317
A15: 13 | B15: 2143.91 | C15: 2465.93 | D15: 3149.89 | E15: 3452.80 | F15: 3718.62 | G15: 3864.71 | H15: 4359.28 | N15: 2060.659362 | O15: 2370.174933 | P15: 3027.575932 | Q15: 3318.723568 | R15: 3574.221453 | S15: 3714.638601 | T15: 4190.003845
A16: 14 | B16: 2154.23 | C16: 2490.70 | D16: 3149.89 | E16: 3452.80 | F16: 3718.62 | G16: 3864.71 | H16: 4359.28 | N16: 2070.578624 | O16: 2393.983083 | P16: 3027.575932 | Q16: 3318.723568 | R16: 3574.221453 | S16: 3714.638601 | T16: 4190.003845
A17: 15 | B17: 2164.57 | C17: 2515.49 | D17: 3253.88 | E17: 3590.92 | F17: 3825.79 | G17: 3955.60 | H17: 4503.29 | N17: 2080.517109 | O17: 2417.810458 | P17: 3127.527874 | Q17: 3451.4802 | R17: 3677.229912 | S17: 3801.999231 | T17: 4328.421761
A18: 16 | B18: 2174.93 | C18: 2540.27 | D18: 3253.88 | E18: 3590.92 | F18: 3825.79 | G18: 3955.60 | H18: 4503.29 | N18: 2090.474817 | O18: 2441.62822 | P18: 3127.527874 | Q18: 3451.4802 | R18: 3677.229912 | S18: 3801.999231 | T18: 4328.421761
A19: 17 | B19: 2185.21 | C19: 2565.03 | D19: 3305.55 | E19: 3734.55 | F19: 3932.93 | G19: 4046.51 | H19: 4647.28 | N19: 2100.355632 | O19: 2465.426759 | P19: 3177.191465 | Q19: 3589.532872 | R19: 3780.209535 | S19: 3889.379085 | T19: 4466.820454
A20: 18 | B20: 2195.55 | C20: 2589.83 | D20: 3305.55 | E20: 3734.55 | F20: 3932.93 | G20: 4046.51 | H20: 4647.28 | N20: 2110.294118 | O20: 2489.263745 | P20: 3177.191465 | Q20: 3589.532872 | R20: 3780.209535 | S20: 3889.379085 | T20: 4466.820454
A21: 19 | B21: 2205.88 | C21: 2614.62 | D21: 3385.90 | E21: 3883.93 | F21: 4040.09 | G21: 4137.40 | H21: 4791.29 | N21: 2120.222991 | O21: 2513.091119 | P21: 3254.421376 | Q21: 3733.112265 | R21: 3883.208381 | S21: 3976.739715 | T21: 4605.23837
A22: 20 | B22: 2216.24 | C22: 2639.39 | D22: 3385.90 | E22: 3883.93 | F22: 4040.09 | G22: 4137.40 | H22: 4791.29 | N22: 2130.1807 | O22: 2536.89927 | P22: 3254.421376 | Q22: 3733.112265 | R22: 3883.208381 | S22: 3976.739715 | T22: 4605.23837
A23: 21 | B23: 2226.53 | C23: 2664.15 | D23: 3466.29 | E23: 4039.29 | F23: 4147.28 | G23: 4228.33 | H23: 4935.29 | N23: 2140.071126 | O23: 2560.697809 | P23: 3331.689735 | Q23: 3882.439446 | R23: 3986.236063 | S23: 4064.138793 | T23: 4743.646674
A24: 22 | B24: 2236.89 | C24: 2688.92 | D24: 3466.29 | E24: 4051.19 | F24: 4147.28 | G24: 4228.33 | H24: 4935.29 | N24: 2150.028835 | O24: 2584.505959 | P24: 3331.689735 | Q24: 3893.877355 | R24: 3986.236063 | S24: 4064.138793 | T24: 4743.646674
A25: 23 | B25: 2247.19 | C25: 2713.72 | D25: 3546.66 | E25: 4131.55 | F25: 4254.40 | G25: 4319.20 | H25: 5079.30 | N25: 2159.928874 | O25: 2608.342945 | P25: 3408.93887 | Q25: 3971.116878 | R25: 4089.196463 | S25: 4151.4802 | T25: 4882.064591
A26: 24 | B26: 2257.54 | C26: 2738.50 | D26: 3546.66 | E26: 4131.55 | F26: 4254.40 | G26: 4319.20 | H26: 5079.30 | N26: 2169.87697 | O26: 2632.160707 | P26: 3408.93887 | Q26: 3971.116878 | R26: 4089.196463 | S26: 4151.4802 | T26: 4882.064591
A27: 25 | B27: 2267.88 | C27: 2763.29 | D27: 3627.02 | E27: 4211.93 | F27: 4361.58 | G27: 4410.13 | H27: 5227.36 | N27: 2179.815456 | O27: 2655.988082 | P27: 3486.178393 | Q27: 4048.375625 | R27: 4192.214533 | S27: 4238.879277 | T27: 5024.37524
A28: 26 | B28: 2278.19 | C28: 2788.05 | D28: 3627.02 | E28: 4211.93 | F28: 4361.58 | G28: 4410.13 | H28: 5227.36 | N28: 2189.725106 | O28: 2679.786621 | P28: 3486.178393 | Q28: 4048.375625 | R28: 4192.214533 | S28: 4238.879277 | T28: 5024.37524
A29: 27 | B29: 2288.54 | C29: 2812.84 | D29: 3707.39 | E29: 4292.25 | F29: 4468.70 | G29: 4501.01 | H29: 5227.36 | N29: 2199.673203 | O29: 2703.613995 | P29: 3563.427528 | Q29: 4125.576701 | R29: 4295.174933 | S29: 4326.230296 | T29: 5024.37524
A30: 28 | B30: 2288.54 | C30: 2837.60 | D30: 3707.39 | E30: 4292.25 | F30: 4468.70 | G30: 4501.01 | H30: 5227.36 | N30: 2199.673203 | O30: 2727.412534 | P30: 3563.427528 | Q30: 4125.576701 | R30: 4295.174933 | S30: 4326.230296 | T30: 5024.37524
A31: 29 | B31: 2288.54 | C31: 2862.72 | D31: 3707.39 | E31: 4292.25 | F31: 4468.70 | G31: 4501.01 | H31: 5227.36 | N31: 2199.673203 | O31: 2751.557093 | P31: 3563.427528 | Q31: 4125.576701 | R31: 4295.174933 | S31: 4326.230296 | T31: 5024.37524
A32: 30 | B32: 2288.54 | C32: 2862.72 | D32: 3707.39 | E32: 4292.25 | F32: 4468.70 | G32: 4501.01 | H32: 5227.36 | N32: 2199.673203 | O32: 2751.557093 | P32: 3563.427528 | Q32: 4125.576701 | R32: 4295.174933 | S32: 4326.230296 | T32: 5024.37524
A33: 31 | B33: 2288.54 | C33: 2862.72 | D33: 3707.39 | E33: 4292.25 | F33: 4468.70 | G33: 4501.01 | H33: 5227.36 | N33: 2199.673203 | O33: 2751.557093 | P33: 3563.427528 | Q33: 4125.576701 | R33: 4295.174933 | S33: 4326.230296 | T33: 5024.37524
A34: 32 | B34: 2288.54 | C34: 2862.72 | D34: 3707.39 | E34: 4292.25 | F34: 4468.70 | G34: 4501.01 | H34: 5227.36 | N34: 2199.673203 | O34: 2751.557093 | P34: 3563.427528 | Q34: 4125.576701 | R34: 4295.174933 | S34: 4326.230296 | T34: 5024.37524
A35: 33 | B35: 2288.54 | C35: 2862.72 | D35: 3707.39 | E35: 4292.25 | F35: 4468.70 | G35: 4501.01 | H35: 5227.36 | N35: 2199.673203 | O35: 2751.557093 | P35: 3563.427528 | Q35: 4125.576701 | R35: 4295.174933 | S35: 4326.230296 | T35: 5024.37524
A36: 34 | B36: 2288.54 | C36: 2862.72 | D36: 3707.39 | E36: 4292.25 | F36: 4468.70 | G36: 4501.01 | H36: 5227.36 | N36: 2199.673203 | O36: 2751.557093 | P36: 3563.427528 | Q36: 4125.576701 | R36: 4295.174933 | S36: 4326.230296 | T36: 5024.37524
A37: 35 | B37: 2288.54 | C37: 2862.72 | D37: 3707.39 | E37: 4292.25 | F37: 4468.70 | G37: 4501.01 | H37: 5227.36 | N37: 2199.673203 | O37: 2751.557093 | P37: 3563.427528 | Q37: 4125.576701 | R37: 4295.174933 | S37: 4326.230296 | T37: 5024.37524
A38: 36 | B38: 2288.54 | C38: 2862.72 | D38: 3707.39 | E38: 4292.25 | F38: 4468.70 | G38: 4501.01 | H38: 5227.36 | N38: 2199.673203 | O38: 2751.557093 | P38: 3563.427528 | Q38: 4125.576701 | R38: 4295.174933 | S38: 4326.230296 | T38: 5024.37524
A39: 37 | B39: 2288.54 | C39: 2862.72 | D39: 3707.39 | E39: 4292.25 | F39: 4468.70 | G39: 4501.01 | H39: 5227.36 | N39: 2199.673203 | O39: 2751.557093 | P39: 3563.427528 | Q39: 4125.576701 | R39: 4295.174933 | S39: 4326.230296 | T39: 5024.37524
A40: 38 | B40: 2288.54 | C40: 2862.72 | D40: 3707.39 | E40: 4292.25 | F40: 4468.70 | G40: 4501.01 | H40: 5227.36 | N40: 2199.673203 | O40: 2751.557093 | P40: 3563.427528 | Q40: 4125.576701 | R40: 4295.174933 | S40: 4326.230296 | T40: 5024.37524
A41: 39 | B41: 2288.54 | C41: 2862.72 | D41: 3707.39 | E41: 4292.25 | F41: 4468.70 | G41: 4501.01 | H41: 5227.36 | N41: 2199.673203 | O41: 2751.557093 | P41: 3563.427528 | Q41: 4125.576701 | R41: 4295.174933 | S41: 4326.230296 | T41: 5024.37524
A42: 40 | B42: 2288.54 | C42: 2862.72 | D42: 3707.39 | E42: 4292.25 | F42: 4468.70 | G42: 4501.01 | H42: 5227.36 | N42: 2199.673203 | O42: 2751.557093 | P42: 3563.427528 | Q42: 4125.576701 | R42: 4295.174933 | S42: 4326.230296 | T42: 5024.37524
A43: 41 | B43: 2288.54 | C43: 2862.72 | D43: 3707.39 | E43: 4292.25 | F43: 4468.70 | G43: 4501.01 | H43: 5227.36 | N43: 2199.673203 | O43: 2751.557093 | P43: 3563.427528 | Q43: 4125.576701 | R43: 4295.174933 | S43: 4326.230296 | T43: 5024.37524
A44: 42 | B44: 2288.54 | C44: 2862.72 | D44: 3707.39 | E44: 4292.25 | F44: 4468.70 | G44: 4501.01 | H44: 5227.36 | N44: 2199.673203 | O44: 2751.557093 | P44: 3563.427528 | Q44: 4125.576701 | R44: 4295.174933 | S44: 4326.230296 | T44: 5024.37524
A45: 43 | B45: 2288.54 | C45: 2862.72 | D45: 3707.39 | E45: 4292.25 | F45: 4468.70 | G45: 4501.01 | H45: 5227.36 | N45: 2199.673203 | O45: 2751.557093 | P45: 3563.427528 | Q45: 4125.576701 | R45: 4295.174933 | S45: 4326.230296 | T45: 5024.37524
A46: 44 | B46: 2288.54 | C46: 2862.72 | D46: 3707.39 | E46: 4292.25 | F46: 4468.70 | G46: 4501.01 | H46: 5227.36 | N46: 2199.673203 | O46: 2751.557093 | P46: 3563.427528 | Q46: 4125.576701 | R46: 4295.174933 | S46: 4326.230296 | T46: 5024.37524
A47: 45 | B47: 2288.54 | C47: 2862.72 | D47: 3707.39 | E47: 4292.25 | F47: 4468.70 | G47: 4501.01 | H47: 5227.36 | N47: 2199.673203 | O47: 2751.557093 | P47: 3563.427528 | Q47: 4125.576701 | R47: 4295.174933 | S47: 4326.230296 | T47: 5024.37524

Sheet Barèmes CG 01-2022 (hidden)
A1: Ancienneté | B1: Échelon 1 | C1: Échelon 2 | D1: Échelon 3 | E1: Échelon 4.1 | F1: Échelon 4.2 | G1: Échelon 5 | H1: Échelon 6 | J1: Communauté germanophone
A2: 0 | B2: 1691.40 | C2: 1691.40 | D2: 1691.40 | E2: 1807.04 | F2: 2132.21 | G2: 2329.97 | H2: 2433.56 | J2: Base | K2: 2022-04-01
A3: 1 | B3: 1756.23 | C3: 1756.23 | D3: 1794.07 | E3: 1938.58 | F3: 2241.52 | G3: 2422.22 | H3: 2552.81
A4: 2 | B4: 1756.23 | C4: 1756.23 | D4: 1794.07 | E4: 1938.58 | F4: 2241.52 | G4: 2422.22 | H4: 2552.81 | J4: hors index au 01 01
A5: 3 | B5: 1756.23 | C5: 1756.23 | D5: 1823.29 | E5: 1997.03 | F5: 2321.01 | G5: 2489.65 | H5: 2659.60
A6: 4 | B6: 1756.23 | C6: 1756.23 | D6: 1823.29 | E6: 1997.03 | F6: 2321.01 | G6: 2489.65 | H6: 2659.60
A7: 5 | B7: 1756.23 | C7: 1756.23 | D7: 1862.27 | E7: 2055.47 | F7: 2400.49 | G7: 2557.08 | H7: 2766.40
A8: 6 | B8: 1756.23 | C8: 1756.23 | D8: 1946.17 | E8: 2151.14 | F8: 2400.49 | G8: 2557.08 | H8: 2766.40
A9: 7 | B9: 1756.23 | C9: 1756.23 | D9: 1946.17 | E9: 2151.14 | F9: 2400.49 | G9: 2557.08 | H9: 2766.40
A10: 8 | B10: 1756.23 | C10: 1756.23 | D10: 1946.17 | E10: 2151.14 | F10: 2400.49 | G10: 2557.08 | H10: 2766.40
A11: 9 | B11: 1756.23 | C11: 1756.23 | D11: 1946.17 | E11: 2151.14 | F11: 2400.49 | G11: 2557.08 | H11: 2766.40
A12: 10 | B12: 1756.23 | C12: 1756.23 | D12: 1946.17 | E12: 2151.14 | F12: 2400.49 | G12: 2557.08 | H12: 2766.40
A13: 11 | B13: 1756.23 | C13: 1756.23 | D13: 1946.17 | E13: 2151.14 | F13: 2400.49 | G13: 2557.08 | H13: 2766.40
A14: 12 | B14: 1756.23 | C14: 1756.23 | D14: 1946.17 | E14: 2151.14 | F14: 2400.49 | G14: 2557.08 | H14: 2766.40
A15: 13 | B15: 1756.23 | C15: 1756.23 | D15: 1946.17 | E15: 2151.14 | F15: 2400.49 | G15: 2557.08 | H15: 2766.40
A16: 14 | B16: 1756.23 | C16: 1756.23 | D16: 1946.17 | E16: 2151.14 | F16: 2400.49 | G16: 2557.08 | H16: 2766.40
A17: 15 | B17: 1756.23 | C17: 1756.23 | D17: 1946.17 | E17: 2151.14 | F17: 2400.49 | G17: 2557.08 | H17: 2766.40
A18: 16 | B18: 1756.23 | C18: 1756.23 | D18: 1946.17 | E18: 2151.14 | F18: 2400.49 | G18: 2557.08 | H18: 2766.40
A19: 17 | B19: 1756.23 | C19: 1756.23 | D19: 1946.17 | E19: 2151.14 | F19: 2400.49 | G19: 2557.08 | H19: 2766.40
A20: 18 | B20: 1756.23 | C20: 1756.23 | D20: 1946.17 | E20: 2151.14 | F20: 2400.49 | G20: 2557.08 | H20: 2766.40
A21: 19 | B21: 1756.23 | C21: 1756.23 | D21: 1946.17 | E21: 2151.14 | F21: 2400.49 | G21: 2557.08 | H21: 2766.40
A22: 20 | B22: 1756.23 | C22: 1756.23 | D22: 1946.17 | E22: 2151.14 | F22: 2400.49 | G22: 2557.08 | H22: 2766.40
A23: 21 | B23: 1756.23 | C23: 1756.23 | D23: 1946.17 | E23: 2151.14 | F23: 2400.49 | G23: 2557.08 | H23: 2766.40
A24: 22 | B24: 1756.23 | C24: 1756.23 | D24: 1946.17 | E24: 2151.14 | F24: 2400.49 | G24: 2557.08 | H24: 2766.40
A25: 23 | B25: 1756.23 | C25: 1756.23 | D25: 1946.17 | E25: 2151.14 | F25: 2400.49 | G25: 2557.08 | H25: 2766.40
A26: 24 | B26: 1756.23 | C26: 1756.23 | D26: 1946.17 | E26: 2151.14 | F26: 2400.49 | G26: 2557.08 | H26: 2766.40
A27: 25 | B27: 1756.23 | C27: 1756.23 | D27: 1946.17 | E27: 2151.14 | F27: 2400.49 | G27: 2557.08 | H27: 2766.40
A28: 26 | B28: 1756.23 | C28: 1756.23 | D28: 1946.17 | E28: 2151.14 | F28: 2400.49 | G28: 2557.08 | H28: 2766.40
A29: 27 | B29: 1756.23 | C29: 1756.23 | D29: 1946.17 | E29: 2151.14 | F29: 2400.49 | G29: 2557.08 | H29: 2766.40
A30: 28 | B30: 1756.23 | C30: 1756.23 | D30: 1946.17 | E30: 2151.14 | F30: 2400.49 | G30: 2557.08 | H30: 2766.40
A31: 29 | B31: 1756.23 | C31: 1756.23 | D31: 1946.17 | E31: 2151.14 | F31: 2400.49 | G31: 2557.08 | H31: 2766.40
A32: 30 | B32: 1756.23 | C32: 1756.23 | D32: 1946.17 | E32: 2151.14 | F32: 2400.49 | G32: 2557.08 | H32: 2766.40
A33: 31 | B33: 1756.23 | C33: 1756.23 | D33: 1946.17 | E33: 2151.14 | F33: 2400.49 | G33: 2557.08 | H33: 2766.40
A34: 32 | B34: 1756.23 | C34: 1756.23 | D34: 1946.17 | E34: 2151.14 | F34: 2400.49 | G34: 2557.08 | H34: 2766.40
A35: 33 | B35: 1756.23 | C35: 1756.23 | D35: 1946.17 | E35: 2151.14 | F35: 2400.49 | G35: 2557.08 | H35: 2766.40
A36: 34 | B36: 1756.23 | C36: 1756.23 | D36: 1946.17 | E36: 2151.14 | F36: 2400.49 | G36: 2557.08 | H36: 2766.40
A37: 35 | B37: 1756.23 | C37: 1756.23 | D37: 1946.17 | E37: 2151.14 | F37: 2400.49 | G37: 2557.08 | H37: 2766.40
A38: 36 | B38: 1756.23 | C38: 1756.23 | D38: 1946.17 | E38: 2151.14 | F38: 2400.49 | G38: 2557.08 | H38: 2766.40
A39: 37 | B39: 1756.23 | C39: 1756.23 | D39: 1946.17 | E39: 2151.14 | F39: 2400.49 | G39: 2557.08 | H39: 2766.40
A40: 38 | B40: 1756.23 | C40: 1756.23 | D40: 1946.17 | E40: 2151.14 | F40: 2400.49 | G40: 2557.08 | H40: 2766.40
A41: 39 | B41: 1756.23 | C41: 1756.23 | D41: 1946.17 | E41: 2151.14 | F41: 2400.49 | G41: 2557.08 | H41: 2766.40
A42: 40 | B42: 1756.23 | C42: 1756.23 | D42: 1946.17 | E42: 2151.14 | F42: 2400.49 | G42: 2557.08 | H42: 2766.40
A43: 41 | B43: 1756.23 | C43: 1756.23 | D43: 1946.17 | E43: 2151.14 | F43: 2400.49 | G43: 2557.08 | H43: 2766.40
A44: 42 | B44: 1756.23 | C44: 1756.23 | D44: 1946.17 | E44: 2151.14 | F44: 2400.49 | G44: 2557.08 | H44: 2766.40
A45: 43 | B45: 1756.23 | C45: 1756.23 | D45: 1946.17 | E45: 2151.14 | F45: 2400.49 | G45: 2557.08 | H45: 2766.40
A46: 44 | B46: 1756.23 | C46: 1756.23 | D46: 1946.17 | E46: 2151.14 | F46: 2400.49 | G46: 2557.08 | H46: 2766.40
A47: 45 | B47: 1756.23 | C47: 1756.23 | D47: 1946.17 | E47: 2151.14 | F47: 2400.49 | G47: 2557.08 | H47: 2766.40

Sheet Barèmes CF 01-2022 (hidden)
A1: Ancienneté | B1: Échelon 1 | C1: Échelon 2 | D1: Échelon 3 | E1: Échelon 4.1 | F1: Échelon 4.2 | G1: Échelon 5 | H1: Échelon 6 | J1: Base | K1: 2022-04-01 | L1: avec déjà 2 indexations !!!!
A2: 0 | B2: 1762.79 | C2: 1931.30 | D2: 2183.75 | E2: 2366.61 | F2: 2792.46 | G2: 3051.52 | H2: 3187.16 | N2: =B2/1.02/1.02 -> 1694.338716 | O2: =C2/1.02/1.02 -> 1856.305267 | P2: 2098.952326 | Q2: 2274.711649 | R2: 2684.025375 | S2: =G2/1.02/1.02 -> 2933.025759 | T2: =H2/1.02/1.02 -> 3063.398693
A3: 1 | B3: 1910.41 | C3: 2083.98 | D3: 2349.64 | E3: 2538.91 | F3: 2935.65 | G3: 3172.33 | H3: 3343.35 | J3: CORRIGE SANS INDEX | N3: =B3/1.02/1.02 -> 1836.226451 | O3: =C3/1.02/1.02 -> 2003.056517 | P3: =D3/1.02/1.02 -> 2258.400615 | Q3: =E3/1.02/1.02 -> 2440.32103 | R3: =F3/1.02/1.02 -> 2821.655133 | S3: =G3/1.02/1.02 -> 3049.14456 | T3: =H3/1.02/1.02 -> 3213.523645
A4: 2 | B4: 1920.48 | C4: 2104.04 | D4: 2349.64 | E4: 2538.91 | F4: 2935.65 | G4: 3172.33 | H4: 3343.35 | N4: 1845.905421 | O4: 2022.337562 | P4: 2258.400615 | Q4: 2440.32103 | R4: 2821.655133 | S4: 3049.14456 | T4: 3213.523645
A5: 3 | B5: 1930.50 | C5: 2124.09 | D5: 2455.35 | E5: 2669.90 | F5: 3039.76 | G5: 3260.62 | H5: 3483.24 | N5: 1855.536332 | O5: 2041.608997 | P5: 2360.005767 | Q5: 2566.224529 | R5: 2921.722414 | S5: 3134.006151 | T5: 3347.981546
A6: 4 | B6: 1940.52 | C6: 2144.17 | D6: 2455.35 | E6: 2669.90 | F6: 3039.76 | G6: 3260.62 | H6: 3483.24 | N6: 1865.167243 | O6: 2060.909266 | P6: 2360.005767 | Q6: 2566.224529 | R6: 2921.722414 | S6: 3134.006151 | T6: 3347.981546
A7: 5 | B7: 1950.54 | C7: 2164.21 | D7: 2565.86 | E7: 2807.69 | F7: 3143.84 | G7: 3348.92 | H7: 3623.10 | N7: 1874.798155 | O7: 2080.171088 | P7: 2466.224529 | Q7: 2698.663975 | R7: 3021.760861 | S7: 3218.877355 | T7: 3482.410611
A8: 6 | B8: 1960.57 | C8: 2184.28 | D8: 2565.86 | E8: 2807.69 | F8: 3143.84 | G8: 3348.92 | H8: 3623.10 | N8: 1884.438677 | O8: 2099.461745 | P8: 2466.224529 | Q8: 2698.663975 | R8: 3021.760861 | S8: 3218.877355 | T8: 3482.410611
A9: 7 | B9: 1970.65 | C9: 2204.36 | D9: 2681.30 | E9: 2952.53 | F9: 3247.97 | G9: 3437.27 | H9: 3762.97 | N9: 1894.127259 | O9: 2118.762015 | P9: 2577.181853 | Q9: 2837.879662 | R9: 3121.847366 | S9: 3303.796617 | T9: 3616.849289
A10: 8 | B10: 1980.69 | C10: 2224.40 | D10: 2681.30 | E10: 2952.53 | F10: 3247.97 | G10: 3437.27 | H10: 3762.97 | N10: 1903.777393 | O10: 2138.023837 | P10: 2577.181853 | Q10: 2837.879662 | R10: 3121.847366 | S10: 3303.796617 | T10: 3616.849289
A11: 9 | B11: 1990.70 | C11: 2244.47 | D11: 2801.96 | E11: 3104.94 | F11: 3352.04 | G11: 3525.52 | H11: 3902.89 | N11: 1913.398693 | O11: 2157.314494 | P11: 2693.156478 | Q11: 2984.371396 | R11: 3221.876201 | S11: 3388.619762 | T11: 3751.336025
A12: 10 | B12: 2052.51 | C12: 2323.18 | D12: 2801.96 | E12: 3104.94 | F12: 3404.14 | G12: 3577.55 | H12: 3954.92 | N12: 1972.808535 | O12: 2232.968089 | P12: 2693.156478 | Q12: 2984.371396 | R12: 3271.953095 | S12: 3438.629373 | T12: 3801.345636
A13: 11 | B13: 2062.49 | C13: 2347.29 | D13: 2928.05 | E13: 3265.15 | F13: 3508.20 | G13: 3665.89 | H13: 4094.71 | N13: 1982.401 | O13: 2256.141869 | P13: 2814.35025 | Q13: 3138.360246 | R13: 3371.972318 | S13: 3523.539023 | T13: 3935.70742
A14: 12 | B14: 2072.55 | C14: 2371.35 | D14: 2928.05 | E14: 3265.15 | F14: 3508.20 | G14: 3665.89 | H14: 4094.71 | N14: 1992.070358 | O14: 2279.267589 | P14: 2814.35025 | Q14: 3138.360246 | R14: 3371.972318 | S14: 3523.539023 | T14: 3935.70742
A15: 13 | B15: 2082.57 | C15: 2395.44 | D15: 3059.82 | E15: 3433.65 | F15: 3612.28 | G15: 3754.17 | H15: 4234.65 | N15: 2001.701269 | O15: 2302.422145 | P15: 2941.00346 | Q15: 3300.317186 | R15: 3472.010765 | S15: 3608.391003 | T15: 4070.213379
A16: 14 | B16: 2092.61 | C16: 2419.44 | D16: 3059.82 | E16: 3433.65 | F16: 3612.28 | G16: 3754.17 | H16: 4234.65 | N16: 2011.351403 | O16: 2325.490196 | P16: 2941.00346 | Q16: 3300.317186 | R16: 3472.010765 | S16: 3608.391003 | T16: 4070.213379
A17: 15 | B17: 2102.68 | C17: 2443.52 | D17: 3160.82 | E17: 3570.94 | F17: 3716.36 | G17: 3842.49 | H17: 4374.51 | N17: 2021.030373 | O17: 2348.63514 | P17: 3038.081507 | Q17: 3432.276048 | R17: 3572.049212 | S17: 3693.28143 | T17: 4204.642445
A18: 16 | B18: 2112.73 | C18: 2467.62 | D18: 3160.82 | E18: 3570.94 | F18: 3716.36 | G18: 3842.49 | H18: 4374.51 | N18: 2030.690119 | O18: 2371.799308 | P18: 3038.081507 | Q18: 3432.276048 | R18: 3572.049212 | S18: 3693.28143 | T18: 4204.642445
A19: 17 | B19: 2122.69 | C19: 2491.69 | D19: 3211.02 | E19: 3713.79 | F19: 3820.43 | G19: 3930.79 | H19: 4514.40 | N19: 2040.26336 | O19: 2394.934641 | P19: 3086.33218 | Q19: 3569.579008 | R19: 3672.078047 | S19: 3778.152634 | T19: 4339.100346
A20: 18 | B20: 2132.75 | C20: 2515.75 | D20: 3211.02 | E20: 3713.79 | F20: 3820.43 | G20: 3930.79 | H20: 4514.40 | N20: 2049.932718 | O20: 2418.060361 | P20: 3086.33218 | Q20: 3569.579008 | R20: 3672.078047 | S20: 3778.152634 | T20: 4339.100346
A21: 19 | B21: 2142.81 | C21: 2539.85 | D21: 3289.11 | E21: 3862.29 | F21: 3924.55 | G21: 4019.07 | H21: 4654.28 | N21: 2059.602076 | O21: 2441.224529 | P21: 3161.38985 | Q21: 3712.312572 | R21: 3772.15494 | S21: 3863.004614 | T21: 4473.548635
A22: 20 | B22: 2152.83 | C22: 2563.90 | D22: 3289.11 | E22: 3862.29 | F22: 3924.55 | G22: 4019.07 | H22: 4654.28 | N22: 2069.232987 | O22: 2464.340638 | P22: 3161.38985 | Q22: 3712.312572 | R22: 3772.15494 | S22: 3863.004614 | T22: 4473.548635
A23: 21 | B23: 2162.87 | C23: 2587.92 | D23: 3367.14 | E23: 3935.29 | F23: 4028.67 | G23: 4107.38 | H23: 4794.14 | N23: 2078.883122 | O23: 2487.427912 | P23: 3236.38985 | Q23: 3782.477893 | R23: 3872.231834 | S23: 3947.885429 | T23: 4607.977701
A24: 22 | B24: 2172.92 | C24: 2612.01 | D24: 3367.14 | E24: 3935.29 | F24: 4028.67 | G24: 4107.38 | H24: 4794.14 | N24: 2088.542868 | O24: 2510.582468 | P24: 3236.38985 | Q24: 3782.477893 | R24: 3872.231834 | S24: 3947.885429 | T24: 4607.977701
A25: 23 | B25: 2182.92 | C25: 2636.12 | D25: 3445.21 | E25: 4013.42 | F25: 4132.70 | G25: 4195.70 | H25: 4934.02 | N25: 2098.154556 | O25: 2533.756248 | P25: 3311.428297 | Q25: 3857.57401 | R25: 3972.222222 | S25: 4032.775855 | T25: 4742.42599
A26: 24 | B26: 2192.98 | C26: 2660.20 | D26: 3445.21 | E26: 4013.42 | F26: 4132.70 | G26: 4195.70 | H26: 4934.02 | N26: 2107.823914 | O26: 2556.901192 | P26: 3311.428297 | Q26: 3857.57401 | R26: 3972.222222 | S26: 4032.775855 | T26: 4742.42599
A27: 25 | B27: 2203.02 | C27: 2684.24 | D27: 3523.31 | E27: 4091.45 | F27: 4236.85 | G27: 4284.00 | H27: 4934.02 | N27: 2117.474048 | O27: 2580.007689 | P27: 3386.495579 | Q27: 3932.57401 | R27: 4072.327951 | S27: 4117.647059 | T27: 4742.42599
A28: 26 | B28: 2213.05 | C28: 2708.32 | D28: 3523.31 | E28: 4091.45 | F28: 4236.85 | G28: 4284.00 | H28: 4934.02 | N28: 2127.114571 | O28: 2603.152634 | P28: 3386.495579 | Q28: 3932.57401 | R28: 4072.327951 | S28: 4117.647059 | T28: 4742.42599
A29: 27 | B29: 2223.11 | C29: 2732.44 | D29: 3601.33 | E29: 4169.48 | F29: 4340.91 | G29: 4372.27 | H29: 4934.02 | N29: 2136.783929 | O29: 2626.336025 | P29: 3461.485967 | Q29: 4007.57401 | R29: 4172.347174 | S29: 4202.489427 | T29: 4742.42599
A30: 28 | B30: 2223.11 | C30: 2756.46 | D30: 3601.33 | E30: 4169.48 | F30: 4340.91 | G30: 4372.27 | H30: 4934.02 | N30: 2136.783929 | O30: 2649.423299 | P30: 3461.485967 | Q30: 4007.57401 | R30: 4172.347174 | S30: 4202.489427 | T30: 4742.42599
A31: 29 | B31: 2223.11 | C31: 2780.85 | D31: 3601.33 | E31: 4169.48 | F31: 4340.91 | G31: 4372.27 | H31: 4934.02 | N31: 2136.783929 | O31: 2672.866205 | P31: 3461.485967 | Q31: 4007.57401 | R31: 4172.347174 | S31: 4202.489427 | T31: 4742.42599
A32: 30 | B32: 2223.11 | C32: 2780.85 | D32: 3601.33 | E32: 4169.48 | F32: 4340.91 | G32: 4372.27 | H32: 4934.02 | N32: 2136.783929 | O32: 2672.866205 | P32: 3461.485967 | Q32: 4007.57401 | R32: 4172.347174 | S32: 4202.489427 | T32: 4742.42599
A33: 31 | B33: 2223.11 | C33: 2780.85 | D33: 3601.33 | E33: 4169.48 | F33: 4340.91 | G33: 4372.27 | H33: 4934.02 | N33: 2136.783929 | O33: 2672.866205 | P33: 3461.485967 | Q33: 4007.57401 | R33: 4172.347174 | S33: 4202.489427 | T33: 4742.42599
A34: 32 | B34: 2223.11 | C34: 2780.85 | D34: 3601.33 | E34: 4169.48 | F34: 4340.91 | G34: 4372.27 | H34: 4934.02 | N34: 2136.783929 | O34: 2672.866205 | P34: 3461.485967 | Q34: 4007.57401 | R34: 4172.347174 | S34: 4202.489427 | T34: 4742.42599
A35: 33 | B35: 2223.11 | C35: 2780.85 | D35: 3601.33 | E35: 4169.48 | F35: 4340.91 | G35: 4372.27 | H35: 4934.02 | N35: 2136.783929 | O35: 2672.866205 | P35: 3461.485967 | Q35: 4007.57401 | R35: 4172.347174 | S35: 4202.489427 | T35: 4742.42599
A36: 34 | B36: 2223.11 | C36: 2780.85 | D36: 3601.33 | E36: 4169.48 | F36: 4340.91 | G36: 4372.27 | H36: 4934.02 | N36: 2136.783929 | O36: 2672.866205 | P36: 3461.485967 | Q36: 4007.57401 | R36: 4172.347174 | S36: 4202.489427 | T36: 4742.42599
A37: 35 | B37: 2223.11 | C37: 2780.85 | D37: 3601.33 | E37: 4169.48 | F37: 4340.91 | G37: 4372.27 | H37: 4934.02 | N37: 2136.783929 | O37: 2672.866205 | P37: 3461.485967 | Q37: 4007.57401 | R37: 4172.347174 | S37: 4202.489427 | T37: 4742.42599
A38: 36 | B38: 2223.11 | C38: 2780.85 | D38: 3601.33 | E38: 4169.48 | F38: 4340.91 | G38: 4372.27 | H38: 4934.02 | N38: 2136.783929 | O38: 2672.866205 | P38: 3461.485967 | Q38: 4007.57401 | R38: 4172.347174 | S38: 4202.489427 | T38: 4742.42599
A39: 37 | B39: 2223.11 | C39: 2780.85 | D39: 3601.33 | E39: 4169.48 | F39: 4340.91 | G39: 4372.27 | H39: 4934.02 | N39: 2136.783929 | O39: 2672.866205 | P39: 3461.485967 | Q39: 4007.57401 | R39: 4172.347174 | S39: 4202.489427 | T39: 4742.42599
A40: 38 | B40: 2223.11 | C40: 2780.85 | D40: 3601.33 | E40: 4169.48 | F40: 4340.91 | G40: 4372.27 | H40: 4934.02 | N40: 2136.783929 | O40: 2672.866205 | P40: 3461.485967 | Q40: 4007.57401 | R40: 4172.347174 | S40: 4202.489427 | T40: 4742.42599
A41: 39 | B41: 2223.11 | C41: 2780.85 | D41: 3601.33 | E41: 4169.48 | F41: 4340.91 | G41: 4372.27 | H41: 4934.02 | N41: 2136.783929 | O41: 2672.866205 | P41: 3461.485967 | Q41: 4007.57401 | R41: 4172.347174 | S41: 4202.489427 | T41: 4742.42599
A42: 40 | B42: 2223.11 | C42: 2780.85 | D42: 3601.33 | E42: 4169.48 | F42: 4340.91 | G42: 4372.27 | H42: 4934.02 | N42: 2136.783929 | O42: 2672.866205 | P42: 3461.485967 | Q42: 4007.57401 | R42: 4172.347174 | S42: 4202.489427 | T42: 4742.42599
A43: 41 | B43: 2223.11 | C43: 2780.85 | D43: 3601.33 | E43: 4169.48 | F43: 4340.91 | G43: 4372.27 | H43: 4934.02 | N43: 2136.783929 | O43: 2672.866205 | P43: 3461.485967 | Q43: 4007.57401 | R43: 4172.347174 | S43: 4202.489427 | T43: 4742.42599
A44: 42 | B44: 2223.11 | C44: 2780.85 | D44: 3601.33 | E44: 4169.48 | F44: 4340.91 | G44: 4372.27 | H44: 4934.02 | N44: 2136.783929 | O44: 2672.866205 | P44: 3461.485967 | Q44: 4007.57401 | R44: 4172.347174 | S44: 4202.489427 | T44: 4742.42599
A45: 43 | B45: 2223.11 | C45: 2780.85 | D45: 3601.33 | E45: 4169.48 | F45: 4340.91 | G45: 4372.27 | H45: 4934.02 | N45: 2136.783929 | O45: 2672.866205 | P45: 3461.485967 | Q45: 4007.57401 | R45: 4172.347174 | S45: 4202.489427 | T45: 4742.42599
A46: 44 | B46: 2223.11 | C46: 2780.85 | D46: 3601.33 | E46: 4169.48 | F46: 4340.91 | G46: 4372.27 | H46: 4934.02 | N46: 2136.783929 | O46: 2672.866205 | P46: 3461.485967 | Q46: 4007.57401 | R46: 4172.347174 | S46: 4202.489427 | T46: 4742.42599
A47: 45 | B47: 2223.11 | C47: 2780.85 | D47: 3601.33 | E47: 4169.48 | F47: 4340.91 | G47: 4372.27 | H47: 4934.02 | N47: 2136.783929 | O47: 2672.866205 | P47: 3461.485967 | Q47: 4007.57401 | R47: 4172.347174 | S47: 4202.489427 | T47: 4742.42599

Sheet Barèmes CeSp 01-2022 (hidden)
A1: Ancienneté | B1: Échelon 1 | C1: Échelon 2 | D1: Échelon 3 | E1: Échelon 4 | F1: Échelon 5 | G1: Échelon 6 | H1: Échelon 7 | I1: Échelon 8 | J1: Échelon 9 | K1: Échelon 10 | L1: Échelon 11 | M1: Échelon 12 | N1: Échelon 13 | O1: Échelon 14 | P1: Échelon 15 | Q1: Échelon 16 | R1: Échelon 17 | S1: Échelon 18 | T1: Échelon 19 | U1: Échelon 20 | V1: Échelon 21 | X1: Centres sportifs
A2: 0 | B2: 1761.09 | C2: 1777.36 | D2: 1793.59 | E2: 1818.49 | F2: 1864.79 | G2: 1901.99 | H2: 1953.79 | I2: 2037.03 | J2: 2092.19 | K2: 2207.07 | L2: 2340.66 | M2: 2373.77 | N2: 2498.25 | O2: 2532.89 | P2: 2592.38 | Q2: 2729.82 | R2: 2944.22 | S2: 3572.03 | T2: 3030.81 | U2: 4329.73 | V2: 5458.70 | X2: Base | Y2: 2022-04-01
A3: 1 | B3: 1775.71 | C3: 1793.05 | D3: 1810.37 | E3: 1836.35 | F3: 1883.20 | G3: 1920.94 | H3: 1973.17 | I3: 2057.60 | J3: 2114.39 | K3: 2232.49 | L3: 2366.62 | M3: 2402.14 | N3: 2527.48 | O3: 2564.28 | P3: 2627.02 | Q3: 2780.68 | R3: 3000.50 | S3: 3633.72 | T3: 3107.66 | U3: 4421.73 | V3: 5557.80
A4: 2 | B4: 1790.31 | C4: 1808.75 | D4: 1827.15 | E4: 1854.21 | F4: 1901.61 | G4: 1939.88 | H4: 1992.54 | I4: 2078.17 | J4: 2136.57 | K4: 2257.93 | L4: 2392.60 | M4: 2430.51 | N4: 2556.70 | O4: 2595.68 | P4: 2661.66 | Q4: 2831.55 | R4: 3056.79 | S4: 3695.43 | T4: 3184.52 | U4: 4513.74 | V4: 5656.89 | X4: CORRIGE , données au 01 01
A5: 3 | B5: 1804.92 | C5: 1824.43 | D5: 1843.93 | E5: 1872.07 | F5: 1920.01 | G5: 1958.83 | H5: 2011.92 | I5: 2098.72 | J5: 2158.77 | K5: 2283.36 | L5: 2418.58 | M5: 2458.87 | N5: 2585.93 | O5: 2627.06 | P5: 2696.30 | Q5: 2882.43 | R5: 3113.07 | S5: 3757.12 | T5: 3261.37 | U5: 4605.75 | V5: 5755.99
A6: 4 | B6: 1819.53 | C6: 1840.13 | D6: 1860.70 | E6: 1889.93 | F6: 1938.40 | G6: 1977.76 | H6: 2031.29 | I6: 2119.29 | J6: 2180.95 | K6: 2308.80 | L6: 2444.56 | M6: 2487.24 | N6: 2615.16 | O6: 2658.45 | P6: 2730.94 | Q6: 2933.31 | R6: 3169.36 | S6: 3818.82 | T6: 3338.22 | U6: 4697.76 | V6: 5855.09
A7: 5 | B7: 1834.13 | C7: 1855.84 | D7: 1877.47 | E7: 1907.79 | F7: 1956.81 | G7: 1996.70 | H7: 2050.67 | I7: 2139.87 | J7: 2203.14 | K7: 2334.24 | L7: 2470.54 | M7: 2515.62 | N7: 2644.38 | O7: 2689.84 | P7: 2765.57 | Q7: 2984.18 | R7: 3225.65 | S7: 3880.52 | T7: 3415.07 | U7: 4789.77 | V7: 5954.20
A8: 6 | B8: 1848.74 | C8: 1871.53 | D8: 1894.25 | E8: 1925.65 | F8: 1975.21 | G8: 2015.65 | H8: 2070.04 | I8: 2160.43 | J8: 2225.33 | K8: 2359.68 | L8: 2496.52 | M8: 2543.98 | N8: 2673.61 | O8: 2721.24 | P8: 2800.21 | Q8: 3035.05 | R8: 3281.93 | S8: 3942.22 | T8: 3491.93 | U8: 4881.76 | V8: 6053.28
A9: 7 | B9: 1863.35 | C9: 1887.22 | D9: 1911.04 | E9: 1943.51 | F9: 1993.60 | G9: 2034.58 | H9: 2089.43 | I9: 2180.99 | J9: 2247.53 | K9: 2385.12 | L9: 2522.50 | M9: 2572.35 | N9: 2702.84 | O9: 2752.62 | P9: 2834.86 | Q9: 3085.93 | R9: 3338.22 | S9: 4003.92 | T9: 3568.78 | U9: 4973.78 | V9: 6152.39
A10: 8 | B10: 1877.94 | C10: 1902.91 | D10: 1927.81 | E10: 1961.36 | F10: 2012.01 | G10: 2053.54 | H10: 2108.79 | I10: 2201.56 | J10: 2269.71 | K10: 2410.56 | L10: 2548.48 | M10: 2600.70 | N10: 2732.06 | O10: 2784.02 | P10: 2869.48 | Q10: 3136.81 | R10: 3394.50 | S10: 4065.61 | T10: 3645.63 | U10: 5065.78 | V10: 6251.48
A11: 9 | B11: 1892.56 | C11: 1918.61 | D11: 1944.59 | E11: 1979.23 | F11: 2030.41 | G11: 2072.48 | H11: 2128.17 | I11: 2222.13 | J11: 2291.90 | K11: 2435.99 | L11: 2574.46 | M11: 2629.08 | N11: 2761.28 | O11: 2815.40 | P11: 2904.12 | Q11: 3187.68 | R11: 3450.80 | S11: 4127.32 | T11: 3722.49 | U11: 5157.79 | V11: 6350.58
A12: 10 | B12: 1907.16 | C12: 1934.30 | D12: 1961.36 | E12: 1997.09 | F12: 2048.81 | G12: 2091.42 | H12: 2147.54 | I12: 2242.69 | J12: 2314.08 | K12: 2461.43 | L12: 2600.44 | M12: 2657.45 | N12: 2790.51 | O12: 2846.80 | P12: 2938.76 | Q12: 3238.56 | R12: 3507.09 | S12: 4189.02 | T12: 3799.34 | U12: 5249.80 | V12: 6449.66
A13: 11 | B13: 1921.77 | C13: 1950.01 | D13: 1978.15 | E13: 2014.94 | F13: 2067.21 | G13: 2110.36 | H13: 2166.93 | I13: 2263.26 | J13: 2336.28 | K13: 2486.87 | L13: 2626.42 | M13: 2685.81 | N13: 2819.73 | O13: 2878.19 | P13: 2973.40 | Q13: 3289.42 | R13: 3563.37 | S13: 4250.71 | T13: 3876.18 | U13: 5341.80 | V13: 6548.77
A14: 12 | B14: 1936.37 | C14: 1965.70 | D14: 1994.93 | E14: 2032.81 | F14: 2085.61 | G14: 2129.30 | H14: 2186.30 | I14: 2283.82 | J14: 2358.47 | K14: 2512.31 | L14: 2652.40 | M14: 2714.18 | N14: 2848.96 | O14: 2909.58 | P14: 3008.03 | Q14: 3340.30 | R14: 3619.65 | S14: 4312.41 | T14: 3953.04 | U14: 5433.82 | V14: 6647.86
A15: 13 | B15: 1950.98 | C15: 1981.39 | D15: 2011.70 | E15: 2050.67 | F15: 2104.02 | G15: 2148.25 | H15: 2205.67 | I15: 2304.39 | J15: 2380.66 | K15: 2537.74 | L15: 2678.38 | M15: 2742.55 | N15: 2878.19 | O15: 2940.98 | P15: 3042.67 | Q15: 3391.17 | R15: 3675.94 | S15: 4374.12 | T15: 4029.90 | U15: 5525.81 | V15: 6746.96
A16: 14 | B16: 1965.59 | C16: 1997.09 | D16: 2028.47 | E16: 2068.52 | F16: 2122.42 | G16: 2167.18 | H16: 2225.04 | I16: 2324.96 | J16: 2402.85 | K16: 2563.18 | L16: 2704.36 | M16: 2770.91 | N16: 2907.41 | O16: 2972.36 | P16: 3077.32 | Q16: 3442.05 | R16: 3732.23 | S16: 4435.81 | T16: 4106.75 | U16: 5617.82 | V16: 6846.05
A17: 15 | B17: 1980.21 | C17: 2012.78 | D17: 2045.26 | E17: 2086.39 | F17: 2140.82 | G17: 2186.13 | H17: 2244.43 | I17: 2345.52 | J17: 2425.04 | K17: 2588.62 | L17: 2730.34 | M17: 2799.29 | N17: 2936.64 | O17: 3003.75 | P17: 3111.95 | Q17: 3492.93 | R17: 3788.51 | S17: 4497.51 | T17: 4183.60 | U17: 5709.83 | V17: 6945.16
A18: 16 | B18: 1994.81 | C18: 2028.47 | D18: 2062.03 | E18: 2104.25 | F18: 2159.22 | G18: 2205.08 | H18: 2263.80 | I18: 2366.08 | J18: 2447.22 | K18: 2614.06 | L18: 2756.32 | M18: 2827.65 | N18: 2965.86 | O18: 3035.14 | P18: 3146.59 | Q18: 3543.80 | R18: 3844.80 | S18: 4559.20 | T18: 4260.45 | U18: 5801.83 | V18: 7044.25
A19: 17 | B19: 2009.41 | C19: 2044.18 | D19: 2078.81 | E19: 2122.10 | F19: 2177.62 | G19: 2224.01 | H19: 2283.18 | I19: 2386.66 | J19: 2469.42 | K19: 2639.49 | L19: 2782.29 | M19: 2856.02 | N19: 2995.10 | O19: 3066.53 | P19: 3181.22 | Q19: 3594.67 | R19: 3901.08 | S19: 4620.91 | T19: 4337.31 | U19: 5893.85 | V19: 7143.36
A20: 18 | B20: 2024.03 | C20: 2059.87 | D20: 2095.58 | E20: 2139.97 | F20: 2196.03 | G20: 2242.96 | H20: 2302.54 | I20: 2407.23 | J20: 2491.62 | K20: 2664.92 | L20: 2808.26 | M20: 2884.39 | N20: 3024.32 | O20: 3097.91 | P20: 3215.87 | Q20: 3645.55 | R20: 3957.37 | S20: 4682.61 | T20: 4414.16 | U20: 5985.85 | V20: 7242.44
A21: 19 | B21: 2038.62 | C21: 2075.57 | D21: 2112.37 | E21: 2157.83 | F21: 2214.42 | G21: 2261.90 | H21: 2321.93 | I21: 2427.79 | J21: 2513.80 | K21: 2690.36 | L21: 2834.24 | M21: 2912.75 | N21: 3053.54 | O21: 3129.32 | P21: 3250.51 | Q21: 3696.42 | R21: 4013.66 | S21: 4744.30 | T21: 4491.01 | U21: 6077.86 | V21: 7341.54
A22: 20 | B22: 2053.24 | C22: 2091.26 | D22: 2129.15 | E22: 2175.68 | F22: 2232.82 | G22: 2280.85 | H22: 2341.31 | I22: 2448.36 | J22: 2535.99 | K22: 2715.80 | L22: 2860.22 | M22: 2941.12 | N22: 3082.77 | O22: 3160.70 | P22: 3285.13 | Q22: 3747.30 | R22: 4069.94 | S22: 4806.01 | T22: 4567.87 | U22: 6169.87 | V22: 7440.63
A23: 21 | B23: 2067.84 | C23: 2106.95 | D23: 2145.92 | E23: 2193.55 | F23: 2251.23 | G23: 2299.78 | H23: 2360.68 | I23: 2468.92 | J23: 2558.18 | K23: 2741.24 | L23: 2886.19 | M23: 2969.48 | N23: 3111.99 | O23: 3192.09 | P23: 3319.78 | Q23: 3798.16 | R23: 4126.23 | S23: 4867.70 | T23: 4644.72 | U23: 6261.86 | V23: 7539.74
A24: 22 | B24: 2082.45 | C24: 2122.64 | D24: 2162.70 | E24: 2211.41 | F24: 2269.62 | G24: 2318.73 | H24: 2380.06 | I24: 2489.49 | J24: 2580.37 | K24: 2766.67 | L24: 2912.17 | M24: 2997.85 | N24: 3141.21 | O24: 3223.49 | P24: 3354.41 | Q24: 3849.04 | R24: 4182.52 | S24: 4929.39 | T24: 4721.56 | U24: 6353.88 | V24: 7638.82
A25: 23 | B25: 2097.05 | C25: 2138.35 | D25: 2179.49 | E25: 2229.26 | F25: 2288.02 | G25: 2337.68 | H25: 2399.43 | I25: 2510.06 | J25: 2602.56 | K25: 2792.11 | L25: 2938.15 | M25: 3026.21 | N25: 3170.45 | O25: 3254.87 | P25: 3389.05 | Q25: 3899.92 | R25: 4238.80 | S25: 4991.09 | T25: 4798.42 | U25: 6445.88 | V25: 7737.92
A26: 24 | B26: 2111.66 | C26: 2154.05 | D26: 2196.25 | E26: 2247.13 | F26: 2306.43 | G26: 2356.61 | H26: 2418.81 | I26: 2530.62 | J26: 2624.76 | K26: 2817.55 | L26: 2964.13 | M26: 3054.58 | N26: 3199.67 | O26: 3286.26 | P26: 3423.68 | Q26: 3950.80 | R26: 4295.10 | S26: 5052.79 | T26: 4875.27 | U26: 6537.89 | V26: 7837.02
A27: 25 | B27: 2126.26 | C27: 2169.73 | D27: 2213.03 | E27: 2264.99 | F27: 2324.82 | G27: 2375.56 | H27: 2438.18 | I27: 2551.18 | J27: 2646.94 | K27: 2842.98 | L27: 2990.11 | M27: 3082.95 | N27: 3228.89 | O27: 3317.66 | P27: 3458.33 | Q27: 4001.67 | R27: 4351.38 | S27: 5114.49 | T27: 4952.13 | U27: 6629.90 | V27: 7936.13
A28: 26 | B28: 2140.87 | C28: 2185.43 | D28: 2229.80 | E28: 2282.84 | F28: 2343.23 | G28: 2394.50 | H28: 2457.56 | I28: 2571.76 | J28: 2669.13 | K28: 2868.42 | L28: 3016.09 | M28: 3111.33 | N28: 3258.11 | O28: 3349.05 | P28: 3492.97 | Q28: 4052.54 | R28: 4407.66 | S28: 5176.18 | T28: 5028.98 | U28: 6721.90 | V28: 8035.22
A29: 27 | B29: 2155.48 | C29: 2201.12 | D29: 2246.59 | E29: 2300.71 | F29: 2361.64 | G29: 2413.43 | H29: 2476.94 | I29: 2592.32 | J29: 2691.32 | K29: 2893.86 | L29: 3042.07 | M29: 3139.69 | N29: 3287.34 | O29: 3380.43 | P29: 3527.60 | Q29: 4103.41 | R29: 4463.95 | S29: 5237.89 | T29: 5105.83 | U29: 6813.92 | V29: 8134.32
A30: 28 | B30: 2155.48 | C30: 2201.12 | D30: 2246.59 | E30: 2300.71 | F30: 2361.64 | G30: 2413.43 | H30: 2476.94 | I30: 2592.32 | J30: 2691.32 | K30: 2893.86 | L30: 3042.07 | M30: 3139.69 | N30: 3287.34 | O30: 3380.43 | P30: 3527.60 | Q30: 4103.41 | R30: 4463.95 | S30: 5237.89 | T30: 5105.83 | U30: 6813.92 | V30: 8134.32
A31: 29 | B31: 2155.48 | C31: 2201.12 | D31: 2246.59 | E31: 2300.71 | F31: 2361.64 | G31: 2413.43 | H31: 2476.94 | I31: 2592.32 | J31: 2691.32 | K31: 2893.86 | L31: 3042.07 | M31: 3139.69 | N31: 3287.34 | O31: 3380.43 | P31: 3527.60 | Q31: 4103.41 | R31: 4463.95 | S31: 5237.89 | T31: 5105.83 | U31: 6813.92 | V31: 8134.32
A32: 30 | B32: 2155.48 | C32: 2201.12 | D32: 2246.59 | E32: 2300.71 | F32: 2361.64 | G32: 2413.43 | H32: 2476.94 | I32: 2592.32 | J32: 2691.32 | K32: 2893.86 | L32: 3042.07 | M32: 3139.69 | N32: 3287.34 | O32: 3380.43 | P32: 3527.60 | Q32: 4103.41 | R32: 4463.95 | S32: 5237.89 | T32: 5105.83 | U32: 6813.92 | V32: 8134.32
A33: 31 | B33: 2155.48 | C33: 2201.12 | D33: 2246.59 | E33: 2300.71 | F33: 2361.64 | G33: 2413.43 | H33: 2476.94 | I33: 2592.32 | J33: 2691.32 | K33: 2893.86 | L33: 3042.07 | M33: 3139.69 | N33: 3287.34 | O33: 3380.43 | P33: 3527.60 | Q33: 4103.41 | R33: 4463.95 | S33: 5237.89 | T33: 5105.83 | U33: 6813.92 | V33: 8134.32
A34: 32 | B34: 2155.48 | C34: 2201.12 | D34: 2246.59 | E34: 2300.71 | F34: 2361.64 | G34: 2413.43 | H34: 2476.94 | I34: 2592.32 | J34: 2691.32 | K34: 2893.86 | L34: 3042.07 | M34: 3139.69 | N34: 3287.34 | O34: 3380.43 | P34: 3527.60 | Q34: 4103.41 | R34: 4463.95 | S34: 5237.89 | T34: 5105.83 | U34: 6813.92 | V34: 8134.32
A35: 33 | B35: 2155.48 | C35: 2201.12 | D35: 2246.59 | E35: 2300.71 | F35: 2361.64 | G35: 2413.43 | H35: 2476.94 | I35: 2592.32 | J35: 2691.32 | K35: 2893.86 | L35: 3042.07 | M35: 3139.69 | N35: 3287.34 | O35: 3380.43 | P35: 3527.60 | Q35: 4103.41 | R35: 4463.95 | S35: 5237.89 | T35: 5105.83 | U35: 6813.92 | V35: 8134.32
A36: 34 | B36: 2155.48 | C36: 2201.12 | D36: 2246.59 | E36: 2300.71 | F36: 2361.64 | G36: 2413.43 | H36: 2476.94 | I36: 2592.32 | J36: 2691.32 | K36: 2893.86 | L36: 3042.07 | M36: 3139.69 | N36: 3287.34 | O36: 3380.43 | P36: 3527.60 | Q36: 4103.41 | R36: 4463.95 | S36: 5237.89 | T36: 5105.83 | U36: 6813.92 | V36: 8134.32
A37: 35 | B37: 2155.48 | C37: 2201.12 | D37: 2246.59 | E37: 2300.71 | F37: 2361.64 | G37: 2413.43 | H37: 2476.94 | I37: 2592.32 | J37: 2691.32 | K37: 2893.86 | L37: 3042.07 | M37: 3139.69 | N37: 3287.34 | O37: 3380.43 | P37: 3527.60 | Q37: 4103.41 | R37: 4463.95 | S37: 5237.89 | T37: 5105.83 | U37: 6813.92 | V37: 8134.32
A38: 36 | B38: 2155.48 | C38: 2201.12 | D38: 2246.59 | E38: 2300.71 | F38: 2361.64 | G38: 2413.43 | H38: 2476.94 | I38: 2592.32 | J38: 2691.32 | K38: 2893.86 | L38: 3042.07 | M38: 3139.69 | N38: 3287.34 | O38: 3380.43 | P38: 3527.60 | Q38: 4103.41 | R38: 4463.95 | S38: 5237.89 | T38: 5105.83 | U38: 6813.92 | V38: 8134.32
A39: 37 | B39: 2155.48 | C39: 2201.12 | D39: 2246.59 | E39: 2300.71 | F39: 2361.64 | G39: 2413.43 | H39: 2476.94 | I39: 2592.32 | J39: 2691.32 | K39: 2893.86 | L39: 3042.07 | M39: 3139.69 | N39: 3287.34 | O39: 3380.43 | P39: 3527.60 | Q39: 4103.41 | R39: 4463.95 | S39: 5237.89 | T39: 5105.83 | U39: 6813.92 | V39: 8134.32
A40: 38 | B40: 2155.48 | C40: 2201.12 | D40: 2246.59 | E40: 2300.71 | F40: 2361.64 | G40: 2413.43 | H40: 2476.94 | I40: 2592.32 | J40: 2691.32 | K40: 2893.86 | L40: 3042.07 | M40: 3139.69 | N40: 3287.34 | O40: 3380.43 | P40: 3527.60 | Q40: 4103.41 | R40: 4463.95 | S40: 5237.89 | T40: 5105.83 | U40: 6813.92 | V40: 8134.32
A41: 39 | B41: 2155.48 | C41: 2201.12 | D41: 2246.59 | E41: 2300.71 | F41: 2361.64 | G41: 2413.43 | H41: 2476.94 | I41: 2592.32 | J41: 2691.32 | K41: 2893.86 | L41: 3042.07 | M41: 3139.69 | N41: 3287.34 | O41: 3380.43 | P41: 3527.60 | Q41: 4103.41 | R41: 4463.95 | S41: 5237.89 | T41: 5105.83 | U41: 6813.92 | V41: 8134.32
A42: 40 | B42: 2155.48 | C42: 2201.12 | D42: 2246.59 | E42: 2300.71 | F42: 2361.64 | G42: 2413.43 | H42: 2476.94 | I42: 2592.32 | J42: 2691.32 | K42: 2893.86 | L42: 3042.07 | M42: 3139.69 | N42: 3287.34 | O42: 3380.43 | P42: 3527.60 | Q42: 4103.41 | R42: 4463.95 | S42: 5237.89 | T42: 5105.83 | U42: 6813.92 | V42: 8134.32
A43: 41 | B43: 2155.48 | C43: 2201.12 | D43: 2246.59 | E43: 2300.71 | F43: 2361.64 | G43: 2413.43 | H43: 2476.94 | I43: 2592.32 | J43: 2691.32 | K43: 2893.86 | L43: 3042.07 | M43: 3139.69 | N43: 3287.34 | O43: 3380.43 | P43: 3527.60 | Q43: 4103.41 | R43: 4463.95 | S43: 5237.89 | T43: 5105.83 | U43: 6813.92 | V43: 8134.32
A44: 42 | B44: 2155.48 | C44: 2201.12 | D44: 2246.59 | E44: 2300.71 | F44: 2361.64 | G44: 2413.43 | H44: 2476.94 | I44: 2592.32 | J44: 2691.32 | K44: 2893.86 | L44: 3042.07 | M44: 3139.69 | N44: 3287.34 | O44: 3380.43 | P44: 3527.60 | Q44: 4103.41 | R44: 4463.95 | S44: 5237.89 | T44: 5105.83 | U44: 6813.92 | V44: 8134.32
A45: 43 | B45: 2155.48 | C45: 2201.12 | D45: 2246.59 | E45: 2300.71 | F45: 2361.64 | G45: 2413.43 | H45: 2476.94 | I45: 2592.32 | J45: 2691.32 | K45: 2893.86 | L45: 3042.07 | M45: 3139.69 | N45: 3287.34 | O45: 3380.43 | P45: 3527.60 | Q45: 4103.41 | R45: 4463.95 | S45: 5237.89 | T45: 5105.83 | U45: 6813.92 | V45: 8134.32
A46: 44 | B46: 2155.48 | C46: 2201.12 | D46: 2246.59 | E46: 2300.71 | F46: 2361.64 | G46: 2413.43 | H46: 2476.94 | I46: 2592.32 | J46: 2691.32 | K46: 2893.86 | L46: 3042.07 | M46: 3139.69 | N46: 3287.34 | O46: 3380.43 | P46: 3527.60 | Q46: 4103.41 | R46: 4463.95 | S46: 5237.89 | T46: 5105.83 | U46: 6813.92 | V46: 8134.32
A47: 45 | B47: 2155.48 | C47: 2201.12 | D47: 2246.59 | E47: 2300.71 | F47: 2361.64 | G47: 2413.43 | H47: 2476.94 | I47: 2592.32 | J47: 2691.32 | K47: 2893.86 | L47: 3042.07 | M47: 3139.69 | N47: 3287.34 | O47: 3380.43 | P47: 3527.60 | Q47: 4103.41 | R47: 4463.95 | S47: 5237.89 | T47: 5105.83 | U47: 6813.92 | V47: 8134.32

Sheet Données poste 1
A1: DONNÉES TRAVAILLEUR
A2: ="Employeurs du groupe 2 [Maribel] | Estimations pour l'année "&Année_ref -> Employeurs du groupe 2 [Maribel] | Estimations pour l'année 2023
A4: Données facultatives à encoder dans la feuille "Données travailleurs" | E4: Données à encoder dans la feuille "Données travailleurs" | J4: EXEMPLES | L4: Aides à l'emploi hors subv. fonctionnelles | P4: EXEMPLES
B5: ANNÉE : | C5: =Année_ref -> 2023 | E5: Unité d'établissement du poste : | I5: ='Données travailleurs'!G6 -> 0 | J5: Région bruxelloise [liste] | N5: APE / ACS ; PTP ; Maribel; Étudiant : | O5: ='Données travailleurs'!P6 -> 0 | P5: APE
B6: ID du travailleur : | C6: ='Données travailleurs'!B6 -> 0 | E6: Statut : | I6: ='Données travailleurs'!H6 -> 0 | J6: Ouvrier [liste]
B7: N° de registre national : | C7: ='Données travailleurs'!C6 -> 0 | E7: ="Régime de travail au 1-01-"&Année_ref&" ou au début du contrat :" -> Régime de travail au 1-01-2023 ou au début du contrat : | I7: ='Données travailleurs'!I6 -> 0 | J7: 17,6 = 17h36
B8: Année de naissance : | C8: ='Données travailleurs'!D6 -> 0 | E8: Régime 5 ou 6 jours | I8: ='Données travailleurs'!J6 -> 5 | L8: Renseignements indispensables pour le PTP à la date d'engagement :
B9: Niveau de diplôme : | C9: ='Données travailleurs'!E6 -> 0 | H9: Échelon [Voir note sur les barèmes] : | I9: =IF(Barème_référence_association="Centres sportifs","",'Données travailleurs'!K6) -> Autre | J9: 4.2 [liste] | L9: Âge à l'engagement : | P9: <45 ans
B10: Fonction : | C10: ='Données travailleurs'!F6 -> 0 | H10: Échelon pour les centres sportifs : | I10: =IF(Barème_référence_association<>"Centres sportifs","",'Données travailleurs'!L6) ->  | L10: Période allocataire social à l'engagement : | P10: ≥12 mois
B11: Domicile du travailleur | C11: Région bruxelloise | E11: ="Ancienneté barémique au 1-01-"&Année_ref&" :" -> Ancienneté barémique au 1-01-2023 : | I11: ='Données travailleurs'!M6 -> 0 | J11: 5 | L11: Date de l'engagement : | P11: 2016-10-15
E12: ="Mois du passage d'ancienneté en "&Année_ref&" :" -> Mois du passage d'ancienneté en 2023 : | I12: ='Données travailleurs'!N6 -> Aucune | J12: mars
E13: Mois de la prise principale des vacances : | I13: ='Données travailleurs'!O6 -> 2022-07-02 | J13: juillet
H14: Calcul d'échelon pour la matrice : | I14: =IF($I$9="Autre","",IF($I$9<=3,$I$9,IF($I$9="4.1",4,IF($I$9="4.2",5,IF($I$9=5,6,7))))) -> 
E15: =IF(D$23="Complétez","Complétez",IF(OR(Barème_référence_association="Autres",$I$9="Autre"),IF(Mois_index="Aucune",D$23,IF(AND(MONTH(Mois_index)>0,MONTH(Mois_index)=E$21), D$23*1.02,D$23)),E$27*$I$7/Régime_de_travail_temps_plein)) -> Complétez
C16: Indexations | D16: =IF(NIndex_réf=0,"",_xlfn.SWITCH(D$18,Mois_index,"indexation",MoisIndex2,"indexation",MoisIndex3,"indexation",MoisIndex4,"indexation",MoisIndex5,"indexation","")) ->  | E16: =IF(NIndex_réf=0,"",_xlfn.SWITCH(E$18,Mois_index,"indexation",MoisIndex2,"indexation",MoisIndex3,"indexation",MoisIndex4,"indexation",MoisIndex5,"indexation","")) -> indexation | F16: =IF(NIndex_réf=0,"",_xlfn.SWITCH(F$18,Mois_index,"indexation",MoisIndex2,"indexation",MoisIndex3,"indexation",MoisIndex4,"indexation",MoisIndex5,"indexation","")) ->  | G16: =IF(NIndex_réf=0,"",_xlfn.SWITCH(G$18,Mois_index,"indexation",MoisIndex2,"indexation",MoisIndex3,"indexation",MoisIndex4,"indexation",MoisIndex5,"indexation","")) ->  | H16: =IF(NIndex_réf=0,"",_xlfn.SWITCH(H$18,Mois_index,"indexation",MoisIndex2,"indexation",MoisIndex3,"indexation",MoisIndex4,"indexation",MoisIndex5,"indexation","")) -> indexation | I16: =IF(NIndex_réf=0,"",_xlfn.SWITCH(I$18,Mois_index,"indexation",MoisIndex2,"indexation",MoisIndex3,"indexation",MoisIndex4,"indexation",MoisIndex5,"indexation","")) ->  | J16: =IF(NIndex_réf=0,"",_xlfn.SWITCH(J$18,Mois_index,"indexation",MoisIndex2,"indexation",MoisIndex3,"indexation",MoisIndex4,"indexation",MoisIndex5,"indexation","")) ->  | K16: =IF(NIndex_réf=0,"",_xlfn.SWITCH(K$18,Mois_index,"indexation",MoisIndex2,"indexation",MoisIndex3,"indexation",MoisIndex4,"indexation",MoisIndex5,"indexation","")) -> indexation | L16: =IF(NIndex_réf=0,"",_xlfn.SWITCH(L$18,Mois_index,"indexation",MoisIndex2,"indexation",MoisIndex3,"indexation",MoisIndex4,"indexation",MoisIndex5,"indexation","")) ->  | M16: =IF(NIndex_réf=0,"",_xlfn.SWITCH(M$18,Mois_index,"indexation",MoisIndex2,"indexation",MoisIndex3,"indexation",MoisIndex4,"indexation",MoisIndex5,"indexation","")) ->  | N16: =IF(NIndex_réf=0,"",_xlfn.SWITCH(N$18,Mois_index,"indexation",MoisIndex2,"indexation",MoisIndex3,"indexation",MoisIndex4,"indexation",MoisIndex5,"indexation","")) ->  | O16: =IF(NIndex_réf=0,"",_xlfn.SWITCH(O$18,Mois_index,"indexation",MoisIndex2,"indexation",MoisIndex3,"indexation",MoisIndex4,"indexation",MoisIndex5,"indexation","")) -> 
C17: Annale ou biennale | E17: =IF($I$12="Aucune","",IF(MONTH($I$12)=E$21,"Annale ou biennale","")) -> 
C18: Charges | D18: 2017-01-01 | E18: 2017-02-01 | F18: 2017-03-01 | G18: 2017-04-01 | H18: 2017-05-01 | I18: 2017-06-01 | J18: 2017-07-01 | K18: 2017-08-01 | L18: 2017-09-01 | M18: 2017-10-01 | N18: 2017-11-01 | O18: 2017-12-01 | P18: TOTAL
C19: Modification du régime de travail pour le mois | D19: =$I$7 -> 0 | E19: 0 | F19: 0 | G19: 0 | H19: 0 | I19: 0 | J19: 0 | K19: 0 | L19: 0 | M19: 0 | N19: 0 | O19: 0 | P19: =AVERAGE(D$19:O$19) -> 0
C20: Durée d'occupation pour le mois | D20: 100% | E20: 100% | F20: 100% | G20: 100% | H20: 100% | I20: 100% | J20: 100% | K20: 100% | L20: 100% | M20: 100% | N20: 100% | O20: 100% | P20: =AVERAGE(D$20:O$20) -> 100%
D21: 1 | E21: 2 | F21: 3 | G21: 4 | H21: 5 | I21: 6 | J21: 7 | K21: 8 | L21: 9 | M21: 10 | N21: 11 | O21: 12
B22: Si nécessaire | C22: Rémunération brute avec corrections d'occupation et application RMMMG | D22: =IF($I$7=0,0,IF(D$23="Complétez","",IF(AND(MONTH($I$13)=D$21,$I$6="Ouvrier"),0,D$23*D$20*(D$19/$I$7)))) -> 0.00 | E22: =IF($I$7=0,0,IF(E$23="Complétez","",IF(AND(MONTH($I$13)=E$21,$I$6="Ouvrier"),0,E$23*E$20*(E$19/$I$7)))) -> 0.00 | F22: 0.00 | G22: 0.00 | H22: 0.00 | I22: 0.00 | J22: 0.00 | K22: 0.00 | L22: 0.00 | M22: 0.00 | N22: 0.00 | O22: 0.00 | P22: =SUM(D22:O22) -> 0.00
B23: Encodez ici => | C23: Rémunération brute mensuelle de référence | D23: =IF(OR(Barème_référence_association="Autres",$I$10="Autre",$I$9="Autre"),"Complétez", D$24*$I$7/Régime_de_travail_temps_plein) -> Complétez | E23: =IF(D$23="Complétez","Complétez",IF(OR(Barème_référence_association="Autres",$I$10="Autre",$I$9="Autre"),IF(E$16<>"indexation",D$23,D$23*1.02), E$24*$I$7/Régime_de_travail_temps_plein)) -> Complétez | F23: Complétez | G23: Complétez | H23: Complétez | I23: Complétez | J23: Complétez | K23: Complétez | L23: Complétez | M23: Complétez | N23: Complétez | O23: Complétez
C24: Rémunération brute mensuelle temps plein avec vérification index | D24: =D$25*_xlfn.SWITCH(Année_ref,2022,POWER(1.02,COUNTIF($D$16:D16,"indexation")),2023,POWER(1.02,NIndex2022+COUNTIF($D$16:D16,"indexation")),2024,POWER(1.02,NIndex2022+NIndex2023+COUNTIF($D$16:D16,"indexation"))) ->  | E24: =E$25*_xlfn.SWITCH(Année_ref,2022,POWER(1.02,COUNTIF($D$16:E16,"indexation")),2023,POWER(1.02,NIndex2022+COUNTIF($D$16:E16,"indexation")),2024,POWER(1.02,NIndex2022+NIndex2023+COUNTIF($D$16:E16,"indexation"))) ->  | F24: =F$25*_xlfn.SWITCH(Année_ref,2022,POWER(1.02,COUNTIF($D$16:F16,"indexation")),2023,POWER(1.02,NIndex2022+COUNTIF($D$16:F16,"indexation")),2024,POWER(1.02,NIndex2022+NIndex2023+COUNTIF($D$16:F16,"indexation"))) ->  | G24: =G$25*_xlfn.SWITCH(Année_ref,2022,POWER(1.02,COUNTIF($D$16:G16,"indexation")),2023,POWER(1.02,NIndex2022+COUNTIF($D$16:G16,"indexation")),2024,POWER(1.02,NIndex2022+NIndex2023+COUNTIF($D$16:G16,"indexation"))) ->  | H24: =H$25*_xlfn.SWITCH(Année_ref,2022,POWER(1.02,COUNTIF($D$16:H16,"indexation")),2023,POWER(1.02,NIndex2022+COUNTIF($D$16:H16,"indexation")),2024,POWER(1.02,NIndex2022+NIndex2023+COUNTIF($D$16:H16,"indexation"))) ->  | I24: =I$25*_xlfn.SWITCH(Année_ref,2022,POWER(1.02,COUNTIF($D$16:I16,"indexation")),2023,POWER(1.02,NIndex2022+COUNTIF($D$16:I16,"indexation")),2024,POWER(1.02,NIndex2022+NIndex2023+COUNTIF($D$16:I16,"indexation"))) ->  | J24: =J$25*_xlfn.SWITCH(Année_ref,2022,POWER(1.02,COUNTIF($D$16:J16,"indexation")),2023,POWER(1.02,NIndex2022+COUNTIF($D$16:J16,"indexation")),2024,POWER(1.02,NIndex2022+NIndex2023+COUNTIF($D$16:J16,"indexation"))) ->  | K24: =K$25*_xlfn.SWITCH(Année_ref,2022,POWER(1.02,COUNTIF($D$16:K16,"indexation")),2023,POWER(1.02,NIndex2022+COUNTIF($D$16:K16,"indexation")),2024,POWER(1.02,NIndex2022+NIndex2023+COUNTIF($D$16:K16,"indexation"))) ->  | L24: =L$25*_xlfn.SWITCH(Année_ref,2022,POWER(1.02,COUNTIF($D$16:L16,"indexation")),2023,POWER(1.02,NIndex2022+COUNTIF($D$16:L16,"indexation")),2024,POWER(1.02,NIndex2022+NIndex2023+COUNTIF($D$16:L16,"indexation"))) ->  | M24: =M$25*_xlfn.SWITCH(Année_ref,2022,POWER(1.02,COUNTIF($D$16:M16,"indexation")),2023,POWER(1.02,NIndex2022+COUNTIF($D$16:M16,"indexation")),2024,POWER(1.02,NIndex2022+NIndex2023+COUNTIF($D$16:M16,"indexation"))) ->  | N24: =N$25*_xlfn.SWITCH(Année_ref,2022,POWER(1.02,COUNTIF($D$16:N16,"indexation")),2023,POWER(1.02,NIndex2022+COUNTIF($D$16:N16,"indexation")),2024,POWER(1.02,NIndex2022+NIndex2023+COUNTIF($D$16:N16,"indexation"))) ->  | O24: =O$25*_xlfn.SWITCH(Année_ref,2022,POWER(1.02,COUNTIF($D$16:O16,"indexation")),2023,POWER(1.02,NIndex2022+COUNTIF($D$16:O16,"indexation")),2024,POWER(1.02,NIndex2022+NIndex2023+COUNTIF($D$16:O16,"indexation"))) -> 
C25: Brut avec annale ou biennale temps plein | D25: =IF(OR(Barème_référence_association="Autres",$I$9="Autre",$I$10="Autre"),D$23,_xlfn.SWITCH(Barème_référence_association, CF,ROUND(VLOOKUP($I$11+IF(D18<$I$12,0,1),'Barèmes CF 01-2022'!$A:$H,MIN($I$14+1,8)),2), RW_100,ROUND(VLOOKUP($I$11+IF(D18<$I$12,0,1),'Barèmes RW 01-2022'!$A:$H,MIN($I$14+1,8)),2), RBC_ISP,ROUND(VLOOKUP($I$11+IF(D18<$I$12,0,1),'Barèmes RBC 01-2022'!$A:$H,MIN($I$14+1,8)),2), CG,ROUND(VLOOKUP($I$11+IF(D18<$I$12,0,1),'Barèmes CG 01-2022'!$A:$H,MIN($I$14+1,8)),2), Centres_sportifs,ROUND(VLOOKUP($I$11+IF(D18<$I$12,0,1),'Barèmes CeSp 01-2022'!$A:$V,MIN($I$10+1,22)),2), Pourcentage,ROUND(VLOOKUP($I$11+IF(D18<$I$12,0,1),'Barèmes RW % 01-2022'!$A:$H,MIN($I$14+1,8)),2))) -> Complétez | E25: =IF(OR(Barème_référence_association="Autres",$I$9="Autre",$I$10="Autre"),E$23,_xlfn.SWITCH(Barème_référence_association, CF,ROUND(VLOOKUP($I$11+IF(E18<$I$12,0,1),'Barèmes CF 01-2022'!$A:$H,MIN($I$14+1,8)),2), RW_100,ROUND(VLOOKUP($I$11+IF(E18<$I$12,0,1),'Barèmes RW 01-2022'!$A:$H,MIN($I$14+1,8)),2), RBC_ISP,ROUND(VLOOKUP($I$11+IF(E18<$I$12,0,1),'Barèmes RBC 01-2022'!$A:$H,MIN($I$14+1,8)),2), CG,ROUND(VLOOKUP($I$11+IF(E18<$I$12,0,1),'Barèmes CG 01-2022'!$A:$H,MIN($I$14+1,8)),2), Centres_sportifs,ROUND(VLOOKUP($I$11+IF(E18<$I$12,0,1),'Barèmes CeSp 01-2022'!$A:$V,MIN($I$10+1,22)),2), Pourcentage,ROUND(VLOOKUP($I$11+IF(E18<$I$12,0,1),'Barèmes RW % 01-2022'!$A:$H,MIN($I$14+1,8)),2))) -> Complétez | F25: =IF(OR(Barème_référence_association="Autres",$I$9="Autre",$I$10="Autre"),F$23,_xlfn.SWITCH(Barème_référence_association, CF,ROUND(VLOOKUP($I$11+IF(F18<$I$12,0,1),'Barèmes CF 01-2022'!$A:$H,MIN($I$14+1,8)),2), RW_100,ROUND(VLOOKUP($I$11+IF(F18<$I$12,0,1),'Barèmes RW 01-2022'!$A:$H,MIN($I$14+1,8)),2), RBC_ISP,ROUND(VLOOKUP($I$11+IF(F18<$I$12,0,1),'Barèmes RBC 01-2022'!$A:$H,MIN($I$14+1,8)),2), CG,ROUND(VLOOKUP($I$11+IF(F18<$I$12,0,1),'Barèmes CG 01-2022'!$A:$H,MIN($I$14+1,8)),2), Centres_sportifs,ROUND(VLOOKUP($I$11+IF(F18<$I$12,0,1),'Barèmes CeSp 01-2022'!$A:$V,MIN($I$10+1,22)),2), Pourcentage,ROUND(VLOOKUP($I$11+IF(F18<$I$12,0,1),'Barèmes RW % 01-2022'!$A:$H,MIN($I$14+1,8)),2))) -> Complétez | G25: =IF(OR(Barème_référence_association="Autres",$I$9="Autre",$I$10="Autre"),G$23,_xlfn.SWITCH(Barème_référence_association, CF,ROUND(VLOOKUP($I$11+IF(G18<$I$12,0,1),'Barèmes CF 01-2022'!$A:$H,MIN($I$14+1,8)),2), RW_100,ROUND(VLOOKUP($I$11+IF(G18<$I$12,0,1),'Barèmes RW 01-2022'!$A:$H,MIN($I$14+1,8)),2), RBC_ISP,ROUND(VLOOKUP($I$11+IF(G18<$I$12,0,1),'Barèmes RBC 01-2022'!$A:$H,MIN($I$14+1,8)),2), CG,ROUND(VLOOKUP($I$11+IF(G18<$I$12,0,1),'Barèmes CG 01-2022'!$A:$H,MIN($I$14+1,8)),2), Centres_sportifs,ROUND(VLOOKUP($I$11+IF(G18<$I$12,0,1),'Barèmes CeSp 01-2022'!$A:$V,MIN($I$10+1,22)),2), Pourcentage,ROUND(VLOOKUP($I$11+IF(G18<$I$12,0,1),'Barèmes RW % 01-2022'!$A:$H,MIN($I$14+1,8)),2))) -> Complétez | H25: =IF(OR(Barème_référence_association="Autres",$I$9="Autre",$I$10="Autre"),H$23,_xlfn.SWITCH(Barème_référence_association, CF,ROUND(VLOOKUP($I$11+IF(H18<$I$12,0,1),'Barèmes CF 01-2022'!$A:$H,MIN($I$14+1,8)),2), RW_100,ROUND(VLOOKUP($I$11+IF(H18<$I$12,0,1),'Barèmes RW 01-2022'!$A:$H,MIN($I$14+1,8)),2), RBC_ISP,ROUND(VLOOKUP($I$11+IF(H18<$I$12,0,1),'Barèmes RBC 01-2022'!$A:$H,MIN($I$14+1,8)),2), CG,ROUND(VLOOKUP($I$11+IF(H18<$I$12,0,1),'Barèmes CG 01-2022'!$A:$H,MIN($I$14+1,8)),2), Centres_sportifs,ROUND(VLOOKUP($I$11+IF(H18<$I$12,0,1),'Barèmes CeSp 01-2022'!$A:$V,MIN($I$10+1,22)),2), Pourcentage,ROUND(VLOOKUP($I$11+IF(H18<$I$12,0,1),'Barèmes RW % 01-2022'!$A:$H,MIN($I$14+1,8)),2))) -> Complétez | I25: =IF(OR(Barème_référence_association="Autres",$I$9="Autre",$I$10="Autre"),I$23,_xlfn.SWITCH(Barème_référence_association, CF,ROUND(VLOOKUP($I$11+IF(I18<$I$12,0,1),'Barèmes CF 01-2022'!$A:$H,MIN($I$14+1,8)),2), RW_100,ROUND(VLOOKUP($I$11+IF(I18<$I$12,0,1),'Barèmes RW 01-2022'!$A:$H,MIN($I$14+1,8)),2), RBC_ISP,ROUND(VLOOKUP($I$11+IF(I18<$I$12,0,1),'Barèmes RBC 01-2022'!$A:$H,MIN($I$14+1,8)),2), CG,ROUND(VLOOKUP($I$11+IF(I18<$I$12,0,1),'Barèmes CG 01-2022'!$A:$H,MIN($I$14+1,8)),2), Centres_sportifs,ROUND(VLOOKUP($I$11+IF(I18<$I$12,0,1),'Barèmes CeSp 01-2022'!$A:$V,MIN($I$10+1,22)),2), Pourcentage,ROUND(VLOOKUP($I$11+IF(I18<$I$12,0,1),'Barèmes RW % 01-2022'!$A:$H,MIN($I$14+1,8)),2))) -> Complétez | J25: =IF(OR(Barème_référence_association="Autres",$I$9="Autre",$I$10="Autre"),J$23,_xlfn.SWITCH(Barème_référence_association, CF,ROUND(VLOOKUP($I$11+IF(J18<$I$12,0,1),'Barèmes CF 01-2022'!$A:$H,MIN($I$14+1,8)),2), RW_100,ROUND(VLOOKUP($I$11+IF(J18<$I$12,0,1),'Barèmes RW 01-2022'!$A:$H,MIN($I$14+1,8)),2), RBC_ISP,ROUND(VLOOKUP($I$11+IF(J18<$I$12,0,1),'Barèmes RBC 01-2022'!$A:$H,MIN($I$14+1,8)),2), CG,ROUND(VLOOKUP($I$11+IF(J18<$I$12,0,1),'Barèmes CG 01-2022'!$A:$H,MIN($I$14+1,8)),2), Centres_sportifs,ROUND(VLOOKUP($I$11+IF(J18<$I$12,0,1),'Barèmes CeSp 01-2022'!$A:$V,MIN($I$10+1,22)),2), Pourcentage,ROUND(VLOOKUP($I$11+IF(J18<$I$12,0,1),'Barèmes RW % 01-2022'!$A:$H,MIN($I$14+1,8)),2))) -> Complétez | K25: =IF(OR(Barème_référence_association="Autres",$I$9="Autre",$I$10="Autre"),K$23,_xlfn.SWITCH(Barème_référence_association, CF,ROUND(VLOOKUP($I$11+IF(K18<$I$12,0,1),'Barèmes CF 01-2022'!$A:$H,MIN($I$14+1,8)),2), RW_100,ROUND(VLOOKUP($I$11+IF(K18<$I$12,0,1),'Barèmes RW 01-2022'!$A:$H,MIN($I$14+1,8)),2), RBC_ISP,ROUND(VLOOKUP($I$11+IF(K18<$I$12,0,1),'Barèmes RBC 01-2022'!$A:$H,MIN($I$14+1,8)),2), CG,ROUND(VLOOKUP($I$11+IF(K18<$I$12,0,1),'Barèmes CG 01-2022'!$A:$H,MIN($I$14+1,8)),2), Centres_sportifs,ROUND(VLOOKUP($I$11+IF(K18<$I$12,0,1),'Barèmes CeSp 01-2022'!$A:$V,MIN($I$10+1,22)),2), Pourcentage,ROUND(VLOOKUP($I$11+IF(K18<$I$12,0,1),'Barèmes RW % 01-2022'!$A:$H,MIN($I$14+1,8)),2))) -> Complétez | L25: =IF(OR(Barème_référence_association="Autres",$I$9="Autre",$I$10="Autre"),L$23,_xlfn.SWITCH(Barème_référence_association, CF,ROUND(VLOOKUP($I$11+IF(L18<$I$12,0,1),'Barèmes CF 01-2022'!$A:$H,MIN($I$14+1,8)),2), RW_100,ROUND(VLOOKUP($I$11+IF(L18<$I$12,0,1),'Barèmes RW 01-2022'!$A:$H,MIN($I$14+1,8)),2), RBC_ISP,ROUND(VLOOKUP($I$11+IF(L18<$I$12,0,1),'Barèmes RBC 01-2022'!$A:$H,MIN($I$14+1,8)),2), CG,ROUND(VLOOKUP($I$11+IF(L18<$I$12,0,1),'Barèmes CG 01-2022'!$A:$H,MIN($I$14+1,8)),2), Centres_sportifs,ROUND(VLOOKUP($I$11+IF(L18<$I$12,0,1),'Barèmes CeSp 01-2022'!$A:$V,MIN($I$10+1,22)),2), Pourcentage,ROUND(VLOOKUP($I$11+IF(L18<$I$12,0,1),'Barèmes RW % 01-2022'!$A:$H,MIN($I$14+1,8)),2))) -> Complétez | M25: =IF(OR(Barème_référence_association="Autres",$I$9="Autre",$I$10="Autre"),M$23,_xlfn.SWITCH(Barème_référence_association, CF,ROUND(VLOOKUP($I$11+IF(M18<$I$12,0,1),'Barèmes CF 01-2022'!$A:$H,MIN($I$14+1,8)),2), RW_100,ROUND(VLOOKUP($I$11+IF(M18<$I$12,0,1),'Barèmes RW 01-2022'!$A:$H,MIN($I$14+1,8)),2), RBC_ISP,ROUND(VLOOKUP($I$11+IF(M18<$I$12,0,1),'Barèmes RBC 01-2022'!$A:$H,MIN($I$14+1,8)),2), CG,ROUND(VLOOKUP($I$11+IF(M18<$I$12,0,1),'Barèmes CG 01-2022'!$A:$H,MIN($I$14+1,8)),2), Centres_sportifs,ROUND(VLOOKUP($I$11+IF(M18<$I$12,0,1),'Barèmes CeSp 01-2022'!$A:$V,MIN($I$10+1,22)),2), Pourcentage,ROUND(VLOOKUP($I$11+IF(M18<$I$12,0,1),'Barèmes RW % 01-2022'!$A:$H,MIN($I$14+1,8)),2))) -> Complétez | N25: =IF(OR(Barème_référence_association="Autres",$I$9="Autre",$I$10="Autre"),N$23,_xlfn.SWITCH(Barème_référence_association, CF,ROUND(VLOOKUP($I$11+IF(N18<$I$12,0,1),'Barèmes CF 01-2022'!$A:$H,MIN($I$14+1,8)),2), RW_100,ROUND(VLOOKUP($I$11+IF(N18<$I$12,0,1),'Barèmes RW 01-2022'!$A:$H,MIN($I$14+1,8)),2), RBC_ISP,ROUND(VLOOKUP($I$11+IF(N18<$I$12,0,1),'Barèmes RBC 01-2022'!$A:$H,MIN($I$14+1,8)),2), CG,ROUND(VLOOKUP($I$11+IF(N18<$I$12,0,1),'Barèmes CG 01-2022'!$A:$H,MIN($I$14+1,8)),2), Centres_sportifs,ROUND(VLOOKUP($I$11+IF(N18<$I$12,0,1),'Barèmes CeSp 01-2022'!$A:$V,MIN($I$10+1,22)),2), Pourcentage,ROUND(VLOOKUP($I$11+IF(N18<$I$12,0,1),'Barèmes RW % 01-2022'!$A:$H,MIN($I$14+1,8)),2))) -> Complétez | O25: =IF(OR(Barème_référence_association="Autres",$I$9="Autre",$I$10="Autre"),O$23,_xlfn.SWITCH(Barème_référence_association, CF,ROUND(VLOOKUP($I$11+IF(O18<$I$12,0,1),'Barèmes CF 01-2022'!$A:$H,MIN($I$14+1,8)),2), RW_100,ROUND(VLOOKUP($I$11+IF(O18<$I$12,0,1),'Barèmes RW 01-2022'!$A:$H,MIN($I$14+1,8)),2), RBC_ISP,ROUND(VLOOKUP($I$11+IF(O18<$I$12,0,1),'Barèmes RBC 01-2022'!$A:$H,MIN($I$14+1,8)),2), CG,ROUND(VLOOKUP($I$11+IF(O18<$I$12,0,1),'Barèmes CG 01-2022'!$A:$H,MIN($I$14+1,8)),2), Centres_sportifs,ROUND(VLOOKUP($I$11+IF(O18<$I$12,0,1),'Barèmes CeSp 01-2022'!$A:$V,MIN($I$10+1,22)),2), Pourcentage,ROUND(VLOOKUP($I$11+IF(O18<$I$12,0,1),'Barèmes RW % 01-2022'!$A:$H,MIN($I$14+1,8)),2))) -> Complétez
C26: Brut avec annale ou biennale temps-plein avec correction RMMMG indexés | D26: =_xlfn.SWITCH(Année_ref,2022,IF(CP="329.03",IF(D$25<RMMMG32903_2022,RMMMG32903_2022,D$25),IF(D$25<RMMMG_2022,RMMMG_2022,D$25)),2023,IF(CP="329.03",IF(D$25<RMMMG32903_2023,RMMMG32903_2023,D$25),IF(D$25<RMMMG_2023,RMMMG_2023,D$25)),2024,IF(CP="329.03",IF(D$25<RMMMG32903_2024,RMMMG32903_2024,D$25),IF(D$25<RMMMG_2024,RMMMG_2024,D$25))) -> Complétez | E26: =_xlfn.SWITCH(Année_ref,2022,IF(CP="329.03",IF(E$25<RMMMG32903_2022,RMMMG32903_2022,E$25),IF(E$25<RMMMG_2022,RMMMG_2022,E$25)),2023,IF(CP="329.03",IF(E$25<RMMMG32903_2023,RMMMG32903_2023,E$25),IF(E$25<RMMMG_2023,RMMMG_2023,E$25)),2024,IF(CP="329.03",IF(E$25<RMMMG32903_2024,RMMMG32903_2024,E$25),IF(E$25<RMMMG_2024,RMMMG_2024,E$25))) -> Complétez | F26: =_xlfn.SWITCH(Année_ref,2022,IF(CP="329.03",IF(F$25<RMMMG32903_2022,RMMMG32903_2022,F$25),IF(F$25<RMMMG_2022,RMMMG_2022,F$25)),2023,IF(CP="329.03",IF(F$25<RMMMG32903_2023,RMMMG32903_2023,F$25),IF(F$25<RMMMG_2023,RMMMG_2023,F$25)),2024,IF(CP="329.03",IF(F$25<RMMMG32903_2024,RMMMG32903_2024,F$25),IF(F$25<RMMMG_2024,RMMMG_2024,F$25))) -> Complétez | G26: =_xlfn.SWITCH(Année_ref,2022,IF(CP="329.03",IF(G$25<RMMMG32903_2022,RMMMG32903_2022,G$25),IF(G$25<RMMMG_2022,RMMMG_2022,G$25)),2023,IF(CP="329.03",IF(G$25<RMMMG32903_2023,RMMMG32903_2023,G$25),IF(G$25<RMMMG_2023,RMMMG_2023,G$25)),2024,IF(CP="329.03",IF(G$25<RMMMG32903_2024,RMMMG32903_2024,G$25),IF(G$25<RMMMG_2024,RMMMG_2024,G$25))) -> Complétez | H26: =_xlfn.SWITCH(Année_ref,2022,IF(CP="329.03",IF(H$25<RMMMG32903_2022,RMMMG32903_2022,H$25),IF(H$25<RMMMG_2022,RMMMG_2022,H$25)),2023,IF(CP="329.03",IF(H$25<RMMMG32903_2023,RMMMG32903_2023,H$25),IF(H$25<RMMMG_2023,RMMMG_2023,H$25)),2024,IF(CP="329.03",IF(H$25<RMMMG32903_2024,RMMMG32903_2024,H$25),IF(H$25<RMMMG_2024,RMMMG_2024,H$25))) -> Complétez | I26: =_xlfn.SWITCH(Année_ref,2022,IF(CP="329.03",IF(I$25<RMMMG32903_2022,RMMMG32903_2022,I$25),IF(I$25<RMMMG_2022,RMMMG_2022,I$25)),2023,IF(CP="329.03",IF(I$25<RMMMG32903_2023,RMMMG32903_2023,I$25),IF(I$25<RMMMG_2023,RMMMG_2023,I$25)),2024,IF(CP="329.03",IF(I$25<RMMMG32903_2024,RMMMG32903_2024,I$25),IF(I$25<RMMMG_2024,RMMMG_2024,I$25))) -> Complétez | J26: =_xlfn.SWITCH(Année_ref,2022,IF(CP="329.03",IF(J$25<RMMMG32903_2022,RMMMG32903_2022,J$25),IF(J$25<RMMMG_2022,RMMMG_2022,J$25)),2023,IF(CP="329.03",IF(J$25<RMMMG32903_2023,RMMMG32903_2023,J$25),IF(J$25<RMMMG_2023,RMMMG_2023,J$25)),2024,IF(CP="329.03",IF(J$25<RMMMG32903_2024,RMMMG32903_2024,J$25),IF(J$25<RMMMG_2024,RMMMG_2024,J$25))) -> Complétez | K26: =_xlfn.SWITCH(Année_ref,2022,IF(CP="329.03",IF(K$25<RMMMG32903_2022,RMMMG32903_2022,K$25),IF(K$25<RMMMG_2022,RMMMG_2022,K$25)),2023,IF(CP="329.03",IF(K$25<RMMMG32903_2023,RMMMG32903_2023,K$25),IF(K$25<RMMMG_2023,RMMMG_2023,K$25)),2024,IF(CP="329.03",IF(K$25<RMMMG32903_2024,RMMMG32903_2024,K$25),IF(K$25<RMMMG_2024,RMMMG_2024,K$25))) -> Complétez | L26: =_xlfn.SWITCH(Année_ref,2022,IF(CP="329.03",IF(L$25<RMMMG32903_2022,RMMMG32903_2022,L$25),IF(L$25<RMMMG_2022,RMMMG_2022,L$25)),2023,IF(CP="329.03",IF(L$25<RMMMG32903_2023,RMMMG32903_2023,L$25),IF(L$25<RMMMG_2023,RMMMG_2023,L$25)),2024,IF(CP="329.03",IF(L$25<RMMMG32903_2024,RMMMG32903_2024,L$25),IF(L$25<RMMMG_2024,RMMMG_2024,L$25))) -> Complétez | M26: =_xlfn.SWITCH(Année_ref,2022,IF(CP="329.03",IF(M$25<RMMMG32903_2022,RMMMG32903_2022,M$25),IF(M$25<RMMMG_2022,RMMMG_2022,M$25)),2023,IF(CP="329.03",IF(M$25<RMMMG32903_2023,RMMMG32903_2023,M$25),IF(M$25<RMMMG_2023,RMMMG_2023,M$25)),2024,IF(CP="329.03",IF(M$25<RMMMG32903_2024,RMMMG32903_2024,M$25),IF(M$25<RMMMG_2024,RMMMG_2024,M$25))) -> Complétez | N26: =_xlfn.SWITCH(Année_ref,2022,IF(CP="329.03",IF(N$25<RMMMG32903_2022,RMMMG32903_2022,N$25),IF(N$25<RMMMG_2022,RMMMG_2022,N$25)),2023,IF(CP="329.03",IF(N$25<RMMMG32903_2023,RMMMG32903_2023,N$25),IF(N$25<RMMMG_2023,RMMMG_2023,N$25)),2024,IF(CP="329.03",IF(N$25<RMMMG32903_2024,RMMMG32903_2024,N$25),IF(N$25<RMMMG_2024,RMMMG_2024,N$25))) -> Complétez | O26: =_xlfn.SWITCH(Année_ref,2022,IF(CP="329.03",IF(O$25<RMMMG32903_2022,RMMMG32903_2022,O$25),IF(O$25<RMMMG_2022,RMMMG_2022,O$25)),2023,IF(CP="329.03",IF(O$25<RMMMG32903_2023,RMMMG32903_2023,O$25),IF(O$25<RMMMG_2023,RMMMG_2023,O$25)),2024,IF(CP="329.03",IF(O$25<RMMMG32903_2024,RMMMG32903_2024,O$25),IF(O$25<RMMMG_2024,RMMMG_2024,O$25))) -> Complétez
C27: Brut avec indexation(s) temps plein | D27: =D26 -> Complétez | E27: =IF(D23="Complétez",E23,IF(Mois_index="Aucune",E$26,IF(E16="",E26,D27*1.02))) -> Complétez | F27: Complétez | G27: Complétez | H27: Complétez | I27: Complétez | J27: Complétez | K27: Complétez | L27: Complétez | M27: Complétez | N27: Complétez | O27: Complétez
C28: Sursalaires | P28: =SUM(D28:O28) -> 0.00
C29: Double pécule de vacances | D29: =IF(AND(D$21=MONTH($I$13),D$23="Complétez"),"Complétez",IF(D$21=MONTH($I$13),IF($I$6=Ouvrier,"",0.92*D$23),"")) ->  | J29: Complétez | P29: =SUM(D29:O29) -> 0.00
C30: Prime de fin d'année | O30: =IF(OR($M$23="Complétez",$O$23="Complétez"),0, _xlfn.SWITCH(PFA_Association, PFA_Aucune,0, PFA_ISP_RBC,(AVERAGE(D19:L19)/Régime_de_travail_temps_plein)*AVERAGE(D20:L20)*(part_fixe_non_indexée_PFA_ISPRBC+Part_fixe_2021_PFA_ISPRBC*POWER(1.02,TotalIndex))+(30%*$M$22), PFA_CFISPA_AViQ,(AVERAGE(D19:L19)/Régime_de_travail_temps_plein)*AVERAGE(D20:L20)*((Part_fixe_2021_PFA_1_CFISPA+Part_fixe_2021_PFA_2_3_CFISPA)*POWER(1.02,TotalIndex))+AVERAGE(D20:L20)*2.5%*12*$M$22, PFA_CISP_W__CRIs__MIRE,IF((AVERAGE(D19:O19)/Régime_de_travail_temps_plein)<0.3,0,(AVERAGE(D19:O19)/Régime_de_travail_temps_plein)*AVERAGE(D20:O20)*Part_fixe_2021_CISP_CRI_MIRE*POWER(1.02,TotalIndex)), PFA_ILI__SETIS__Interfédé__InterMire__PMTIC__AES,(IF((AVERAGE(D19:O19)/Régime_de_travail_temps_plein)<0.3,0,(SUM(D19:O19)/12/Régime_de_travail_temps_plein)*SUM(D20:O20)/12*Part_fixe_2021_PFA_ILI_AUTRES*POWER(1.02,TotalIndex))), PFA_Fonction_publique_RW,(AVERAGE(D19:L19)/Régime_de_travail_temps_plein)*Part_fixe_2021_PFA_FPRW*POWER(1.02,TotalIndex)+AVERAGE(D20:L20)*2.5%*12*$M$22, PFA_Fonction_publique_CF,(AVERAGE(D19:L19)/Régime_de_travail_temps_plein)*Part_fixe_2021_PFA_FPCF*POWER(1.02,TotalIndex)+AVERAGE(D20:L20)*2.5%*12*$M$22, PFA_Fonction_publique_fédérale,(AVERAGE(D19:L19)/Régime_de_travail_temps_plein)*SUM(D20:L20)/9*Part_fixe_2021_PFA_FPFEDBASE*POWER(1.02,TotalIndex)+AVERAGE(D20:L20)*2.5%*12*$M$22, PFA_Fonction_publique_fédérale_PLUS,(AVERAGE(D19:L19)/Régime_de_travail_temps_plein)*Part_fixe_2021_PFA_FPFEDPLUS*POWER(1.02,TotalIndex)+AVERAGE(D20:L20)*2.5%*12*$M$22, PFA_Fonction_publique_CoCoF,(AVERAGE(D19:L19)/Régime_de_travail_temps_plein)*AVERAGE(D20:L20)*Part_fixe_2021_PFA_FPCOCOF*POWER(1.02,TotalIndex)+AVERAGE(D20:L20)*2.5%*12*$M$22, PFA_Fonction_publique_RBC,(AVERAGE(D19:L19)/Régime_de_travail_temps_plein)*AVERAGE(D20:L20)*Part_fixe_2021_PFA_FPRBC*POWER(1.02,TotalIndex)+AVERAGE(D20:L20)*2.5%*12*$M$22, _13ème_mois,(IF(AND($P$19/Régime_de_travail_temps_plein=1,$P$20=1),$O$23,IF($P$20<=3/12,0,(AVERAGE($E$22:$O$22))))), PFA_Autre,"Complétez","","" )) -> 0.00 | P30: =SUM(D30:O30) -> 0.00 | Q30: =IF(OR($M$23="Complétez",$O$23="Complétez"),"", _xlfn.SWITCH(PFA_Association, PFA_Aucune,0, PFA_ISP_RBC,(AVERAGE(D19:L19)/Régime_de_travail_temps_plein)*AVERAGE(D20:L20)*(part_fixe_non_indexée_PFA_ISPRBC+Part_fixe_2021_PFA_ISPRBC*POWER(1.02,TotalIndex))+(30%*$M$22), PFA_CFISPA_AViQ,(AVERAGE(D19:L19)/Régime_de_travail_temps_plein)*AVERAGE(D20:L20)*((Part_fixe_2021_PFA_1_CFISPA+Part_fixe_2021_PFA_2_3_CFISPA)*POWER(1.02,TotalIndex))+AVERAGE(D20:L20)*2.5%*12*$M$22, PFA_CISP_W__CRIs__MIRE,IF((AVERAGE(D19:O19)/Régime_de_travail_temps_plein)<0.3,0,(AVERAGE(D19:O19)/Régime_de_travail_temps_plein)*AVERAGE(D20:O20)*Part_fixe_2021_CISP_CRI_MIRE*POWER(1.02,TotalIndex)), PFA_ILI__SETIS__Interfédé__InterMire__PMTIC__AES,(IF((AVERAGE(D19:O19)/Régime_de_travail_temps_plein)<0.3,0,(SUM(D19:O19)/12/Régime_de_travail_temps_plein)*SUM(D20:O20)/12*Part_fixe_2021_PFA_ILI_AUTRES*POWER(1.02,TotalIndex))), PFA_Fonction_publique_RW,(AVERAGE(D19:L19)/Régime_de_travail_temps_plein)*Part_fixe_2021_PFA_FPRW*POWER(1.02,TotalIndex)+AVERAGE(D20:L20)*2.5%*12*$M$22, PFA_Fonction_publique_CF,(AVERAGE(D19:L19)/Régime_de_travail_temps_plein)*Part_fixe_2021_PFA_FPCF*POWER(1.02,TotalIndex)+AVERAGE(D20:L20)*2.5%*12*$M$22, PFA_Fonction_publique_fédérale,(AVERAGE(D19:L19)/Régime_de_travail_temps_plein)*SUM(D20:L20)/9*Part_fixe_2021_PFA_FPFEDBASE*POWER(1.02,TotalIndex)+AVERAGE(D20:L20)*2.5%*12*$M$22, PFA_Fonction_publique_fédérale_PLUS,(AVERAGE(D19:L19)/Régime_de_travail_temps_plein)*Part_fixe_2021_PFA_FPFEDPLUS*POWER(1.02,TotalIndex)+AVERAGE(D20:L20)*2.5%*12*$M$22, PFA_Fonction_publique_CoCoF,(AVERAGE(D19:L19)/Régime_de_travail_temps_plein)*AVERAGE(D20:L20)*Part_fixe_2021_PFA_FPCOCOF*POWER(1.02,TotalIndex)+AVERAGE(D20:L20)*2.5%*12*$M$22, PFA_Fonction_publique_RBC,(AVERAGE(D19:L19)/Régime_de_travail_temps_plein)*AVERAGE(D20:L20)*Part_fixe_2021_PFA_FPRBC*POWER(1.02,TotalIndex)+AVERAGE(D20:L20)*2.5%*12*$M$22, _13ème_mois,(IF(AND($P$19/Régime_de_travail_temps_plein=1,$P$20=1),$O$23,IF($P$20<=3/12,0,(AVERAGE($E$22:$O$22))))), PFA_Autre,"Complétez","","" )) -> 
C31: Indemnité de rupture compensatoire de préavis éventuelle | P31: =SUM(D31:O31) -> 0.00
C32: Autre prime donnant lieu à cotisations patronales | I32: 0 | P32: =SUM(D32:O32) -> 0.00
C33: Cotisations patronales si ACS, APE en RBC | F33: =IF(Année_ref<2022,IF(AND($O$5<>"ACS",$O$5<>"APE en RBC"),0, IF(OR($O$5="ACS",$O$5="APE en RBC"), IF($I$6=Ouvrier, (((SUM(D$23:F$23)+SUM(D$32:F$32)+SUM(D$28:F$28))*108%*Tx_coti_CoSub_O)+ IF(Plus_de_10_trav="Moins de 10",(SUM(D$31:F$31)*108%*Tx_coti_O), (SUM(D$31:F$31)*108%*Tx_coti_O_plus10))), (((SUM(D$23:F$23)+SUM(D$32:F$32)+SUM(D$28:F$28))*Tx_coti_CoSub_E)+IF(Plus_de_10_trav="Moins de 10",(SUM(D$31:F$31)*Tx_coti_E),(SUM(D$31:F$31)*Tx_coti_E_plus10)))))),IF(AND($O$5<>"ACS",$O$5<>"APE en RBC"),0, IF(OR($O$5="ACS",$O$5="APE en RBC"), IF($I$6=Ouvrier, (((SUM(D$23:F$23)+SUM(D$32:F$32)+SUM(D$28:F$28))*108%*Tx_coti_CoSub_O)+ IF(Plus_de_10_trav="Moins de 10",(SUM(D$31:F$31)*108%*Tx_coti_O), (SUM(D$31:F$31)*108%*Tx_coti_O_plus10))), (((SUM(D$23:F$23)+SUM(D$32:F$32)+SUM(D$28:F$28))*Tx_coti_CoSub_E)+IF(Plus_de_10_trav="Moins de 10",(SUM(D$31:F$31)*Tx_coti_E),(SUM(D$31:F$31)*Tx_coti_E_plus10)))),0))) -> 0.00 | I33: =IF(Année_ref<2022,IF(AND($O$5<>"ACS",$O$5<>"APE en RBC"),0, IF(OR($O$5="ACS",$O$5="APE en RBC"), IF($I$6=Ouvrier, (((SUM(G$23:I$23)+SUM(G$32:I$32)+SUM(G$28:I$28))*108%*Tx_coti_CoSub_O)+ IF(Plus_de_10_trav="Moins de 10",(SUM(G$31:I$31)*108%*Tx_coti_O), (SUM(G$31:I$31)*108%*Tx_coti_O_plus10))), (((SUM(G$23:I$23)+SUM(G$32:I$32)+SUM(G$28:I$28))*Tx_coti_CoSub_E)+IF(Plus_de_10_trav="Moins de 10",(SUM(G$31:I$31)*Tx_coti_E),(SUM(G$31:I$31)*Tx_coti_E_plus10)))))),IF(AND($O$5<>"ACS",$O$5<>"APE en RBC"),0, IF(OR($O$5="ACS",$O$5="APE en RBC"), IF($I$6=Ouvrier, (((SUM(G$23:I$23)+SUM(G$32:I$32)+SUM(G$28:I$28))*108%*Tx_coti_CoSub_O)+ IF(Plus_de_10_trav="Moins de 10",(SUM(G$31:I$31)*108%*Tx_coti_O), (SUM(G$31:I$31)*108%*Tx_coti_O_plus10))), (((SUM(G$23:I$23)+SUM(G$32:I$32)+SUM(G$28:I$28))*Tx_coti_CoSub_E)+IF(Plus_de_10_trav="Moins de 10",(SUM(G$31:I$31)*Tx_coti_E),(SUM(G$31:I$31)*Tx_coti_E_plus10)))),0))) -> 0.00 | L33: =IF(Année_ref<2022,IF(AND($O$5<>"ACS",$O$5<>"APE en RBC"),0, IF(OR($O$5="ACS",$O$5="APE en RBC"), IF($I$6=Ouvrier, (((SUM(J$23:L$23)+SUM(J$32:L$32)+SUM(J$28:L$28))*108%*Tx_coti_CoSub_O)+ IF(Plus_de_10_trav="Moins de 10",(SUM(J$31:L$31)*108%*Tx_coti_O), (SUM(J$31:L$31)*108%*Tx_coti_O_plus10))), (((SUM(J$23:L$23)+SUM(J$32:L$32)+SUM(J$28:L$28))*Tx_coti_CoSub_E)+IF(Plus_de_10_trav="Moins de 10",(SUM(J$31:L$31)*Tx_coti_E),(SUM(J$31:L$31)*Tx_coti_E_plus10)))))),IF(AND($O$5<>"ACS",$O$5<>"APE en RBC"),0, IF(OR($O$5="ACS",$O$5="APE en RBC"), IF($I$6=Ouvrier, (((SUM(J$23:L$23)+SUM(J$32:L$32)+SUM(J$28:L$28))*108%*Tx_coti_CoSub_O)+ IF(Plus_de_10_trav="Moins de 10",(SUM(J$31:L$31)*108%*Tx_coti_O), (SUM(J$31:L$31)*108%*Tx_coti_O_plus10))), (((SUM(J$23:L$23)+SUM(J$32:L$32)+SUM(J$28:L$28))*Tx_coti_CoSub_E)+IF(Plus_de_10_trav="Moins de 10",(SUM(J$31:L$31)*Tx_coti_E),(SUM(J$31:L$31)*Tx_coti_E_plus10)))),0))) -> 0.00 | O33: =IF(Année_ref<2022,IF(AND($O$5<>"ACS",$O$5<>"APE en RBC"),0, IF(OR($O$5="ACS",$O$5="APE en RBC"), IF($I$6=Ouvrier, (((SUM(M$23:O$23)+SUM(M$32:O$32)+SUM(M$28:O$28)+$O$30)*108%*Tx_coti_CoSub_O)+ IF(Plus_de_10_trav="Moins de 10",(SUM(M$31:O$31)*108%*Tx_coti_O), (SUM(M$31:O$31)*108%*Tx_coti_O_plus10))), (((SUM(M$23:O$23)+SUM(M$32:O$32)+SUM(M$28:O$28)+$O$30)*Tx_coti_CoSub_E)+IF(Plus_de_10_trav="Moins de 10",(SUM(M$31:O$31)*Tx_coti_E),(SUM(M$31:O$31)*Tx_coti_E_plus10)))))),IF(AND($O$5<>"ACS",$O$5<>"APE en RBC"),0, IF(OR($O$5="ACS",$O$5="APE en RBC"), IF($I$6=Ouvrier, (((SUM(M$23:O$23)+SUM(M$32:O$32)+SUM(M$28:O$28)+$O$30)*108%*Tx_coti_CoSub_O)+ IF(Plus_de_10_trav="Moins de 10",(SUM(M$31:O$31)*108%*Tx_coti_O), (SUM(M$31:O$31)*108%*Tx_coti_O_plus10))), (((SUM(M$23:O$23)+SUM(M$32:O$32)+SUM(M$28:O$28)+O$30)*Tx_coti_CoSub_E)+IF(Plus_de_10_trav="Moins de 10",(SUM(M$31:O$31)*Tx_coti_E),(SUM(M$31:O$31)*Tx_coti_E_plus10)))),0))) -> 0.00
C34: Cotisations patronales si Étudiant | F34: =IF($O$5=ÉTUDIANT·E,(SUM(D$23:F$23)+SUM(D$32:F$32)+SUM(D$28:F$28)+SUM(D$31:F$31))*Cot_patr_étudiant,0) -> 0.00 | I34: =IF($O$5=ÉTUDIANT·E,(SUM(G$23:I$23)+SUM(G$32:I$32)+SUM(G$28:I$28)+SUM(G$31:I$31))* Cot_patr_étudiant,0) -> 0.00 | L34: =IF($O$5=ÉTUDIANT·E,(SUM(J$23:L$23)+SUM(J$32:L$32)+SUM(J$28:L$28)+SUM(J$31:L$31))*Cot_patr_étudiant,0) -> 0.00 | O34: =IF($O$5=ÉTUDIANT·E,(SUM(M$23:O$23)+SUM(M$32:O$32)+SUM(M$28:O$28)+SUM(M$31:O$31)++IF($O$30="Complétez",0,$O$30))*Cot_patr_étudiant,0) -> 0.00
C35: Cotisations patronales taux plein | F35: =IF(OR($O$5="Non",$O$5="PTP BXL", $O$5="PTP W", $O$5="PTP CG",$O$5="MARIBEL",$O$5="BVA",$O$5="APE en RW"), IF(Plus_de_10_trav="10 et plus", IF($I$6=Ouvrier,(SUM(D$23:F$23)+SUM(D$32:F$32)+SUM(D$28:F$28)+SUM(D$28:F$28)+SUM(D$31:F$31))*108%*(Tx_coti_O_plus10), (SUM(D$23:F$23)+SUM(D$32:F$32)+SUM(D$28:F$28)+SUM(D$31:F$31))*(Tx_coti_E_plus10)), IF($I$6=Ouvrier,(SUM(D$23:F$23)+SUM(D$32:F$32)+SUM(D$28:F$28)+SUM(D$31:F$31))*108%*(Tx_coti_O), (SUM(D$23:F$23)+SUM(D$32:F$32)+SUM(D$28:F$28)+SUM(D$31:F$31))*(Tx_coti_E))),0) -> 0.00 | I35: =IF(OR($O$5="Non",$O$5="PTP BXL", $O$5="PTP W", $O$5="PTP CG",$O$5="MARIBEL",$O$5="BVA",$O$5="APE en RW"), IF(Plus_de_10_trav="10 et plus", IF($I$6=Ouvrier,(SUM(G$23:I$23)+SUM(G$32:I$32)+SUM(G$28:I$28)+SUM(G$28:I$28)+SUM(G$31:I$31))*108%*(Tx_coti_O_plus10), (SUM(G$23:I$23)+SUM(G$32:I$32)+SUM(G$28:I$28)+SUM(G$31:I$31))*(Tx_coti_E_plus10)), IF($I$6=Ouvrier,(SUM(G$23:I$23)+SUM(G$32:I$32)+SUM(G$28:I$28)+SUM(G$31:I$31))*108%*(Tx_coti_O), (SUM(G$23:I$23)+SUM(G$32:I$32)+SUM(G$28:I$28)+SUM(G$31:I$31))*(Tx_coti_E))),0) -> 0.00 | L35: =IF(OR($O$5="Non",$O$5="PTP BXL", $O$5="PTP W", $O$5="PTP CG",$O$5="MARIBEL",$O$5="BVA",$O$5="APE en RW"), IF(Plus_de_10_trav="10 et plus", IF($I$6=Ouvrier,(SUM(J$23:L$23)+SUM(J$32:L$32)+SUM(J$28:L$28)+SUM(J$28:L$28)+SUM(J$31:L$31))*108%*(Tx_coti_O_plus10), (SUM(J$23:L$23)+SUM(J$32:L$32)+SUM(J$28:L$28)+SUM(J$31:L$31))*(Tx_coti_E_plus10)), IF($I$6=Ouvrier,(SUM(J$23:L$23)+SUM(J$32:L$32)+SUM(J$28:L$28)+SUM(J$31:L$31))*108%*(Tx_coti_O), (SUM(J$23:L$23)+SUM(J$32:L$32)+SUM(J$28:L$28)+SUM(J$31:L$31))*(Tx_coti_E))),0) -> 0.00 | O35: =IF(OR($O$5="Non",$O$5="PTP BXL", $O$5="PTP W", $O$5="PTP CG",$O$5="MARIBEL",$O$5="BVA",$O$5="APE en RW"), IF(Plus_de_10_trav="10 et plus", IF($I$6=Ouvrier,(SUM(M$23:O$23)+SUM(M$32:O$32)+SUM(M$28:O$28)+SUM(M$31:O$31)++IF($O$30="Complétez",0,$O$30))*108%*(Tx_coti_O_plus10), (SUM(M$23:O$23)+SUM(M$32:O$32)+SUM(M$28:O$28)+SUM(M$31:O$31)++IF($O$30="Complétez",0,$O$30))*(Tx_coti_E_plus10)), IF($I$6=Ouvrier,(SUM(M$23:O$23)+SUM(M$32:O$32)+SUM(M$28:O$28)+SUM(M$31:O$31)++IF($O$30="Complétez",0,$O$30))*108%*(Tx_coti_O), (SUM(M$23:O$23)+SUM(M$32:O$32)+SUM(M$28:O$28)+SUM(M$31:O$31)++IF($O$30="Complétez",0,$O$30))*(Tx_coti_E))),0) -> 0.00
C36: Cotisations patronales avant réductions y compris cotisations au Fonds 4S | F36: =SUM(F33:F35) -> 0.00 | I36: =SUM(I33:I35) -> 0.00 | L36: =SUM(L33:L35) -> 0.00 | O36: =SUM(O33:O35) -> 0.00 | P36: =SUM(D36:O36) -> 0.00
C37: Réduction cotisations patronales si PTP <25 ans | D37: Trim PTP | E37: =IF(LEFT($O$5,3)<>"PTP",0,ROUNDUP((_xlfn.DAYS(DATE(Année_ref,3,31),$O$11))/(13*7),0)) -> 0 | F37: =IF(AND(Année_ref>2020,$I$5="Wallonie"),0,IF(IF(OR($O$5=PTP_BXL,$O$5=PTP_CG),IF($O$9="<25 ans",IF($E$37<6,-1000,IF(AND($E$37>5,$E$37<10),-400,0))),0)=FALSE,0,IF(OR($O$5=PTP_BXL,$O$5=PTP_CG),IF($O$9="<25 ans",IF($E$37<6,-1000,IF(AND($E$37>5,$E$37<10),-400,0))),0))) -> 0.00 | G37: Trim PTP | H37: =IF(LEFT($O$5,3)<>"PTP",0,ROUNDUP((_xlfn.DAYS(DATE(Année_ref,6,30),$O$11))/(13*7),0)) -> 0 | I37: =IF(AND(Année_ref>2020,$I$5="Wallonie"),0,IF(IF(OR($O$5=PTP_BXL,$O$5=PTP_CG),IF($O$9="<25 ans",IF($E$37<6,-1000,IF(AND($E$37>5,$E$37<10),-400,0))),0)=FALSE,0,IF(OR($O$5=PTP_BXL,$O$5=PTP_CG),IF($O$9="<25 ans",IF($E$37<6,-1000,IF(AND($E$37>5,$E$37<10),-400,0))),0))) -> 0.00 | J37: Trim PTP | K37: =IF(LEFT($O$5,3)<>"PTP",0,ROUNDUP((_xlfn.DAYS(DATE(Année_ref,9,30),$O$11))/(13*7),0)) -> 0 | L37: =IF(AND(Année_ref>2020,$I$5="Wallonie"),0,IF(IF(OR($O$5=PTP_BXL,$O$5=PTP_CG),IF($O$9="<25 ans",IF($E$37<6,-1000,IF(AND($E$37>5,$E$37<10),-400,0))),0)=FALSE,0,IF(OR($O$5=PTP_BXL,$O$5=PTP_CG),IF($O$9="<25 ans",IF($E$37<6,-1000,IF(AND($E$37>5,$E$37<10),-400,0))),0))) -> 0.00 | M37: Trim PTP | N37: =IF(LEFT($O$5,3)<>"PTP",0,ROUNDUP((_xlfn.DAYS(DATE(Année_ref,12,31),$O$11))/(13*7),0)) -> 0 | O37: =IF(AND(Année_ref>2020,$I$5="Wallonie"),0,IF(IF(OR($O$5=PTP_BXL,$O$5=PTP_CG),IF($O$9="<25 ans",IF($E$37<6,-1000,IF(AND($E$37>5,$E$37<10),-400,0))),0)=FALSE,0,IF(OR($O$5=PTP_BXL,$O$5=PTP_CG),IF($O$9="<25 ans",IF($E$37<6,-1000,IF(AND($E$37>5,$E$37<10),-400,0))),0))) -> 0.00
C38: Réduction cotisations patronales si PTP <45 ans | F38: =IF(AND(Année_ref>2020,$I$5="Wallonie"),0,IF(IF(OR($O$5=PTP_BXL,$O$5=PTP_CG),IF(AND($O$9="<45 ans",$O$10="≥12 mois"), IF($E$37<6,-1000, IF(AND($E$37>5,$E$37<10),-400,0)), IF(AND($O$9="<45 ans",$O$10="≥24 mois"), IF($E$37<10,-1000, ))),0)=FALSE,0,IF(OR($O$5=PTP_BXL,$O$5=PTP_CG),IF(AND($O$9="<45 ans",$O$10="≥12 mois"), IF($E$37<6,-1000, IF(AND($E$37>5,$E$37<10),-400,0)), IF(AND($O$9="<45 ans",$O$10="≥24 mois"), IF($E$37<10,-1000, ))),0))) -> 0.00 | I38: =IF(AND(Année_ref>2020,$I$5="Wallonie"),0,IF(IF(OR($O$5=PTP_BXL,$O$5=PTP_CG),IF(AND($O$9="<45 ans",$O$10="≥12 mois"), IF($E$37<6,-1000, IF(AND($E$37>5,$E$37<10),-400,0)), IF(AND($O$9="<45 ans",$O$10="≥24 mois"), IF($E$37<10,-1000, ))),0)=FALSE,0,IF(OR($O$5=PTP_BXL,$O$5=PTP_CG),IF(AND($O$9="<45 ans",$O$10="≥12 mois"), IF($E$37<6,-1000, IF(AND($E$37>5,$E$37<10),-400,0)), IF(AND($O$9="<45 ans",$O$10="≥24 mois"), IF($E$37<10,-1000, ))),0))) -> 0.00 | L38: =IF(AND(Année_ref>2020,$I$5="Wallonie"),0,IF(IF(OR($O$5=PTP_BXL,$O$5=PTP_CG),IF(AND($O$9="<45 ans",$O$10="≥12 mois"), IF($E$37<6,-1000, IF(AND($E$37>5,$E$37<10),-400,0)), IF(AND($O$9="<45 ans",$O$10="≥24 mois"), IF($E$37<10,-1000, ))),0)=FALSE,0,IF(OR($O$5=PTP_BXL,$O$5=PTP_CG),IF(AND($O$9="<45 ans",$O$10="≥12 mois"), IF($E$37<6,-1000, IF(AND($E$37>5,$E$37<10),-400,0)), IF(AND($O$9="<45 ans",$O$10="≥24 mois"), IF($E$37<10,-1000, ))),0))) -> 0.00 | O38: =IF(AND(Année_ref>2020,$I$5="Wallonie"),0,IF(IF(OR($O$5=PTP_BXL,$O$5=PTP_CG),IF(AND($O$9="<45 ans",$O$10="≥12 mois"), IF($E$37<6,-1000, IF(AND($E$37>5,$E$37<10),-400,0)), IF(AND($O$9="<45 ans",$O$10="≥24 mois"), IF($E$37<10,-1000, ))),0)=FALSE,0,IF(OR($O$5=PTP_BXL,$O$5=PTP_CG),IF(AND($O$9="<45 ans",$O$10="≥12 mois"), IF($E$37<6,-1000, IF(AND($E$37>5,$E$37<10),-400,0)), IF(AND($O$9="<45 ans",$O$10="≥24 mois"), IF($E$37<10,-1000, ))),0))) -> 0.00
C39: Réduction cotisations patronales si PTP ≥45 ans | F39: =IF(AND(Année_ref>2020,$I$5="Wallonie"),0,IF(IF(OR($O$5=PTP_BXL,$O$5=PTP_CG),IF(AND($O$9="≥45 ans",$O$10="≥12 mois"), IF($E$37<6,-1000, IF(AND($E$37>5,$E$37<14),-400,0)), IF(AND($O$9="≥45 ans",$O$10="≥24 mois"), IF($E$37<14,-1000, ))),0)=FALSE,0,IF(OR($O$5=PTP_BXL,$O$5=PTP_CG),IF(AND($O$9="≥45 ans",$O$10="≥12 mois"), IF($E$37<6,-1000, IF(AND($E$37>5,$E$37<14),-400,0)), IF(AND($O$9="≥45 ans",$O$10="≥24 mois"), IF($E$37<14,-1000, ))),0))) -> 0.00 | I39: =IF(AND(Année_ref>2020,$I$5="Wallonie"),0,IF(IF(OR($O$5=PTP_BXL,$O$5=PTP_CG),IF(AND($O$9="≥45 ans",$O$10="≥12 mois"), IF($E$37<6,-1000, IF(AND($E$37>5,$E$37<14),-400,0)), IF(AND($O$9="≥45 ans",$O$10="≥24 mois"), IF($E$37<14,-1000, ))),0)=FALSE,0,IF(OR($O$5=PTP_BXL,$O$5=PTP_CG),IF(AND($O$9="≥45 ans",$O$10="≥12 mois"), IF($E$37<6,-1000, IF(AND($E$37>5,$E$37<14),-400,0)), IF(AND($O$9="≥45 ans",$O$10="≥24 mois"), IF($E$37<14,-1000, ))),0))) -> 0.00 | L39: =IF(AND(Année_ref>2020,$I$5="Wallonie"),0,IF(IF(OR($O$5=PTP_BXL,$O$5=PTP_CG),IF(AND($O$9="≥45 ans",$O$10="≥12 mois"), IF($E$37<6,-1000, IF(AND($E$37>5,$E$37<14),-400,0)), IF(AND($O$9="≥45 ans",$O$10="≥24 mois"), IF($E$37<14,-1000, ))),0)=FALSE,0,IF(OR($O$5=PTP_BXL,$O$5=PTP_CG),IF(AND($O$9="≥45 ans",$O$10="≥12 mois"), IF($E$37<6,-1000, IF(AND($E$37>5,$E$37<14),-400,0)), IF(AND($O$9="≥45 ans",$O$10="≥24 mois"), IF($E$37<14,-1000, ))),0))) -> 0.00 | O39: =IF(AND(Année_ref>2020,$I$5="Wallonie"),0,IF(IF(OR($O$5=PTP_BXL,$O$5=PTP_CG),IF(AND($O$9="≥45 ans",$O$10="≥12 mois"), IF($E$37<6,-1000, IF(AND($E$37>5,$E$37<14),-400,0)), IF(AND($O$9="≥45 ans",$O$10="≥24 mois"), IF($E$37<14,-1000, ))),0)=FALSE,0,IF(OR($O$5=PTP_BXL,$O$5=PTP_CG),IF(AND($O$9="≥45 ans",$O$10="≥12 mois"), IF($E$37<6,-1000, IF(AND($E$37>5,$E$37<14),-400,0)), IF(AND($O$9="≥45 ans",$O$10="≥24 mois"), IF($E$37<14,-1000, ))),0))) -> 0.00
C40: Jours donnant lieu à rémunération à corriger en fonction du RT/sem [5 ou 6] y compris JF | D40: =IF($I$8=5,VLOOKUP(Année_ref,Paramètres!$A$89:$M$92,D$21+1,FALSE),VLOOKUP(Année_ref,Paramètres!$A$95:$M$98,D$21+1,FALSE)) -> 22.00 | E40: =IF($I$8=5,VLOOKUP(Année_ref,Paramètres!$A$89:$M$92,E$21+1,FALSE),VLOOKUP(Année_ref,Paramètres!$A$95:$M$98,E$21+1,FALSE)) -> 20.00 | F40: =IF($I$8=5,VLOOKUP(Année_ref,Paramètres!$A$89:$M$92,F$21+1,FALSE),VLOOKUP(Année_ref,Paramètres!$A$95:$M$98,F$21+1,FALSE)) -> 23.00 | G40: =IF($I$8=5,VLOOKUP(Année_ref,Paramètres!$A$89:$M$92,G$21+1,FALSE),VLOOKUP(Année_ref,Paramètres!$A$95:$M$98,G$21+1,FALSE)) -> 19.00 | H40: =IF($I$8=5,VLOOKUP(Année_ref,Paramètres!$A$89:$M$92,H$21+1,FALSE),VLOOKUP(Année_ref,Paramètres!$A$95:$M$98,H$21+1,FALSE)) -> 22.00 | I40: =IF($I$8=5,VLOOKUP(Année_ref,Paramètres!$A$89:$M$92,I$21+1,FALSE),VLOOKUP(Année_ref,Paramètres!$A$95:$M$98,I$21+1,FALSE)) -> 22.00 | J40: =IF($I$8=5,VLOOKUP(Année_ref,Paramètres!$A$89:$M$92,J$21+1,FALSE),VLOOKUP(Année_ref,Paramètres!$A$95:$M$98,J$21+1,FALSE)) -> 20.00 | K40: =IF($I$8=5,VLOOKUP(Année_ref,Paramètres!$A$89:$M$92,K$21+1,FALSE),VLOOKUP(Année_ref,Paramètres!$A$95:$M$98,K$21+1,FALSE)) -> 22.00 | L40: =IF($I$8=5,VLOOKUP(Année_ref,Paramètres!$A$89:$M$92,L$21+1,FALSE),VLOOKUP(Année_ref,Paramètres!$A$95:$M$98,L$21+1,FALSE)) -> 20.00 | M40: =IF($I$8=5,VLOOKUP(Année_ref,Paramètres!$A$89:$M$92,M$21+1,FALSE),VLOOKUP(Année_ref,Paramètres!$A$95:$M$98,M$21+1,FALSE)) -> 22.00 | N40: =IF($I$8=5,VLOOKUP(Année_ref,Paramètres!$A$89:$M$92,N$21+1,FALSE),VLOOKUP(Année_ref,Paramètres!$A$95:$M$98,N$21+1,FALSE)) -> 20.00 | O40: =IF($I$8=5,IF(Année_ref=2020,23, IF(Année_ref=2021,23,IF(Année_ref=2022,23))), IF(Année_ref=2020,27, IF(Année_ref=2021,27,IF(Année_ref=2022,28)))) -> FALSE
C41: Jours prestés | D41: =IF($I$6="",0,IF(AND($I$6="Ouvrier",MONTH($I$13)=D$21),0,ROUND(D$40*D$20*D$19/Régime_de_travail_temps_plein,0))) -> 0.00 | E41: 0.00 | F41: 0.00 | G41: 0.00 | H41: 0.00 | I41: 0.00 | J41: 0.00 | K41: 0.00 | L41: 0.00 | M41: 0.00 | N41: 0.00 | O41: 0.00
C42: µ = fraction de prestation | F42: =IF(SUM(D$41:F$41)/(13*$I$8)>1,1,SUM(D$41:F$41)/(13*$I$8)) -> 0.00 | I42: =IF(SUM(G$41:I$41)/(13*$I$8)>1,1,SUM(G$41:I$41)/(13*$I$8)) -> 0.00 | L42: =IF(SUM(J$41:L$41)/(13*$I$8)>1,1,SUM(J$41:L$41)/(13*$I$8)) -> 0.00 | O42: =IF(SUM(M$41:O$41)/(13*$I$8)>1,1,SUM(M$41:O$41)/(13*$I$8)) -> 0.00
C43: ßg = facteur fixe de multiplication GC | F43: =IF(F$42<0.275,0,IF(F$42<0.55,1, IF(AND(F$42>=0.55,F$42<0.8),1+((F$42-0.55)),1/F$42))) -> 0.00 | I43: =IF(I$42<0.275,0,IF(I$42<0.55,1, IF(AND(I$42>=0.55,I$42<0.8),1+((I$42-0.55)),1/I$42))) -> 0.00 | L43: =IF(L$42<0.275,0,IF(L$42<0.55,1, IF(AND(L$42>=0.55,L$42<0.8),1+((L$42-0.55)),1/L$42))) -> 0.00 | O43: =IF(O$42<0.275,0,IF(O$42<0.55,1, IF(AND(O$42>=0.55,O$42<0.8),1+((O$42-0.55)),1/O$42))) -> 0.00
C44: ßs = Facteur fixe de multiplication RS | F44: =IF(F$42<0.275,0,IF(F$42<0.55,1.18, IF(AND(F$42>=0.55,F$42<0.8),1.18+((F$42-0.55)*0.28),1/F$42))) -> 0.00 | I44: =IF(I$42<0.275,0,IF(I$42<0.55,1.18, IF(AND(I$42>=0.55,I$42<0.8),1.18+((I$42-0.55)*0.28),1/I$42))) -> 0.00 | L44: =IF(L$42<0.275,0,IF(L$42<0.55,1.18, IF(AND(L$42>=0.55,L$42<0.8),1.18+((L$42-0.55)*0.28),1/L$42))) -> 0.00 | O44: =IF(O$42<0.275,0,IF(O$42<0.55,1.18, IF(AND(O$42>=0.55,O$42<0.8),1.18+((O$42-0.55)*0.28),1/O$42))) -> 0.00
C45: S= Salaire trimestriel de référence | F45: =IF(SUM(D$41:F$41)=0,0,F$46*(13*$I$8/SUM(D$41:F$41))) -> 0.00 | I45: =IF(SUM(G$41:I$41)=0,0,I$46*(13*$I$8/SUM(G$41:I$41))) -> 0.00 | L45: =IF(SUM(J$41:L$41)=0,0,L$46*(13*$I$8/SUM(J$41:L$41))) -> 0.00 | O45: =IF(SUM(M$41:O$41)=0,0,O$46*(13*$I$8/SUM(M$41:O$41))) -> 0.00
C46: W= Masse salariale trimestrielle | F46: =SUM(D$23:F$23)+SUM(D$28:F$28) -> 0.00 | I46: =SUM(G$23:I$23)+SUM(G$28:I$28) -> 0.00 | L46: =SUM(J$23:L$23)+SUM(J$28:L$28) -> 0.00 | O46: =SUM(M$23:O$23)+SUM(M$28:O$28)+IF($O$30="Complétez",0,$O$30) -> 0.00
C47: Cotisation patronale disponible – Maribel | F47: =IF(F$42>0.49, IF(Année_ref=2020,MAX((F$35-Réd_MS_2020),0),IF(Année_ref=2021,MAX((F$35-Réd_MS_2021),0),IF(Année_ref=2022,MAX((F$35-Réd_MS_2022),0),MAX(F$35,0))) ),0) -> 0.00 | I47: =IF(I$42>0.49, IF(Année_ref=2020,MAX((I$35-Réd_MS_2020),0),IF(Année_ref=2021,MAX((I$35-Réd_MS_2021),0),IF(Année_ref=2022,MAX((I$35-Réd_MS_2022),0),MAX(I$35,0))) ),0) -> 0.00 | L47: =IF(L$42>0.49, IF(Année_ref=2020,MAX((L$35-Réd_MS_2020),0),IF(Année_ref=2021,MAX((L$35-Réd_MS_2021),0),IF(Année_ref=2022,MAX((L$35-Réd_MS_2022),0),MAX(L$35,0))) ),0) -> 0.00 | O47: =IF(O$42>0.49, IF(Année_ref=2020,MAX((O$35-Réd_MS_2020),0),IF(Année_ref=2021,MAX((O$35-Réd_MS_2021),0),IF(Année_ref=2022,MAX((O$35-Réd_MS_2022),0),MAX(O$35,0))) ),0) -> 0.00
C48: Réduction structurelle | F48: =IF(OR($O$5="ACS",$O$5="APE en RBC",LEFT($O$5,3)="PTP"),0, IF(Année_ref=2020, Forfait_2020+ IF(Coeff_BS*(Borne_BS_2020-F$45)<0,0,Forfait_2020+Coeff_BS*(Borne_BS_2020-F$45))+ IF(Coeff_HS*(F$46-Borne_HS_2020)<0,0,Coeff_HS*(F$46-Borne_HS_2020)), IF(Année_ref=2021, Forfait_2021+ IF(Coeff_BS*(Borne_BS_2021-F$45)<0,0,Forfait_2021+Coeff_BS*(Borne_BS_2021-F$45))+ IF(Coeff_HS*(F$46-Borne_HS_2021)<0,0,Coeff_HS*(F$46-Borne_HS_2021)), IF(Année_ref=2022,Forfait_2022+ IF(Coeff_BS*(Borne_BS_2022-F$45)<0,0,Forfait_2022+Coeff_BS*(Borne_BS_2022-F$45))+ IF(Coeff_HS*(F$46-Borne_HS_2022)<0,0,Coeff_HS*(F$46-Borne_HS_2022)),0)))) -> 0.00 | I48: =IF(OR($O$5="ACS",$O$5="APE",LEFT($O$5,3)="PTP"),0, IF(Année_ref=2020, Forfait_2020+ IF(Coeff_BS*(Borne_BS_2020-I$45)<0,0,Forfait_2020+Coeff_BS*(Borne_BS_2020-I$45))+ IF(Coeff_HS*(I$46-Borne_HS_2020)<0,0,Coeff_HS*(I$46-Borne_HS_2020)), IF(Année_ref=2021, Forfait_2021+ IF(Coeff_BS*(Borne_BS_2021-I$45)<0,0,Forfait_2021+Coeff_BS*(Borne_BS_2021-I$45))+ IF(Coeff_HS*(I$46-Borne_HS_2021)<0,0,Coeff_HS*(I$46-Borne_HS_2021)), IF(Année_ref=2022,Forfait_2022+ IF(Coeff_BS*(Borne_BS_2022-I$45)<0,0,Forfait_2022+Coeff_BS*(Borne_BS_2022-I$45))+ IF(Coeff_HS*(I$46-Borne_HS_2022)<0,0,Coeff_HS*(I$46-Borne_HS_2022)),0)))) -> 0.00 | L48: =IF(OR($O$5="ACS",$O$5="APE",LEFT($O$5,3)="PTP"),0, IF(Année_ref=2020, Forfait_2020+ IF(Coeff_BS*(Borne_BS_2020-L$45)<0,0,Forfait_2020+Coeff_BS*(Borne_BS_2020-L$45))+ IF(Coeff_HS*(L$46-Borne_HS_2020)<0,0,Coeff_HS*(L$46-Borne_HS_2020)), IF(Année_ref=2021, Forfait_2021+ IF(Coeff_BS*(Borne_BS_2021-L$45)<0,0,Forfait_2021+Coeff_BS*(Borne_BS_2021-L$45))+ IF(Coeff_HS*(L$46-Borne_HS_2021)<0,0,Coeff_HS*(L$46-Borne_HS_2021)), IF(Année_ref=2022,Forfait_2022+ IF(Coeff_BS*(Borne_BS_2022-L$45)<0,0,Forfait_2022+Coeff_BS*(Borne_BS_2022-L$45))+ IF(Coeff_HS*(L$46-Borne_HS_2022)<0,0,Coeff_HS*(L$46-Borne_HS_2022)),0)))) -> 0.00 | O48: =IF(OR($O$5="ACS",$O$5="APE",LEFT($O$5,3)="PTP"),0, IF(Année_ref=2020, Forfait_2020+ IF(Coeff_BS*(Borne_BS_2020-O$45)<0,0,Forfait_2020+Coeff_BS*(Borne_BS_2020-O$45))+ IF(Coeff_HS*(O$46-Borne_HS_2020)<0,0,Coeff_HS*(O$46-Borne_HS_2020)), IF(Année_ref=2021, Forfait_2021+ IF(Coeff_BS*(Borne_BS_2021-O$45)<0,0,Forfait_2021+Coeff_BS*(Borne_BS_2021-O$45))+ IF(Coeff_HS*(O$46-Borne_HS_2021)<0,0,Coeff_HS*(O$46-Borne_HS_2021)), IF(Année_ref=2022,Forfait_2022+ IF(Coeff_BS*(Borne_BS_2022-O$45)<0,0,Forfait_2022+Coeff_BS*(Borne_BS_2022-O$45))+ IF(Coeff_HS*(O$46-Borne_HS_2022)<0,0,Coeff_HS*(O$46-Borne_HS_2022)),0)))) -> 0.00
C49: Estimation réduction structurelle avec fraction de prestation | F49: =-IF($I$8=0,0,IF(F$48*F$44*F$42<F$47,F$48*F$44*F$42,F$47)) -> 0.00 | I49: =IF($I$8=0,0,-IF(I$48*I$44*I$42<I$47,I$48*I$44*I$42,I$47)) -> 0.00 | L49: =IF($I$8=0,0,-IF(L$48*L$44*L$42<L$47,L$48*L$44*L$42,L$47)) -> 0.00 | O49: =IF($I$8=0,0,-IF(O$48*O$44*O$42<O$47,O$48*O$44*O$42,O$47)) -> 0.00 | P49: =SUM(D49:O49) -> 0.00
C50: Réduction cotisation patronales PTP pleine | F50: =SUM(F37:F39)*F$42*F$43 -> 0.00 | I50: =SUM(I37:I39)*I$42*I$43 -> 0.00 | L50: =SUM(L37:L39)*L$42*L$43 -> 0.00 | O50: =SUM(O37:O39)*O$42*O$43 -> 0.00
C51: Réduction cotisation patronales PTP adaptée au montant disponible | F51: =IF(LEFT($O$5,3)="PTP",IF(F$36+F$49<-F$50,-(F$36+F$49),F$50),0) -> 0.00 | I51: =IF(LEFT($O$5,3)="PTP",IF(I$36+I$49<-I$50,-(I$36+I$49),I$50),0) -> 0.00 | L51: =IF(LEFT($O$5,3)="PTP",IF(L$36+L$49<-L$50,-(L$36+L$49),L$50),0) -> 0.00 | O51: =IF(LEFT($O$5,3)="PTP",IF(O$36+O$49<-O$50,-(O$36+O$49),O$50),0) -> 0.00 | P51: =SUM(D51:O51) -> 0.00
C52: Réductions ou Activations Aides à l'emploi à partir du 1-10-2017 [montant négatif] | P52: 0.00
C53: Réductions ou Activations découlant des systèmes précédents [montant négatif] | P53: 0.00
C54: Déplacements domicile lieu de travail | D54: 0.00 | E54: =IF(MONTH($I$13)=E$21,0,$D$54) -> 0.00 | F54: 0.00 | G54: 0.00 | H54: 0.00 | I54: 0.00 | J54: 0.00 | K54: 0.00 | L54: 0.00 | M54: 0.00 | N54: 0.00 | O54: 0.00 | P54: 0.00 | Q54: <= Si forfait annuel, encodez ici
C55: Remboursement forfaitaire de frais figurant sur la fiche de paie | D55: 0.00 | E55: =IF(MONTH($I$13)=E$21,0,$D$55) -> 0.00 | F55: 0.00 | G55: 0.00 | H55: 0.00 | I55: 0.00 | J55: 0.00 | K55: 0.00 | L55: 0.00 | M55: 0.00 | N55: 0.00 | O55: 0.00 | P55: 0.00
C56: Remboursement forfaitaire de frais dédiés (gsm, internet… figurant sur la fiche de paie) | D56: 0.00 | E56: =IF(MONTH($I$13)=E$21,0,$D$56) -> 0.00 | F56: 0.00 | G56: 0.00 | H56: 0.00 | I56: 0.00 | J56: 0.00 | K56: 0.00 | L56: 0.00 | M56: 0.00 | N56: 0.00 | O56: 0.00 | P56: 0.00
C57: Nombre titres-repas [régime 5 jours; à corriger pour rég. 6 jours et vérifier pour <38h] | D57: =IF(Part_patronale_TR=0,0,IF($I$7=0,0,_xlfn.SWITCH(Année_ref, 2021,IF(MONTH($I$13)=D$21,0,ROUNDUP(21*$D19/Régime_de_travail_temps_plein*D$20,0)), 2022,IF(MONTH($I$13)=D$21,0,ROUNDUP(21*$D19/Régime_de_travail_temps_plein*D$20,0)),2023,IF(MONTH($I$13)=D$21,0,ROUNDUP(22*$D19/Régime_de_travail_temps_plein*D$20,0)),2024, IF(MONTH($I$13)=D$21,0,ROUNDUP(22*$D19/Régime_de_travail_temps_plein*D$20,0))))) -> 0 | E57: =IF(Part_patronale_TR=0,0,IF($I$7=0,0,_xlfn.SWITCH(Année_ref, 2021,IF(MONTH($I$13)=E$21,0,ROUNDUP(21*$D19/Régime_de_travail_temps_plein*E$20,0)), 2022,IF(MONTH($I$13)=E$21,0,ROUNDUP(20*$D19/Régime_de_travail_temps_plein*E$20,0)),2023,IF(MONTH($I$13)=E$21,0,ROUNDUP(20*$D19/Régime_de_travail_temps_plein*E$20,0)),2024, IF(MONTH($I$13)=E$21,0,ROUNDUP(21*$D19/Régime_de_travail_temps_plein*E$20,0))))) -> 0 | F57: =IF(Part_patronale_TR=0,0,IF($I$7=0,0,_xlfn.SWITCH(Année_ref, 2021,IF(MONTH($I$13)=F$21,0,ROUNDUP(21*$D19/Régime_de_travail_temps_plein*F$20,0)), 2022,IF(MONTH($I$13)=F$21,0,ROUNDUP(23*$D19/Régime_de_travail_temps_plein*F$20,0)),2023,IF(MONTH($I$13)=F$21,0,ROUNDUP(22*$D19/Régime_de_travail_temps_plein*F$20,0)),2024, IF(MONTH($I$13)=F$21,0,ROUNDUP(21*$D19/Régime_de_travail_temps_plein*F$20,0))))) -> 0 | G57: =IF(Part_patronale_TR=0,0,IF($I$7=0,0,_xlfn.SWITCH(Année_ref, 2021,IF(MONTH($I$13)=G$21,0,ROUNDUP(21*$D19/Régime_de_travail_temps_plein*G$20,0)), 2022,IF(MONTH($I$13)=G$21,0,ROUNDUP(21*$D19/Régime_de_travail_temps_plein*G$20,0)),2023,IF(MONTH($I$13)=G$21,0,ROUNDUP(19*$D19/Régime_de_travail_temps_plein*G$20,0)),2024, IF(MONTH($I$13)=G$21,0,ROUNDUP(21*$D19/Régime_de_travail_temps_plein*G$20,0))))) -> 0 | H57: =IF(Part_patronale_TR=0,0,IF($I$7=0,0,_xlfn.SWITCH(Année_ref, 2021,IF(MONTH($I$13)=H$21,0,ROUNDUP(21*$D19/Régime_de_travail_temps_plein*H$20,0)), 2022,IF(MONTH($I$13)=H$21,0,ROUNDUP(22*$D19/Régime_de_travail_temps_plein*H$20,0)),2023,IF(MONTH($I$13)=H$21,0,ROUNDUP(20*$D19/Régime_de_travail_temps_plein*H$20,0)),2024, IF(MONTH($I$13)=H$21,0,ROUNDUP(21*$D19/Régime_de_travail_temps_plein*H$20,0))))) -> 0 | I57: =IF(Part_patronale_TR=0,0,IF($I$7=0,0,_xlfn.SWITCH(Année_ref, 2021,IF(MONTH($I$13)=I$21,0,ROUNDUP(21*$D19/Régime_de_travail_temps_plein*I$20,0)), 2022,IF(MONTH($I$13)=I$21,0,ROUNDUP(21*$D19/Régime_de_travail_temps_plein*I$20,0)),2023,IF(MONTH($I$13)=I$21,0,ROUNDUP(22*$D19/Régime_de_travail_temps_plein*I$20,0)),2024, IF(MONTH($I$13)=I$21,0,ROUNDUP(20*$D19/Régime_de_travail_temps_plein*I$20,0))))) -> 0 | J57: =IF(Part_patronale_TR=0,0,IF($I$7=0,0,_xlfn.SWITCH(Année_ref, 2021,IF(MONTH($I$13)=J$21,0,ROUNDUP(21*$D19/Régime_de_travail_temps_plein*J$20,0)), 2022,IF(MONTH($I$13)=J$21,0,ROUNDUP(20*$D19/Régime_de_travail_temps_plein*J$20,0)),2023,IF(MONTH($I$13)=J$21,0,ROUNDUP(20*$D19/Régime_de_travail_temps_plein*J$20,0)),2024, IF(MONTH($I$13)=J$21,0,ROUNDUP(22*$D19/Régime_de_travail_temps_plein*J$20,0))))) -> 0 | K57: =IF(Part_patronale_TR=0,0,IF($I$7=0,0,_xlfn.SWITCH(Année_ref, 2021,IF(MONTH($I$13)=K$21,0,ROUNDUP(21*$D19/Régime_de_travail_temps_plein*K$20,0)), 2022,IF(MONTH($I$13)=K$21,0,ROUNDUP(22*$D19/Régime_de_travail_temps_plein*K$20,0)),2023,IF(MONTH($I$13)=K$21,0,ROUNDUP(22*$D19/Régime_de_travail_temps_plein*K$20,0)),2024, IF(MONTH($I$13)=K$21,0,ROUNDUP(20*$D19/Régime_de_travail_temps_plein*K$20,0))))) -> 0 | L57: =IF(Part_patronale_TR=0,0,IF($I$7=0,0,_xlfn.SWITCH(Année_ref, 2021,IF(MONTH($I$13)=L$21,0,ROUNDUP(21*$D19/Régime_de_travail_temps_plein*L$20,0)), 2022,IF(MONTH($I$13)=L$21,0,ROUNDUP(21*$D19/Régime_de_travail_temps_plein*L$20,0)),2023,IF(MONTH($I$13)=L$21,0,ROUNDUP(20*$D19/Régime_de_travail_temps_plein*L$20,0)),2024, IF(MONTH($I$13)=L$21,0,ROUNDUP(20*$D19/Régime_de_travail_temps_plein*L$20,0))))) -> 0 | M57: =IF(Part_patronale_TR=0,0,IF($I$7=0,0,_xlfn.SWITCH(Année_ref, 2021,IF(MONTH($I$13)=M$21,0,ROUNDUP(21*$D19/Régime_de_travail_temps_plein*M$20,0)), 2022,IF(MONTH($I$13)=M$21,0,ROUNDUP(21*$D19/Régime_de_travail_temps_plein*M$20,0)),2023,IF(MONTH($I$13)=M$21,0,ROUNDUP(22*$D19/Régime_de_travail_temps_plein*M$20,0)),2024, IF(MONTH($I$13)=M$21,0,ROUNDUP(23*$D19/Régime_de_travail_temps_plein*M$20,0))))) -> 0 | N57: =IF(Part_patronale_TR=0,0,IF($I$7=0,0,_xlfn.SWITCH(Année_ref, 2021,IF(MONTH($I$13)=N$21,0,ROUNDUP(21*$D19/Régime_de_travail_temps_plein*N$20,0)), 2022,IF(MONTH($I$13)=N$21,0,ROUNDUP(22*$D19/Régime_de_travail_temps_plein*N$20,0)),2023,IF(MONTH($I$13)=N$21,0,ROUNDUP(21*$D19/Régime_de_travail_temps_plein*N$20,0)),2024, IF(MONTH($I$13)=N$21,0,ROUNDUP(19*$D19/Régime_de_travail_temps_plein*N$20,0))))) -> 0 | O57: =IF(Part_patronale_TR=0,0,IF($I$7=0,0,_xlfn.SWITCH(Année_ref, 2021,IF(MONTH($I$13)=O$21,0,ROUNDUP(21*$D19/Régime_de_travail_temps_plein*O$20,0)), 2022,IF(MONTH($I$13)=O$21,0,ROUNDUP(22*$D19/Régime_de_travail_temps_plein*O$20,0)),2023,IF(MONTH($I$13)=O$21,0,ROUNDUP(20*$D19/Régime_de_travail_temps_plein*O$20,0)),2024, IF(MONTH($I$13)=O$21,0,ROUNDUP(21*$D19/Régime_de_travail_temps_plein*O$20,0))))) -> 0
C58: Part patronale sur titres-repas | D58: =IF(Part_patronale_TR=0,0,Part_patronale_TR*D$57) -> 0.00 | E58: 0.00 | F58: 0.00 | G58: 0.00 | H58: 0.00 | I58: 0.00 | J58: 0.00 | K58: 0.00 | L58: 0.00 | M58: 0.00 | N58: 0.00 | O58: 0.00 | P58: =SUM(D58:O58) -> 0.00
C59: Part patronale sur autre avantage extra-légal (ass. extra-légale, écochèques…) | P59: =SUM(D59:O59) -> 0.00
C60: Montant des cotisations sur avantage extra-légal | P60: =SUM(D60:O60) -> 0.00
C61: Pécule de sortie éventuel | P61: =SUM(D61:O61) -> 0.00
C62: Autre | P62: =SUM(D62:O62) -> 0.00
O63: Coût total | P63: =SUM(P22:P62) -> 0.00
O64: Brut total | P64: =P22+P28+P29+P30+P31+P32+P61 -> 0.00
C66: ="Part de la facture vacances ouvriers ONSS à payer en 04-"&Année_ref+1& " [ouvriers uniquement]" -> Part de la facture vacances ouvriers ONSS à payer en 04-2024 [ouvriers uniquement] | P66: =IF($I$6=Ouvrier,(P22+P23+P30+P31+P32)*48/52*108%*10.27%,0) -> 0.00
C68: Produits | D68: =Paramètres!C115 -> 00:00:00 | E68: 2017-02-01 | F68: 2017-03-01 | G68: 2017-04-01 | H68: 2017-05-01 | I68: 2017-06-01 | J68: 2017-07-01 | K68: 2017-08-01 | L68: 2017-09-01 | M68: 2017-10-01 | N68: 2017-11-01 | O68: 2017-12-01 | P68: TOTAL
C69: Subventions à l'emploi ACS… à compléter [APE s'encode dans la feuille de synthèse] | P69: =SUM(D69:O69) -> 0.00
C70: Subvention Maribel 329.02 | D70: =IF(AND($O$5="Maribel",CP="329.02"),VLOOKUP('Données association'!$B$3,Paramètres!$I$29:$J$33,2,FALSE)/12*D19/Régime_de_travail_temps_plein*D20,0) -> 0.00 | E70: =IF(AND($O$5="Maribel",CP="329.02"),VLOOKUP('Données association'!$B$3,Paramètres!$I$29:$J$33,2,FALSE)/12*E19/Régime_de_travail_temps_plein*E20,0) -> 0.00 | F70: =IF(AND($O$5="Maribel",CP="329.02"),VLOOKUP('Données association'!$B$3,Paramètres!$I$29:$J$33,2,FALSE)/12*F19/Régime_de_travail_temps_plein*F20,0) -> 0.00 | G70: =IF(AND($O$5="Maribel",CP="329.02"),VLOOKUP('Données association'!$B$3,Paramètres!$I$29:$J$33,2,FALSE)/12*G19/Régime_de_travail_temps_plein*G20,0) -> 0.00 | H70: =IF(AND($O$5="Maribel",CP="329.02"),VLOOKUP('Données association'!$B$3,Paramètres!$I$29:$J$33,2,FALSE)/12*H19/Régime_de_travail_temps_plein*H20,0) -> 0.00 | I70: =IF(AND($O$5="Maribel",CP="329.02"),VLOOKUP('Données association'!$B$3,Paramètres!$I$29:$J$33,2,FALSE)/12*I19/Régime_de_travail_temps_plein*I20,0) -> 0.00 | J70: =IF(AND($O$5="Maribel",CP="329.02"),VLOOKUP('Données association'!$B$3,Paramètres!$I$29:$J$33,2,FALSE)/12*J19/Régime_de_travail_temps_plein*J20,0) -> 0.00 | K70: =IF(AND($O$5="Maribel",CP="329.02"),VLOOKUP('Données association'!$B$3,Paramètres!$I$29:$J$33,2,FALSE)/12*K19/Régime_de_travail_temps_plein*K20,0) -> 0.00 | L70: =IF(AND($O$5="Maribel",CP="329.02"),VLOOKUP('Données association'!$B$3,Paramètres!$I$29:$J$33,2,FALSE)/12*L19/Régime_de_travail_temps_plein*L20,0) -> 0.00 | M70: =IF(AND($O$5="Maribel",CP="329.02"),VLOOKUP('Données association'!$B$3,Paramètres!$I$29:$J$33,2,FALSE)/12*M19/Régime_de_travail_temps_plein*M20,0) -> 0.00 | N70: =IF(AND($O$5="Maribel",CP="329.02"),VLOOKUP('Données association'!$B$3,Paramètres!$I$29:$J$33,2,FALSE)/12*N19/Régime_de_travail_temps_plein*N20,0) -> 0.00 | O70: =IF(AND($O$5="Maribel",CP="329.02"),VLOOKUP('Données association'!$B$3,Paramètres!$I$29:$J$33,2,FALSE)/12*O19/Régime_de_travail_temps_plein*O20,0) -> 0.00
C71: Subvention Maribel 329.03 | D71: =IF(AND($O$5="Maribel",CP="329.03"),VLOOKUP(Paramètres!$I$42:$J$46,Année_ref,2,FALSE)/12*D20/Régime_de_travail_temps_plein*D21,0) -> 0.00 | E71: =IF(AND($O$5="Maribel",CP="329.03"),VLOOKUP(Paramètres!$I$42:$J$46,Année_ref,2,FALSE)/12*E20/Régime_de_travail_temps_plein*E21,0) -> 0.00 | F71: =IF(AND($O$5="Maribel",CP="329.03"),VLOOKUP(Paramètres!$I$42:$J$46,Année_ref,2,FALSE)/12*F20/Régime_de_travail_temps_plein*F21,0) -> 0.00 | G71: =IF(AND($O$5="Maribel",CP="329.03"),VLOOKUP(Paramètres!$I$42:$J$46,Année_ref,2,FALSE)/12*G20/Régime_de_travail_temps_plein*G21,0) -> 0.00 | H71: =IF(AND($O$5="Maribel",CP="329.03"),VLOOKUP(Paramètres!$I$42:$J$46,Année_ref,2,FALSE)/12*H20/Régime_de_travail_temps_plein*H21,0) -> 0.00 | I71: =IF(AND($O$5="Maribel",CP="329.03"),VLOOKUP(Paramètres!$I$42:$J$46,Année_ref,2,FALSE)/12*I20/Régime_de_travail_temps_plein*I21,0) -> 0.00 | J71: =IF(AND($O$5="Maribel",CP="329.03"),VLOOKUP(Paramètres!$I$42:$J$46,Année_ref,2,FALSE)/12*J20/Régime_de_travail_temps_plein*J21,0) -> 0.00 | K71: =IF(AND($O$5="Maribel",CP="329.03"),VLOOKUP(Paramètres!$I$42:$J$46,Année_ref,2,FALSE)/12*K20/Régime_de_travail_temps_plein*K21,0) -> 0.00 | L71: =IF(AND($O$5="Maribel",CP="329.03"),VLOOKUP(Paramètres!$I$42:$J$46,Année_ref,2,FALSE)/12*L20/Régime_de_travail_temps_plein*L21,0) -> 0.00 | M71: =IF(AND($O$5="Maribel",CP="329.03"),VLOOKUP(Paramètres!$I$42:$J$46,Année_ref,2,FALSE)/12*M20/Régime_de_travail_temps_plein*M21,0) -> 0.00 | N71: =IF(AND($O$5="Maribel",CP="329.03"),VLOOKUP(Paramètres!$I$42:$J$46,Année_ref,2,FALSE)/12*N20/Régime_de_travail_temps_plein*N21,0) -> 0.00 | O71: =IF(AND($O$5="Maribel",CP="329.03"),VLOOKUP(Paramètres!$I$42:$J$46,Année_ref,2,FALSE)/12*O20/Régime_de_travail_temps_plein*O21,0) -> 0.00
C72: Subvention Maribel [Valeur comptable ≠ avances du Fonds] | D72: =SUM(D$70:D$71) -> 0.00 | E72: =SUM(E$70:E$71) -> 0.00 | F72: 0.00 | G72: 0.00 | H72: 0.00 | I72: 0.00 | J72: 0.00 | K72: 0.00 | L72: 0.00 | M72: 0.00 | N72: 0.00 | O72: 0.00 | P72: =IF(SUM(D72:O72)>(P22+P29+P30+P36+P49+P54),(P22+P29+P30+P36+P49+P54), SUM(D72:O72)) -> 0.00 | Q72: <=Ajusté aux dépenses admissibles
C73: Autres subventions | P73: =SUM(D73:O73) -> 0.00
C74: La réforme APE est entrée en vigueur le 1-01-2022; la subvention est désormais globale pour l'association et doit être indiquée dans la feuille de synthèse. | P74: =SUM(P69:P73) -> 0.00
A76: INSTRUCTIONS
A77: Seules les cases vertes et orangées sont modifiables.
A78: Le remplissage des cases vertes clair est indispensable aux calculs.
A79: Il n'est nécessaire de modifier les cases vert sombres que si vos montants ne correspondent pas aux données.
A81: NOTE IMPORTANTE SUR LES BARÈMES
A82: Si vous n'appliquez aucun barème ou des barèmes spécifiques à votre association,
A83: => vous devez choisir "Autres" dans les Données association";
A84: => vous devez choisir "Autre" pour l'échelon du travailleur;
A85: => vous devez compléter toutes les cases vert sombre correspondant au brut mensuel pour chaque mois de l'année.
A86: Les augmentations liées à l'ancienneté ne sont pas automatiquement prises en compte.

Sheet Données poste 2
A1: DONNÉES TRAVAILLEUR
A2: ="Employeurs du groupe 2 [Maribel] | Estimations pour l'année "&Année_ref -> Employeurs du groupe 2 [Maribel] | Estimations pour l'année 2023
A4: Données facultatives à encoder dans la feuille "Données travailleurs" | E4: Données à encoder dans la feuille "Données travailleurs" | J4: EXEMPLES | L4: Aides à l'emploi hors subv. fonctionnelles | P4: EXEMPLES
B5: ANNÉE : | C5: =Année_ref -> 2023 | E5: Unité d'établissement du poste : | I5: ='Données travailleurs'!G7 -> 0 | J5: Région bruxelloise [liste] | N5: APE / ACS ; PTP ; Maribel; Étudiant : | O5: ='Données travailleurs'!P7 -> 0 | P5: APE
B6: ID du travailleur : | C6: ='Données travailleurs'!B7 -> 0 | E6: Statut : | I6: ='Données travailleurs'!H7 -> 0 | J6: Ouvrier [liste]
B7: N° de registre national : | C7: ='Données travailleurs'!C7 -> 0 | E7: ="Régime de travail au 1-01-"&Année_ref&" ou au début du contrat :" -> Régime de travail au 1-01-2023 ou au début du contrat : | I7: ='Données travailleurs'!I7 -> 0 | J7: 17,6 = 17h36
B8: Année de naissance : | C8: ='Données travailleurs'!D7 ->  | E8: Régime 5 ou 7 jours | I8: ='Données travailleurs'!J7 -> 5 | L8: Renseignements indispensables pour le PTP à la date d'engagement :
B9: Niveau de diplôme : | C9: ='Données travailleurs'!E7 -> 0 | H9: Échelon [Voir note sur les barèmes] : | I9: =IF(Barème_référence_association="Centres sportifs","",'Données travailleurs'!K7) -> Autre | J9: 4.2 [liste] | L9: Âge à l'engagement : | P9: <45 ans
B10: Fonction : | C10: ='Données travailleurs'!F7 -> 0 | H10: Échelon pour les centres sportifs : | I10: =IF(Barème_référence_association<>"Centres sportifs","",'Données travailleurs'!L7) ->  | L10: Période allocataire social à l'engagement : | P10: ≥12 mois
B11: Domicile du travailleur | C11: Région bruxelloise | E11: ="Ancienneté barémique au 1-01-"&Année_ref&" :" -> Ancienneté barémique au 1-01-2023 : | I11: ='Données travailleurs'!M7 -> 0 | J11: 5 | L11: Date de l'engagement : | P11: 2016-10-15
E12: ="Mois du passage d'ancienneté en "&Année_ref&" :" -> Mois du passage d'ancienneté en 2023 : | I12: ='Données travailleurs'!N7 -> Aucune | J12: mars
E13: Mois de la prise principale des vacances : | I13: ='Données travailleurs'!O7 -> 2022-07-02 | J13: juillet
H14: Calcul d'échelon pour la matrice : | I14: =IF($I$9="Autre","",IF($I$9<=3,$I$9,IF($I$9="4.1",4,IF($I$9="4.2",5,IF($I$9=5,6,7))))) -> 
C16: Indexations | D16: =IF(NIndex_réf=0,"",_xlfn.SWITCH(D$18,Mois_index,"indexation",MoisIndex2,"indexation",MoisIndex3,"indexation",MoisIndex4,"indexation",MoisIndex5,"indexation","")) ->  | E16: =IF(NIndex_réf=0,"",_xlfn.SWITCH(E$18,Mois_index,"indexation",MoisIndex2,"indexation",MoisIndex3,"indexation",MoisIndex4,"indexation",MoisIndex5,"indexation","")) -> indexation | F16: =IF(NIndex_réf=0,"",_xlfn.SWITCH(F$18,Mois_index,"indexation",MoisIndex2,"indexation",MoisIndex3,"indexation",MoisIndex4,"indexation",MoisIndex5,"indexation","")) ->  | G16: =IF(NIndex_réf=0,"",_xlfn.SWITCH(G$18,Mois_index,"indexation",MoisIndex2,"indexation",MoisIndex3,"indexation",MoisIndex4,"indexation",MoisIndex5,"indexation","")) ->  | H16: =IF(NIndex_réf=0,"",_xlfn.SWITCH(H$18,Mois_index,"indexation",MoisIndex2,"indexation",MoisIndex3,"indexation",MoisIndex4,"indexation",MoisIndex5,"indexation","")) -> indexation | I16: =IF(NIndex_réf=0,"",_xlfn.SWITCH(I$18,Mois_index,"indexation",MoisIndex2,"indexation",MoisIndex3,"indexation",MoisIndex4,"indexation",MoisIndex5,"indexation","")) ->  | J16: =IF(NIndex_réf=0,"",_xlfn.SWITCH(J$18,Mois_index,"indexation",MoisIndex2,"indexation",MoisIndex3,"indexation",MoisIndex4,"indexation",MoisIndex5,"indexation","")) ->  | K16: =IF(NIndex_réf=0,"",_xlfn.SWITCH(K$18,Mois_index,"indexation",MoisIndex2,"indexation",MoisIndex3,"indexation",MoisIndex4,"indexation",MoisIndex5,"indexation","")) -> indexation | L16: =IF(NIndex_réf=0,"",_xlfn.SWITCH(L$18,Mois_index,"indexation",MoisIndex2,"indexation",MoisIndex3,"indexation",MoisIndex4,"indexation",MoisIndex5,"indexation","")) ->  | M16: =IF(NIndex_réf=0,"",_xlfn.SWITCH(M$18,Mois_index,"indexation",MoisIndex2,"indexation",MoisIndex3,"indexation",MoisIndex4,"indexation",MoisIndex5,"indexation","")) ->  | N16: =IF(NIndex_réf=0,"",_xlfn.SWITCH(N$18,Mois_index,"indexation",MoisIndex2,"indexation",MoisIndex3,"indexation",MoisIndex4,"indexation",MoisIndex5,"indexation","")) ->  | O16: =IF(NIndex_réf=0,"",_xlfn.SWITCH(O$18,Mois_index,"indexation",MoisIndex2,"indexation",MoisIndex3,"indexation",MoisIndex4,"indexation",MoisIndex5,"indexation","")) -> 
C17: Annale ou biennale | E17: =IF($I$12="Aucune","",IF(MONTH($I$12)=E$21,"Annale ou biennale","")) -> 
C18: Charges | D18: 2017-01-01 | E18: 2017-02-01 | F18: 2017-03-01 | G18: 2017-04-01 | H18: 2017-05-01 | I18: 2017-06-01 | J18: 2017-07-01 | K18: 2017-08-01 | L18: 2017-09-01 | M18: 2017-10-01 | N18: 2017-11-01 | O18: 2017-12-01 | P18: TOTAL
C19: Modification du régime de travail pour le mois | D19: =$I$7 -> 0 | E19: 0 | F19: 0 | G19: 0 | H19: 0 | I19: 0 | J19: 0 | K19: 0 | L19: 0 | M19: 0 | N19: 0 | O19: 0 | P19: =AVERAGE(D$19:O$19) -> 0
C20: Durée d'occupation pour le mois | D20: 100% | E20: 100% | F20: 100% | G20: 100% | H20: 100% | I20: 100% | J20: 100% | K20: 100% | L20: 100% | M20: 100% | N20: 100% | O20: 100% | P20: =AVERAGE(D$20:O$20) -> 100%
D21: 1 | E21: 2 | F21: 3 | G21: 4 | H21: 5 | I21: 6 | J21: 7 | K21: 8 | L21: 9 | M21: 10 | N21: 11 | O21: 12
B22: Si nécessaire | C22: Rémunération brute avec corrections d'occupation et application RMMMG | D22: =IF($I$7=0,0,IF(D$23="Complétez","",IF(AND(MONTH($I$13)=D$21,$I$6="Ouvrier"),0,D$23*D$20*(D$19/$I$7)))) -> 0.00 | E22: =IF($I$7=0,0,IF(E$23="Complétez","",IF(AND(MONTH($I$13)=E$21,$I$6="Ouvrier"),0,E$23*E$20*(E$19/$I$7)))) -> 0.00 | F22: 0.00 | G22: 0.00 | H22: 0.00 | I22: 0.00 | J22: 0.00 | K22: 0.00 | L22: 0.00 | M22: 0.00 | N22: 0.00 | O22: 0.00 | P22: =SUM(D22:O22) -> 0.00
B23: Encodez ici => | C23: Rémunération brute mensuelle de référence | D23: =IF(OR(Barème_référence_association="Autres",$I$10="Autre",$I$9="Autre"),"Complétez", D$24*$I$7/Régime_de_travail_temps_plein) -> Complétez | E23: =IF(OR(Barème_référence_association="Autres",$I$10="Autre",$I$9="Autre"),"Complétez", E$24*$I$7/Régime_de_travail_temps_plein) -> Complétez | F23: Complétez | G23: Complétez | H23: Complétez | I23: Complétez | J23: Complétez | K23: Complétez | L23: Complétez | M23: Complétez | N23: Complétez | O23: Complétez
C24: Rémunération brute mensuelle temps plein avec vérification index | D24: =D$25*_xlfn.SWITCH(Année_ref,2022,POWER(1.02,COUNTIF($D$16:D16,"indexation")),2023,POWER(1.02,NIndex2022+COUNTIF($D$16:D16,"indexation")),2024,POWER(1.02,NIndex2022+NIndex2023+COUNTIF($D$16:D16,"indexation"))) ->  | E24: =E$25*_xlfn.SWITCH(Année_ref,2022,POWER(1.02,COUNTIF($D$16:E16,"indexation")),2023,POWER(1.02,NIndex2022+COUNTIF($D$16:E16,"indexation")),2024,POWER(1.02,NIndex2022+NIndex2023+COUNTIF($D$16:E16,"indexation"))) ->  | F24: =F$25*_xlfn.SWITCH(Année_ref,2022,POWER(1.02,COUNTIF($D$16:F16,"indexation")),2023,POWER(1.02,NIndex2022+COUNTIF($D$16:F16,"indexation")),2024,POWER(1.02,NIndex2022+NIndex2023+COUNTIF($D$16:F16,"indexation"))) ->  | G24: =G$25*_xlfn.SWITCH(Année_ref,2022,POWER(1.02,COUNTIF($D$16:G16,"indexation")),2023,POWER(1.02,NIndex2022+COUNTIF($D$16:G16,"indexation")),2024,POWER(1.02,NIndex2022+NIndex2023+COUNTIF($D$16:G16,"indexation"))) ->  | H24: =H$25*_xlfn.SWITCH(Année_ref,2022,POWER(1.02,COUNTIF($D$16:H16,"indexation")),2023,POWER(1.02,NIndex2022+COUNTIF($D$16:H16,"indexation")),2024,POWER(1.02,NIndex2022+NIndex2023+COUNTIF($D$16:H16,"indexation"))) ->  | I24: =I$25*_xlfn.SWITCH(Année_ref,2022,POWER(1.02,COUNTIF($D$16:I16,"indexation")),2023,POWER(1.02,NIndex2022+COUNTIF($D$16:I16,"indexation")),2024,POWER(1.02,NIndex2022+NIndex2023+COUNTIF($D$16:I16,"indexation"))) ->  | J24: =J$25*_xlfn.SWITCH(Année_ref,2022,POWER(1.02,COUNTIF($D$16:J16,"indexation")),2023,POWER(1.02,NIndex2022+COUNTIF($D$16:J16,"indexation")),2024,POWER(1.02,NIndex2022+NIndex2023+COUNTIF($D$16:J16,"indexation"))) ->  | K24: =K$25*_xlfn.SWITCH(Année_ref,2022,POWER(1.02,COUNTIF($D$16:K16,"indexation")),2023,POWER(1.02,NIndex2022+COUNTIF($D$16:K16,"indexation")),2024,POWER(1.02,NIndex2022+NIndex2023+COUNTIF($D$16:K16,"indexation"))) ->  | L24: =L$25*_xlfn.SWITCH(Année_ref,2022,POWER(1.02,COUNTIF($D$16:L16,"indexation")),2023,POWER(1.02,NIndex2022+COUNTIF($D$16:L16,"indexation")),2024,POWER(1.02,NIndex2022+NIndex2023+COUNTIF($D$16:L16,"indexation"))) ->  | M24: =M$25*_xlfn.SWITCH(Année_ref,2022,POWER(1.02,COUNTIF($D$16:M16,"indexation")),2023,POWER(1.02,NIndex2022+COUNTIF($D$16:M16,"indexation")),2024,POWER(1.02,NIndex2022+NIndex2023+COUNTIF($D$16:M16,"indexation"))) ->  | N24: =N$25*_xlfn.SWITCH(Année_ref,2022,POWER(1.02,COUNTIF($D$16:N16,"indexation")),2023,POWER(1.02,NIndex2022+COUNTIF($D$16:N16,"indexation")),2024,POWER(1.02,NIndex2022+NIndex2023+COUNTIF($D$16:N16,"indexation"))) ->  | O24: =O$25*_xlfn.SWITCH(Année_ref,2022,POWER(1.02,COUNTIF($D$16:O16,"indexation")),2023,POWER(1.02,NIndex2022+COUNTIF($D$16:O16,"indexation")),2024,POWER(1.02,NIndex2022+NIndex2023+COUNTIF($D$16:O16,"indexation"))) -> 
C25: Brut avec annale ou biennale temps plein | D25: =IF(OR(Barème_référence_association="Autres",$I$9="Autre",$I$10="Autre"),D$23,_xlfn.SWITCH(Barème_référence_association, CF,ROUND(VLOOKUP($I$11+IF(D18<$I$12,0,1),'Barèmes CF 01-2022'!$A:$H,MIN($I$14+1,8)),2), RW_100,ROUND(VLOOKUP($I$11+IF(D18<$I$12,0,1),'Barèmes RW 01-2022'!$A:$H,MIN($I$14+1,8)),2), RBC_ISP,ROUND(VLOOKUP($I$11+IF(D18<$I$12,0,1),'Barèmes RBC 01-2022'!$A:$H,MIN($I$14+1,8)),2), CG,ROUND(VLOOKUP($I$11+IF(D18<$I$12,0,1),'Barèmes CG 01-2022'!$A:$H,MIN($I$14+1,8)),2), Centres_sportifs,ROUND(VLOOKUP($I$11+IF(D18<$I$12,0,1),'Barèmes CeSp 01-2022'!$A:$V,MIN($I$10+1,22)),2), Pourcentage,ROUND(VLOOKUP($I$11+IF(D18<$I$12,0,1),'Barèmes RW % 01-2022'!$A:$H,MIN($I$14+1,8)),2))) -> Complétez | E25: =IF(OR(Barème_référence_association="Autres",$I$9="Autre",$I$10="Autre"),E$23,_xlfn.SWITCH(Barème_référence_association, CF,ROUND(VLOOKUP($I$11+IF(E18<$I$12,0,1),'Barèmes CF 01-2022'!$A:$H,MIN($I$14+1,8)),2), RW_100,ROUND(VLOOKUP($I$11+IF(E18<$I$12,0,1),'Barèmes RW 01-2022'!$A:$H,MIN($I$14+1,8)),2), RBC_ISP,ROUND(VLOOKUP($I$11+IF(E18<$I$12,0,1),'Barèmes RBC 01-2022'!$A:$H,MIN($I$14+1,8)),2), CG,ROUND(VLOOKUP($I$11+IF(E18<$I$12,0,1),'Barèmes CG 01-2022'!$A:$H,MIN($I$14+1,8)),2), Centres_sportifs,ROUND(VLOOKUP($I$11+IF(E18<$I$12,0,1),'Barèmes CeSp 01-2022'!$A:$V,MIN($I$10+1,22)),2), Pourcentage,ROUND(VLOOKUP($I$11+IF(E18<$I$12,0,1),'Barèmes RW % 01-2022'!$A:$H,MIN($I$14+1,8)),2))) -> Complétez | F25: =IF(OR(Barème_référence_association="Autres",$I$9="Autre",$I$10="Autre"),F$23,_xlfn.SWITCH(Barème_référence_association, CF,ROUND(VLOOKUP($I$11+IF(F18<$I$12,0,1),'Barèmes CF 01-2022'!$A:$H,MIN($I$14+1,8)),2), RW_100,ROUND(VLOOKUP($I$11+IF(F18<$I$12,0,1),'Barèmes RW 01-2022'!$A:$H,MIN($I$14+1,8)),2), RBC_ISP,ROUND(VLOOKUP($I$11+IF(F18<$I$12,0,1),'Barèmes RBC 01-2022'!$A:$H,MIN($I$14+1,8)),2), CG,ROUND(VLOOKUP($I$11+IF(F18<$I$12,0,1),'Barèmes CG 01-2022'!$A:$H,MIN($I$14+1,8)),2), Centres_sportifs,ROUND(VLOOKUP($I$11+IF(F18<$I$12,0,1),'Barèmes CeSp 01-2022'!$A:$V,MIN($I$10+1,22)),2), Pourcentage,ROUND(VLOOKUP($I$11+IF(F18<$I$12,0,1),'Barèmes RW % 01-2022'!$A:$H,MIN($I$14+1,8)),2))) -> Complétez | G25: =IF(OR(Barème_référence_association="Autres",$I$9="Autre",$I$10="Autre"),G$23,_xlfn.SWITCH(Barème_référence_association, CF,ROUND(VLOOKUP($I$11+IF(G18<$I$12,0,1),'Barèmes CF 01-2022'!$A:$H,MIN($I$14+1,8)),2), RW_100,ROUND(VLOOKUP($I$11+IF(G18<$I$12,0,1),'Barèmes RW 01-2022'!$A:$H,MIN($I$14+1,8)),2), RBC_ISP,ROUND(VLOOKUP($I$11+IF(G18<$I$12,0,1),'Barèmes RBC 01-2022'!$A:$H,MIN($I$14+1,8)),2), CG,ROUND(VLOOKUP($I$11+IF(G18<$I$12,0,1),'Barèmes CG 01-2022'!$A:$H,MIN($I$14+1,8)),2), Centres_sportifs,ROUND(VLOOKUP($I$11+IF(G18<$I$12,0,1),'Barèmes CeSp 01-2022'!$A:$V,MIN($I$10+1,22)),2), Pourcentage,ROUND(VLOOKUP($I$11+IF(G18<$I$12,0,1),'Barèmes RW % 01-2022'!$A:$H,MIN($I$14+1,8)),2))) -> Complétez | H25: =IF(OR(Barème_référence_association="Autres",$I$9="Autre",$I$10="Autre"),H$23,_xlfn.SWITCH(Barème_référence_association, CF,ROUND(VLOOKUP($I$11+IF(H18<$I$12,0,1),'Barèmes CF 01-2022'!$A:$H,MIN($I$14+1,8)),2), RW_100,ROUND(VLOOKUP($I$11+IF(H18<$I$12,0,1),'Barèmes RW 01-2022'!$A:$H,MIN($I$14+1,8)),2), RBC_ISP,ROUND(VLOOKUP($I$11+IF(H18<$I$12,0,1),'Barèmes RBC 01-2022'!$A:$H,MIN($I$14+1,8)),2), CG,ROUND(VLOOKUP($I$11+IF(H18<$I$12,0,1),'Barèmes CG 01-2022'!$A:$H,MIN($I$14+1,8)),2), Centres_sportifs,ROUND(VLOOKUP($I$11+IF(H18<$I$12,0,1),'Barèmes CeSp 01-2022'!$A:$V,MIN($I$10+1,22)),2), Pourcentage,ROUND(VLOOKUP($I$11+IF(H18<$I$12,0,1),'Barèmes RW % 01-2022'!$A:$H,MIN($I$14+1,8)),2))) -> Complétez | I25: =IF(OR(Barème_référence_association="Autres",$I$9="Autre",$I$10="Autre"),I$23,_xlfn.SWITCH(Barème_référence_association, CF,ROUND(VLOOKUP($I$11+IF(I18<$I$12,0,1),'Barèmes CF 01-2022'!$A:$H,MIN($I$14+1,8)),2), RW_100,ROUND(VLOOKUP($I$11+IF(I18<$I$12,0,1),'Barèmes RW 01-2022'!$A:$H,MIN($I$14+1,8)),2), RBC_ISP,ROUND(VLOOKUP($I$11+IF(I18<$I$12,0,1),'Barèmes RBC 01-2022'!$A:$H,MIN($I$14+1,8)),2), CG,ROUND(VLOOKUP($I$11+IF(I18<$I$12,0,1),'Barèmes CG 01-2022'!$A:$H,MIN($I$14+1,8)),2), Centres_sportifs,ROUND(VLOOKUP($I$11+IF(I18<$I$12,0,1),'Barèmes CeSp 01-2022'!$A:$V,MIN($I$10+1,22)),2), Pourcentage,ROUND(VLOOKUP($I$11+IF(I18<$I$12,0,1),'Barèmes RW % 01-2022'!$A:$H,MIN($I$14+1,8)),2))) -> Complétez | J25: =IF(OR(Barème_référence_association="Autres",$I$9="Autre",$I$10="Autre"),J$23,_xlfn.SWITCH(Barème_référence_association, CF,ROUND(VLOOKUP($I$11+IF(J18<$I$12,0,1),'Barèmes CF 01-2022'!$A:$H,MIN($I$14+1,8)),2), RW_100,ROUND(VLOOKUP($I$11+IF(J18<$I$12,0,1),'Barèmes RW 01-2022'!$A:$H,MIN($I$14+1,8)),2), RBC_ISP,ROUND(VLOOKUP($I$11+IF(J18<$I$12,0,1),'Barèmes RBC 01-2022'!$A:$H,MIN($I$14+1,8)),2), CG,ROUND(VLOOKUP($I$11+IF(J18<$I$12,0,1),'Barèmes CG 01-2022'!$A:$H,MIN($I$14+1,8)),2), Centres_sportifs,ROUND(VLOOKUP($I$11+IF(J18<$I$12,0,1),'Barèmes CeSp 01-2022'!$A:$V,MIN($I$10+1,22)),2), Pourcentage,ROUND(VLOOKUP($I$11+IF(J18<$I$12,0,1),'Barèmes RW % 01-2022'!$A:$H,MIN($I$14+1,8)),2))) -> Complétez | K25: =IF(OR(Barème_référence_association="Autres",$I$9="Autre",$I$10="Autre"),K$23,_xlfn.SWITCH(Barème_référence_association, CF,ROUND(VLOOKUP($I$11+IF(K18<$I$12,0,1),'Barèmes CF 01-2022'!$A:$H,MIN($I$14+1,8)),2), RW_100,ROUND(VLOOKUP($I$11+IF(K18<$I$12,0,1),'Barèmes RW 01-2022'!$A:$H,MIN($I$14+1,8)),2), RBC_ISP,ROUND(VLOOKUP($I$11+IF(K18<$I$12,0,1),'Barèmes RBC 01-2022'!$A:$H,MIN($I$14+1,8)),2), CG,ROUND(VLOOKUP($I$11+IF(K18<$I$12,0,1),'Barèmes CG 01-2022'!$A:$H,MIN($I$14+1,8)),2), Centres_sportifs,ROUND(VLOOKUP($I$11+IF(K18<$I$12,0,1),'Barèmes CeSp 01-2022'!$A:$V,MIN($I$10+1,22)),2), Pourcentage,ROUND(VLOOKUP($I$11+IF(K18<$I$12,0,1),'Barèmes RW % 01-2022'!$A:$H,MIN($I$14+1,8)),2))) -> Complétez | L25: =IF(OR(Barème_référence_association="Autres",$I$9="Autre",$I$10="Autre"),L$23,_xlfn.SWITCH(Barème_référence_association, CF,ROUND(VLOOKUP($I$11+IF(L18<$I$12,0,1),'Barèmes CF 01-2022'!$A:$H,MIN($I$14+1,8)),2), RW_100,ROUND(VLOOKUP($I$11+IF(L18<$I$12,0,1),'Barèmes RW 01-2022'!$A:$H,MIN($I$14+1,8)),2), RBC_ISP,ROUND(VLOOKUP($I$11+IF(L18<$I$12,0,1),'Barèmes RBC 01-2022'!$A:$H,MIN($I$14+1,8)),2), CG,ROUND(VLOOKUP($I$11+IF(L18<$I$12,0,1),'Barèmes CG 01-2022'!$A:$H,MIN($I$14+1,8)),2), Centres_sportifs,ROUND(VLOOKUP($I$11+IF(L18<$I$12,0,1),'Barèmes CeSp 01-2022'!$A:$V,MIN($I$10+1,22)),2), Pourcentage,ROUND(VLOOKUP($I$11+IF(L18<$I$12,0,1),'Barèmes RW % 01-2022'!$A:$H,MIN($I$14+1,8)),2))) -> Complétez | M25: =IF(OR(Barème_référence_association="Autres",$I$9="Autre",$I$10="Autre"),M$23,_xlfn.SWITCH(Barème_référence_association, CF,ROUND(VLOOKUP($I$11+IF(M18<$I$12,0,1),'Barèmes CF 01-2022'!$A:$H,MIN($I$14+1,8)),2), RW_100,ROUND(VLOOKUP($I$11+IF(M18<$I$12,0,1),'Barèmes RW 01-2022'!$A:$H,MIN($I$14+1,8)),2), RBC_ISP,ROUND(VLOOKUP($I$11+IF(M18<$I$12,0,1),'Barèmes RBC 01-2022'!$A:$H,MIN($I$14+1,8)),2), CG,ROUND(VLOOKUP($I$11+IF(M18<$I$12,0,1),'Barèmes CG 01-2022'!$A:$H,MIN($I$14+1,8)),2), Centres_sportifs,ROUND(VLOOKUP($I$11+IF(M18<$I$12,0,1),'Barèmes CeSp 01-2022'!$A:$V,MIN($I$10+1,22)),2), Pourcentage,ROUND(VLOOKUP($I$11+IF(M18<$I$12,0,1),'Barèmes RW % 01-2022'!$A:$H,MIN($I$14+1,8)),2))) -> Complétez | N25: =IF(OR(Barème_référence_association="Autres",$I$9="Autre",$I$10="Autre"),N$23,_xlfn.SWITCH(Barème_référence_association, CF,ROUND(VLOOKUP($I$11+IF(N18<$I$12,0,1),'Barèmes CF 01-2022'!$A:$H,MIN($I$14+1,8)),2), RW_100,ROUND(VLOOKUP($I$11+IF(N18<$I$12,0,1),'Barèmes RW 01-2022'!$A:$H,MIN($I$14+1,8)),2), RBC_ISP,ROUND(VLOOKUP($I$11+IF(N18<$I$12,0,1),'Barèmes RBC 01-2022'!$A:$H,MIN($I$14+1,8)),2), CG,ROUND(VLOOKUP($I$11+IF(N18<$I$12,0,1),'Barèmes CG 01-2022'!$A:$H,MIN($I$14+1,8)),2), Centres_sportifs,ROUND(VLOOKUP($I$11+IF(N18<$I$12,0,1),'Barèmes CeSp 01-2022'!$A:$V,MIN($I$10+1,22)),2), Pourcentage,ROUND(VLOOKUP($I$11+IF(N18<$I$12,0,1),'Barèmes RW % 01-2022'!$A:$H,MIN($I$14+1,8)),2))) -> Complétez | O25: =IF(OR(Barème_référence_association="Autres",$I$9="Autre",$I$10="Autre"),O$23,_xlfn.SWITCH(Barème_référence_association, CF,ROUND(VLOOKUP($I$11+IF(O18<$I$12,0,1),'Barèmes CF 01-2022'!$A:$H,MIN($I$14+1,8)),2), RW_100,ROUND(VLOOKUP($I$11+IF(O18<$I$12,0,1),'Barèmes RW 01-2022'!$A:$H,MIN($I$14+1,8)),2), RBC_ISP,ROUND(VLOOKUP($I$11+IF(O18<$I$12,0,1),'Barèmes RBC 01-2022'!$A:$H,MIN($I$14+1,8)),2), CG,ROUND(VLOOKUP($I$11+IF(O18<$I$12,0,1),'Barèmes CG 01-2022'!$A:$H,MIN($I$14+1,8)),2), Centres_sportifs,ROUND(VLOOKUP($I$11+IF(O18<$I$12,0,1),'Barèmes CeSp 01-2022'!$A:$V,MIN($I$10+1,22)),2), Pourcentage,ROUND(VLOOKUP($I$11+IF(O18<$I$12,0,1),'Barèmes RW % 01-2022'!$A:$H,MIN($I$14+1,8)),2))) -> Complétez
C26: Brut avec annale ou biennale temps-plein avec correction RMMMG indexés | D26: =_xlfn.SWITCH(Année_ref,2022,IF(CP="329.03",IF(D$25<RMMMG32903_2022,RMMMG32903_2022,D$25),IF(D$25<RMMMG_2022,RMMMG_2022,D$25)),2023,IF(CP="329.03",IF(D$25<RMMMG32903_2023,RMMMG32903_2023,D$25),IF(D$25<RMMMG_2023,RMMMG_2023,D$25)),2024,IF(CP="329.03",IF(D$25<RMMMG32903_2024,RMMMG32903_2024,D$25),IF(D$25<RMMMG_2024,RMMMG_2024,D$25))) -> Complétez | E26: =_xlfn.SWITCH(Année_ref,2022,IF(CP="329.03",IF(E$25<RMMMG32903_2022,RMMMG32903_2022,E$25),IF(E$25<RMMMG_2022,RMMMG_2022,E$25)),2023,IF(CP="329.03",IF(E$25<RMMMG32903_2023,RMMMG32903_2023,E$25),IF(E$25<RMMMG_2023,RMMMG_2023,E$25)),2024,IF(CP="329.03",IF(E$25<RMMMG32903_2024,RMMMG32903_2024,E$25),IF(E$25<RMMMG_2024,RMMMG_2024,E$25))) -> Complétez | F26: =_xlfn.SWITCH(Année_ref,2022,IF(CP="329.03",IF(F$25<RMMMG32903_2022,RMMMG32903_2022,F$25),IF(F$25<RMMMG_2022,RMMMG_2022,F$25)),2023,IF(CP="329.03",IF(F$25<RMMMG32903_2023,RMMMG32903_2023,F$25),IF(F$25<RMMMG_2023,RMMMG_2023,F$25)),2024,IF(CP="329.03",IF(F$25<RMMMG32903_2024,RMMMG32903_2024,F$25),IF(F$25<RMMMG_2024,RMMMG_2024,F$25))) -> Complétez | G26: =_xlfn.SWITCH(Année_ref,2022,IF(CP="329.03",IF(G$25<RMMMG32903_2022,RMMMG32903_2022,G$25),IF(G$25<RMMMG_2022,RMMMG_2022,G$25)),2023,IF(CP="329.03",IF(G$25<RMMMG32903_2023,RMMMG32903_2023,G$25),IF(G$25<RMMMG_2023,RMMMG_2023,G$25)),2024,IF(CP="329.03",IF(G$25<RMMMG32903_2024,RMMMG32903_2024,G$25),IF(G$25<RMMMG_2024,RMMMG_2024,G$25))) -> Complétez | H26: =_xlfn.SWITCH(Année_ref,2022,IF(CP="329.03",IF(H$25<RMMMG32903_2022,RMMMG32903_2022,H$25),IF(H$25<RMMMG_2022,RMMMG_2022,H$25)),2023,IF(CP="329.03",IF(H$25<RMMMG32903_2023,RMMMG32903_2023,H$25),IF(H$25<RMMMG_2023,RMMMG_2023,H$25)),2024,IF(CP="329.03",IF(H$25<RMMMG32903_2024,RMMMG32903_2024,H$25),IF(H$25<RMMMG_2024,RMMMG_2024,H$25))) -> Complétez | I26: =_xlfn.SWITCH(Année_ref,2022,IF(CP="329.03",IF(I$25<RMMMG32903_2022,RMMMG32903_2022,I$25),IF(I$25<RMMMG_2022,RMMMG_2022,I$25)),2023,IF(CP="329.03",IF(I$25<RMMMG32903_2023,RMMMG32903_2023,I$25),IF(I$25<RMMMG_2023,RMMMG_2023,I$25)),2024,IF(CP="329.03",IF(I$25<RMMMG32903_2024,RMMMG32903_2024,I$25),IF(I$25<RMMMG_2024,RMMMG_2024,I$25))) -> Complétez | J26: =_xlfn.SWITCH(Année_ref,2022,IF(CP="329.03",IF(J$25<RMMMG32903_2022,RMMMG32903_2022,J$25),IF(J$25<RMMMG_2022,RMMMG_2022,J$25)),2023,IF(CP="329.03",IF(J$25<RMMMG32903_2023,RMMMG32903_2023,J$25),IF(J$25<RMMMG_2023,RMMMG_2023,J$25)),2024,IF(CP="329.03",IF(J$25<RMMMG32903_2024,RMMMG32903_2024,J$25),IF(J$25<RMMMG_2024,RMMMG_2024,J$25))) -> Complétez | K26: =_xlfn.SWITCH(Année_ref,2022,IF(CP="329.03",IF(K$25<RMMMG32903_2022,RMMMG32903_2022,K$25),IF(K$25<RMMMG_2022,RMMMG_2022,K$25)),2023,IF(CP="329.03",IF(K$25<RMMMG32903_2023,RMMMG32903_2023,K$25),IF(K$25<RMMMG_2023,RMMMG_2023,K$25)),2024,IF(CP="329.03",IF(K$25<RMMMG32903_2024,RMMMG32903_2024,K$25),IF(K$25<RMMMG_2024,RMMMG_2024,K$25))) -> Complétez | L26: =_xlfn.SWITCH(Année_ref,2022,IF(CP="329.03",IF(L$25<RMMMG32903_2022,RMMMG32903_2022,L$25),IF(L$25<RMMMG_2022,RMMMG_2022,L$25)),2023,IF(CP="329.03",IF(L$25<RMMMG32903_2023,RMMMG32903_2023,L$25),IF(L$25<RMMMG_2023,RMMMG_2023,L$25)),2024,IF(CP="329.03",IF(L$25<RMMMG32903_2024,RMMMG32903_2024,L$25),IF(L$25<RMMMG_2024,RMMMG_2024,L$25))) -> Complétez | M26: =_xlfn.SWITCH(Année_ref,2022,IF(CP="329.03",IF(M$25<RMMMG32903_2022,RMMMG32903_2022,M$25),IF(M$25<RMMMG_2022,RMMMG_2022,M$25)),2023,IF(CP="329.03",IF(M$25<RMMMG32903_2023,RMMMG32903_2023,M$25),IF(M$25<RMMMG_2023,RMMMG_2023,M$25)),2024,IF(CP="329.03",IF(M$25<RMMMG32903_2024,RMMMG32903_2024,M$25),IF(M$25<RMMMG_2024,RMMMG_2024,M$25))) -> Complétez | N26: =_xlfn.SWITCH(Année_ref,2022,IF(CP="329.03",IF(N$25<RMMMG32903_2022,RMMMG32903_2022,N$25),IF(N$25<RMMMG_2022,RMMMG_2022,N$25)),2023,IF(CP="329.03",IF(N$25<RMMMG32903_2023,RMMMG32903_2023,N$25),IF(N$25<RMMMG_2023,RMMMG_2023,N$25)),2024,IF(CP="329.03",IF(N$25<RMMMG32903_2024,RMMMG32903_2024,N$25),IF(N$25<RMMMG_2024,RMMMG_2024,N$25))) -> Complétez | O26: =_xlfn.SWITCH(Année_ref,2022,IF(CP="329.03",IF(O$25<RMMMG32903_2022,RMMMG32903_2022,O$25),IF(O$25<RMMMG_2022,RMMMG_2022,O$25)),2023,IF(CP="329.03",IF(O$25<RMMMG32903_2023,RMMMG32903_2023,O$25),IF(O$25<RMMMG_2023,RMMMG_2023,O$25)),2024,IF(CP="329.03",IF(O$25<RMMMG32903_2024,RMMMG32903_2024,O$25),IF(O$25<RMMMG_2024,RMMMG_2024,O$25))) -> Complétez
C27: Brut avec indexation(s) temps plein | D27: =D26 -> Complétez | E27: =IF(D23="Complétez",E23,IF(Mois_index="Aucune",E$26,IF(E16="",E26,D27*1.02))) -> Complétez | F27: Complétez | G27: Complétez | H27: Complétez | I27: Complétez | J27: Complétez | K27: Complétez | L27: Complétez | M27: Complétez | N27: Complétez | O27: Complétez
C28: Sursalaires | P28: =SUM(D28:O28) -> 0.00
C29: Double pécule de vacances | D29: =IF(AND(D$21=MONTH($I$13),D$23="Complétez"),"Complétez",IF(D$21=MONTH($I$13),IF($I$6=Ouvrier,"",0.92*D$23),"")) ->  | J29: Complétez | P29: =SUM(D29:O29) -> 0.00
C30: Prime de fin d'année | O30: =IF(OR($M$23="Complétez",$O$23="Complétez"),0, _xlfn.SWITCH(PFA_Association, PFA_Aucune,0, PFA_ISP_RBC,(AVERAGE(D19:L19)/Régime_de_travail_temps_plein)*AVERAGE(D20:L20)*(part_fixe_non_indexée_PFA_ISPRBC+Part_fixe_2021_PFA_ISPRBC*POWER(1.02,TotalIndex))+(30%*$M$22), PFA_CFISPA_AViQ,(AVERAGE(D19:L19)/Régime_de_travail_temps_plein)*AVERAGE(D20:L20)*((Part_fixe_2021_PFA_1_CFISPA+Part_fixe_2021_PFA_2_3_CFISPA)*POWER(1.02,TotalIndex))+AVERAGE(D20:L20)*2.5%*12*$M$22, PFA_CISP_W__CRIs__MIRE,IF((AVERAGE(D19:O19)/Régime_de_travail_temps_plein)<0.3,0,(AVERAGE(D19:O19)/Régime_de_travail_temps_plein)*AVERAGE(D20:O20)*Part_fixe_2021_CISP_CRI_MIRE*POWER(1.02,TotalIndex)), PFA_ILI__SETIS__Interfédé__InterMire__PMTIC__AES,(IF((AVERAGE(D19:O19)/Régime_de_travail_temps_plein)<0.3,0,(SUM(D19:O19)/12/Régime_de_travail_temps_plein)*SUM(D20:O20)/12*Part_fixe_2021_PFA_ILI_AUTRES*POWER(1.02,TotalIndex))), PFA_Fonction_publique_RW,(AVERAGE(D19:L19)/Régime_de_travail_temps_plein)*Part_fixe_2021_PFA_FPRW*POWER(1.02,TotalIndex)+AVERAGE(D20:L20)*2.5%*12*$M$22, PFA_Fonction_publique_CF,(AVERAGE(D19:L19)/Régime_de_travail_temps_plein)*Part_fixe_2021_PFA_FPCF*POWER(1.02,TotalIndex)+AVERAGE(D20:L20)*2.5%*12*$M$22, PFA_Fonction_publique_fédérale,(AVERAGE(D19:L19)/Régime_de_travail_temps_plein)*SUM(D20:L20)/9*Part_fixe_2021_PFA_FPFEDBASE*POWER(1.02,TotalIndex)+AVERAGE(D20:L20)*2.5%*12*$M$22, PFA_Fonction_publique_fédérale_PLUS,(AVERAGE(D19:L19)/Régime_de_travail_temps_plein)*Part_fixe_2021_PFA_FPFEDPLUS*POWER(1.02,TotalIndex)+AVERAGE(D20:L20)*2.5%*12*$M$22, PFA_Fonction_publique_CoCoF,(AVERAGE(D19:L19)/Régime_de_travail_temps_plein)*AVERAGE(D20:L20)*Part_fixe_2021_PFA_FPCOCOF*POWER(1.02,TotalIndex)+AVERAGE(D20:L20)*2.5%*12*$M$22, PFA_Fonction_publique_RBC,(AVERAGE(D19:L19)/Régime_de_travail_temps_plein)*AVERAGE(D20:L20)*Part_fixe_2021_PFA_FPRBC*POWER(1.02,TotalIndex)+AVERAGE(D20:L20)*2.5%*12*$M$22, _13ème_mois,(IF(AND($P$19/Régime_de_travail_temps_plein=1,$P$20=1),$O$23,IF($P$20<=3/12,0,(AVERAGE($E$22:$O$22))))), PFA_Autre,"Complétez","","" )) -> 0.00 | P30: =SUM(D30:O30) -> 0.00
C31: Indemnité de rupture compensatoire de préavis éventuelle | P31: =SUM(D31:O31) -> 0.00
C32: Autre prime donnant lieu à cotisations patronales | I32: 0 | P32: =SUM(D32:O32) -> 0.00
C33: Cotisations patronales si ACS, APE en RBC | F33: =IF(Année_ref<2022,IF(AND($O$5<>"ACS",$O$5<>"APE en RBC"),0, IF(OR($O$5="ACS",$O$5="APE en RBC"), IF($I$6=Ouvrier, (((SUM(D$23:F$23)+SUM(D$32:F$32)+SUM(D$28:F$28))*108%*Tx_coti_CoSub_O)+ IF(Plus_de_10_trav="Moins de 10",(SUM(D$31:F$31)*108%*Tx_coti_O), (SUM(D$31:F$31)*108%*Tx_coti_O_plus10))), (((SUM(D$23:F$23)+SUM(D$32:F$32)+SUM(D$28:F$28))*Tx_coti_CoSub_E)+IF(Plus_de_10_trav="Moins de 10",(SUM(D$31:F$31)*Tx_coti_E),(SUM(D$31:F$31)*Tx_coti_E_plus10)))))),IF(AND($O$5<>"ACS",$O$5<>"APE en RBC"),0, IF(OR($O$5="ACS",$O$5="APE en RBC"), IF($I$6=Ouvrier, (((SUM(D$23:F$23)+SUM(D$32:F$32)+SUM(D$28:F$28))*108%*Tx_coti_CoSub_O)+ IF(Plus_de_10_trav="Moins de 10",(SUM(D$31:F$31)*108%*Tx_coti_O), (SUM(D$31:F$31)*108%*Tx_coti_O_plus10))), (((SUM(D$23:F$23)+SUM(D$32:F$32)+SUM(D$28:F$28))*Tx_coti_CoSub_E)+IF(Plus_de_10_trav="Moins de 10",(SUM(D$31:F$31)*Tx_coti_E),(SUM(D$31:F$31)*Tx_coti_E_plus10)))),0))) -> 0.00 | I33: =IF(Année_ref<2022,IF(AND($O$5<>"ACS",$O$5<>"APE en RBC"),0, IF(OR($O$5="ACS",$O$5="APE en RBC"), IF($I$6=Ouvrier, (((SUM(G$23:I$23)+SUM(G$32:I$32)+SUM(G$28:I$28))*108%*Tx_coti_CoSub_O)+ IF(Plus_de_10_trav="Moins de 10",(SUM(G$31:I$31)*108%*Tx_coti_O), (SUM(G$31:I$31)*108%*Tx_coti_O_plus10))), (((SUM(G$23:I$23)+SUM(G$32:I$32)+SUM(G$28:I$28))*Tx_coti_CoSub_E)+IF(Plus_de_10_trav="Moins de 10",(SUM(G$31:I$31)*Tx_coti_E),(SUM(G$31:I$31)*Tx_coti_E_plus10)))))),IF(AND($O$5<>"ACS",$O$5<>"APE en RBC"),0, IF(OR($O$5="ACS",$O$5="APE en RBC"), IF($I$6=Ouvrier, (((SUM(G$23:I$23)+SUM(G$32:I$32)+SUM(G$28:I$28))*108%*Tx_coti_CoSub_O)+ IF(Plus_de_10_trav="Moins de 10",(SUM(G$31:I$31)*108%*Tx_coti_O), (SUM(G$31:I$31)*108%*Tx_coti_O_plus10))), (((SUM(G$23:I$23)+SUM(G$32:I$32)+SUM(G$28:I$28))*Tx_coti_CoSub_E)+IF(Plus_de_10_trav="Moins de 10",(SUM(G$31:I$31)*Tx_coti_E),(SUM(G$31:I$31)*Tx_coti_E_plus10)))),0))) -> 0.00 | L33: =IF(Année_ref<2022,IF(AND($O$5<>"ACS",$O$5<>"APE en RBC"),0, IF(OR($O$5="ACS",$O$5="APE en RBC"), IF($I$6=Ouvrier, (((SUM(J$23:L$23)+SUM(J$32:L$32)+SUM(J$28:L$28))*108%*Tx_coti_CoSub_O)+ IF(Plus_de_10_trav="Moins de 10",(SUM(J$31:L$31)*108%*Tx_coti_O), (SUM(J$31:L$31)*108%*Tx_coti_O_plus10))), (((SUM(J$23:L$23)+SUM(J$32:L$32)+SUM(J$28:L$28))*Tx_coti_CoSub_E)+IF(Plus_de_10_trav="Moins de 10",(SUM(J$31:L$31)*Tx_coti_E),(SUM(J$31:L$31)*Tx_coti_E_plus10)))))),IF(AND($O$5<>"ACS",$O$5<>"APE en RBC"),0, IF(OR($O$5="ACS",$O$5="APE en RBC"), IF($I$6=Ouvrier, (((SUM(J$23:L$23)+SUM(J$32:L$32)+SUM(J$28:L$28))*108%*Tx_coti_CoSub_O)+ IF(Plus_de_10_trav="Moins de 10",(SUM(J$31:L$31)*108%*Tx_coti_O), (SUM(J$31:L$31)*108%*Tx_coti_O_plus10))), (((SUM(J$23:L$23)+SUM(J$32:L$32)+SUM(J$28:L$28))*Tx_coti_CoSub_E)+IF(Plus_de_10_trav="Moins de 10",(SUM(J$31:L$31)*Tx_coti_E),(SUM(J$31:L$31)*Tx_coti_E_plus10)))),0))) -> 0.00 | O33: =IF(Année_ref<2022,IF(AND($O$5<>"ACS",$O$5<>"APE en RBC"),0, IF(OR($O$5="ACS",$O$5="APE en RBC"), IF($I$6=Ouvrier, (((SUM(M$23:O$23)+SUM(M$32:O$32)+SUM(M$28:O$28)+$O$30)*108%*Tx_coti_CoSub_O)+ IF(Plus_de_10_trav="Moins de 10",(SUM(M$31:O$31)*108%*Tx_coti_O), (SUM(M$31:O$31)*108%*Tx_coti_O_plus10))), (((SUM(M$23:O$23)+SUM(M$32:O$32)+SUM(M$28:O$28)+$O$30)*Tx_coti_CoSub_E)+IF(Plus_de_10_trav="Moins de 10",(SUM(M$31:O$31)*Tx_coti_E),(SUM(M$31:O$31)*Tx_coti_E_plus10)))))),IF(AND($O$5<>"ACS",$O$5<>"APE en RBC"),0, IF(OR($O$5="ACS",$O$5="APE en RBC"), IF($I$6=Ouvrier, (((SUM(M$23:O$23)+SUM(M$32:O$32)+SUM(M$28:O$28)+$O$30)*108%*Tx_coti_CoSub_O)+ IF(Plus_de_10_trav="Moins de 10",(SUM(M$31:O$31)*108%*Tx_coti_O), (SUM(M$31:O$31)*108%*Tx_coti_O_plus10))), (((SUM(M$23:O$23)+SUM(M$32:O$32)+SUM(M$28:O$28)+O$30)*Tx_coti_CoSub_E)+IF(Plus_de_10_trav="Moins de 10",(SUM(M$31:O$31)*Tx_coti_E),(SUM(M$31:O$31)*Tx_coti_E_plus10)))),0))) -> 0.00
C34: Cotisations patronales si Étudiant | F34: =IF($O$5=ÉTUDIANT·E,(SUM(D$23:F$23)+SUM(D$32:F$32)+SUM(D$28:F$28)+SUM(D$31:F$31))*Cot_patr_étudiant,0) -> 0.00 | I34: =IF($O$5=ÉTUDIANT·E,(SUM(G$23:I$23)+SUM(G$32:I$32)+SUM(G$28:I$28)+SUM(G$31:I$31))* Cot_patr_étudiant,0) -> 0.00 | L34: =IF($O$5=ÉTUDIANT·E,(SUM(J$23:L$23)+SUM(J$32:L$32)+SUM(J$28:L$28)+SUM(J$31:L$31))*Cot_patr_étudiant,0) -> 0.00 | O34: =IF($O$5=ÉTUDIANT·E,(SUM(M$23:O$23)+SUM(M$32:O$32)+SUM(M$28:O$28)+SUM(M$31:O$31)++IF($O$30="Complétez",0,$O$30))*Cot_patr_étudiant,0) -> 0.00
C35: Cotisations patronales taux plein | F35: =IF(OR($O$5="Non",$O$5="PTP BXL", $O$5="PTP W", $O$5="PTP CG",$O$5="MARIBEL",$O$5="BVA",$O$5="APE en RW"), IF(Plus_de_10_trav="10 et plus", IF($I$6=Ouvrier,(SUM(D$23:F$23)+SUM(D$32:F$32)+SUM(D$28:F$28)+SUM(D$28:F$28)+SUM(D$31:F$31))*108%*(Tx_coti_O_plus10), (SUM(D$23:F$23)+SUM(D$32:F$32)+SUM(D$28:F$28)+SUM(D$31:F$31))*(Tx_coti_E_plus10)), IF($I$6=Ouvrier,(SUM(D$23:F$23)+SUM(D$32:F$32)+SUM(D$28:F$28)+SUM(D$31:F$31))*108%*(Tx_coti_O), (SUM(D$23:F$23)+SUM(D$32:F$32)+SUM(D$28:F$28)+SUM(D$31:F$31))*(Tx_coti_E))),0) -> 0.00 | I35: =IF(OR($O$5="Non",$O$5="PTP BXL", $O$5="PTP W", $O$5="PTP CG",$O$5="MARIBEL",$O$5="BVA",$O$5="APE en RW"), IF(Plus_de_10_trav="10 et plus", IF($I$6=Ouvrier,(SUM(G$23:I$23)+SUM(G$32:I$32)+SUM(G$28:I$28)+SUM(G$28:I$28)+SUM(G$31:I$31))*108%*(Tx_coti_O_plus10), (SUM(G$23:I$23)+SUM(G$32:I$32)+SUM(G$28:I$28)+SUM(G$31:I$31))*(Tx_coti_E_plus10)), IF($I$6=Ouvrier,(SUM(G$23:I$23)+SUM(G$32:I$32)+SUM(G$28:I$28)+SUM(G$31:I$31))*108%*(Tx_coti_O), (SUM(G$23:I$23)+SUM(G$32:I$32)+SUM(G$28:I$28)+SUM(G$31:I$31))*(Tx_coti_E))),0) -> 0.00 | L35: =IF(OR($O$5="Non",$O$5="PTP BXL", $O$5="PTP W", $O$5="PTP CG",$O$5="MARIBEL",$O$5="BVA",$O$5="APE en RW"), IF(Plus_de_10_trav="10 et plus", IF($I$6=Ouvrier,(SUM(J$23:L$23)+SUM(J$32:L$32)+SUM(J$28:L$28)+SUM(J$28:L$28)+SUM(J$31:L$31))*108%*(Tx_coti_O_plus10), (SUM(J$23:L$23)+SUM(J$32:L$32)+SUM(J$28:L$28)+SUM(J$31:L$31))*(Tx_coti_E_plus10)), IF($I$6=Ouvrier,(SUM(J$23:L$23)+SUM(J$32:L$32)+SUM(J$28:L$28)+SUM(J$31:L$31))*108%*(Tx_coti_O), (SUM(J$23:L$23)+SUM(J$32:L$32)+SUM(J$28:L$28)+SUM(J$31:L$31))*(Tx_coti_E))),0) -> 0.00 | O35: =IF(OR($O$5="Non",$O$5="PTP BXL", $O$5="PTP W", $O$5="PTP CG",$O$5="MARIBEL",$O$5="BVA",$O$5="APE en RW"), IF(Plus_de_10_trav="10 et plus", IF($I$6=Ouvrier,(SUM(M$23:O$23)+SUM(M$32:O$32)+SUM(M$28:O$28)+SUM(M$31:O$31)++IF($O$30="Complétez",0,$O$30))*108%*(Tx_coti_O_plus10), (SUM(M$23:O$23)+SUM(M$32:O$32)+SUM(M$28:O$28)+SUM(M$31:O$31)++IF($O$30="Complétez",0,$O$30))*(Tx_coti_E_plus10)), IF($I$6=Ouvrier,(SUM(M$23:O$23)+SUM(M$32:O$32)+SUM(M$28:O$28)+SUM(M$31:O$31)++IF($O$30="Complétez",0,$O$30))*108%*(Tx_coti_O), (SUM(M$23:O$23)+SUM(M$32:O$32)+SUM(M$28:O$28)+SUM(M$31:O$31)++IF($O$30="Complétez",0,$O$30))*(Tx_coti_E))),0) -> 0.00
C36: Cotisations patronales avant réductions y compris cotisations au Fonds 4S | F36: =SUM(F33:F35) -> 0.00 | I36: =SUM(I33:I35) -> 0.00 | L36: =SUM(L33:L35) -> 0.00 | O36: =SUM(O33:O35) -> 0.00 | P36: =SUM(D36:O36) -> 0.00
C37: Réduction cotisations patronales si PTP <25 ans | D37: Trim PTP | E37: =IF(LEFT($O$5,3)<>"PTP",0,ROUNDUP((_xlfn.DAYS(DATE(Année_ref,3,31),$O$11))/(13*7),0)) -> 0 | F37: =IF(AND(Année_ref>2020,$I$5="Wallonie"),0,IF(IF(OR($O$5=PTP_BXL,$O$5=PTP_CG),IF($O$9="<25 ans",IF($E$37<6,-1000,IF(AND($E$37>5,$E$37<10),-400,0))),0)=FALSE,0,IF(OR($O$5=PTP_BXL,$O$5=PTP_CG),IF($O$9="<25 ans",IF($E$37<6,-1000,IF(AND($E$37>5,$E$37<10),-400,0))),0))) -> 0.00 | G37: Trim PTP | H37: =IF(LEFT($O$5,3)<>"PTP",0,ROUNDUP((_xlfn.DAYS(DATE(Année_ref,6,30),$O$11))/(13*7),0)) -> 0 | I37: =IF(AND(Année_ref>2020,$I$5="Wallonie"),0,IF(IF(OR($O$5=PTP_BXL,$O$5=PTP_CG),IF($O$9="<25 ans",IF($E$37<6,-1000,IF(AND($E$37>5,$E$37<10),-400,0))),0)=FALSE,0,IF(OR($O$5=PTP_BXL,$O$5=PTP_CG),IF($O$9="<25 ans",IF($E$37<6,-1000,IF(AND($E$37>5,$E$37<10),-400,0))),0))) -> 0.00 | J37: Trim PTP | K37: =IF(LEFT($O$5,3)<>"PTP",0,ROUNDUP((_xlfn.DAYS(DATE(Année_ref,9,30),$O$11))/(13*7),0)) -> 0 | L37: =IF(AND(Année_ref>2020,$I$5="Wallonie"),0,IF(IF(OR($O$5=PTP_BXL,$O$5=PTP_CG),IF($O$9="<25 ans",IF($E$37<6,-1000,IF(AND($E$37>5,$E$37<10),-400,0))),0)=FALSE,0,IF(OR($O$5=PTP_BXL,$O$5=PTP_CG),IF($O$9="<25 ans",IF($E$37<6,-1000,IF(AND($E$37>5,$E$37<10),-400,0))),0))) -> 0.00 | M37: Trim PTP | N37: =IF(LEFT($O$5,3)<>"PTP",0,ROUNDUP((_xlfn.DAYS(DATE(Année_ref,12,31),$O$11))/(13*7),0)) -> 0 | O37: =IF(AND(Année_ref>2020,$I$5="Wallonie"),0,IF(IF(OR($O$5=PTP_BXL,$O$5=PTP_CG),IF($O$9="<25 ans",IF($E$37<6,-1000,IF(AND($E$37>5,$E$37<10),-400,0))),0)=FALSE,0,IF(OR($O$5=PTP_BXL,$O$5=PTP_CG),IF($O$9="<25 ans",IF($E$37<6,-1000,IF(AND($E$37>5,$E$37<10),-400,0))),0))) -> 0.00
C38: Réduction cotisations patronales si PTP <45 ans | F38: =IF(AND(Année_ref>2020,$I$5="Wallonie"),0,IF(IF(OR($O$5=PTP_BXL,$O$5=PTP_CG),IF(AND($O$9="<45 ans",$O$10="≥12 mois"), IF($E$37<6,-1000, IF(AND($E$37>5,$E$37<10),-400,0)), IF(AND($O$9="<45 ans",$O$10="≥24 mois"), IF($E$37<10,-1000, ))),0)=FALSE,0,IF(OR($O$5=PTP_BXL,$O$5=PTP_CG),IF(AND($O$9="<45 ans",$O$10="≥12 mois"), IF($E$37<6,-1000, IF(AND($E$37>5,$E$37<10),-400,0)), IF(AND($O$9="<45 ans",$O$10="≥24 mois"), IF($E$37<10,-1000, ))),0))) -> 0.00 | I38: =IF(AND(Année_ref>2020,$I$5="Wallonie"),0,IF(IF(OR($O$5=PTP_BXL,$O$5=PTP_CG),IF(AND($O$9="<45 ans",$O$10="≥12 mois"), IF($E$37<6,-1000, IF(AND($E$37>5,$E$37<10),-400,0)), IF(AND($O$9="<45 ans",$O$10="≥24 mois"), IF($E$37<10,-1000, ))),0)=FALSE,0,IF(OR($O$5=PTP_BXL,$O$5=PTP_CG),IF(AND($O$9="<45 ans",$O$10="≥12 mois"), IF($E$37<6,-1000, IF(AND($E$37>5,$E$37<10),-400,0)), IF(AND($O$9="<45 ans",$O$10="≥24 mois"), IF($E$37<10,-1000, ))),0))) -> 0.00 | L38: =IF(AND(Année_ref>2020,$I$5="Wallonie"),0,IF(IF(OR($O$5=PTP_BXL,$O$5=PTP_CG),IF(AND($O$9="<45 ans",$O$10="≥12 mois"), IF($E$37<6,-1000, IF(AND($E$37>5,$E$37<10),-400,0)), IF(AND($O$9="<45 ans",$O$10="≥24 mois"), IF($E$37<10,-1000, ))),0)=FALSE,0,IF(OR($O$5=PTP_BXL,$O$5=PTP_CG),IF(AND($O$9="<45 ans",$O$10="≥12 mois"), IF($E$37<6,-1000, IF(AND($E$37>5,$E$37<10),-400,0)), IF(AND($O$9="<45 ans",$O$10="≥24 mois"), IF($E$37<10,-1000, ))),0))) -> 0.00 | O38: =IF(AND(Année_ref>2020,$I$5="Wallonie"),0,IF(IF(OR($O$5=PTP_BXL,$O$5=PTP_CG),IF(AND($O$9="<45 ans",$O$10="≥12 mois"), IF($E$37<6,-1000, IF(AND($E$37>5,$E$37<10),-400,0)), IF(AND($O$9="<45 ans",$O$10="≥24 mois"), IF($E$37<10,-1000, ))),0)=FALSE,0,IF(OR($O$5=PTP_BXL,$O$5=PTP_CG),IF(AND($O$9="<45 ans",$O$10="≥12 mois"), IF($E$37<6,-1000, IF(AND($E$37>5,$E$37<10),-400,0)), IF(AND($O$9="<45 ans",$O$10="≥24 mois"), IF($E$37<10,-1000, ))),0))) -> 0.00
C39: Réduction cotisations patronales si PTP ≥45 ans | F39: =IF(AND(Année_ref>2020,$I$5="Wallonie"),0,IF(IF(OR($O$5=PTP_BXL,$O$5=PTP_CG),IF(AND($O$9="≥45 ans",$O$10="≥12 mois"), IF($E$37<6,-1000, IF(AND($E$37>5,$E$37<14),-400,0)), IF(AND($O$9="≥45 ans",$O$10="≥24 mois"), IF($E$37<14,-1000, ))),0)=FALSE,0,IF(OR($O$5=PTP_BXL,$O$5=PTP_CG),IF(AND($O$9="≥45 ans",$O$10="≥12 mois"), IF($E$37<6,-1000, IF(AND($E$37>5,$E$37<14),-400,0)), IF(AND($O$9="≥45 ans",$O$10="≥24 mois"), IF($E$37<14,-1000, ))),0))) -> 0.00 | I39: =IF(AND(Année_ref>2020,$I$5="Wallonie"),0,IF(IF(OR($O$5=PTP_BXL,$O$5=PTP_CG),IF(AND($O$9="≥45 ans",$O$10="≥12 mois"), IF($E$37<6,-1000, IF(AND($E$37>5,$E$37<14),-400,0)), IF(AND($O$9="≥45 ans",$O$10="≥24 mois"), IF($E$37<14,-1000, ))),0)=FALSE,0,IF(OR($O$5=PTP_BXL,$O$5=PTP_CG),IF(AND($O$9="≥45 ans",$O$10="≥12 mois"), IF($E$37<6,-1000, IF(AND($E$37>5,$E$37<14),-400,0)), IF(AND($O$9="≥45 ans",$O$10="≥24 mois"), IF($E$37<14,-1000, ))),0))) -> 0.00 | L39: =IF(AND(Année_ref>2020,$I$5="Wallonie"),0,IF(IF(OR($O$5=PTP_BXL,$O$5=PTP_CG),IF(AND($O$9="≥45 ans",$O$10="≥12 mois"), IF($E$37<6,-1000, IF(AND($E$37>5,$E$37<14),-400,0)), IF(AND($O$9="≥45 ans",$O$10="≥24 mois"), IF($E$37<14,-1000, ))),0)=FALSE,0,IF(OR($O$5=PTP_BXL,$O$5=PTP_CG),IF(AND($O$9="≥45 ans",$O$10="≥12 mois"), IF($E$37<6,-1000, IF(AND($E$37>5,$E$37<14),-400,0)), IF(AND($O$9="≥45 ans",$O$10="≥24 mois"), IF($E$37<14,-1000, ))),0))) -> 0.00 | O39: =IF(AND(Année_ref>2020,$I$5="Wallonie"),0,IF(IF(OR($O$5=PTP_BXL,$O$5=PTP_CG),IF(AND($O$9="≥45 ans",$O$10="≥12 mois"), IF($E$37<6,-1000, IF(AND($E$37>5,$E$37<14),-400,0)), IF(AND($O$9="≥45 ans",$O$10="≥24 mois"), IF($E$37<14,-1000, ))),0)=FALSE,0,IF(OR($O$5=PTP_BXL,$O$5=PTP_CG),IF(AND($O$9="≥45 ans",$O$10="≥12 mois"), IF($E$37<6,-1000, IF(AND($E$37>5,$E$37<14),-400,0)), IF(AND($O$9="≥45 ans",$O$10="≥24 mois"), IF($E$37<14,-1000, ))),0))) -> 0.00
C40: Jours donnant lieu à rémunération à corriger en fonction du RT/sem [5 ou 6] y compris JF | D40: =IF($I$8=5,VLOOKUP(Année_ref,Paramètres!$A$89:$M$92,D$21+1,FALSE),VLOOKUP(Année_ref,Paramètres!$A$95:$M$98,D$21+1,FALSE)) -> 22.00 | E40: =IF($I$8=5,VLOOKUP(Année_ref,Paramètres!$A$89:$M$92,E$21+1,FALSE),VLOOKUP(Année_ref,Paramètres!$A$95:$M$98,E$21+1,FALSE)) -> 20.00 | F40: =IF($I$8=5,VLOOKUP(Année_ref,Paramètres!$A$89:$M$92,F$21+1,FALSE),VLOOKUP(Année_ref,Paramètres!$A$95:$M$98,F$21+1,FALSE)) -> 23.00 | G40: =IF($I$8=5,VLOOKUP(Année_ref,Paramètres!$A$89:$M$92,G$21+1,FALSE),VLOOKUP(Année_ref,Paramètres!$A$95:$M$98,G$21+1,FALSE)) -> 19.00 | H40: =IF($I$8=5,VLOOKUP(Année_ref,Paramètres!$A$89:$M$92,H$21+1,FALSE),VLOOKUP(Année_ref,Paramètres!$A$95:$M$98,H$21+1,FALSE)) -> 22.00 | I40: =IF($I$8=5,VLOOKUP(Année_ref,Paramètres!$A$89:$M$92,I$21+1,FALSE),VLOOKUP(Année_ref,Paramètres!$A$95:$M$98,I$21+1,FALSE)) -> 22.00 | J40: =IF($I$8=5,VLOOKUP(Année_ref,Paramètres!$A$89:$M$92,J$21+1,FALSE),VLOOKUP(Année_ref,Paramètres!$A$95:$M$98,J$21+1,FALSE)) -> 20.00 | K40: =IF($I$8=5,VLOOKUP(Année_ref,Paramètres!$A$89:$M$92,K$21+1,FALSE),VLOOKUP(Année_ref,Paramètres!$A$95:$M$98,K$21+1,FALSE)) -> 22.00 | L40: =IF($I$8=5,VLOOKUP(Année_ref,Paramètres!$A$89:$M$92,L$21+1,FALSE),VLOOKUP(Année_ref,Paramètres!$A$95:$M$98,L$21+1,FALSE)) -> 20.00 | M40: =IF($I$8=5,VLOOKUP(Année_ref,Paramètres!$A$89:$M$92,M$21+1,FALSE),VLOOKUP(Année_ref,Paramètres!$A$95:$M$98,M$21+1,FALSE)) -> 22.00 | N40: =IF($I$8=5,VLOOKUP(Année_ref,Paramètres!$A$89:$M$92,N$21+1,FALSE),VLOOKUP(Année_ref,Paramètres!$A$95:$M$98,N$21+1,FALSE)) -> 20.00 | O40: =IF($I$8=5,IF(Année_ref=2020,23, IF(Année_ref=2021,23,IF(Année_ref=2022,23))), IF(Année_ref=2020,27, IF(Année_ref=2021,27,IF(Année_ref=2022,28)))) -> FALSE
C41: Jours prestés | D41: =IF($I$6="",0,IF(AND($I$6="Ouvrier",MONTH($I$13)=D$21),0,ROUND(D$40*D$20*D$19/Régime_de_travail_temps_plein,0))) -> 0.00 | E41: 0.00 | F41: 0.00 | G41: 0.00 | H41: 0.00 | I41: 0.00 | J41: 0.00 | K41: 0.00 | L41: 0.00 | M41: 0.00 | N41: 0.00 | O41: 0.00
C42: µ = fraction de prestation | F42: =IF(SUM(D$41:F$41)/(13*$I$8)>1,1,SUM(D$41:F$41)/(13*$I$8)) -> 0.00 | I42: =IF(SUM(G$41:I$41)/(13*$I$8)>1,1,SUM(G$41:I$41)/(13*$I$8)) -> 0.00 | L42: =IF(SUM(J$41:L$41)/(13*$I$8)>1,1,SUM(J$41:L$41)/(13*$I$8)) -> 0.00 | O42: =IF(SUM(M$41:O$41)/(13*$I$8)>1,1,SUM(M$41:O$41)/(13*$I$8)) -> 0.00
C43: ßg = facteur fixe de multiplication GC | F43: =IF(F$42<0.275,0,IF(F$42<0.55,1, IF(AND(F$42>=0.55,F$42<0.8),1+((F$42-0.55)),1/F$42))) -> 0.00 | I43: =IF(I$42<0.275,0,IF(I$42<0.55,1, IF(AND(I$42>=0.55,I$42<0.8),1+((I$42-0.55)),1/I$42))) -> 0.00 | L43: =IF(L$42<0.275,0,IF(L$42<0.55,1, IF(AND(L$42>=0.55,L$42<0.8),1+((L$42-0.55)),1/L$42))) -> 0.00 | O43: =IF(O$42<0.275,0,IF(O$42<0.55,1, IF(AND(O$42>=0.55,O$42<0.8),1+((O$42-0.55)),1/O$42))) -> 0.00
C44: ßs = Facteur fixe de multiplication RS | F44: =IF(F$42<0.275,0,IF(F$42<0.55,1.18, IF(AND(F$42>=0.55,F$42<0.8),1.18+((F$42-0.55)*0.28),1/F$42))) -> 0.00 | I44: =IF(I$42<0.275,0,IF(I$42<0.55,1.18, IF(AND(I$42>=0.55,I$42<0.8),1.18+((I$42-0.55)*0.28),1/I$42))) -> 0.00 | L44: =IF(L$42<0.275,0,IF(L$42<0.55,1.18, IF(AND(L$42>=0.55,L$42<0.8),1.18+((L$42-0.55)*0.28),1/L$42))) -> 0.00 | O44: =IF(O$42<0.275,0,IF(O$42<0.55,1.18, IF(AND(O$42>=0.55,O$42<0.8),1.18+((O$42-0.55)*0.28),1/O$42))) -> 0.00
C45: S= Salaire trimestriel de référence | F45: =IF(SUM(D$41:F$41)=0,0,F$46*(13*$I$8/SUM(D$41:F$41))) -> 0.00 | I45: =IF(SUM(G$41:I$41)=0,0,I$46*(13*$I$8/SUM(G$41:I$41))) -> 0.00 | L45: =IF(SUM(J$41:L$41)=0,0,L$46*(13*$I$8/SUM(J$41:L$41))) -> 0.00 | O45: =IF(SUM(M$41:O$41)=0,0,O$46*(13*$I$8/SUM(M$41:O$41))) -> 0.00
C46: W= Masse salariale trimestrielle | F46: =SUM(D$23:F$23)+SUM(D$28:F$28) -> 0.00 | I46: =SUM(G$23:I$23)+SUM(G$28:I$28) -> 0.00 | L46: =SUM(J$23:L$23)+SUM(J$28:L$28) -> 0.00 | O46: =SUM(M$23:O$23)+SUM(M$28:O$28)+IF($O$30="Complétez",0,$O$30) -> 0.00
C47: Cotisation patronale disponible – Maribel | F47: =IF(F$42>0.49, IF(Année_ref=2020,MAX((F$35-Réd_MS_2020),0),IF(Année_ref=2021,MAX((F$35-Réd_MS_2021),0),IF(Année_ref=2022,MAX((F$35-Réd_MS_2022),0),MAX(F$35,0))) ),0) -> 0.00 | I47: =IF(I$42>0.49, IF(Année_ref=2020,MAX((I$35-Réd_MS_2020),0),IF(Année_ref=2021,MAX((I$35-Réd_MS_2021),0),IF(Année_ref=2022,MAX((I$35-Réd_MS_2022),0),MAX(I$35,0))) ),0) -> 0.00 | L47: =IF(L$42>0.49, IF(Année_ref=2020,MAX((L$35-Réd_MS_2020),0),IF(Année_ref=2021,MAX((L$35-Réd_MS_2021),0),IF(Année_ref=2022,MAX((L$35-Réd_MS_2022),0),MAX(L$35,0))) ),0) -> 0.00 | O47: =IF(O$42>0.49, IF(Année_ref=2020,MAX((O$35-Réd_MS_2020),0),IF(Année_ref=2021,MAX((O$35-Réd_MS_2021),0),IF(Année_ref=2022,MAX((O$35-Réd_MS_2022),0),MAX(O$35,0))) ),0) -> 0.00
C48: Réduction structurelle | F48: =IF(OR($O$5="ACS",$O$5="APE en RBC",LEFT($O$5,3)="PTP"),0, IF(Année_ref=2020, Forfait_2020+ IF(Coeff_BS*(Borne_BS_2020-F$45)<0,0,Forfait_2020+Coeff_BS*(Borne_BS_2020-F$45))+ IF(Coeff_HS*(F$46-Borne_HS_2020)<0,0,Coeff_HS*(F$46-Borne_HS_2020)), IF(Année_ref=2021, Forfait_2021+ IF(Coeff_BS*(Borne_BS_2021-F$45)<0,0,Forfait_2021+Coeff_BS*(Borne_BS_2021-F$45))+ IF(Coeff_HS*(F$46-Borne_HS_2021)<0,0,Coeff_HS*(F$46-Borne_HS_2021)), IF(Année_ref=2022,Forfait_2022+ IF(Coeff_BS*(Borne_BS_2022-F$45)<0,0,Forfait_2022+Coeff_BS*(Borne_BS_2022-F$45))+ IF(Coeff_HS*(F$46-Borne_HS_2022)<0,0,Coeff_HS*(F$46-Borne_HS_2022)),0)))) -> 0.00 | I48: =IF(OR($O$5="ACS",$O$5="APE",LEFT($O$5,3)="PTP"),0, IF(Année_ref=2020, Forfait_2020+ IF(Coeff_BS*(Borne_BS_2020-I$45)<0,0,Forfait_2020+Coeff_BS*(Borne_BS_2020-I$45))+ IF(Coeff_HS*(I$46-Borne_HS_2020)<0,0,Coeff_HS*(I$46-Borne_HS_2020)), IF(Année_ref=2021, Forfait_2021+ IF(Coeff_BS*(Borne_BS_2021-I$45)<0,0,Forfait_2021+Coeff_BS*(Borne_BS_2021-I$45))+ IF(Coeff_HS*(I$46-Borne_HS_2021)<0,0,Coeff_HS*(I$46-Borne_HS_2021)), IF(Année_ref=2022,Forfait_2022+ IF(Coeff_BS*(Borne_BS_2022-I$45)<0,0,Forfait_2022+Coeff_BS*(Borne_BS_2022-I$45))+ IF(Coeff_HS*(I$46-Borne_HS_2022)<0,0,Coeff_HS*(I$46-Borne_HS_2022)),0)))) -> 0.00 | L48: =IF(OR($O$5="ACS",$O$5="APE",LEFT($O$5,3)="PTP"),0, IF(Année_ref=2020, Forfait_2020+ IF(Coeff_BS*(Borne_BS_2020-L$45)<0,0,Forfait_2020+Coeff_BS*(Borne_BS_2020-L$45))+ IF(Coeff_HS*(L$46-Borne_HS_2020)<0,0,Coeff_HS*(L$46-Borne_HS_2020)), IF(Année_ref=2021, Forfait_2021+ IF(Coeff_BS*(Borne_BS_2021-L$45)<0,0,Forfait_2021+Coeff_BS*(Borne_BS_2021-L$45))+ IF(Coeff_HS*(L$46-Borne_HS_2021)<0,0,Coeff_HS*(L$46-Borne_HS_2021)), IF(Année_ref=2022,Forfait_2022+ IF(Coeff_BS*(Borne_BS_2022-L$45)<0,0,Forfait_2022+Coeff_BS*(Borne_BS_2022-L$45))+ IF(Coeff_HS*(L$46-Borne_HS_2022)<0,0,Coeff_HS*(L$46-Borne_HS_2022)),0)))) -> 0.00 | O48: =IF(OR($O$5="ACS",$O$5="APE",LEFT($O$5,3)="PTP"),0, IF(Année_ref=2020, Forfait_2020+ IF(Coeff_BS*(Borne_BS_2020-O$45)<0,0,Forfait_2020+Coeff_BS*(Borne_BS_2020-O$45))+ IF(Coeff_HS*(O$46-Borne_HS_2020)<0,0,Coeff_HS*(O$46-Borne_HS_2020)), IF(Année_ref=2021, Forfait_2021+ IF(Coeff_BS*(Borne_BS_2021-O$45)<0,0,Forfait_2021+Coeff_BS*(Borne_BS_2021-O$45))+ IF(Coeff_HS*(O$46-Borne_HS_2021)<0,0,Coeff_HS*(O$46-Borne_HS_2021)), IF(Année_ref=2022,Forfait_2022+ IF(Coeff_BS*(Borne_BS_2022-O$45)<0,0,Forfait_2022+Coeff_BS*(Borne_BS_2022-O$45))+ IF(Coeff_HS*(O$46-Borne_HS_2022)<0,0,Coeff_HS*(O$46-Borne_HS_2022)),0)))) -> 0.00
C49: Estimation réduction structurelle avec fraction de prestation | F49: =-IF($I$8=0,0,IF(F$48*F$44*F$42<F$47,F$48*F$44*F$42,F$47)) -> 0.00 | I49: =IF($I$8=0,0,-IF(I$48*I$44*I$42<I$47,I$48*I$44*I$42,I$47)) -> 0.00 | L49: =IF($I$8=0,0,-IF(L$48*L$44*L$42<L$47,L$48*L$44*L$42,L$47)) -> 0.00 | O49: =IF($I$8=0,0,-IF(O$48*O$44*O$42<O$47,O$48*O$44*O$42,O$47)) -> 0.00 | P49: =SUM(D49:O49) -> 0.00
C50: Réduction cotisation patronales PTP pleine | F50: =SUM(F37:F39)*F$42*F$43 -> 0.00 | I50: =SUM(I37:I39)*I$42*I$43 -> 0.00 | L50: =SUM(L37:L39)*L$42*L$43 -> 0.00 | O50: =SUM(O37:O39)*O$42*O$43 -> 0.00
C51: Réduction cotisation patronales PTP adaptée au montant disponible | F51: =IF(LEFT($O$5,3)="PTP",IF(F$36+F$49<-F$50,-(F$36+F$49),F$50),0) -> 0.00 | I51: =IF(LEFT($O$5,3)="PTP",IF(I$36+I$49<-I$50,-(I$36+I$49),I$50),0) -> 0.00 | L51: =IF(LEFT($O$5,3)="PTP",IF(L$36+L$49<-L$50,-(L$36+L$49),L$50),0) -> 0.00 | O51: =IF(LEFT($O$5,3)="PTP",IF(O$36+O$49<-O$50,-(O$36+O$49),O$50),0) -> 0.00 | P51: =SUM(D51:O51) -> 0.00
C52: Réductions ou Activations Aides à l'emploi à partir du 1-10-2017 [montant négatif] | P52: 0.00
C53: Réductions ou Activations découlant des systèmes précédents [montant négatif] | P53: 0.00
C54: Déplacements domicile lieu de travail | D54: 0.00 | E54: =IF(MONTH($I$13)=E$21,0,$D$54) -> 0.00 | F54: 0.00 | G54: 0.00 | H54: 0.00 | I54: 0.00 | J54: 0.00 | K54: 0.00 | L54: 0.00 | M54: 0.00 | N54: 0.00 | O54: 0.00 | P54: 0.00 | Q54: <= Si forfait annuel, encodez ici
C55: Remboursement forfaitaire de frais figurant sur la fiche de paie | D55: 0.00 | E55: =IF(MONTH($I$13)=E$21,0,$D$55) -> 0.00 | F55: 0.00 | G55: 0.00 | H55: 0.00 | I55: 0.00 | J55: 0.00 | K55: 0.00 | L55: 0.00 | M55: 0.00 | N55: 0.00 | O55: 0.00 | P55: 0.00
C56: Remboursement forfaitaire de frais dédiés (gsm, internet… figurant sur la fiche de paie) | D56: 0.00 | E56: =IF(MONTH($I$13)=E$21,0,$D$56) -> 0.00 | F56: 0.00 | G56: 0.00 | H56: 0.00 | I56: 0.00 | J56: 0.00 | K56: 0.00 | L56: 0.00 | M56: 0.00 | N56: 0.00 | O56: 0.00 | P56: 0.00
